Workbook

Sheet Sample Report (hidden)
A2: Date
A3: Hen
A4: Program
A5: Start at 999999
A6: Sequence component 1 | B6: Time 1 | C6: Seqeunce Component 2 | D6: Time 2 | E6: Seqeunce Component 3 | F6: Time 3 | G6: Correct 0 = No 1=Yes | J6: Seqeunce | K6: Time
A7: 12 | B7: 7 | C7: 12 | D7: 42 | E7: 13 | F7: 18 | G7: if 77 new line, if 31 or 41 = yes new line on 77, | J7: =string of Seqeunce compponent 1, 2 & 3 | K7: =time 3
A8: This continues until ther is a 1 on its own to indicate start of summary data
J9: 10-19 =1
A10: Summary Data | J10: 20-29 =2
A11: Correct | B11: Incorrect | C11: Rft | D11: total | E11: Av Correct | F11: Av Incorrect | G11: Percent correct | H11: Time | J11: in this example the seqeunce would be 111
A12: 40 | B12: 33 | C12: 40 | D12: 73 | E12: 23.95 | F12: 15 | G12: 54 | H12: 806

Sheet Summary
A2: Day | B2: Date | C2: Average Response Rate | D2: Target % | E2: RF for non correct sequence | F2: U Value | K2: Block 1 | L2: Block 2 | M2: Block 3 | N2: Block 4 | O2: Block 5 | P2: Block 6
A3: 1 | B3: ='!L814A4I.sha'!B2:C2 -> <date> | C3: =('!L814A4I.sha'!F99/60)/'!L814A4I.sha'!Q3 -> 3.962544803 | D3: ='!L814A4I.sha'!N20/'!L814A4I.sha'!Q3 -> 0 | E3: =SUM('!L814A4I.sha'!L20:Q20)/'!L814A4I.sha'!Q3 -> 1.64516129 | F3: ='!L814A4I.sha'!Q16 -> 0.2706700903 | J3: Average Response Rate | K3: =AVERAGE(C3:C7) -> 14.40782887 | L3: =AVERAGE(C8:C12) -> 15.80127822 | M3: =AVERAGE(C13:C17) -> 46.09055556 | N3: =AVERAGE(C18:C22) -> 26.59588889 | O3: =AVERAGE(C23:C27) -> 64.65222222 | P3: =AVERAGE(C28:C32) -> 34.32166667
A4: 2 | B4: ='!L815A5I.sha'!B2:C2 -> <date> | C4: =('!L815A5I.sha'!F53/60)/'!L815A5I.sha'!Q3 -> 3.941319444 | D4: ='!L815A5I.sha'!N20/'!L815A5I.sha'!Q3 -> 0 | E4: =SUM('!L815A5I.sha'!L20:Q20)/'!L815A5I.sha'!Q3 -> 2.666666667 | F4: ='!L815A5I.sha'!Q16 -> 0.3826605317 | J4: Target % | K4: =AVERAGE(D3:D7) -> 0 | L4: =AVERAGE(D8:D12) -> 0.01081871345 | M4: =AVERAGE(D13:D17) -> 0 | N4: =AVERAGE(D18:D22) -> 0 | O4: =AVERAGE(D23:D27) -> 0 | P4: =AVERAGE(D28:D32) -> 0
A5: 3 | B5: ='!L816A0I.sha'!B2:C2 -> <date> | C5: =('!L816A0I.sha'!F15/60)/'!L816A0I.sha'!Q3 -> 27.76833333 | D5: ='!L816A0I.sha'!N20/'!L816A0I.sha'!Q3 -> 0 | E5: =SUM('!L816A0I.sha'!L20:Q20)/'!L816A0I.sha'!Q3 -> 0.3 | F5: ='!L816A0I.sha'!Q16 -> 0.5793801643 | J5: CCRF | K5: =AVERAGE(E3:E7) -> 1.76186139 | L5: =AVERAGE(E8:E12) -> 2.976996279 | M5: =AVERAGE(E13:E17) -> 0.3333333333 | N5: =AVERAGE(E18:E22) -> 0.4466666667 | O5: =AVERAGE(E23:E27) -> 1.257142857 | P5: =AVERAGE(E28:E32) -> 0.3
A6: 4 | B6: ='!L817B2I.sha'!B2:C2 -> <date> | C6: =('!L817B2I.sha'!F40/60)/'!L817B2I.sha'!Q3 -> 9.776470588 | D6: ='!L817B2I.sha'!N20/'!L817B2I.sha'!Q3 -> 0 | E6: =SUM('!L817B2I.sha'!L20:Q20)/'!L817B2I.sha'!Q3 -> 3.911764706 | F6: ='!L817B2I.sha'!Q16 -> 0.4303798545 | J6: U Value | K6: =AVERAGE(F3:F7) -> 0.4455132217 | L6: =AVERAGE(F8:F12) -> 0.3247001381 | M6: =AVERAGE(F13:F17) -> 0.4655458754 | N6: =AVERAGE(F18:F22) -> 0.3158760329 | O6: =AVERAGE(F23:F27) -> 0.2851236314 | P6: =AVERAGE(F28:F32) -> 0
A7: 5 | B7: ='!L818B0I.sha'!B2:C2 -> <date> | C7: =('!L818B0I.sha'!F12/60)/'!L818B0I.sha'!Q3 -> 26.59047619 | D7: ='!L818B0I.sha'!N20/'!L818B0I.sha'!Q3 -> 0 | E7: =SUM('!L818B0I.sha'!L20:Q20)/'!L818B0I.sha'!Q3 -> 0.2857142857 | F7: ='!L818B0I.sha'!Q16 -> 0.5644754679
A8: 6 | B8: ='!L81994I.sha'!B2:C2 -> <date> | C8: =('!L81994I.sha'!F17/60)/'!L81994I.sha'!Q3 -> 32.27575758 | D8: ='!L81994I.sha'!N20/'!L81994I.sha'!Q3 -> 0 | E8: =SUM('!L81994I.sha'!L20:Q20)/'!L81994I.sha'!Q3 -> 0.3636363636 | F8: ='!L81994I.sha'!Q16 -> 0.4674726229
A9: 7 | B9: ='!L820A2I.sha'!B2:C2 -> <date> | C9: =('!L820A2I.sha'!F20/60)/'!L820A2I.sha'!Q3 -> 21.54111111 | D9: ='!L820A2I.sha'!N20/'!L820A2I.sha'!Q3 -> 0 | E9: =SUM('!L820A2I.sha'!L20:Q20)/'!L820A2I.sha'!Q3 -> 7.733333333 | F9: ='!L820A2I.sha'!Q16 -> 0.3755655042 | G9: =K3 -> 14.40782887 | H9: =L3 -> 15.80127822 | I9: 46.09055556 | J9: 26.59588889 | K9: 64.65222222 | L9: 34.32166667 | M9: =K4 -> 0 | N9: =L4 -> 0.01081871345 | O9: 0 | P9: 0 | Q9: 0 | R9: 0 | S9: =K6 -> 0.4455132217 | T9: =L6 -> 0.3247001381 | U9: 0.4655458754 | V9: 0.3158760329 | W9: 0.2851236314 | X9: 0
A10: 8 | B10: ='!L822A5I.sha'!B2:C2 -> <date> | C10: =('!L822A5I.sha'!F44/60)/'!L822A5I.sha'!Q3 -> 3.021929825 | D10: ='!L822A5I.sha'!N20/'!L822A5I.sha'!Q3 -> 0.02631578947 | E10: =SUM('!L822A5I.sha'!L20:Q20)/'!L822A5I.sha'!Q3 -> 3.315789474 | F10: ='!L822A5I.sha'!Q16 -> 0.3788880577 | G10: =STDEV($C3:$C7) -> 11.90610383 | H10: =STDEV($C8:$C12) -> 11.33035244 | I10: =STDEV($C13:$C17) -> 83.75359481 | J10: =STDEV($C18:$C22) -> 11.40407056 | K10: =STDEV($C23:$C27) -> 84.65040295 | L10: =STDEV($C28:$C32) -> 66.37495229 | M10: =STDEV($D3:$D7) -> 0 | N10: =STDEV($D8:$D12) -> 0.01482314837 | O10: =STDEV($D13:$D17) -> 0 | P10: =STDEV($D18:$D22) -> 0 | Q10: =STDEV($D23:$D27) -> 0 | R10: =STDEV($D28:$D32) -> 0 | S10: =STDEV($F3:$F7) -> 0.1292497334 | T10: =STDEV($F8:$F12) -> 0.1852346125 | U10: =STDEV($F13:$F17) -> 0.4613759614 | V10: =STDEV($F18:$F22) -> 0.4573819613 | W10: =STDEV($F23:$F27) -> 0.4400776607 | X10: =STDEV($F28:$F32) -> 0
A11: 9 | B11: ='!L82393I.sha'!B2:C2 -> <date> | C11: =('!L82393I.sha'!F7/60)/'!L82393I.sha'!Q3 -> 11.9 | D11: ='!L82393I.sha'!N20/'!L82393I.sha'!Q3 -> 0 | E11: =SUM('!L82393I.sha'!L20:Q20)/'!L82393I.sha'!Q3 -> 0 | F11: 0
A12: 10 | B12: ='!L824A1I.sha'!B2:C2 -> <date> | C12: =('!L824A1I.sha'!F41/60)/'!L824A1I.sha'!Q3 -> 10.26759259 | D12: ='!L824A1I.sha'!N20/'!L824A1I.sha'!Q3 -> 0.02777777778 | E12: =SUM('!L824A1I.sha'!L20:Q20)/'!L824A1I.sha'!Q3 -> 3.472222222 | F12: ='!L824A1I.sha'!Q16 -> 0.4015745058
A13: 11 | B13: ='!L825A3I.sha'!B2:C2 -> <date> | C13: =('!L825A3I.sha'!F14/60)/'!L825A3I.sha'!Q3 -> 8.472222222 | D13: ='!L825A3I.sha'!N20/'!L825A3I.sha'!Q3 -> 0 | E13: =SUM('!L825A3I.sha'!L20:Q20)/'!L825A3I.sha'!Q3 -> 0.3333333333 | F13: ='!L825A3I.sha'!Q16 -> 0.5
A14: 12 | B14: ='!L826A1I.sha'!B2:C2 -> <date> | C14: =('!L826A1I.sha'!F11/60)/'!L826A1I.sha'!Q3 -> 20.33888889 | D14: ='!L826A1I.sha'!N20/'!L826A1I.sha'!Q3 -> 0 | E14: =SUM('!L826A1I.sha'!L20:Q20)/'!L826A1I.sha'!Q3 -> 0.3333333333 | F14: ='!L826A1I.sha'!Q16 -> 0.8277293768
A15: 13 | B15: ='!L826G1I.sha'!B2:C2 -> <date> | C15: 0 | D15: 0 | E15: 0 | F15: 0
A16: 14 | B16: ='!L82784I.sha'!B2:C2 -> <date> | C16: =('!L82784I.sha'!F8/60)/'!L82784I.sha'!Q3 -> 6.308333333 | D16: ='!L82784I.sha'!N20/'!L82784I.sha'!Q3 -> 0 | E16: =SUM('!L82784I.sha'!L20:Q20)/'!L82784I.sha'!Q3 -> 0.5 | F16: ='!L82784I.sha'!Q16 -> 1
A17: 15 | B17: ='!L82890I.sha'!B2:C2 -> <date> | C17: =('!L82890I.sha'!F8/60)/'!L82890I.sha'!Q3 -> 195.3333333 | D17: ='!L82890I.sha'!N20/'!L82890I.sha'!Q3 -> 0 | E17: =SUM('!L82890I.sha'!L20:Q20)/'!L82890I.sha'!Q3 -> 0.5 | F17: ='!L82890I.sha'!Q16 -> 0
A18: 16 | B18: ='!L829A4I.sha'!B2:C2 -> <date> | C18: =('!L829A4I.sha'!F10/60)/'!L829A4I.sha'!Q3 -> 28.24333333 | D18: ='!L829A4I.sha'!N20/'!L829A4I.sha'!Q3 -> 0 | E18: =SUM('!L829A4I.sha'!L20:Q20)/'!L829A4I.sha'!Q3 -> 0.4 | F18: ='!L829A4I.sha'!Q16 -> 0
A19: 17 | B19: ='!L830A5I.sha'!B2:C2 -> <date> | C19: =('!L830A5I.sha'!F9/60)/'!L830A5I.sha'!Q3 -> 42.47777778 | D19: ='!L830A5I.sha'!N20/'!L830A5I.sha'!Q3 -> 0 | E19: =SUM('!L830A5I.sha'!L20:Q20)/'!L830A5I.sha'!Q3 -> 0.3333333333 | F19: ='!L830A5I.sha'!Q16 -> 0.5793801643
A20: 18 | B20: ='!L831A2I.sha'!B2:C2 -> <date> | C20: =('!L831A2I.sha'!F7/60)/'!L831A2I.sha'!Q3 -> 31.06666667 | D20: ='!L831A2I.sha'!N20/'!L831A2I.sha'!Q3 -> 0 | E20: =SUM('!L831A2I.sha'!L20:Q20)/'!L831A2I.sha'!Q3 -> 0.5 | F20: 0
A21: 19 | B21: ='!L901A4I.sha'!B2:C2 -> <date> | C21: =('!L901A4I.sha'!F7/60)/'!L901A4I.sha'!Q3 -> 14.31666667 | D21: ='!L901A4I.sha'!N20/'!L901A4I.sha'!Q3 -> 0 | E21: =SUM('!L901A4I.sha'!L20:Q20)/'!L901A4I.sha'!Q3 -> 0.5 | F21: 0
A22: 20 | B22: ='!L90294I.sha'!B2:C2 -> <date> | C22: =('!L90294I.sha'!F8/60)/'!L90294I.sha'!Q3 -> 16.875 | D22: ='!L90294I.sha'!N20/'!L90294I.sha'!Q3 -> 0 | E22: =SUM('!L90294I.sha'!L20:Q20)/'!L90294I.sha'!Q3 -> 0.5 | F22: ='!L90294I.sha'!Q16 -> 1
A23: 21 | B23: ='!L903A4I.sha'!B2:C2 -> <date> | C23: =('!L903A4I.sha'!F8/60)/'!L903A4I.sha'!Q3 -> 24.86111111 | D23: ='!L903A4I.sha'!N20/'!L903A4I.sha'!Q3 -> 0 | E23: =SUM('!L903A4I.sha'!L20:Q20)/'!L903A4I.sha'!Q3 -> 0.3333333333 | F23: ='!L903A4I.sha'!Q16 -> 1
A24: 22 | B24: ='!L905A4I.sha'!B2:C2 -> <date> | C24: =('!L905A4I.sha'!F7/60)/'!L905A4I.sha'!Q3 -> 198.3166667 | D24: ='!L905A4I.sha'!N20/'!L905A4I.sha'!Q3 -> 0 | E24: =SUM('!L905A4I.sha'!L20:Q20)/'!L905A4I.sha'!Q3 -> 0 | F24: 0
A25: 23 | B25: ='!L906A4I.sha'!B2:C2 -> <date> | C25: =('!L906A4I.sha'!F8/60)/'!L906A4I.sha'!Q3 -> 98.03333333 | D25: ='!L906A4I.sha'!N20/'!L906A4I.sha'!Q3 -> 0 | E25: =SUM('!L906A4I.sha'!L20:Q20)/'!L906A4I.sha'!Q3 -> 0.3333333333 | F25: ='!L906A4I.sha'!Q16 -> 0
A26: 24 | B26: ='!L907A4I.sha'!B2:C2 -> <date> | C26: =('!L907A4I.sha'!F26/60)/'!L907A4I.sha'!Q3 -> 2.05 | D26: ='!L907A4I.sha'!N20/'!L907A4I.sha'!Q3 -> 0 | E26: =SUM('!L907A4I.sha'!L20:Q20)/'!L907A4I.sha'!Q3 -> 5.619047619 | F26: ='!L907A4I.sha'!Q16 -> 0.425618157
A27: 25 | B27: ='!L908A3I.sha'!B2:C2 -> <date> | C27: =('!L908A3I.sha'!F7/60)/'!L908A3I.sha'!Q3 -> 0 | D27: ='!L908A3I.sha'!N20/'!L908A3I.sha'!Q3 -> 0 | E27: =SUM('!L908A3I.sha'!L20:Q20)/'!L908A3I.sha'!Q3 -> 0 | F27: 0
A28: 26 | B28: ='!L90995I.sha'!B2:C2 -> <date> | C28: 0 | D28: 0 | E28: 0 | F28: 0
A29: 27 | B29: ='!L91092I.sha'!B2:C2 -> <date> | C29: =('!L91092I.sha'!F7/60)/'!L91092I.sha'!Q3 -> 0 | D29: ='!L91092I.sha'!N20/'!L91092I.sha'!Q3 -> 0 | E29: =SUM('!L91092I.sha'!L20:Q20)/'!L91092I.sha'!Q3 -> 0 | F29: 0
A30: 28 | B30: ='!L91191I.sha'!B2:C2 -> <date> | C30: =('!L91191I.sha'!F7/60)/'!L91191I.sha'!Q3 -> 13.55 | D30: ='!L91191I.sha'!N20/'!L91191I.sha'!Q3 -> 0 | E30: =SUM('!L91191I.sha'!L20:Q20)/'!L91191I.sha'!Q3 -> 0.5 | F30: 0
A31: 29 | B31: ='!L912A5I.sha'!B2:C2 -> <date> | C31: =('!L912A5I.sha'!F8/60)/'!L912A5I.sha'!Q3 -> 152.6416667 | D31: ='!L912A5I.sha'!N20/'!L912A5I.sha'!Q3 -> 0 | E31: =SUM('!L912A5I.sha'!L20:Q20)/'!L912A5I.sha'!Q3 -> 0.5 | F31: ='!L912A5I.sha'!Q16 -> 0
A32: 30 | B32: ='!L91392I.sha'!B2:C2 -> <date> | C32: =('!L91392I.sha'!F7/60)/'!L91392I.sha'!Q3 -> 5.416666667 | D32: ='!L91392I.sha'!N20/'!L91392I.sha'!Q3 -> 0 | E32: =SUM('!L91392I.sha'!L20:Q20)/'!L91392I.sha'!Q3 -> 0.5 | F32: 0

Sheet Start
F1: Use Folder 51 | H1: Auto Clean Up | J1: Correct sequence
F2: FALSE | H2: TRUE | J2: 211
A4: Working with Folder | G4: Process All/Or Pick A number: ALL or an integer
A5: F:\Possum Chapter\Raw Data\Ishan\phase 1\ | G5: ALL
A6: Filenames:
A7: !L814A4I.sha | G7: Paint Cells
A8: !L815A5I.sha | G8: FALSE
A9: !L816A0I.sha
A10: !L817B2I.sha
A11: !L818B0I.sha
A12: !L81994I.sha
A13: !L820A2I.sha
A14: !L822A5I.sha
A15: !L82393I.sha
A16: !L824A1I.sha
A17: !L825A3I.sha
A18: !L826A1I.sha
A19: !L826G1I.sha
A20: !L82784I.sha
A21: !L82890I.sha
A22: !L829A4I.sha
A23: !L830A5I.sha
A24: !L831A2I.sha
A25: !L901A4I.sha
A26: !L90294I.sha
A27: !L903A4I.sha
A28: !L905A4I.sha
A29: !L906A4I.sha
A30: !L907A4I.sha
A31: !L908A3I.sha
A32: !L90995I.sha
A33: !L91092I.sha
A34: !L91191I.sha
A35: !L912A5I.sha
A36: !L91392I.sha

Sheet !L814A4I.sha
A1: Report for:!L814A4I.sha
A2: Date: | B2: <date>
A3: Hen: | B3: <hen> | F3: Correct Sequence | G3: =Start!J2 -> 211 | P3: Total Sequences in Data | Q3: =4994-COUNTBLANK(L7:L5000) -> 93 | V3: Total Sequences in Block Data | W3: =COUNTA(L7:L22) -> 16 | AA3: Total Sequences in Block Data | AB3: =COUNTA(L23:L37) -> 15 | AF3: Total Sequences in Block Data | AG3: =COUNTA(L38:L53) -> 16 | AK3: Total Sequences in Block Data | AL3: =COUNTA(L54:L68) -> 15 | AP3: Total Sequences in Block Data | AQ3: =COUNTA(L69:L84) -> 16 | AU3: Total Sequences in Block Data | AV3: =COUNTA(L85:L99) -> 15
P4: Total Sequences in Summary | Q4: =SUM(O7:O14) -> 93 | V4: Total Sequences in Block Summary | W4: =SUM(U7:U14) -> 16 | AA4: Total Sequences in Block Summary | AB4: =SUM(Z7:Z14) -> 15 | AF4: Total Sequences in Block Summary | AG4: =SUM(AE7:AE14) -> 16 | AK4: Total Sequences in Block Summary | AL4: =SUM(AJ7:AJ14) -> 15 | AP4: Total Sequences in Block Summary | AQ4: =SUM(AO7:AO14) -> 16 | AU4: Total Sequences in Block Summary | AV4: =SUM(AT7:AT14) -> 15
T5: Block 1 | Y5: Block 2 | AD5: Block 3 | AI5: Block 4 | AN5: Block 5 | AS5: Block 6
A6: Sequence Component 1 | B6: Time 1 | C6: Sequence Component 2 | D6: Time 2 | E6: Sequence Component 3 | F6: Time 3 | G6: Sequence Component 4 | H6: Time 4 | I6: Sequence Component 5 | J6: Time 5 | K6: Correct? 0=No 1=Yes | L6: Sequence | N6: Frequency | P6: Relative Frequency | Q6: Variability | T6: Frequency | V6: Relative Frequency | W6: Variability | Y6: Frequency | AA6: Relative Frequency | AB6: Variability | AD6: Frequency | AF6: Relative Frequency | AG6: Variability | AI6: Frequency | AK6: Relative Frequency | AL6: Variability | AN6: Frequency | AP6: Relative Frequency | AQ6: Variability | AS6: Frequency | AU6: Relative Frequency | AV6: Variability
A7: 21 | B7: 18 | C7: 22 | D7: 21 | E7: 24 | F7: 23 | K7: 0 | L7: 222 | N7: 111 | O7: =COUNTIF($L$7:$L$500,N7) -> 9 | P7: =O7/$Q$4 -> 0.09677419355 | Q7: =IF(P7=0,0,(P7*((LOG(P7))/LOG(2)))) -> -0.3260548848 | T7: =N7 -> 111 | U7: =COUNTIF(L7:L22,T7) -> 0 | V7: =U7/(W4-U11) -> 0 | W7: =IF(V7=0,0,(V7*((LOG(V7))/LOG(2)))) -> 0 | Y7: =N7 -> 111 | Z7: =COUNTIF(L23:L37,Y7) -> 2 | AA7: =Z7/(AB4-Z11) -> 0.1333333333 | AB7: =IF(AA7=0,0,(AA7*((LOG(AA7))/LOG(2)))) -> -0.3875854127 | AD7: =N7 -> 111 | AE7: =COUNTIF(L38:L53,AD7) -> 3 | AF7: =AE7/(AG4-AE11) -> 0.1875 | AG7: =IF(AF7=0,0,(AF7*((LOG(AF7))/LOG(2)))) -> -0.4528195311 | AI7: =N7 -> 111 | AJ7: =COUNTIF(L54:L68,AI7) -> 1 | AK7: =AJ7/(AL4-AJ11) -> 0.06666666667 | AL7: =IF(AK7=0,0,(AK7*((LOG(AK7))/LOG(2)))) -> -0.260459373 | AN7: =N7 -> 111 | AO7: =COUNTIF(L69:L84,AN7) -> 1 | AP7: =AO7/(AQ4-AO11) -> 0.0625 | AQ7: =IF(AP7=0,0,(AP7*((LOG(AP7))/LOG(2)))) -> -0.25 | AS7: =N7 -> 111 | AT7: =COUNTIF(L85:L99,AS7) -> 2 | AU7: =AT7/(AV4-AT11) -> 0.1333333333 | AV7: =IF(AU7=0,0,(AU7*((LOG(AU7))/LOG(2)))) -> -0.3875854127
A8: 21 | B8: 129 | C8: 22 | D8: 131 | E8: 24 | F8: 139 | K8: 0 | L8: 222 | N8: 112 | O8: 32 | P8: 0.3440860215 | Q8: -0.5296030318 | T8: 112 | U8: =COUNTIF(L7:L22,T8) -> 1 | V8: =U8/(W4-U11) -> 0.0625 | W8: =IF(V8=0,0,(V8*((LOG(V8))/LOG(2)))) -> -0.25 | Y8: 112 | Z8: =COUNTIF(L23:L37,Y8) -> 5 | AA8: =Z8/(AB4-Z11) -> 0.3333333333 | AB8: =IF(AA8=0,0,(AA8*((LOG(AA8))/LOG(2)))) -> -0.5283208336 | AD8: 112 | AE8: =COUNTIF(L38:L53,AD8) -> 6 | AF8: =AE8/(AG4-AE11) -> 0.375 | AG8: =IF(AF8=0,0,(AF8*((LOG(AF8))/LOG(2)))) -> -0.5306390622 | AI8: 112 | AJ8: =COUNTIF(L54:L68,AI8) -> 6 | AK8: =AJ8/(AL4-AJ11) -> 0.4 | AL8: =IF(AK8=0,0,(AK8*((LOG(AK8))/LOG(2)))) -> -0.528771238 | AN8: 112 | AO8: =COUNTIF(L69:L84,AN8) -> 7 | AP8: =AO8/(AQ4-AO11) -> 0.4375 | AQ8: =IF(AP8=0,0,(AP8*((LOG(AP8))/LOG(2)))) -> -0.5217822216 | AS8: 112 | AT8: =COUNTIF(L85:L99,AS8) -> 7 | AU8: =AT8/(AV4-AT11) -> 0.4666666667 | AV8: =IF(AU8=0,0,(AU8*((LOG(AU8))/LOG(2)))) -> -0.5131166477
A9: 12 | B9: 234 | C9: 24 | D9: 242 | E9: 24 | F9: 255 | K9: 0 | L9: 122 | N9: 121 | O9: 1 | P9: 0.01075268817 | Q9: -0.0703135356 | T9: 121 | U9: =COUNTIF(L7:L22,T9) -> 0 | V9: =U9/(W4-U11) -> 0 | W9: =IF(V9=0,0,(V9*((LOG(V9))/LOG(2)))) -> 0 | Y9: 121 | Z9: =COUNTIF(L23:L37,Y9) -> 0 | AA9: =Z9/(AB4-Z11) -> 0 | AB9: =IF(AA9=0,0,(AA9*((LOG(AA9))/LOG(2)))) -> 0 | AD9: 121 | AE9: =COUNTIF(L38:L53,AD9) -> 0 | AF9: =AE9/(AG4-AE11) -> 0 | AG9: =IF(AF9=0,0,(AF9*((LOG(AF9))/LOG(2)))) -> 0 | AI9: 121 | AJ9: =COUNTIF(L54:L68,AI9) -> 0 | AK9: =AJ9/(AL4-AJ11) -> 0 | AL9: =IF(AK9=0,0,(AK9*((LOG(AK9))/LOG(2)))) -> 0 | AN9: 121 | AO9: =COUNTIF(L69:L84,AN9) -> 0 | AP9: =AO9/(AQ4-AO11) -> 0 | AQ9: =IF(AP9=0,0,(AP9*((LOG(AP9))/LOG(2)))) -> 0 | AS9: 121 | AT9: =COUNTIF(L85:L99,AS9) -> 1 | AU9: =AT9/(AV4-AT11) -> 0.06666666667 | AV9: =IF(AU9=0,0,(AU9*((LOG(AU9))/LOG(2)))) -> -0.260459373
A10: 12 | B10: 352 | C10: 24 | D10: 359 | E10: 24 | F10: 363 | K10: 0 | L10: 122 | N10: 122 | O10: 42 | P10: 0.4516129032 | Q10: -0.5179283689 | T10: 122 | U10: =COUNTIF(L7:L22,T10) -> 11 | V10: =U10/(W4-U11) -> 0.6875 | W10: =IF(V10=0,0,(V10*((LOG(V10))/LOG(2)))) -> -0.3716407622 | Y10: 122 | Z10: =COUNTIF(L23:L37,Y10) -> 8 | AA10: =Z10/(AB4-Z11) -> 0.5333333333 | AB10: =IF(AA10=0,0,(AA10*((LOG(AA10))/LOG(2)))) -> -0.4836749843 | AD10: 122 | AE10: =COUNTIF(L38:L53,AD10) -> 6 | AF10: =AE10/(AG4-AE11) -> 0.375 | AG10: =IF(AF10=0,0,(AF10*((LOG(AF10))/LOG(2)))) -> -0.5306390622 | AI10: 122 | AJ10: =COUNTIF(L54:L68,AI10) -> 7 | AK10: =AJ10/(AL4-AJ11) -> 0.4666666667 | AL10: =IF(AK10=0,0,(AK10*((LOG(AK10))/LOG(2)))) -> -0.5131166477 | AN10: 122 | AO10: =COUNTIF(L69:L84,AN10) -> 6 | AP10: =AO10/(AQ4-AO11) -> 0.375 | AQ10: =IF(AP10=0,0,(AP10*((LOG(AP10))/LOG(2)))) -> -0.5306390622 | AS10: 122 | AT10: =COUNTIF(L85:L99,AS10) -> 4 | AU10: =AT10/(AV4-AT11) -> 0.2666666667 | AV10: =IF(AU10=0,0,(AU10*((LOG(AU10))/LOG(2)))) -> -0.5085041588
A11: 12 | B11: 461 | C11: 24 | D11: 468 | E11: 24 | F11: 476 | K11: 0 | L11: 122 | N11: 211 | O11: 0 | P11: 0 | Q11: 0 | T11: 211 | U11: =COUNTIF(L7:L22,T11) -> 0 | Y11: 211 | Z11: =COUNTIF(L23:L37,Y11) -> 0 | AD11: 211 | AE11: =COUNTIF(L38:L53,AD11) -> 0 | AI11: 211 | AJ11: =COUNTIF(L54:L68,AI11) -> 0 | AN11: 211 | AO11: =COUNTIF(L69:L84,AN11) -> 0 | AS11: 211 | AT11: =COUNTIF(L85:L99,AS11) -> 0
A12: 12 | B12: 571 | C12: 24 | D12: 581 | E12: 24 | F12: 585 | K12: 0 | L12: 122 | N12: 212 | O12: 0 | P12: 0 | Q12: 0 | T12: 212 | U12: =COUNTIF(L7:L22,T12) -> 0 | V12: =U12/(W4-U11) -> 0 | W12: =IF(V12=0,0,(V12*((LOG(V12))/LOG(2)))) -> 0 | Y12: 212 | Z12: =COUNTIF(L23:L37,Y12) -> 0 | AA12: =Z12/(AB4-Z11) -> 0 | AB12: =IF(AA12=0,0,(AA12*((LOG(AA12))/LOG(2)))) -> 0 | AD12: 212 | AE12: =COUNTIF(L38:L53,AD12) -> 0 | AF12: =AE12/(AG4-AE11) -> 0 | AG12: =IF(AF12=0,0,(AF12*((LOG(AF12))/LOG(2)))) -> 0 | AI12: 212 | AJ12: =COUNTIF(L54:L68,AI12) -> 0 | AK12: =AJ12/(AL4-AJ11) -> 0 | AL12: =IF(AK12=0,0,(AK12*((LOG(AK12))/LOG(2)))) -> 0 | AN12: 212 | AO12: =COUNTIF(L69:L84,AN12) -> 0 | AP12: =AO12/(AQ4-AO11) -> 0 | AQ12: =IF(AP12=0,0,(AP12*((LOG(AP12))/LOG(2)))) -> 0 | AS12: 212 | AT12: =COUNTIF(L85:L99,AS12) -> 0 | AU12: =AT12/(AV4-AT11) -> 0 | AV12: =IF(AU12=0,0,(AU12*((LOG(AU12))/LOG(2)))) -> 0
A13: 12 | B13: 680 | C13: 13 | D13: 683 | E13: 24 | F13: 693 | K13: 0 | L13: 112 | N13: 221 | O13: 0 | P13: 0 | Q13: 0 | T13: 221 | U13: =COUNTIF(L7:L22,T13) -> 0 | V13: =U13/(W4-U11) -> 0 | W13: =IF(V13=0,0,(V13*((LOG(V13))/LOG(2)))) -> 0 | Y13: 221 | Z13: =COUNTIF(L23:L37,Y13) -> 0 | AA13: =Z13/(AB4-Z11) -> 0 | AB13: =IF(AA13=0,0,(AA13*((LOG(AA13))/LOG(2)))) -> 0 | AD13: 221 | AE13: =COUNTIF(L38:L53,AD13) -> 0 | AF13: =AE13/(AG4-AE11) -> 0 | AG13: =IF(AF13=0,0,(AF13*((LOG(AF13))/LOG(2)))) -> 0 | AI13: 221 | AJ13: =COUNTIF(L54:L68,AI13) -> 0 | AK13: =AJ13/(AL4-AJ11) -> 0 | AL13: =IF(AK13=0,0,(AK13*((LOG(AK13))/LOG(2)))) -> 0 | AN13: 221 | AO13: =COUNTIF(L69:L84,AN13) -> 0 | AP13: =AO13/(AQ4-AO11) -> 0 | AQ13: =IF(AP13=0,0,(AP13*((LOG(AP13))/LOG(2)))) -> 0 | AS13: 221 | AT13: =COUNTIF(L85:L99,AS13) -> 0 | AU13: =AT13/(AV4-AT11) -> 0 | AV13: =IF(AU13=0,0,(AU13*((LOG(AU13))/LOG(2)))) -> 0
A14: 21 | B14: 806 | C14: 22 | D14: 812 | E14: 24 | F14: 818 | K14: 0 | L14: 222 | N14: 222 | O14: 9 | P14: 0.09677419355 | Q14: -0.3260548848 | T14: 222 | U14: =COUNTIF(L7:L22,T14) -> 4 | V14: =U14/(W4-U11) -> 0.25 | W14: =IF(V14=0,0,(V14*((LOG(V14))/LOG(2)))) -> -0.5 | Y14: 222 | Z14: =COUNTIF(L23:L37,Y14) -> 0 | AA14: =Z14/(AB4-Z11) -> 0 | AB14: =IF(AA14=0,0,(AA14*((LOG(AA14))/LOG(2)))) -> 0 | AD14: 222 | AE14: =COUNTIF(L38:L53,AD14) -> 1 | AF14: =AE14/(AG4-AE11) -> 0.0625 | AG14: =IF(AF14=0,0,(AF14*((LOG(AF14))/LOG(2)))) -> -0.25 | AI14: 222 | AJ14: =COUNTIF(L54:L68,AI14) -> 1 | AK14: =AJ14/(AL4-AJ11) -> 0.06666666667 | AL14: =IF(AK14=0,0,(AK14*((LOG(AK14))/LOG(2)))) -> -0.260459373 | AN14: 222 | AO14: =COUNTIF(L69:L84,AN14) -> 2 | AP14: =AO14/(AQ4-AO11) -> 0.125 | AQ14: =IF(AP14=0,0,(AP14*((LOG(AP14))/LOG(2)))) -> -0.375 | AS14: 222 | AT14: =COUNTIF(L85:L99,AS14) -> 1 | AU14: =AT14/(AV4-AT11) -> 0.06666666667 | AV14: =IF(AU14=0,0,(AU14*((LOG(AU14))/LOG(2)))) -> -0.260459373
A15: 21 | B15: 949 | C15: 22 | D15: 956 | E15: 24 | F15: 961 | K15: 0 | L15: 222 | P15: =SUM(P7:P14) -> 1 | Q15: =-SUM(Q7:Q14) -> 1.769954706 | V15: =SUM(V7:V14) -> 1 | W15: =-SUM(W7:W14) -> 1.121640762 | AA15: =SUM(AA7:AA14) -> 1 | AB15: =-SUM(AB7:AB14) -> 1.399581231 | AF15: =SUM(AF7:AF14) -> 1 | AG15: =-SUM(AG7:AG14) -> 1.764097656 | AK15: =SUM(AK7:AK14) -> 1 | AL15: =-SUM(AL7:AL14) -> 1.562806632 | AP15: =SUM(AP7:AP14) -> 1 | AQ15: =-SUM(AQ7:AQ14) -> 1.677421284 | AU15: =SUM(AU7:AU14) -> 1 | AV15: =-SUM(AV7:AV14) -> 1.930124965
A16: 12 | B16: 1058 | C16: 24 | D16: 1071 | E16: 24 | F16: 1078 | K16: 0 | L16: 122 | P16: U= | Q16: =Q15/(LOG(Q4)/LOG(2)) -> 0.2706700903 | V16: U1= | W16: =W15/(LOG(W4)/LOG(2)) -> 0.2804101905 | AA16: U2= | AB16: =AB15/(LOG(AB4)/LOG(2)) -> 0.3582340474 | AF16: U3= | AG16: =AG15/(LOG(AG4)/LOG(2)) -> 0.4410244139 | AK16: U4= | AL16: =AL15/(LOG(AL4)/LOG(2)) -> 0.4000128986 | AP16: U5= | AQ16: =AQ15/(LOG(AQ4)/LOG(2)) -> 0.419355321 | AU16: U6= | AV16: =AV15/(LOG(AV4)/LOG(2)) -> 0.4940309738
A17: 12 | B17: 1174 | C17: 24 | D17: 1182 | E17: 24 | F17: 1186 | K17: 0 | L17: 122
A18: 12 | B18: 1287 | C18: 24 | D18: 1295 | E18: 24 | F18: 1299 | K18: 0 | L18: 122
A19: 12 | B19: 1394 | C19: 24 | D19: 1402 | E19: 24 | F19: 1405 | K19: 0 | L19: 122 | N19: Total Target Seq
A20: 12 | B20: 1500 | C20: 24 | D20: 1519 | E20: 24 | F20: 1525 | K20: 0 | L20: 122 | N20: =COUNTIF(L7:L99,G3) -> 0 | P20: 16 | Q20: 15 | R20: 16 | S20: 15 | T20: 16 | U20: 15
A21: 12 | B21: 1619 | C21: 24 | D21: 1638 | E21: 24 | F21: 1644 | K21: 0 | L21: 122 | P21: % of reinforcement given in 6 equal intervals based on number of trials
A22: 12 | B22: 1736 | C22: 24 | D22: 1750 | E22: 24 | F22: 1757 | K22: 0 | L22: 122 | P22: %_1 | Q22: %_2 | R22: %_3 | S22: %_4 | T22: %_5 | U22: %_6
A23: 12 | B23: 1853 | C23: 24 | D23: 1861 | E23: 24 | F23: 1865 | K23: 0 | L23: 122 | O23: target sequence | P23: =$G$3 -> 211 | Q23: 211 | R23: 211 | S23: 211 | T23: 211 | U23: 211
A24: 12 | B24: 1960 | C24: 24 | D24: 1974 | E24: 24 | F24: 1980 | K24: 0 | L24: 122 | O24: total reinforcement | P24: =U11 -> 0 | Q24: =Z11 -> 0 | R24: =AE11 -> 0 | S24: =AJ11 -> 0 | T24: =AO11 -> 0 | U24: =AT11 -> 0
A25: 12 | B25: 2072 | C25: 24 | D25: 2092 | E25: 24 | F25: 2096 | K25: 0 | L25: 122 | O25: % target
A26: 12 | B26: 2190 | C26: 24 | D26: 2202 | E26: 24 | F26: 2209 | K26: 0 | L26: 122 | O26: CCRF
A27: 12 | B27: 2305 | C27: 24 | D27: 2314 | E27: 24 | F27: 2318 | K27: 0 | L27: 122 | O27: % CCRf
A28: 12 | B28: 2414 | C28: 13 | D28: 2422 | E28: 24 | F28: 2432 | K28: 0 | L28: 112 | O28: average response rate | P28: =F22/P20 -> 109.8125 | Q28: =(F37-F22)/Q20 -> 112.9333333 | R28: =(F53-F37)/R20 -> 117 | S28: =(F68-F53)/S20 -> 120.0666667 | T28: =(F84-F68)/T20 -> 170.375 | U28: =(F99-F84)/U20 -> 817.4
A29: 12 | B29: 2529 | C29: 13 | D29: 2534 | E29: 24 | F29: 2547 | K29: 0 | L29: 112
A30: 12 | B30: 2648 | C30: 24 | D30: 2659 | E30: 24 | F30: 2663 | K30: 0 | L30: 122
A31: 12 | B31: 2754 | C31: 13 | D31: 2757 | E31: 24 | F31: 2770 | K31: 0 | L31: 112
A32: 12 | B32: 2866 | C32: 13 | D32: 2871 | E32: 24 | F32: 2881 | K32: 0 | L32: 112
A33: 12 | B33: 2989 | C33: 13 | D33: 2999 | E33: 24 | F33: 3018 | K33: 0 | L33: 112
A34: 12 | B34: 3114 | C34: 24 | D34: 3128 | E34: 24 | F34: 3133 | K34: 0 | L34: 122
A35: 12 | B35: 3228 | C35: 13 | D35: 3236 | E35: 13 | F35: 3242 | K35: 0 | L35: 111
A36: 12 | B36: 3338 | C36: 13 | D36: 3340 | E36: 13 | F36: 3343 | K36: 0 | L36: 111
A37: 12 | B37: 3438 | C37: 24 | D37: 3446 | E37: 24 | F37: 3451 | K37: 0 | L37: 122
A38: 12 | B38: 3548 | C38: 24 | D38: 3564 | E38: 24 | F38: 3570 | K38: 0 | L38: 122
A39: 12 | B39: 3668 | C39: 24 | D39: 3686 | E39: 24 | F39: 3689 | K39: 0 | L39: 122
A40: 12 | B40: 3786 | C40: 24 | D40: 3795 | E40: 24 | F40: 3799 | K40: 0 | L40: 122
A41: 12 | B41: 3896 | C41: 13 | D41: 3900 | E41: 13 | F41: 3917 | K41: 0 | L41: 111
A42: 12 | B42: 4012 | C42: 13 | D42: 4016 | E42: 24 | F42: 4031 | K42: 0 | L42: 112
A43: 12 | B43: 4128 | C43: 13 | D43: 4133 | E43: 24 | F43: 4144 | K43: 0 | L43: 112
A44: 12 | B44: 4239 | C44: 13 | D44: 4243 | E44: 13 | F44: 4252 | K44: 0 | L44: 111
A45: 12 | B45: 4373 | C45: 24 | D45: 4383 | E45: 24 | F45: 4387 | K45: 0 | L45: 122
A46: 12 | B46: 4483 | C46: 24 | D46: 4507 | E46: 24 | F46: 4511 | K46: 0 | L46: 122
A47: 12 | B47: 4609 | C47: 13 | D47: 4619 | E47: 24 | F47: 4631 | K47: 0 | L47: 112
A48: 12 | B48: 4732 | C48: 13 | D48: 4738 | E48: 24 | F48: 4746 | K48: 0 | L48: 112
A49: 12 | B49: 4843 | C49: 13 | D49: 4848 | E49: 24 | F49: 4865 | K49: 0 | L49: 112
A50: 12 | B50: 4963 | C50: 24 | D50: 4972 | E50: 24 | F50: 4980 | K50: 0 | L50: 122
A51: 12 | B51: 5075 | C51: 13 | D51: 5080 | E51: 24 | F51: 5091 | K51: 0 | L51: 112
A52: 12 | B52: 5186 | C52: 13 | D52: 5190 | E52: 13 | F52: 5205 | K52: 0 | L52: 111
A53: 21 | B53: 5313 | C53: 22 | D53: 5317 | E53: 24 | F53: 5323 | K53: 0 | L53: 222
A54: 12 | B54: 5420 | C54: 13 | D54: 5432 | E54: 24 | F54: 5439 | K54: 0 | L54: 112
A55: 12 | B55: 5540 | C55: 13 | D55: 5550 | E55: 24 | F55: 5560 | K55: 0 | L55: 112
A56: 12 | B56: 5655 | C56: 13 | D56: 5657 | E56: 13 | F56: 5662 | K56: 0 | L56: 111
A57: 12 | B57: 5762 | C57: 13 | D57: 5764 | E57: 24 | F57: 5779 | K57: 0 | L57: 112
A58: 12 | B58: 5888 | C58: 24 | D58: 5906 | E58: 24 | F58: 5912 | K58: 0 | L58: 122
A59: 12 | B59: 6012 | C59: 24 | D59: 6026 | E59: 24 | F59: 6032 | K59: 0 | L59: 122
A60: 12 | B60: 6131 | C60: 24 | D60: 6148 | E60: 24 | F60: 6152 | K60: 0 | L60: 122
A61: 12 | B61: 6274 | C61: 13 | D61: 6281 | E61: 24 | F61: 6298 | K61: 0 | L61: 112
A62: 12 | B62: 6395 | C62: 13 | D62: 6398 | E62: 24 | F62: 6413 | K62: 0 | L62: 112
A63: 12 | B63: 6511 | C63: 24 | D63: 6523 | E63: 24 | F63: 6528 | K63: 0 | L63: 122
A64: 12 | B64: 6629 | C64: 24 | D64: 6641 | E64: 24 | F64: 6645 | K64: 0 | L64: 122
A65: 21 | B65: 6762 | C65: 22 | D65: 6767 | E65: 24 | F65: 6773 | K65: 0 | L65: 222
A66: 12 | B66: 6870 | C66: 24 | D66: 6880 | E66: 24 | F66: 6883 | K66: 0 | L66: 122
A67: 12 | B67: 6981 | C67: 13 | D67: 6989 | E67: 24 | F67: 6998 | K67: 0 | L67: 112
A68: 12 | B68: 7103 | C68: 24 | D68: 7119 | E68: 24 | F68: 7124 | K68: 0 | L68: 122
A69: 12 | B69: 7220 | C69: 24 | D69: 7231 | E69: 24 | F69: 7235 | K69: 0 | L69: 122
A70: 12 | B70: 7342 | C70: 24 | D70: 7356 | E70: 24 | F70: 7362 | K70: 0 | L70: 122
A71: 12 | B71: 7462 | C71: 24 | D71: 7474 | E71: 24 | F71: 7479 | K71: 0 | L71: 122
A72: 12 | B72: 7571 | C72: 24 | D72: 7584 | E72: 24 | F72: 7587 | K72: 0 | L72: 122
A73: 12 | B73: 7682 | C73: 24 | D73: 7694 | E73: 24 | F73: 7697 | K73: 0 | L73: 122
A74: 12 | B74: 7792 | C74: 13 | D74: 7802 | E74: 13 | F74: 7809 | K74: 0 | L74: 111
A75: 12 | B75: 7906 | C75: 13 | D75: 7908 | E75: 24 | F75: 7918 | K75: 0 | L75: 112
A76: 21 | B76: 8013 | C76: 22 | D76: 8022 | E76: 24 | F76: 8027 | K76: 0 | L76: 222
A77: 21 | B77: 9042 | C77: 22 | D77: 9046 | E77: 24 | F77: 9051 | K77: 0 | L77: 222
A78: 12 | B78: 9147 | C78: 13 | D78: 9149 | E78: 24 | F78: 9159 | K78: 0 | L78: 112
A79: 12 | B79: 9257 | C79: 13 | D79: 9264 | E79: 24 | F79: 9272 | K79: 0 | L79: 112
A80: 12 | B80: 9366 | C80: 13 | D80: 9368 | E80: 24 | F80: 9386 | K80: 0 | L80: 112
A81: 12 | B81: 9483 | C81: 13 | D81: 9484 | E81: 24 | F81: 9497 | K81: 0 | L81: 112
A82: 12 | B82: 9595 | C82: 13 | D82: 9598 | E82: 24 | F82: 9613 | K82: 0 | L82: 112
A83: 12 | B83: 9710 | C83: 24 | D83: 9725 | E83: 24 | F83: 9729 | K83: 0 | L83: 122
A84: 12 | B84: 9833 | C84: 13 | D84: 9838 | E84: 24 | F84: 9850 | K84: 0 | L84: 112
A85: 12 | B85: 9954 | C85: 24 | D85: 9968 | E85: 24 | F85: 9974 | K85: 0 | L85: 122
A86: 12 | B86: 10322 | C86: 13 | D86: 10331 | E86: 24 | F86: 10343 | K86: 0 | L86: 112
A87: 12 | B87: 10468 | C87: 13 | D87: 10479 | E87: 24 | F87: 10490 | K87: 0 | L87: 112
A88: 12 | B88: 10608 | C88: 13 | D88: 10613 | E88: 24 | F88: 10626 | K88: 0 | L88: 112
A89: 12 | B89: 10925 | C89: 24 | D89: 10942 | E89: 13 | F89: 10944 | K89: 0 | L89: 121
A90: 21 | B90: 11060 | C90: 22 | D90: 11065 | E90: 24 | F90: 11070 | K90: 0 | L90: 222
A91: 12 | B91: 11206 | C91: 24 | D91: 11244 | E91: 24 | F91: 11249 | K91: 0 | L91: 122
A92: 12 | B92: 11486 | C92: 13 | D92: 11511 | E92: 13 | F92: 11715 | K92: 0 | L92: 111
A93: 12 | B93: 11935 | C93: 13 | D93: 14426 | E93: 24 | F93: 14434 | K93: 0 | L93: 112
A94: 12 | B94: 15180 | C94: 13 | D94: 15186 | E94: 24 | F94: 15205 | K94: 0 | L94: 112
A95: 12 | B95: 15407 | C95: 13 | D95: 15415 | E95: 13 | F95: 15573 | K95: 0 | L95: 111
A96: 12 | B96: 16435 | C96: 13 | D96: 16453 | E96: 24 | F96: 16464 | K96: 0 | L96: 112
A97: 12 | B97: 16597 | C97: 24 | D97: 16608 | E97: 24 | F97: 16613 | K97: 0 | L97: 122
A98: 12 | B98: 17296 | C98: 24 | D98: 17319 | E98: 24 | F98: 17323 | K98: 0 | L98: 122
A99: 12 | B99: 19481 | C99: 13 | D99: 22097 | E99: 24 | F99: 22111 | K99: 0 | L99: 112

Sheet !L815A5I.sha
A1: Report for:!L815A5I.sha
A2: Date: | B2: <date>
A3: Hen: | B3: <hen> | F3: Correct Sequence | G3: =Start!J2 -> 211 | P3: Total Sequences in Data | Q3: =4994-COUNTBLANK(L7:L5000) -> 48 | V3: Total Sequences in Block Data | W3: =COUNTA(L7:L14) -> 8 | AA3: Total Sequences in Block Data | AB3: =COUNTA(L15:L22) -> 8 | AF3: Total Sequences in Block Data | AG3: =COUNTA(L23:L30) -> 8 | AK3: Total Sequences in Block Data | AL3: =COUNTA(L31:L38) -> 8 | AP3: Total Sequences in Block Data | AQ3: =COUNTA(L39:L46) -> 8 | AU3: Total Sequences in Block Data | AV3: =COUNTA(L47:L54) -> 8
P4: Total Sequences in Summary | Q4: =SUM(O7:O14) -> 47 | V4: Total Sequences in Block Summary | W4: =SUM(U7:U14) -> 8 | AA4: Total Sequences in Block Summary | AB4: =SUM(Z7:Z14) -> 8 | AF4: Total Sequences in Block Summary | AG4: =SUM(AE7:AE14) -> 8 | AK4: Total Sequences in Block Summary | AL4: =SUM(AJ7:AJ14) -> 8 | AP4: Total Sequences in Block Summary | AQ4: =SUM(AO7:AO14) -> 8 | AU4: Total Sequences in Block Summary | AV4: =SUM(AT7:AT14) -> 7
T5: Block 1 | Y5: Block 2 | AD5: Block 3 | AI5: Block 4 | AN5: Block 5 | AS5: Block 6
A6: Sequence Component 1 | B6: Time 1 | C6: Sequence Component 2 | D6: Time 2 | E6: Sequence Component 3 | F6: Time 3 | G6: Sequence Component 4 | H6: Time 4 | I6: Sequence Component 5 | J6: Time 5 | K6: Correct? 0=No 1=Yes | L6: Sequence | N6: Frequency | P6: Relative Frequency | Q6: Variability | T6: Frequency | V6: Relative Frequency | W6: Variability | Y6: Frequency | AA6: Relative Frequency | AB6: Variability | AD6: Frequency | AF6: Relative Frequency | AG6: Variability | AI6: Frequency | AK6: Relative Frequency | AL6: Variability | AN6: Frequency | AP6: Relative Frequency | AQ6: Variability | AS6: Frequency | AU6: Relative Frequency | AV6: Variability
A7: 12 | B7: 108 | C7: 13 | D7: 115 | E7: 13 | F7: 180 | K7: 0 | L7: 111 | N7: 111 | O7: =COUNTIF($L$7:$L$500,N7) -> 11 | P7: =O7/$Q$4 -> 0.2340425532 | Q7: =IF(P7=0,0,(P7*((LOG(P7))/LOG(2)))) -> -0.4903559482 | T7: =N7 -> 111 | U7: =COUNTIF(L7:L14,T7) -> 2 | V7: =U7/(W4-U11) -> 0.25 | W7: =IF(V7=0,0,(V7*((LOG(V7))/LOG(2)))) -> -0.5 | Y7: =N7 -> 111 | Z7: =COUNTIF(L15:L22,Y7) -> 1 | AA7: =Z7/(AB4-Z11) -> 0.125 | AB7: =IF(AA7=0,0,(AA7*((LOG(AA7))/LOG(2)))) -> -0.375 | AD7: =N7 -> 111 | AE7: =COUNTIF(L23:L30,AD7) -> 2 | AF7: =AE7/(AG4-AE11) -> 0.25 | AG7: =IF(AF7=0,0,(AF7*((LOG(AF7))/LOG(2)))) -> -0.5 | AI7: =N7 -> 111 | AJ7: =COUNTIF(L31:L38,AI7) -> 2 | AK7: =AJ7/(AL4-AJ11) -> 0.25 | AL7: =IF(AK7=0,0,(AK7*((LOG(AK7))/LOG(2)))) -> -0.5 | AN7: =N7 -> 111 | AO7: =COUNTIF(L39:L46,AN7) -> 3 | AP7: =AO7/(AQ4-AO11) -> 0.375 | AQ7: =IF(AP7=0,0,(AP7*((LOG(AP7))/LOG(2)))) -> -0.5306390622 | AS7: =N7 -> 111 | AT7: =COUNTIF(L47:L54,AS7) -> 1 | AU7: =AT7/(AV4-AT11) -> 0.1428571429 | AV7: =IF(AU7=0,0,(AU7*((LOG(AU7))/LOG(2)))) -> -0.4010507032
A8: 12 | B8: 278 | C8: 24 | D8: 285 | E8: 24 | F8: 292 | K8: 0 | L8: 122 | N8: 112 | O8: 11 | P8: 0.2340425532 | Q8: -0.4903559482 | T8: 112 | U8: =COUNTIF(L7:L14,T8) -> 1 | V8: =U8/(W4-U11) -> 0.125 | W8: =IF(V8=0,0,(V8*((LOG(V8))/LOG(2)))) -> -0.375 | Y8: 112 | Z8: =COUNTIF(L15:L22,Y8) -> 1 | AA8: =Z8/(AB4-Z11) -> 0.125 | AB8: =IF(AA8=0,0,(AA8*((LOG(AA8))/LOG(2)))) -> -0.375 | AD8: 112 | AE8: =COUNTIF(L23:L30,AD8) -> 2 | AF8: =AE8/(AG4-AE11) -> 0.25 | AG8: =IF(AF8=0,0,(AF8*((LOG(AF8))/LOG(2)))) -> -0.5 | AI8: 112 | AJ8: =COUNTIF(L31:L38,AI8) -> 3 | AK8: =AJ8/(AL4-AJ11) -> 0.375 | AL8: =IF(AK8=0,0,(AK8*((LOG(AK8))/LOG(2)))) -> -0.5306390622 | AN8: 112 | AO8: =COUNTIF(L39:L46,AN8) -> 2 | AP8: =AO8/(AQ4-AO11) -> 0.25 | AQ8: =IF(AP8=0,0,(AP8*((LOG(AP8))/LOG(2)))) -> -0.5 | AS8: 112 | AT8: =COUNTIF(L47:L54,AS8) -> 2 | AU8: =AT8/(AV4-AT11) -> 0.2857142857 | AV8: =IF(AU8=0,0,(AU8*((LOG(AU8))/LOG(2)))) -> -0.5163871206
A9: 12 | B9: 388 | C9: 24 | D9: 402 | E9: 24 | F9: 407 | K9: 0 | L9: 122 | N9: 121 | O9: 2 | P9: 0.04255319149 | Q9: -0.1938122916 | T9: 121 | U9: =COUNTIF(L7:L14,T9) -> 0 | V9: =U9/(W4-U11) -> 0 | W9: =IF(V9=0,0,(V9*((LOG(V9))/LOG(2)))) -> 0 | Y9: 121 | Z9: =COUNTIF(L15:L22,Y9) -> 1 | AA9: =Z9/(AB4-Z11) -> 0.125 | AB9: =IF(AA9=0,0,(AA9*((LOG(AA9))/LOG(2)))) -> -0.375 | AD9: 121 | AE9: =COUNTIF(L23:L30,AD9) -> 1 | AF9: =AE9/(AG4-AE11) -> 0.125 | AG9: =IF(AF9=0,0,(AF9*((LOG(AF9))/LOG(2)))) -> -0.375 | AI9: 121 | AJ9: =COUNTIF(L31:L38,AI9) -> 0 | AK9: =AJ9/(AL4-AJ11) -> 0 | AL9: =IF(AK9=0,0,(AK9*((LOG(AK9))/LOG(2)))) -> 0 | AN9: 121 | AO9: =COUNTIF(L39:L46,AN9) -> 0 | AP9: =AO9/(AQ4-AO11) -> 0 | AQ9: =IF(AP9=0,0,(AP9*((LOG(AP9))/LOG(2)))) -> 0 | AS9: 121 | AT9: =COUNTIF(L47:L54,AS9) -> 0 | AU9: =AT9/(AV4-AT11) -> 0 | AV9: =IF(AU9=0,0,(AU9*((LOG(AU9))/LOG(2)))) -> 0
A10: 12 | B10: 502 | C10: 24 | D10: 515 | E10: 24 | F10: 521 | K10: 0 | L10: 122 | N10: 122 | O10: 18 | P10: 0.3829787234 | Q10: -0.5302967937 | T10: 122 | U10: =COUNTIF(L7:L14,T10) -> 4 | V10: =U10/(W4-U11) -> 0.5 | W10: =IF(V10=0,0,(V10*((LOG(V10))/LOG(2)))) -> -0.5 | Y10: 122 | Z10: =COUNTIF(L15:L22,Y10) -> 5 | AA10: =Z10/(AB4-Z11) -> 0.625 | AB10: =IF(AA10=0,0,(AA10*((LOG(AA10))/LOG(2)))) -> -0.4237949407 | AD10: 122 | AE10: =COUNTIF(L23:L30,AD10) -> 3 | AF10: =AE10/(AG4-AE11) -> 0.375 | AG10: =IF(AF10=0,0,(AF10*((LOG(AF10))/LOG(2)))) -> -0.5306390622 | AI10: 122 | AJ10: =COUNTIF(L31:L38,AI10) -> 2 | AK10: =AJ10/(AL4-AJ11) -> 0.25 | AL10: =IF(AK10=0,0,(AK10*((LOG(AK10))/LOG(2)))) -> -0.5 | AN10: 122 | AO10: =COUNTIF(L39:L46,AN10) -> 2 | AP10: =AO10/(AQ4-AO11) -> 0.25 | AQ10: =IF(AP10=0,0,(AP10*((LOG(AP10))/LOG(2)))) -> -0.5 | AS10: 122 | AT10: =COUNTIF(L47:L54,AS10) -> 2 | AU10: =AT10/(AV4-AT11) -> 0.2857142857 | AV10: =IF(AU10=0,0,(AU10*((LOG(AU10))/LOG(2)))) -> -0.5163871206
A11: 12 | B11: 616 | C11: 13 | D11: 619 | E11: 13 | F11: 628 | K11: 0 | L11: 111 | N11: 211 | O11: 0 | P11: 0 | Q11: 0 | T11: 211 | U11: =COUNTIF(L7:L14,T11) -> 0 | Y11: 211 | Z11: =COUNTIF(L15:L22,Y11) -> 0 | AD11: 211 | AE11: =COUNTIF(L23:L30,AD11) -> 0 | AI11: 211 | AJ11: =COUNTIF(L31:L38,AI11) -> 0 | AN11: 211 | AO11: =COUNTIF(L39:L46,AN11) -> 0 | AS11: 211 | AT11: =COUNTIF(L47:L54,AS11) -> 0
A12: 12 | B12: 726 | C12: 24 | D12: 743 | E12: 24 | F12: 747 | K12: 0 | L12: 122 | N12: 212 | O12: 1 | P12: 0.02127659574 | Q12: -0.1181827415 | T12: 212 | U12: =COUNTIF(L7:L14,T12) -> 0 | V12: =U12/(W4-U11) -> 0 | W12: =IF(V12=0,0,(V12*((LOG(V12))/LOG(2)))) -> 0 | Y12: 212 | Z12: =COUNTIF(L15:L22,Y12) -> 0 | AA12: =Z12/(AB4-Z11) -> 0 | AB12: =IF(AA12=0,0,(AA12*((LOG(AA12))/LOG(2)))) -> 0 | AD12: 212 | AE12: =COUNTIF(L23:L30,AD12) -> 0 | AF12: =AE12/(AG4-AE11) -> 0 | AG12: =IF(AF12=0,0,(AF12*((LOG(AF12))/LOG(2)))) -> 0 | AI12: 212 | AJ12: =COUNTIF(L31:L38,AI12) -> 0 | AK12: =AJ12/(AL4-AJ11) -> 0 | AL12: =IF(AK12=0,0,(AK12*((LOG(AK12))/LOG(2)))) -> 0 | AN12: 212 | AO12: =COUNTIF(L39:L46,AN12) -> 0 | AP12: =AO12/(AQ4-AO11) -> 0 | AQ12: =IF(AP12=0,0,(AP12*((LOG(AP12))/LOG(2)))) -> 0 | AS12: 212 | AT12: =COUNTIF(L47:L54,AS12) -> 1 | AU12: =AT12/(AV4-AT11) -> 0.1428571429 | AV12: =IF(AU12=0,0,(AU12*((LOG(AU12))/LOG(2)))) -> -0.4010507032
A13: 12 | B13: 843 | C13: 13 | D13: 845 | E13: 24 | F13: 852 | K13: 0 | L13: 112 | N13: 221 | O13: 0 | P13: 0 | Q13: 0 | T13: 221 | U13: =COUNTIF(L7:L14,T13) -> 0 | V13: =U13/(W4-U11) -> 0 | W13: =IF(V13=0,0,(V13*((LOG(V13))/LOG(2)))) -> 0 | Y13: 221 | Z13: =COUNTIF(L15:L22,Y13) -> 0 | AA13: =Z13/(AB4-Z11) -> 0 | AB13: =IF(AA13=0,0,(AA13*((LOG(AA13))/LOG(2)))) -> 0 | AD13: 221 | AE13: =COUNTIF(L23:L30,AD13) -> 0 | AF13: =AE13/(AG4-AE11) -> 0 | AG13: =IF(AF13=0,0,(AF13*((LOG(AF13))/LOG(2)))) -> 0 | AI13: 221 | AJ13: =COUNTIF(L31:L38,AI13) -> 0 | AK13: =AJ13/(AL4-AJ11) -> 0 | AL13: =IF(AK13=0,0,(AK13*((LOG(AK13))/LOG(2)))) -> 0 | AN13: 221 | AO13: =COUNTIF(L39:L46,AN13) -> 0 | AP13: =AO13/(AQ4-AO11) -> 0 | AQ13: =IF(AP13=0,0,(AP13*((LOG(AP13))/LOG(2)))) -> 0 | AS13: 221 | AT13: =COUNTIF(L47:L54,AS13) -> 0 | AU13: =AT13/(AV4-AT11) -> 0 | AV13: =IF(AU13=0,0,(AU13*((LOG(AU13))/LOG(2)))) -> 0
A14: 21 | B14: 963 | C14: 22 | D14: 969 | E14: 24 | F14: 976 | K14: 0 | L14: 222 | N14: 222 | O14: 4 | P14: 0.08510638298 | Q14: -0.3025182001 | T14: 222 | U14: =COUNTIF(L7:L14,T14) -> 1 | V14: =U14/(W4-U11) -> 0.125 | W14: =IF(V14=0,0,(V14*((LOG(V14))/LOG(2)))) -> -0.375 | Y14: 222 | Z14: =COUNTIF(L15:L22,Y14) -> 0 | AA14: =Z14/(AB4-Z11) -> 0 | AB14: =IF(AA14=0,0,(AA14*((LOG(AA14))/LOG(2)))) -> 0 | AD14: 222 | AE14: =COUNTIF(L23:L30,AD14) -> 0 | AF14: =AE14/(AG4-AE11) -> 0 | AG14: =IF(AF14=0,0,(AF14*((LOG(AF14))/LOG(2)))) -> 0 | AI14: 222 | AJ14: =COUNTIF(L31:L38,AI14) -> 1 | AK14: =AJ14/(AL4-AJ11) -> 0.125 | AL14: =IF(AK14=0,0,(AK14*((LOG(AK14))/LOG(2)))) -> -0.375 | AN14: 222 | AO14: =COUNTIF(L39:L46,AN14) -> 1 | AP14: =AO14/(AQ4-AO11) -> 0.125 | AQ14: =IF(AP14=0,0,(AP14*((LOG(AP14))/LOG(2)))) -> -0.375 | AS14: 222 | AT14: =COUNTIF(L47:L54,AS14) -> 1 | AU14: =AT14/(AV4-AT11) -> 0.1428571429 | AV14: =IF(AU14=0,0,(AU14*((LOG(AU14))/LOG(2)))) -> -0.4010507032
A15: 12 | B15: 1075 | C15: 24 | D15: 1086 | E15: 24 | F15: 1092 | K15: 0 | L15: 122 | P15: =SUM(P7:P14) -> 1 | Q15: =-SUM(Q7:Q14) -> 2.125521923 | V15: =SUM(V7:V14) -> 1 | W15: =-SUM(W7:W14) -> 1.75 | AA15: =SUM(AA7:AA14) -> 1 | AB15: =-SUM(AB7:AB14) -> 1.548794941 | AF15: =SUM(AF7:AF14) -> 1 | AG15: =-SUM(AG7:AG14) -> 1.905639062 | AK15: =SUM(AK7:AK14) -> 1 | AL15: =-SUM(AL7:AL14) -> 1.905639062 | AP15: =SUM(AP7:AP14) -> 1 | AQ15: =-SUM(AQ7:AQ14) -> 1.905639062 | AU15: =SUM(AU7:AU14) -> 1 | AV15: =-SUM(AV7:AV14) -> 2.235926351
A16: 12 | B16: 1188 | C16: 24 | D16: 1208 | E16: 24 | F16: 1213 | K16: 0 | L16: 122 | P16: U= | Q16: =Q15/(LOG(Q4)/LOG(2)) -> 0.3826605317 | V16: U1= | W16: =W15/(LOG(W4)/LOG(2)) -> 0.5833333333 | AA16: U2= | AB16: =AB15/(LOG(AB4)/LOG(2)) -> 0.5162649802 | AF16: U3= | AG16: =AG15/(LOG(AG4)/LOG(2)) -> 0.6352130207 | AK16: U4= | AL16: =AL15/(LOG(AL4)/LOG(2)) -> 0.6352130207 | AP16: U5= | AQ16: =AQ15/(LOG(AQ4)/LOG(2)) -> 0.6352130207 | AU16: U6= | AV16: =AV15/(LOG(AV4)/LOG(2)) -> 0.7964530359
A17: 12 | B17: 1313 | C17: 13 | D17: 1315 | E17: 13 | F17: 1319 | K17: 0 | L17: 111
A18: 12 | B18: 1417 | C18: 24 | D18: 1425 | E18: 24 | F18: 1432 | K18: 0 | L18: 122
A19: 12 | B19: 1530 | C19: 24 | D19: 1543 | E19: 13 | F19: 1556 | K19: 0 | L19: 121 | N19: Total Target Seq
A20: 12 | B20: 1652 | C20: 13 | D20: 1655 | E20: 24 | F20: 1668 | K20: 0 | L20: 112 | N20: =COUNTIF(L7:L54,G3) -> 0 | P20: 8 | Q20: 8 | R20: 8 | S20: 8 | T20: 8 | U20: 8
A21: 12 | B21: 1769 | C21: 24 | D21: 1784 | E21: 24 | F21: 1790 | K21: 0 | L21: 122 | P21: % of reinforcement given in 6 equal intervals based on number of trials
A22: 12 | B22: 1896 | C22: 24 | D22: 1917 | E22: 24 | F22: 1924 | K22: 0 | L22: 122 | P22: %_1 | Q22: %_2 | R22: %_3 | S22: %_4 | T22: %_5 | U22: %_6
A23: 12 | B23: 2019 | C23: 13 | D23: 2027 | E23: 13 | F23: 2031 | K23: 0 | L23: 111 | O23: target sequence | P23: =$G$3 -> 211 | Q23: 211 | R23: 211 | S23: 211 | T23: 211 | U23: 211
A24: 12 | B24: 2129 | C24: 24 | D24: 2144 | E24: 24 | F24: 2150 | K24: 0 | L24: 122 | O24: total reinforcement | P24: =U11 -> 0 | Q24: =Z11 -> 0 | R24: =AE11 -> 0 | S24: =AJ11 -> 0 | T24: =AO11 -> 0 | U24: =AT11 -> 0
A25: 12 | B25: 2248 | C25: 13 | D25: 2255 | E25: 24 | F25: 2268 | K25: 0 | L25: 112 | O25: % target
A26: 12 | B26: 2363 | C26: 13 | D26: 2367 | E26: 13 | F26: 2370 | K26: 0 | L26: 111 | O26: CCRF
A27: 12 | B27: 2480 | C27: 24 | D27: 2489 | E27: 13 | F27: 2518 | K27: 0 | L27: 121 | O27: % CCRf
A28: 12 | B28: 2612 | C28: 24 | D28: 2629 | E28: 24 | F28: 2632 | K28: 0 | L28: 122 | O28: average response rate | P28: =F14/P20 -> 122 | Q28: =(F22-F14)/Q20 -> 118.5 | R28: =(F30-F22)/R20 -> 117.5 | S28: =(F38-F30)/S20 -> 116.125 | T28: =(F46-F38)/T20 -> 237.125 | U28: =(F54-F46)/U20 -> -711.25
A29: 12 | B29: 2737 | C29: 24 | D29: 2748 | E29: 24 | F29: 2752 | K29: 0 | L29: 122
A30: 12 | B30: 2847 | C30: 13 | D30: 2854 | E30: 24 | F30: 2864 | K30: 0 | L30: 112
A31: 12 | B31: 2959 | C31: 13 | D31: 2962 | E31: 13 | F31: 2965 | K31: 0 | L31: 111
A32: 21 | B32: 3066 | C32: 22 | D32: 3070 | E32: 24 | F32: 3076 | K32: 0 | L32: 222
A33: 12 | B33: 3174 | C33: 13 | D33: 3179 | E33: 24 | F33: 3188 | K33: 0 | L33: 112
A34: 12 | B34: 3285 | C34: 13 | D34: 3288 | E34: 24 | F34: 3301 | K34: 0 | L34: 112
A35: 12 | B35: 3398 | C35: 13 | D35: 3414 | E35: 24 | F35: 3427 | K35: 0 | L35: 112
A36: 12 | B36: 3522 | C36: 13 | D36: 3534 | E36: 13 | F36: 3551 | K36: 0 | L36: 111
A37: 12 | B37: 3650 | C37: 24 | D37: 3663 | E37: 24 | F37: 3669 | K37: 0 | L37: 122
A38: 12 | B38: 3765 | C38: 24 | D38: 3788 | E38: 24 | F38: 3793 | K38: 0 | L38: 122
A39: 21 | B39: 3890 | C39: 22 | D39: 3894 | E39: 24 | F39: 3898 | K39: 0 | L39: 222
A40: 12 | B40: 4000 | C40: 24 | D40: 4013 | E40: 24 | F40: 4016 | K40: 0 | L40: 122
A41: 12 | B41: 4119 | C41: 13 | D41: 4126 | E41: 24 | F41: 4143 | K41: 0 | L41: 112
A42: 12 | B42: 4242 | C42: 13 | D42: 4249 | E42: 13 | F42: 4263 | K42: 0 | L42: 111
A43: 12 | B43: 5282 | C43: 24 | D43: 5349 | E43: 24 | F43: 5355 | K43: 0 | L43: 122
A44: 12 | B44: 5453 | C44: 13 | D44: 5455 | E44: 13 | F44: 5468 | K44: 0 | L44: 111
A45: 12 | B45: 5565 | C45: 13 | D45: 5570 | E45: 24 | F45: 5587 | K45: 0 | L45: 112
A46: 12 | B46: 5683 | C46: 13 | D46: 5686 | E46: 13 | F46: 5690 | K46: 0 | L46: 111
A47: 21 | B47: 5808 | C47: 22 | D47: 5813 | E47: 24 | F47: 5818 | K47: 0 | L47: 222
A48: 12 | B48: 5974 | C48: 24 | D48: 5991 | E48: 24 | F48: 5997 | K48: 0 | L48: 122
A49: 12 | B49: 6349 | C49: 13 | D49: 6363 | E49: 24 | F49: 6374 | K49: 0 | L49: 112
A50: 12 | B50: 6585 | C50: 13 | D50: 6589 | E50: 24 | F50: 6886 | K50: 0 | L50: 112
A51: 21 | B51: 7121 | C51: 11 | D51: 7155 | E51: 22 | F51: 7165 | K51: 0 | L51: 212
A52: 12 | B52: 7448 | C52: 24 | D52: 7458 | E52: 24 | F52: 7462 | K52: 0 | L52: 122
A53: 12 | B53: 8100 | C53: 13 | D53: 11233 | E53: 13 | F53: 11351 | K53: 0 | L53: 111
A54: 21 | B54: 13438 | C54: 11 | D54: 22272 | L54: 21

Sheet !L816A0I.sha
A1: Report for:!L816A0I.sha
A2: Date: | B2: <date>
A3: Hen: | B3: <hen> | F3: Correct Sequence | G3: =Start!J2 -> 211 | P3: Total Sequences in Data | Q3: =4994-COUNTBLANK(L7:L5000) -> 10 | V3: Total Sequences in Block Data | W3: =COUNTA(L7:L8) -> 2 | AA3: Total Sequences in Block Data | AB3: =COUNTA(L9:L9) -> 1 | AF3: Total Sequences in Block Data | AG3: =COUNTA(L10:L11) -> 2 | AK3: Total Sequences in Block Data | AL3: =COUNTA(L12:L13) -> 2 | AP3: Total Sequences in Block Data | AQ3: =COUNTA(L14:L14) -> 1 | AU3: Total Sequences in Block Data | AV3: =COUNTA(L15:L16) -> 2
P4: Total Sequences in Summary | Q4: =SUM(O7:O14) -> 9 | V4: Total Sequences in Block Summary | W4: =SUM(U7:U14) -> 2 | AA4: Total Sequences in Block Summary | AB4: =SUM(Z7:Z14) -> 1 | AF4: Total Sequences in Block Summary | AG4: =SUM(AE7:AE14) -> 2 | AK4: Total Sequences in Block Summary | AL4: =SUM(AJ7:AJ14) -> 2 | AP4: Total Sequences in Block Summary | AQ4: =SUM(AO7:AO14) -> 1 | AU4: Total Sequences in Block Summary | AV4: =SUM(AT7:AT14) -> 1
T5: Block 1 | Y5: Block 2 | AD5: Block 3 | AI5: Block 4 | AN5: Block 5 | AS5: Block 6
A6: Sequence Component 1 | B6: Time 1 | C6: Sequence Component 2 | D6: Time 2 | E6: Sequence Component 3 | F6: Time 3 | G6: Sequence Component 4 | H6: Time 4 | I6: Sequence Component 5 | J6: Time 5 | K6: Correct? 0=No 1=Yes | L6: Sequence | N6: Frequency | P6: Relative Frequency | Q6: Variability | T6: Frequency | V6: Relative Frequency | W6: Variability | Y6: Frequency | AA6: Relative Frequency | AB6: Variability | AD6: Frequency | AF6: Relative Frequency | AG6: Variability | AI6: Frequency | AK6: Relative Frequency | AL6: Variability | AN6: Frequency | AP6: Relative Frequency | AQ6: Variability | AS6: Frequency | AU6: Relative Frequency | AV6: Variability
A7: 21 | B7: 137 | C7: 22 | D7: 145 | E7: 24 | F7: 150 | K7: 0 | L7: 222 | N7: 111 | O7: =COUNTIF($L$7:$L$500,N7) -> 2 | P7: =O7/$Q$4 -> 0.2222222222 | Q7: =IF(P7=0,0,(P7*((LOG(P7))/LOG(2)))) -> -0.4822055559 | T7: =N7 -> 111 | U7: =COUNTIF(L7:L8,T7) -> 1 | V7: =U7/(W4-U11) -> 0.5 | W7: =IF(V7=0,0,(V7*((LOG(V7))/LOG(2)))) -> -0.5 | Y7: =N7 -> 111 | Z7: =COUNTIF(L9:L9,Y7) -> 0 | AA7: =Z7/(AB4-Z11) -> 0 | AB7: =IF(AA7=0,0,(AA7*((LOG(AA7))/LOG(2)))) -> 0 | AD7: =N7 -> 111 | AE7: =COUNTIF(L10:L11,AD7) -> 0 | AF7: =AE7/(AG4-AE11) -> 0 | AG7: =IF(AF7=0,0,(AF7*((LOG(AF7))/LOG(2)))) -> 0 | AI7: =N7 -> 111 | AJ7: =COUNTIF(L12:L13,AI7) -> 0 | AK7: =AJ7/(AL4-AJ11) -> 0 | AL7: =IF(AK7=0,0,(AK7*((LOG(AK7))/LOG(2)))) -> 0 | AN7: =N7 -> 111 | AO7: =COUNTIF(L14:L14,AN7) -> 0 | AP7: =AO7/(AQ4-AO11) -> 0 | AQ7: =IF(AP7=0,0,(AP7*((LOG(AP7))/LOG(2)))) -> 0 | AS7: =N7 -> 111 | AT7: =COUNTIF(L15:L16,AS7) -> 1 | AU7: =AT7/(AV4-AT11) -> 1 | AV7: =IF(AU7=0,0,(AU7*((LOG(AU7))/LOG(2)))) -> 0
A8: 12 | B8: 251 | C8: 13 | D8: 256 | E8: 13 | F8: 261 | K8: 0 | L8: 111 | N8: 112 | O8: 0 | P8: 0 | Q8: 0 | T8: 112 | U8: =COUNTIF(L7:L8,T8) -> 0 | V8: =U8/(W4-U11) -> 0 | W8: =IF(V8=0,0,(V8*((LOG(V8))/LOG(2)))) -> 0 | Y8: 112 | Z8: =COUNTIF(L9:L9,Y8) -> 0 | AA8: =Z8/(AB4-Z11) -> 0 | AB8: =IF(AA8=0,0,(AA8*((LOG(AA8))/LOG(2)))) -> 0 | AD8: 112 | AE8: =COUNTIF(L10:L11,AD8) -> 0 | AF8: =AE8/(AG4-AE11) -> 0 | AG8: =IF(AF8=0,0,(AF8*((LOG(AF8))/LOG(2)))) -> 0 | AI8: 112 | AJ8: =COUNTIF(L12:L13,AI8) -> 0 | AK8: =AJ8/(AL4-AJ11) -> 0 | AL8: =IF(AK8=0,0,(AK8*((LOG(AK8))/LOG(2)))) -> 0 | AN8: 112 | AO8: =COUNTIF(L14:L14,AN8) -> 0 | AP8: =AO8/(AQ4-AO11) -> 0 | AQ8: =IF(AP8=0,0,(AP8*((LOG(AP8))/LOG(2)))) -> 0 | AS8: 112 | AT8: =COUNTIF(L15:L16,AS8) -> 0 | AU8: =AT8/(AV4-AT11) -> 0 | AV8: =IF(AU8=0,0,(AU8*((LOG(AU8))/LOG(2)))) -> 0
A9: 21 | B9: 361 | C9: 22 | D9: 374 | E9: 24 | F9: 413 | K9: 0 | L9: 222 | N9: 121 | O9: 0 | P9: 0 | Q9: 0 | T9: 121 | U9: =COUNTIF(L7:L8,T9) -> 0 | V9: =U9/(W4-U11) -> 0 | W9: =IF(V9=0,0,(V9*((LOG(V9))/LOG(2)))) -> 0 | Y9: 121 | Z9: =COUNTIF(L9:L9,Y9) -> 0 | AA9: =Z9/(AB4-Z11) -> 0 | AB9: =IF(AA9=0,0,(AA9*((LOG(AA9))/LOG(2)))) -> 0 | AD9: 121 | AE9: =COUNTIF(L10:L11,AD9) -> 0 | AF9: =AE9/(AG4-AE11) -> 0 | AG9: =IF(AF9=0,0,(AF9*((LOG(AF9))/LOG(2)))) -> 0 | AI9: 121 | AJ9: =COUNTIF(L12:L13,AI9) -> 0 | AK9: =AJ9/(AL4-AJ11) -> 0 | AL9: =IF(AK9=0,0,(AK9*((LOG(AK9))/LOG(2)))) -> 0 | AN9: 121 | AO9: =COUNTIF(L14:L14,AN9) -> 0 | AP9: =AO9/(AQ4-AO11) -> 0 | AQ9: =IF(AP9=0,0,(AP9*((LOG(AP9))/LOG(2)))) -> 0 | AS9: 121 | AT9: =COUNTIF(L15:L16,AS9) -> 0 | AU9: =AT9/(AV4-AT11) -> 0 | AV9: =IF(AU9=0,0,(AU9*((LOG(AU9))/LOG(2)))) -> 0
A10: 12 | B10: 726 | C10: 24 | D10: 744 | E10: 24 | F10: 750 | K10: 0 | L10: 122 | N10: 122 | O10: 2 | P10: 0.2222222222 | Q10: -0.4822055559 | T10: 122 | U10: =COUNTIF(L7:L8,T10) -> 0 | V10: =U10/(W4-U11) -> 0 | W10: =IF(V10=0,0,(V10*((LOG(V10))/LOG(2)))) -> 0 | Y10: 122 | Z10: =COUNTIF(L9:L9,Y10) -> 0 | AA10: =Z10/(AB4-Z11) -> 0 | AB10: =IF(AA10=0,0,(AA10*((LOG(AA10))/LOG(2)))) -> 0 | AD10: 122 | AE10: =COUNTIF(L10:L11,AD10) -> 2 | AF10: =AE10/(AG4-AE11) -> 1 | AG10: =IF(AF10=0,0,(AF10*((LOG(AF10))/LOG(2)))) -> 0 | AI10: 122 | AJ10: =COUNTIF(L12:L13,AI10) -> 0 | AK10: =AJ10/(AL4-AJ11) -> 0 | AL10: =IF(AK10=0,0,(AK10*((LOG(AK10))/LOG(2)))) -> 0 | AN10: 122 | AO10: =COUNTIF(L14:L14,AN10) -> 0 | AP10: =AO10/(AQ4-AO11) -> 0 | AQ10: =IF(AP10=0,0,(AP10*((LOG(AP10))/LOG(2)))) -> 0 | AS10: 122 | AT10: =COUNTIF(L15:L16,AS10) -> 0 | AU10: =AT10/(AV4-AT11) -> 0 | AV10: =IF(AU10=0,0,(AU10*((LOG(AU10))/LOG(2)))) -> 0
A11: 12 | B11: 1317 | C11: 24 | D11: 2158 | E11: 24 | F11: 2607 | K11: 0 | L11: 122 | N11: 211 | O11: 0 | P11: 0 | Q11: 0 | T11: 211 | U11: =COUNTIF(L7:L8,T11) -> 0 | Y11: 211 | Z11: =COUNTIF(L9:L9,Y11) -> 0 | AD11: 211 | AE11: =COUNTIF(L10:L11,AD11) -> 0 | AI11: 211 | AJ11: =COUNTIF(L12:L13,AI11) -> 0 | AN11: 211 | AO11: =COUNTIF(L14:L14,AN11) -> 0 | AS11: 211 | AT11: =COUNTIF(L15:L16,AS11) -> 0
A12: 21 | B12: 3650 | C12: 22 | D12: 3655 | E12: 24 | F12: 3660 | K12: 0 | L12: 222 | N12: 212 | O12: 1 | P12: 0.1111111111 | Q12: -0.352213889 | T12: 212 | U12: =COUNTIF(L7:L8,T12) -> 0 | V12: =U12/(W4-U11) -> 0 | W12: =IF(V12=0,0,(V12*((LOG(V12))/LOG(2)))) -> 0 | Y12: 212 | Z12: =COUNTIF(L9:L9,Y12) -> 0 | AA12: =Z12/(AB4-Z11) -> 0 | AB12: =IF(AA12=0,0,(AA12*((LOG(AA12))/LOG(2)))) -> 0 | AD12: 212 | AE12: =COUNTIF(L10:L11,AD12) -> 0 | AF12: =AE12/(AG4-AE11) -> 0 | AG12: =IF(AF12=0,0,(AF12*((LOG(AF12))/LOG(2)))) -> 0 | AI12: 212 | AJ12: =COUNTIF(L12:L13,AI12) -> 0 | AK12: =AJ12/(AL4-AJ11) -> 0 | AL12: =IF(AK12=0,0,(AK12*((LOG(AK12))/LOG(2)))) -> 0 | AN12: 212 | AO12: =COUNTIF(L14:L14,AN12) -> 1 | AP12: =AO12/(AQ4-AO11) -> 1 | AQ12: =IF(AP12=0,0,(AP12*((LOG(AP12))/LOG(2)))) -> 0 | AS12: 212 | AT12: =COUNTIF(L15:L16,AS12) -> 0 | AU12: =AT12/(AV4-AT11) -> 0 | AV12: =IF(AU12=0,0,(AU12*((LOG(AU12))/LOG(2)))) -> 0
A13: 21 | B13: 4819 | C13: 22 | D13: 4824 | E13: 24 | F13: 4828 | K13: 0 | L13: 222 | N13: 221 | O13: 0 | P13: 0 | Q13: 0 | T13: 221 | U13: =COUNTIF(L7:L8,T13) -> 0 | V13: =U13/(W4-U11) -> 0 | W13: =IF(V13=0,0,(V13*((LOG(V13))/LOG(2)))) -> 0 | Y13: 221 | Z13: =COUNTIF(L9:L9,Y13) -> 0 | AA13: =Z13/(AB4-Z11) -> 0 | AB13: =IF(AA13=0,0,(AA13*((LOG(AA13))/LOG(2)))) -> 0 | AD13: 221 | AE13: =COUNTIF(L10:L11,AD13) -> 0 | AF13: =AE13/(AG4-AE11) -> 0 | AG13: =IF(AF13=0,0,(AF13*((LOG(AF13))/LOG(2)))) -> 0 | AI13: 221 | AJ13: =COUNTIF(L12:L13,AI13) -> 0 | AK13: =AJ13/(AL4-AJ11) -> 0 | AL13: =IF(AK13=0,0,(AK13*((LOG(AK13))/LOG(2)))) -> 0 | AN13: 221 | AO13: =COUNTIF(L14:L14,AN13) -> 0 | AP13: =AO13/(AQ4-AO11) -> 0 | AQ13: =IF(AP13=0,0,(AP13*((LOG(AP13))/LOG(2)))) -> 0 | AS13: 221 | AT13: =COUNTIF(L15:L16,AS13) -> 0 | AU13: =AT13/(AV4-AT11) -> 0 | AV13: =IF(AU13=0,0,(AU13*((LOG(AU13))/LOG(2)))) -> 0
A14: 21 | B14: 9322 | C14: 11 | D14: 11364 | E14: 22 | F14: 12229 | K14: 0 | L14: 212 | N14: 222 | O14: 4 | P14: 0.4444444444 | Q14: -0.5199666673 | T14: 222 | U14: =COUNTIF(L7:L8,T14) -> 1 | V14: =U14/(W4-U11) -> 0.5 | W14: =IF(V14=0,0,(V14*((LOG(V14))/LOG(2)))) -> -0.5 | Y14: 222 | Z14: =COUNTIF(L9:L9,Y14) -> 1 | AA14: =Z14/(AB4-Z11) -> 1 | AB14: =IF(AA14=0,0,(AA14*((LOG(AA14))/LOG(2)))) -> 0 | AD14: 222 | AE14: =COUNTIF(L10:L11,AD14) -> 0 | AF14: =AE14/(AG4-AE11) -> 0 | AG14: =IF(AF14=0,0,(AF14*((LOG(AF14))/LOG(2)))) -> 0 | AI14: 222 | AJ14: =COUNTIF(L12:L13,AI14) -> 2 | AK14: =AJ14/(AL4-AJ11) -> 1 | AL14: =IF(AK14=0,0,(AK14*((LOG(AK14))/LOG(2)))) -> 0 | AN14: 222 | AO14: =COUNTIF(L14:L14,AN14) -> 0 | AP14: =AO14/(AQ4-AO11) -> 0 | AQ14: =IF(AP14=0,0,(AP14*((LOG(AP14))/LOG(2)))) -> 0 | AS14: 222 | AT14: =COUNTIF(L15:L16,AS14) -> 0 | AU14: =AT14/(AV4-AT11) -> 0 | AV14: =IF(AU14=0,0,(AU14*((LOG(AU14))/LOG(2)))) -> 0
A15: 12 | B15: 13701 | C15: 13 | D15: 15394 | E15: 13 | F15: 16661 | K15: 0 | L15: 111 | P15: =SUM(P7:P14) -> 1 | Q15: =-SUM(Q7:Q14) -> 1.836591668 | V15: =SUM(V7:V14) -> 1 | W15: =-SUM(W7:W14) -> 1 | AA15: =SUM(AA7:AA14) -> 1 | AB15: =-SUM(AB7:AB14) -> 0 | AF15: =SUM(AF7:AF14) -> 1 | AG15: =-SUM(AG7:AG14) -> 0 | AK15: =SUM(AK7:AK14) -> 1 | AL15: =-SUM(AL7:AL14) -> 0 | AP15: =SUM(AP7:AP14) -> 1 | AQ15: =-SUM(AQ7:AQ14) -> 0 | AU15: =SUM(AU7:AU14) -> 1 | AV15: =-SUM(AV7:AV14) -> 0
A16: 21 | B16: 17971 | L16: 2 | P16: U= | Q16: =Q15/(LOG(Q4)/LOG(2)) -> 0.5793801643 | V16: U1= | W16: =W15/(LOG(W4)/LOG(2)) -> 1 | AA16: U2= | AB16: =AB15/(LOG(AB4)/LOG(2)) ->  | AF16: U3= | AG16: =AG15/(LOG(AG4)/LOG(2)) -> 0 | AK16: U4= | AL16: =AL15/(LOG(AL4)/LOG(2)) -> 0 | AP16: U5= | AQ16: =AQ15/(LOG(AQ4)/LOG(2)) ->  | AU16: U6= | AV16: =AV15/(LOG(AV4)/LOG(2)) -> 
N19: Total Target Seq
N20: =COUNTIF(L7:L16,G3) -> 0 | P20: 2 | Q20: 1 | R20: 2 | S20: 2 | T20: 1 | U20: 2
P21: % of reinforcement given in 6 equal intervals based on number of trials
P22: %_1 | Q22: %_2 | R22: %_3 | S22: %_4 | T22: %_5 | U22: %_6
O23: target sequence | P23: =$G$3 -> 211 | Q23: 211 | R23: 211 | S23: 211 | T23: 211 | U23: 211
O24: total reinforcement | P24: =U11 -> 0 | Q24: =Z11 -> 0 | R24: =AE11 -> 0 | S24: =AJ11 -> 0 | T24: =AO11 -> 0 | U24: =AT11 -> 0
O25: % target
O26: CCRF
O27: % CCRf
O28: average response rate | P28: =F8/P20 -> 130.5 | Q28: =(F9-F8)/Q20 -> 152 | R28: =(F11-F9)/R20 -> 1097 | S28: =(F13-F11)/S20 -> 1110.5 | T28: =(F14-F13)/T20 -> 7401 | U28: =(F16-F14)/U20 -> -6114.5

Sheet !L817B2I.sha
A1: Report for:!L817B2I.sha
A2: Date: | B2: <date>
A3: Hen: | B3: <hen> | F3: Correct Sequence | G3: =Start!J2 -> 211 | P3: Total Sequences in Data | Q3: =4994-COUNTBLANK(L7:L5000) -> 34 | V3: Total Sequences in Block Data | W3: =COUNTA(L7:L12) -> 6 | AA3: Total Sequences in Block Data | AB3: =COUNTA(L13:L17) -> 5 | AF3: Total Sequences in Block Data | AG3: =COUNTA(L18:L23) -> 6 | AK3: Total Sequences in Block Data | AL3: =COUNTA(L24:L29) -> 6 | AP3: Total Sequences in Block Data | AQ3: =COUNTA(L30:L34) -> 5 | AU3: Total Sequences in Block Data | AV3: =COUNTA(L35:L40) -> 6
P4: Total Sequences in Summary | Q4: =SUM(O7:O14) -> 34 | V4: Total Sequences in Block Summary | W4: =SUM(U7:U14) -> 6 | AA4: Total Sequences in Block Summary | AB4: =SUM(Z7:Z14) -> 5 | AF4: Total Sequences in Block Summary | AG4: =SUM(AE7:AE14) -> 6 | AK4: Total Sequences in Block Summary | AL4: =SUM(AJ7:AJ14) -> 6 | AP4: Total Sequences in Block Summary | AQ4: =SUM(AO7:AO14) -> 5 | AU4: Total Sequences in Block Summary | AV4: =SUM(AT7:AT14) -> 6
T5: Block 1 | Y5: Block 2 | AD5: Block 3 | AI5: Block 4 | AN5: Block 5 | AS5: Block 6
A6: Sequence Component 1 | B6: Time 1 | C6: Sequence Component 2 | D6: Time 2 | E6: Sequence Component 3 | F6: Time 3 | G6: Sequence Component 4 | H6: Time 4 | I6: Sequence Component 5 | J6: Time 5 | K6: Correct? 0=No 1=Yes | L6: Sequence | N6: Frequency | P6: Relative Frequency | Q6: Variability | T6: Frequency | V6: Relative Frequency | W6: Variability | Y6: Frequency | AA6: Relative Frequency | AB6: Variability | AD6: Frequency | AF6: Relative Frequency | AG6: Variability | AI6: Frequency | AK6: Relative Frequency | AL6: Variability | AN6: Frequency | AP6: Relative Frequency | AQ6: Variability | AS6: Frequency | AU6: Relative Frequency | AV6: Variability
A7: 12 | B7: 18 | C7: 24 | D7: 26 | E7: 24 | F7: 30 | K7: 0 | L7: 122 | N7: 111 | O7: =COUNTIF($L$7:$L$500,N7) -> 4 | P7: =O7/$Q$4 -> 0.1176470588 | Q7: =IF(P7=0,0,(P7*((LOG(P7))/LOG(2)))) -> -0.3632309225 | T7: =N7 -> 111 | U7: =COUNTIF(L7:L12,T7) -> 0 | V7: =U7/(W4-U11) -> 0 | W7: =IF(V7=0,0,(V7*((LOG(V7))/LOG(2)))) -> 0 | Y7: =N7 -> 111 | Z7: =COUNTIF(L13:L17,Y7) -> 1 | AA7: =Z7/(AB4-Z11) -> 0.2 | AB7: =IF(AA7=0,0,(AA7*((LOG(AA7))/LOG(2)))) -> -0.464385619 | AD7: =N7 -> 111 | AE7: =COUNTIF(L18:L23,AD7) -> 1 | AF7: =AE7/(AG4-AE11) -> 0.1666666667 | AG7: =IF(AF7=0,0,(AF7*((LOG(AF7))/LOG(2)))) -> -0.4308270835 | AI7: =N7 -> 111 | AJ7: =COUNTIF(L24:L29,AI7) -> 2 | AK7: =AJ7/(AL4-AJ11) -> 0.3333333333 | AL7: =IF(AK7=0,0,(AK7*((LOG(AK7))/LOG(2)))) -> -0.5283208336 | AN7: =N7 -> 111 | AO7: =COUNTIF(L30:L34,AN7) -> 0 | AP7: =AO7/(AQ4-AO11) -> 0 | AQ7: =IF(AP7=0,0,(AP7*((LOG(AP7))/LOG(2)))) -> 0 | AS7: =N7 -> 111 | AT7: =COUNTIF(L35:L40,AS7) -> 0 | AU7: =AT7/(AV4-AT11) -> 0 | AV7: =IF(AU7=0,0,(AU7*((LOG(AU7))/LOG(2)))) -> 0
A8: 12 | B8: 127 | C8: 24 | D8: 143 | E8: 24 | F8: 148 | K8: 0 | L8: 122 | N8: 112 | O8: 6 | P8: 0.1764705882 | Q8: -0.4416177072 | T8: 112 | U8: =COUNTIF(L7:L12,T8) -> 0 | V8: =U8/(W4-U11) -> 0 | W8: =IF(V8=0,0,(V8*((LOG(V8))/LOG(2)))) -> 0 | Y8: 112 | Z8: =COUNTIF(L13:L17,Y8) -> 2 | AA8: =Z8/(AB4-Z11) -> 0.4 | AB8: =IF(AA8=0,0,(AA8*((LOG(AA8))/LOG(2)))) -> -0.528771238 | AD8: 112 | AE8: =COUNTIF(L18:L23,AD8) -> 2 | AF8: =AE8/(AG4-AE11) -> 0.3333333333 | AG8: =IF(AF8=0,0,(AF8*((LOG(AF8))/LOG(2)))) -> -0.5283208336 | AI8: 112 | AJ8: =COUNTIF(L24:L29,AI8) -> 0 | AK8: =AJ8/(AL4-AJ11) -> 0 | AL8: =IF(AK8=0,0,(AK8*((LOG(AK8))/LOG(2)))) -> 0 | AN8: 112 | AO8: =COUNTIF(L30:L34,AN8) -> 2 | AP8: =AO8/(AQ4-AO11) -> 0.4 | AQ8: =IF(AP8=0,0,(AP8*((LOG(AP8))/LOG(2)))) -> -0.528771238 | AS8: 112 | AT8: =COUNTIF(L35:L40,AS8) -> 0 | AU8: =AT8/(AV4-AT11) -> 0 | AV8: =IF(AU8=0,0,(AU8*((LOG(AU8))/LOG(2)))) -> 0
A9: 21 | B9: 304 | C9: 22 | D9: 310 | E9: 24 | F9: 316 | K9: 0 | L9: 222 | N9: 121 | O9: 0 | P9: 0 | Q9: 0 | T9: 121 | U9: =COUNTIF(L7:L12,T9) -> 0 | V9: =U9/(W4-U11) -> 0 | W9: =IF(V9=0,0,(V9*((LOG(V9))/LOG(2)))) -> 0 | Y9: 121 | Z9: =COUNTIF(L13:L17,Y9) -> 0 | AA9: =Z9/(AB4-Z11) -> 0 | AB9: =IF(AA9=0,0,(AA9*((LOG(AA9))/LOG(2)))) -> 0 | AD9: 121 | AE9: =COUNTIF(L18:L23,AD9) -> 0 | AF9: =AE9/(AG4-AE11) -> 0 | AG9: =IF(AF9=0,0,(AF9*((LOG(AF9))/LOG(2)))) -> 0 | AI9: 121 | AJ9: =COUNTIF(L24:L29,AI9) -> 0 | AK9: =AJ9/(AL4-AJ11) -> 0 | AL9: =IF(AK9=0,0,(AK9*((LOG(AK9))/LOG(2)))) -> 0 | AN9: 121 | AO9: =COUNTIF(L30:L34,AN9) -> 0 | AP9: =AO9/(AQ4-AO11) -> 0 | AQ9: =IF(AP9=0,0,(AP9*((LOG(AP9))/LOG(2)))) -> 0 | AS9: 121 | AT9: =COUNTIF(L35:L40,AS9) -> 0 | AU9: =AT9/(AV4-AT11) -> 0 | AV9: =IF(AU9=0,0,(AU9*((LOG(AU9))/LOG(2)))) -> 0
A10: 21 | B10: 431 | C10: 22 | D10: 436 | E10: 24 | F10: 440 | K10: 0 | L10: 222 | N10: 122 | O10: 12 | P10: 0.3529411765 | Q10: -0.5302942378 | T10: 122 | U10: =COUNTIF(L7:L12,T10) -> 3 | V10: =U10/(W4-U11) -> 0.5 | W10: =IF(V10=0,0,(V10*((LOG(V10))/LOG(2)))) -> -0.5 | Y10: 122 | Z10: =COUNTIF(L13:L17,Y10) -> 1 | AA10: =Z10/(AB4-Z11) -> 0.2 | AB10: =IF(AA10=0,0,(AA10*((LOG(AA10))/LOG(2)))) -> -0.464385619 | AD10: 122 | AE10: =COUNTIF(L18:L23,AD10) -> 2 | AF10: =AE10/(AG4-AE11) -> 0.3333333333 | AG10: =IF(AF10=0,0,(AF10*((LOG(AF10))/LOG(2)))) -> -0.5283208336 | AI10: 122 | AJ10: =COUNTIF(L24:L29,AI10) -> 3 | AK10: =AJ10/(AL4-AJ11) -> 0.5 | AL10: =IF(AK10=0,0,(AK10*((LOG(AK10))/LOG(2)))) -> -0.5 | AN10: 122 | AO10: =COUNTIF(L30:L34,AN10) -> 2 | AP10: =AO10/(AQ4-AO11) -> 0.4 | AQ10: =IF(AP10=0,0,(AP10*((LOG(AP10))/LOG(2)))) -> -0.528771238 | AS10: 122 | AT10: =COUNTIF(L35:L40,AS10) -> 1 | AU10: =AT10/(AV4-AT11) -> 0.1666666667 | AV10: =IF(AU10=0,0,(AU10*((LOG(AU10))/LOG(2)))) -> -0.4308270835
A11: 21 | B11: 554 | C11: 22 | D11: 562 | E11: 13 | F11: 581 | K11: 0 | L11: 221 | N11: 211 | O11: 0 | P11: 0 | Q11: 0 | T11: 211 | U11: =COUNTIF(L7:L12,T11) -> 0 | Y11: 211 | Z11: =COUNTIF(L13:L17,Y11) -> 0 | AD11: 211 | AE11: =COUNTIF(L18:L23,AD11) -> 0 | AI11: 211 | AJ11: =COUNTIF(L24:L29,AI11) -> 0 | AN11: 211 | AO11: =COUNTIF(L30:L34,AN11) -> 0 | AS11: 211 | AT11: =COUNTIF(L35:L40,AS11) -> 0
A12: 12 | B12: 682 | C12: 24 | D12: 706 | E12: 24 | F12: 711 | K12: 0 | L12: 122 | N12: 212 | O12: 0 | P12: 0 | Q12: 0 | T12: 212 | U12: =COUNTIF(L7:L12,T12) -> 0 | V12: =U12/(W4-U11) -> 0 | W12: =IF(V12=0,0,(V12*((LOG(V12))/LOG(2)))) -> 0 | Y12: 212 | Z12: =COUNTIF(L13:L17,Y12) -> 0 | AA12: =Z12/(AB4-Z11) -> 0 | AB12: =IF(AA12=0,0,(AA12*((LOG(AA12))/LOG(2)))) -> 0 | AD12: 212 | AE12: =COUNTIF(L18:L23,AD12) -> 0 | AF12: =AE12/(AG4-AE11) -> 0 | AG12: =IF(AF12=0,0,(AF12*((LOG(AF12))/LOG(2)))) -> 0 | AI12: 212 | AJ12: =COUNTIF(L24:L29,AI12) -> 0 | AK12: =AJ12/(AL4-AJ11) -> 0 | AL12: =IF(AK12=0,0,(AK12*((LOG(AK12))/LOG(2)))) -> 0 | AN12: 212 | AO12: =COUNTIF(L30:L34,AN12) -> 0 | AP12: =AO12/(AQ4-AO11) -> 0 | AQ12: =IF(AP12=0,0,(AP12*((LOG(AP12))/LOG(2)))) -> 0 | AS12: 212 | AT12: =COUNTIF(L35:L40,AS12) -> 0 | AU12: =AT12/(AV4-AT11) -> 0 | AV12: =IF(AU12=0,0,(AU12*((LOG(AU12))/LOG(2)))) -> 0
A13: 12 | B13: 809 | C13: 13 | D13: 814 | E13: 24 | F13: 827 | K13: 0 | L13: 112 | N13: 221 | O13: 4 | P13: 0.1176470588 | Q13: -0.3632309225 | T13: 221 | U13: =COUNTIF(L7:L12,T13) -> 1 | V13: =U13/(W4-U11) -> 0.1666666667 | W13: =IF(V13=0,0,(V13*((LOG(V13))/LOG(2)))) -> -0.4308270835 | Y13: 221 | Z13: =COUNTIF(L13:L17,Y13) -> 0 | AA13: =Z13/(AB4-Z11) -> 0 | AB13: =IF(AA13=0,0,(AA13*((LOG(AA13))/LOG(2)))) -> 0 | AD13: 221 | AE13: =COUNTIF(L18:L23,AD13) -> 0 | AF13: =AE13/(AG4-AE11) -> 0 | AG13: =IF(AF13=0,0,(AF13*((LOG(AF13))/LOG(2)))) -> 0 | AI13: 221 | AJ13: =COUNTIF(L24:L29,AI13) -> 0 | AK13: =AJ13/(AL4-AJ11) -> 0 | AL13: =IF(AK13=0,0,(AK13*((LOG(AK13))/LOG(2)))) -> 0 | AN13: 221 | AO13: =COUNTIF(L30:L34,AN13) -> 0 | AP13: =AO13/(AQ4-AO11) -> 0 | AQ13: =IF(AP13=0,0,(AP13*((LOG(AP13))/LOG(2)))) -> 0 | AS13: 221 | AT13: =COUNTIF(L35:L40,AS13) -> 3 | AU13: =AT13/(AV4-AT11) -> 0.5 | AV13: =IF(AU13=0,0,(AU13*((LOG(AU13))/LOG(2)))) -> -0.5
A14: 21 | B14: 953 | C14: 22 | D14: 956 | E14: 24 | F14: 960 | K14: 0 | L14: 222 | N14: 222 | O14: 8 | P14: 0.2352941176 | Q14: -0.4911677274 | T14: 222 | U14: =COUNTIF(L7:L12,T14) -> 2 | V14: =U14/(W4-U11) -> 0.3333333333 | W14: =IF(V14=0,0,(V14*((LOG(V14))/LOG(2)))) -> -0.5283208336 | Y14: 222 | Z14: =COUNTIF(L13:L17,Y14) -> 1 | AA14: =Z14/(AB4-Z11) -> 0.2 | AB14: =IF(AA14=0,0,(AA14*((LOG(AA14))/LOG(2)))) -> -0.464385619 | AD14: 222 | AE14: =COUNTIF(L18:L23,AD14) -> 1 | AF14: =AE14/(AG4-AE11) -> 0.1666666667 | AG14: =IF(AF14=0,0,(AF14*((LOG(AF14))/LOG(2)))) -> -0.4308270835 | AI14: 222 | AJ14: =COUNTIF(L24:L29,AI14) -> 1 | AK14: =AJ14/(AL4-AJ11) -> 0.1666666667 | AL14: =IF(AK14=0,0,(AK14*((LOG(AK14))/LOG(2)))) -> -0.4308270835 | AN14: 222 | AO14: =COUNTIF(L30:L34,AN14) -> 1 | AP14: =AO14/(AQ4-AO11) -> 0.2 | AQ14: =IF(AP14=0,0,(AP14*((LOG(AP14))/LOG(2)))) -> -0.464385619 | AS14: 222 | AT14: =COUNTIF(L35:L40,AS14) -> 2 | AU14: =AT14/(AV4-AT11) -> 0.3333333333 | AV14: =IF(AU14=0,0,(AU14*((LOG(AU14))/LOG(2)))) -> -0.5283208336
A15: 12 | B15: 1055 | C15: 13 | D15: 1059 | E15: 13 | F15: 1064 | K15: 0 | L15: 111 | P15: =SUM(P7:P14) -> 1 | Q15: =-SUM(Q7:Q14) -> 2.189541517 | V15: =SUM(V7:V14) -> 1 | W15: =-SUM(W7:W14) -> 1.459147917 | AA15: =SUM(AA7:AA14) -> 1 | AB15: =-SUM(AB7:AB14) -> 1.921928095 | AF15: =SUM(AF7:AF14) -> 1 | AG15: =-SUM(AG7:AG14) -> 1.918295834 | AK15: =SUM(AK7:AK14) -> 1 | AL15: =-SUM(AL7:AL14) -> 1.459147917 | AP15: =SUM(AP7:AP14) -> 1 | AQ15: =-SUM(AQ7:AQ14) -> 1.521928095 | AU15: =SUM(AU7:AU14) -> 1 | AV15: =-SUM(AV7:AV14) -> 1.459147917
A16: 12 | B16: 1162 | C16: 13 | D16: 1166 | E16: 24 | F16: 1176 | K16: 0 | L16: 112 | P16: U= | Q16: =Q15/(LOG(Q4)/LOG(2)) -> 0.4303798545 | V16: U1= | W16: =W15/(LOG(W4)/LOG(2)) -> 0.5644754679 | AA16: U2= | AB16: =AB15/(LOG(AB4)/LOG(2)) -> 0.8277293768 | AF16: U3= | AG16: =AG15/(LOG(AG4)/LOG(2)) -> 0.7420981285 | AK16: U4= | AL16: =AL15/(LOG(AL4)/LOG(2)) -> 0.5644754679 | AP16: U5= | AQ16: =AQ15/(LOG(AQ4)/LOG(2)) -> 0.6554587535 | AU16: U6= | AV16: =AV15/(LOG(AV4)/LOG(2)) -> 0.5644754679
A17: 12 | B17: 1276 | C17: 24 | D17: 1284 | E17: 24 | F17: 1288 | K17: 0 | L17: 122
A18: 12 | B18: 1385 | C18: 13 | D18: 1390 | E18: 13 | F18: 1394 | K18: 0 | L18: 111
A19: 21 | B19: 1493 | C19: 22 | D19: 1497 | E19: 24 | F19: 1501 | K19: 0 | L19: 222 | N19: Total Target Seq
A20: 12 | B20: 1603 | C20: 24 | D20: 1615 | E20: 24 | F20: 1621 | K20: 0 | L20: 122 | N20: =COUNTIF(L7:L40,G3) -> 0 | P20: 6 | Q20: 5 | R20: 6 | S20: 6 | T20: 5 | U20: 6
A21: 12 | B21: 1718 | C21: 13 | D21: 1728 | E21: 24 | F21: 1738 | K21: 0 | L21: 112 | P21: % of reinforcement given in 6 equal intervals based on number of trials
A22: 12 | B22: 1834 | C22: 13 | D22: 1845 | E22: 24 | F22: 1853 | K22: 0 | L22: 112 | P22: %_1 | Q22: %_2 | R22: %_3 | S22: %_4 | T22: %_5 | U22: %_6
A23: 12 | B23: 1953 | C23: 24 | D23: 1968 | E23: 24 | F23: 1971 | K23: 0 | L23: 122 | O23: target sequence | P23: =$G$3 -> 211 | Q23: 211 | R23: 211 | S23: 211 | T23: 211 | U23: 211
A24: 12 | B24: 2071 | C24: 13 | D24: 2074 | E24: 13 | F24: 2077 | K24: 0 | L24: 111 | O24: total reinforcement | P24: =U11 -> 0 | Q24: =Z11 -> 0 | R24: =AE11 -> 0 | S24: =AJ11 -> 0 | T24: =AO11 -> 0 | U24: =AT11 -> 0
A25: 12 | B25: 2189 | C25: 24 | D25: 2201 | E25: 24 | F25: 2206 | K25: 0 | L25: 122 | O25: % target
A26: 12 | B26: 2339 | C26: 24 | D26: 2349 | E26: 24 | F26: 2351 | K26: 0 | L26: 122 | O26: CCRF
A27: 12 | B27: 2483 | C27: 24 | D27: 2500 | E27: 24 | F27: 2505 | K27: 0 | L27: 122 | O27: % CCRf
A28: 21 | B28: 2599 | C28: 22 | D28: 2602 | E28: 24 | F28: 2607 | K28: 0 | L28: 222 | O28: average response rate | P28: =F12/P20 -> 118.5 | Q28: =(F17-F12)/Q20 -> 115.4 | R28: =(F23-F17)/R20 -> 113.8333333 | S28: =(F29-F23)/S20 -> 123.1666667 | T28: =(F34-F29)/T20 -> 553.8 | U28: =(F40-F34)/U20 -> 2410.833333
A29: 12 | B29: 2703 | C29: 13 | D29: 2706 | E29: 13 | F29: 2710 | K29: 0 | L29: 111
A30: 12 | B30: 2815 | C30: 13 | D30: 2822 | E30: 24 | F30: 2833 | K30: 0 | L30: 112
A31: 12 | B31: 3732 | C31: 24 | D31: 3998 | E31: 24 | F31: 4001 | K31: 0 | L31: 122
A32: 12 | B32: 4216 | C32: 24 | D32: 4225 | E32: 24 | F32: 4229 | K32: 0 | L32: 122
A33: 21 | B33: 4386 | C33: 22 | D33: 4391 | E33: 24 | F33: 4395 | K33: 0 | L33: 222
A34: 12 | B34: 5224 | C34: 13 | D34: 5414 | E34: 24 | F34: 5479 | K34: 0 | L34: 112
A35: 12 | B35: 7350 | C35: 24 | D35: 7360 | E35: 24 | F35: 7364 | K35: 0 | L35: 122
A36: 21 | B36: 7493 | C36: 22 | D36: 7496 | E36: 24 | F36: 7501 | K36: 0 | L36: 222
A37: 21 | B37: 7711 | C37: 22 | D37: 7717 | E37: 13 | F37: 7720 | K37: 0 | L37: 221
A38: 21 | B38: 7824 | C38: 22 | D38: 7827 | E38: 24 | F38: 7847 | K38: 0 | L38: 222
A39: 21 | B39: 8796 | C39: 22 | D39: 12578 | E39: 13 | F39: 12708 | K39: 0 | L39: 221
A40: 21 | B40: 12841 | C40: 22 | D40: 12850 | E40: 13 | F40: 19944 | K40: 0 | L40: 221

Sheet !L818B0I.sha
A1: Report for:!L818B0I.sha
A2: Date: | B2: <date>
A3: Hen: | B3: <hen> | F3: Correct Sequence | G3: =Start!J2 -> 211 | P3: Total Sequences in Data | Q3: =4994-COUNTBLANK(L7:L5000) -> 7 | V3: Total Sequences in Block Data | W3: =COUNTA(L7:L7) -> 1 | AA3: Total Sequences in Block Data | AB3: =COUNTA(L8:L8) -> 1 | AF3: Total Sequences in Block Data | AG3: =COUNTA(L9:L10) -> 2 | AK3: Total Sequences in Block Data | AL3: =COUNTA(L11:L11) -> 1 | AP3: Total Sequences in Block Data | AQ3: =COUNTA(L12:L12) -> 1 | AU3: Total Sequences in Block Data | AV3: =COUNTA(L13:L13) -> 1
P4: Total Sequences in Summary | Q4: =SUM(O7:O14) -> 6 | V4: Total Sequences in Block Summary | W4: =SUM(U7:U14) -> 1 | AA4: Total Sequences in Block Summary | AB4: =SUM(Z7:Z14) -> 1 | AF4: Total Sequences in Block Summary | AG4: =SUM(AE7:AE14) -> 2 | AK4: Total Sequences in Block Summary | AL4: =SUM(AJ7:AJ14) -> 1 | AP4: Total Sequences in Block Summary | AQ4: =SUM(AO7:AO14) -> 1 | AU4: Total Sequences in Block Summary | AV4: =SUM(AT7:AT14) -> 0
T5: Block 1 | Y5: Block 2 | AD5: Block 3 | AI5: Block 4 | AN5: Block 5 | AS5: Block 6
A6: Sequence Component 1 | B6: Time 1 | C6: Sequence Component 2 | D6: Time 2 | E6: Sequence Component 3 | F6: Time 3 | G6: Sequence Component 4 | H6: Time 4 | I6: Sequence Component 5 | J6: Time 5 | K6: Correct? 0=No 1=Yes | L6: Sequence | N6: Frequency | P6: Relative Frequency | Q6: Variability | T6: Frequency | V6: Relative Frequency | W6: Variability | Y6: Frequency | AA6: Relative Frequency | AB6: Variability | AD6: Frequency | AF6: Relative Frequency | AG6: Variability | AI6: Frequency | AK6: Relative Frequency | AL6: Variability | AN6: Frequency | AP6: Relative Frequency | AQ6: Variability | AS6: Frequency | AU6: Relative Frequency | AV6: Variability
A7: 12 | B7: 327 | C7: 24 | D7: 359 | E7: 24 | F7: 365 | K7: 0 | L7: 122 | N7: 111 | O7: =COUNTIF($L$7:$L$500,N7) -> 0 | P7: =O7/$Q$4 -> 0 | Q7: =IF(P7=0,0,(P7*((LOG(P7))/LOG(2)))) -> 0 | T7: =N7 -> 111 | U7: =COUNTIF(L7:L7,T7) -> 0 | V7: =U7/(W4-U11) -> 0 | W7: =IF(V7=0,0,(V7*((LOG(V7))/LOG(2)))) -> 0 | Y7: =N7 -> 111 | Z7: =COUNTIF(L8:L8,Y7) -> 0 | AA7: =Z7/(AB4-Z11) -> 0 | AB7: =IF(AA7=0,0,(AA7*((LOG(AA7))/LOG(2)))) -> 0 | AD7: =N7 -> 111 | AE7: =COUNTIF(L9:L10,AD7) -> 0 | AF7: =AE7/(AG4-AE11) -> 0 | AG7: =IF(AF7=0,0,(AF7*((LOG(AF7))/LOG(2)))) -> 0 | AI7: =N7 -> 111 | AJ7: =COUNTIF(L11:L11,AI7) -> 0 | AK7: =AJ7/(AL4-AJ11) -> 0 | AL7: =IF(AK7=0,0,(AK7*((LOG(AK7))/LOG(2)))) -> 0 | AN7: =N7 -> 111 | AO7: =COUNTIF(L12:L12,AN7) -> 0 | AP7: =AO7/(AQ4-AO11) -> 0 | AQ7: =IF(AP7=0,0,(AP7*((LOG(AP7))/LOG(2)))) -> 0 | AS7: =N7 -> 111 | AT7: =COUNTIF(L13:L13,AS7) -> 0 | AU7: =AT7/(AV4-AT11) ->  | AV7: =IF(AU7=0,0,(AU7*((LOG(AU7))/LOG(2)))) -> 
A8: 12 | B8: 478 | C8: 24 | D8: 485 | E8: 24 | F8: 491 | K8: 0 | L8: 122 | N8: 112 | O8: 0 | P8: 0 | Q8: 0 | T8: 112 | U8: =COUNTIF(L7:L7,T8) -> 0 | V8: =U8/(W4-U11) -> 0 | W8: =IF(V8=0,0,(V8*((LOG(V8))/LOG(2)))) -> 0 | Y8: 112 | Z8: =COUNTIF(L8:L8,Y8) -> 0 | AA8: =Z8/(AB4-Z11) -> 0 | AB8: =IF(AA8=0,0,(AA8*((LOG(AA8))/LOG(2)))) -> 0 | AD8: 112 | AE8: =COUNTIF(L9:L10,AD8) -> 0 | AF8: =AE8/(AG4-AE11) -> 0 | AG8: =IF(AF8=0,0,(AF8*((LOG(AF8))/LOG(2)))) -> 0 | AI8: 112 | AJ8: =COUNTIF(L11:L11,AI8) -> 0 | AK8: =AJ8/(AL4-AJ11) -> 0 | AL8: =IF(AK8=0,0,(AK8*((LOG(AK8))/LOG(2)))) -> 0 | AN8: 112 | AO8: =COUNTIF(L12:L12,AN8) -> 0 | AP8: =AO8/(AQ4-AO11) -> 0 | AQ8: =IF(AP8=0,0,(AP8*((LOG(AP8))/LOG(2)))) -> 0 | AS8: 112 | AT8: =COUNTIF(L13:L13,AS8) -> 0 | AU8: =AT8/(AV4-AT11) ->  | AV8: =IF(AU8=0,0,(AU8*((LOG(AU8))/LOG(2)))) -> 
A9: 21 | B9: 763 | C9: 22 | D9: 806 | E9: 24 | F9: 812 | K9: 0 | L9: 222 | N9: 121 | O9: 0 | P9: 0 | Q9: 0 | T9: 121 | U9: =COUNTIF(L7:L7,T9) -> 0 | V9: =U9/(W4-U11) -> 0 | W9: =IF(V9=0,0,(V9*((LOG(V9))/LOG(2)))) -> 0 | Y9: 121 | Z9: =COUNTIF(L8:L8,Y9) -> 0 | AA9: =Z9/(AB4-Z11) -> 0 | AB9: =IF(AA9=0,0,(AA9*((LOG(AA9))/LOG(2)))) -> 0 | AD9: 121 | AE9: =COUNTIF(L9:L10,AD9) -> 0 | AF9: =AE9/(AG4-AE11) -> 0 | AG9: =IF(AF9=0,0,(AF9*((LOG(AF9))/LOG(2)))) -> 0 | AI9: 121 | AJ9: =COUNTIF(L11:L11,AI9) -> 0 | AK9: =AJ9/(AL4-AJ11) -> 0 | AL9: =IF(AK9=0,0,(AK9*((LOG(AK9))/LOG(2)))) -> 0 | AN9: 121 | AO9: =COUNTIF(L12:L12,AN9) -> 0 | AP9: =AO9/(AQ4-AO11) -> 0 | AQ9: =IF(AP9=0,0,(AP9*((LOG(AP9))/LOG(2)))) -> 0 | AS9: 121 | AT9: =COUNTIF(L13:L13,AS9) -> 0 | AU9: =AT9/(AV4-AT11) ->  | AV9: =IF(AU9=0,0,(AU9*((LOG(AU9))/LOG(2)))) -> 
A10: 21 | B10: 1143 | C10: 22 | D10: 1147 | E10: 24 | F10: 1152 | K10: 0 | L10: 222 | N10: 122 | O10: 2 | P10: 0.3333333333 | Q10: -0.5283208336 | T10: 122 | U10: =COUNTIF(L7:L7,T10) -> 1 | V10: =U10/(W4-U11) -> 1 | W10: =IF(V10=0,0,(V10*((LOG(V10))/LOG(2)))) -> 0 | Y10: 122 | Z10: =COUNTIF(L8:L8,Y10) -> 1 | AA10: =Z10/(AB4-Z11) -> 1 | AB10: =IF(AA10=0,0,(AA10*((LOG(AA10))/LOG(2)))) -> 0 | AD10: 122 | AE10: =COUNTIF(L9:L10,AD10) -> 0 | AF10: =AE10/(AG4-AE11) -> 0 | AG10: =IF(AF10=0,0,(AF10*((LOG(AF10))/LOG(2)))) -> 0 | AI10: 122 | AJ10: =COUNTIF(L11:L11,AI10) -> 0 | AK10: =AJ10/(AL4-AJ11) -> 0 | AL10: =IF(AK10=0,0,(AK10*((LOG(AK10))/LOG(2)))) -> 0 | AN10: 122 | AO10: =COUNTIF(L12:L12,AN10) -> 0 | AP10: =AO10/(AQ4-AO11) -> 0 | AQ10: =IF(AP10=0,0,(AP10*((LOG(AP10))/LOG(2)))) -> 0 | AS10: 122 | AT10: =COUNTIF(L13:L13,AS10) -> 0 | AU10: =AT10/(AV4-AT11) ->  | AV10: =IF(AU10=0,0,(AU10*((LOG(AU10))/LOG(2)))) -> 
A11: 21 | B11: 1932 | C11: 22 | D11: 2973 | E11: 13 | F11: 8700 | K11: 0 | L11: 221 | N11: 211 | O11: 0 | P11: 0 | Q11: 0 | T11: 211 | U11: =COUNTIF(L7:L7,T11) -> 0 | Y11: 211 | Z11: =COUNTIF(L8:L8,Y11) -> 0 | AD11: 211 | AE11: =COUNTIF(L9:L10,AD11) -> 0 | AI11: 211 | AJ11: =COUNTIF(L11:L11,AI11) -> 0 | AN11: 211 | AO11: =COUNTIF(L12:L12,AN11) -> 0 | AS11: 211 | AT11: =COUNTIF(L13:L13,AS11) -> 0
A12: 21 | B12: 11116 | C12: 22 | D12: 11160 | E12: 24 | F12: 11168 | K12: 0 | L12: 222 | N12: 212 | O12: 0 | P12: 0 | Q12: 0 | T12: 212 | U12: =COUNTIF(L7:L7,T12) -> 0 | V12: =U12/(W4-U11) -> 0 | W12: =IF(V12=0,0,(V12*((LOG(V12))/LOG(2)))) -> 0 | Y12: 212 | Z12: =COUNTIF(L8:L8,Y12) -> 0 | AA12: =Z12/(AB4-Z11) -> 0 | AB12: =IF(AA12=0,0,(AA12*((LOG(AA12))/LOG(2)))) -> 0 | AD12: 212 | AE12: =COUNTIF(L9:L10,AD12) -> 0 | AF12: =AE12/(AG4-AE11) -> 0 | AG12: =IF(AF12=0,0,(AF12*((LOG(AF12))/LOG(2)))) -> 0 | AI12: 212 | AJ12: =COUNTIF(L11:L11,AI12) -> 0 | AK12: =AJ12/(AL4-AJ11) -> 0 | AL12: =IF(AK12=0,0,(AK12*((LOG(AK12))/LOG(2)))) -> 0 | AN12: 212 | AO12: =COUNTIF(L12:L12,AN12) -> 0 | AP12: =AO12/(AQ4-AO11) -> 0 | AQ12: =IF(AP12=0,0,(AP12*((LOG(AP12))/LOG(2)))) -> 0 | AS12: 212 | AT12: =COUNTIF(L13:L13,AS12) -> 0 | AU12: =AT12/(AV4-AT11) ->  | AV12: =IF(AU12=0,0,(AU12*((LOG(AU12))/LOG(2)))) -> 
A13: 12 | B13: 15086 | C13: 13 | D13: 15902 | L13: 11 | N13: 221 | O13: 1 | P13: 0.1666666667 | Q13: -0.4308270835 | T13: 221 | U13: =COUNTIF(L7:L7,T13) -> 0 | V13: =U13/(W4-U11) -> 0 | W13: =IF(V13=0,0,(V13*((LOG(V13))/LOG(2)))) -> 0 | Y13: 221 | Z13: =COUNTIF(L8:L8,Y13) -> 0 | AA13: =Z13/(AB4-Z11) -> 0 | AB13: =IF(AA13=0,0,(AA13*((LOG(AA13))/LOG(2)))) -> 0 | AD13: 221 | AE13: =COUNTIF(L9:L10,AD13) -> 0 | AF13: =AE13/(AG4-AE11) -> 0 | AG13: =IF(AF13=0,0,(AF13*((LOG(AF13))/LOG(2)))) -> 0 | AI13: 221 | AJ13: =COUNTIF(L11:L11,AI13) -> 1 | AK13: =AJ13/(AL4-AJ11) -> 1 | AL13: =IF(AK13=0,0,(AK13*((LOG(AK13))/LOG(2)))) -> 0 | AN13: 221 | AO13: =COUNTIF(L12:L12,AN13) -> 0 | AP13: =AO13/(AQ4-AO11) -> 0 | AQ13: =IF(AP13=0,0,(AP13*((LOG(AP13))/LOG(2)))) -> 0 | AS13: 221 | AT13: =COUNTIF(L13:L13,AS13) -> 0 | AU13: =AT13/(AV4-AT11) ->  | AV13: =IF(AU13=0,0,(AU13*((LOG(AU13))/LOG(2)))) -> 
N14: 222 | O14: 3 | P14: 0.5 | Q14: -0.5 | T14: 222 | U14: =COUNTIF(L7:L7,T14) -> 0 | V14: =U14/(W4-U11) -> 0 | W14: =IF(V14=0,0,(V14*((LOG(V14))/LOG(2)))) -> 0 | Y14: 222 | Z14: =COUNTIF(L8:L8,Y14) -> 0 | AA14: =Z14/(AB4-Z11) -> 0 | AB14: =IF(AA14=0,0,(AA14*((LOG(AA14))/LOG(2)))) -> 0 | AD14: 222 | AE14: =COUNTIF(L9:L10,AD14) -> 2 | AF14: =AE14/(AG4-AE11) -> 1 | AG14: =IF(AF14=0,0,(AF14*((LOG(AF14))/LOG(2)))) -> 0 | AI14: 222 | AJ14: =COUNTIF(L11:L11,AI14) -> 0 | AK14: =AJ14/(AL4-AJ11) -> 0 | AL14: =IF(AK14=0,0,(AK14*((LOG(AK14))/LOG(2)))) -> 0 | AN14: 222 | AO14: =COUNTIF(L12:L12,AN14) -> 1 | AP14: =AO14/(AQ4-AO11) -> 1 | AQ14: =IF(AP14=0,0,(AP14*((LOG(AP14))/LOG(2)))) -> 0 | AS14: 222 | AT14: =COUNTIF(L13:L13,AS14) -> 0 | AU14: =AT14/(AV4-AT11) ->  | AV14: =IF(AU14=0,0,(AU14*((LOG(AU14))/LOG(2)))) -> 
P15: =SUM(P7:P14) -> 1 | Q15: =-SUM(Q7:Q14) -> 1.459147917 | V15: =SUM(V7:V14) -> 1 | W15: =-SUM(W7:W14) -> 0 | AA15: =SUM(AA7:AA14) -> 1 | AB15: =-SUM(AB7:AB14) -> 0 | AF15: =SUM(AF7:AF14) -> 1 | AG15: =-SUM(AG7:AG14) -> 0 | AK15: =SUM(AK7:AK14) -> 1 | AL15: =-SUM(AL7:AL14) -> 0 | AP15: =SUM(AP7:AP14) -> 1 | AQ15: =-SUM(AQ7:AQ14) -> 0 | AU15: =SUM(AU7:AU14) ->  | AV15: =-SUM(AV7:AV14) -> 
P16: U= | Q16: =Q15/(LOG(Q4)/LOG(2)) -> 0.5644754679 | V16: U1= | W16: =W15/(LOG(W4)/LOG(2)) ->  | AA16: U2= | AB16: =AB15/(LOG(AB4)/LOG(2)) ->  | AF16: U3= | AG16: =AG15/(LOG(AG4)/LOG(2)) -> 0 | AK16: U4= | AL16: =AL15/(LOG(AL4)/LOG(2)) ->  | AP16: U5= | AQ16: =AQ15/(LOG(AQ4)/LOG(2)) ->  | AU16: U6= | AV16: =AV15/(LOG(AV4)/LOG(2)) -> 
N19: Total Target Seq
N20: =COUNTIF(L7:L13,G3) -> 0 | P20: 1 | Q20: 1 | R20: 2 | S20: 1 | T20: 1 | U20: 1
P21: % of reinforcement given in 6 equal intervals based on number of trials
P22: %_1 | Q22: %_2 | R22: %_3 | S22: %_4 | T22: %_5 | U22: %_6
O23: target sequence | P23: =$G$3 -> 211 | Q23: 211 | R23: 211 | S23: 211 | T23: 211 | U23: 211
O24: total reinforcement | P24: =U11 -> 0 | Q24: =Z11 -> 0 | R24: =AE11 -> 0 | S24: =AJ11 -> 0 | T24: =AO11 -> 0 | U24: =AT11 -> 0
O25: % target
O26: CCRF
O27: % CCRf
O28: average response rate | P28: =F7/P20 -> 365 | Q28: =(F8-F7)/Q20 -> 126 | R28: =(F10-F8)/R20 -> 330.5 | S28: =(F11-F10)/S20 -> 7548 | T28: =(F12-F11)/T20 -> 2468 | U28: =(F13-F12)/U20 -> -11168

Sheet !L81994I.sha
A1: Report for:!L81994I.sha
A2: Date: | B2: <date>
A3: Hen: | B3: <hen> | F3: Correct Sequence | G3: =Start!J2 -> 211 | P3: Total Sequences in Data | Q3: =4994-COUNTBLANK(L7:L5000) -> 11 | V3: Total Sequences in Block Data | W3: =COUNTA(L7:L8) -> 2 | AA3: Total Sequences in Block Data | AB3: =COUNTA(L9:L10) -> 2 | AF3: Total Sequences in Block Data | AG3: =COUNTA(L11:L11) -> 1 | AK3: Total Sequences in Block Data | AL3: =COUNTA(L12:L13) -> 2 | AP3: Total Sequences in Block Data | AQ3: =COUNTA(L14:L15) -> 2 | AU3: Total Sequences in Block Data | AV3: =COUNTA(L16:L17) -> 2
P4: Total Sequences in Summary | Q4: =SUM(O7:O14) -> 11 | V4: Total Sequences in Block Summary | W4: =SUM(U7:U14) -> 2 | AA4: Total Sequences in Block Summary | AB4: =SUM(Z7:Z14) -> 2 | AF4: Total Sequences in Block Summary | AG4: =SUM(AE7:AE14) -> 1 | AK4: Total Sequences in Block Summary | AL4: =SUM(AJ7:AJ14) -> 2 | AP4: Total Sequences in Block Summary | AQ4: =SUM(AO7:AO14) -> 2 | AU4: Total Sequences in Block Summary | AV4: =SUM(AT7:AT14) -> 2
T5: Block 1 | Y5: Block 2 | AD5: Block 3 | AI5: Block 4 | AN5: Block 5 | AS5: Block 6
A6: Sequence Component 1 | B6: Time 1 | C6: Sequence Component 2 | D6: Time 2 | E6: Sequence Component 3 | F6: Time 3 | G6: Sequence Component 4 | H6: Time 4 | I6: Sequence Component 5 | J6: Time 5 | K6: Correct? 0=No 1=Yes | L6: Sequence | N6: Frequency | P6: Relative Frequency | Q6: Variability | T6: Frequency | V6: Relative Frequency | W6: Variability | Y6: Frequency | AA6: Relative Frequency | AB6: Variability | AD6: Frequency | AF6: Relative Frequency | AG6: Variability | AI6: Frequency | AK6: Relative Frequency | AL6: Variability | AN6: Frequency | AP6: Relative Frequency | AQ6: Variability | AS6: Frequency | AU6: Relative Frequency | AV6: Variability
A7: 21 | B7: 20 | C7: 22 | D7: 26 | E7: 13 | F7: 44 | K7: 0 | L7: 221 | N7: 111 | O7: =COUNTIF($L$7:$L$500,N7) -> 0 | P7: =O7/$Q$4 -> 0 | Q7: =IF(P7=0,0,(P7*((LOG(P7))/LOG(2)))) -> 0 | T7: =N7 -> 111 | U7: =COUNTIF(L7:L8,T7) -> 0 | V7: =U7/(W4-U11) -> 0 | W7: =IF(V7=0,0,(V7*((LOG(V7))/LOG(2)))) -> 0 | Y7: =N7 -> 111 | Z7: =COUNTIF(L9:L10,Y7) -> 0 | AA7: =Z7/(AB4-Z11) -> 0 | AB7: =IF(AA7=0,0,(AA7*((LOG(AA7))/LOG(2)))) -> 0 | AD7: =N7 -> 111 | AE7: =COUNTIF(L11:L11,AD7) -> 0 | AF7: =AE7/(AG4-AE11) -> 0 | AG7: =IF(AF7=0,0,(AF7*((LOG(AF7))/LOG(2)))) -> 0 | AI7: =N7 -> 111 | AJ7: =COUNTIF(L12:L13,AI7) -> 0 | AK7: =AJ7/(AL4-AJ11) -> 0 | AL7: =IF(AK7=0,0,(AK7*((LOG(AK7))/LOG(2)))) -> 0 | AN7: =N7 -> 111 | AO7: =COUNTIF(L14:L15,AN7) -> 0 | AP7: =AO7/(AQ4-AO11) -> 0 | AQ7: =IF(AP7=0,0,(AP7*((LOG(AP7))/LOG(2)))) -> 0 | AS7: =N7 -> 111 | AT7: =COUNTIF(L16:L17,AS7) -> 0 | AU7: =AT7/(AV4-AT11) -> 0 | AV7: =IF(AU7=0,0,(AU7*((LOG(AU7))/LOG(2)))) -> 0
A8: 12 | B8: 143 | C8: 24 | D8: 157 | E8: 24 | F8: 161 | K8: 0 | L8: 122 | N8: 112 | O8: 1 | P8: 0.09090909091 | Q8: -0.3144937835 | T8: 112 | U8: =COUNTIF(L7:L8,T8) -> 0 | V8: =U8/(W4-U11) -> 0 | W8: =IF(V8=0,0,(V8*((LOG(V8))/LOG(2)))) -> 0 | Y8: 112 | Z8: =COUNTIF(L9:L10,Y8) -> 0 | AA8: =Z8/(AB4-Z11) -> 0 | AB8: =IF(AA8=0,0,(AA8*((LOG(AA8))/LOG(2)))) -> 0 | AD8: 112 | AE8: =COUNTIF(L11:L11,AD8) -> 0 | AF8: =AE8/(AG4-AE11) -> 0 | AG8: =IF(AF8=0,0,(AF8*((LOG(AF8))/LOG(2)))) -> 0 | AI8: 112 | AJ8: =COUNTIF(L12:L13,AI8) -> 0 | AK8: =AJ8/(AL4-AJ11) -> 0 | AL8: =IF(AK8=0,0,(AK8*((LOG(AK8))/LOG(2)))) -> 0 | AN8: 112 | AO8: =COUNTIF(L14:L15,AN8) -> 0 | AP8: =AO8/(AQ4-AO11) -> 0 | AQ8: =IF(AP8=0,0,(AP8*((LOG(AP8))/LOG(2)))) -> 0 | AS8: 112 | AT8: =COUNTIF(L16:L17,AS8) -> 1 | AU8: =AT8/(AV4-AT11) -> 0.5 | AV8: =IF(AU8=0,0,(AU8*((LOG(AU8))/LOG(2)))) -> -0.5
A9: 21 | B9: 268 | C9: 22 | D9: 272 | E9: 24 | F9: 283 | K9: 0 | L9: 222 | N9: 121 | O9: 0 | P9: 0 | Q9: 0 | T9: 121 | U9: =COUNTIF(L7:L8,T9) -> 0 | V9: =U9/(W4-U11) -> 0 | W9: =IF(V9=0,0,(V9*((LOG(V9))/LOG(2)))) -> 0 | Y9: 121 | Z9: =COUNTIF(L9:L10,Y9) -> 0 | AA9: =Z9/(AB4-Z11) -> 0 | AB9: =IF(AA9=0,0,(AA9*((LOG(AA9))/LOG(2)))) -> 0 | AD9: 121 | AE9: =COUNTIF(L11:L11,AD9) -> 0 | AF9: =AE9/(AG4-AE11) -> 0 | AG9: =IF(AF9=0,0,(AF9*((LOG(AF9))/LOG(2)))) -> 0 | AI9: 121 | AJ9: =COUNTIF(L12:L13,AI9) -> 0 | AK9: =AJ9/(AL4-AJ11) -> 0 | AL9: =IF(AK9=0,0,(AK9*((LOG(AK9))/LOG(2)))) -> 0 | AN9: 121 | AO9: =COUNTIF(L14:L15,AN9) -> 0 | AP9: =AO9/(AQ4-AO11) -> 0 | AQ9: =IF(AP9=0,0,(AP9*((LOG(AP9))/LOG(2)))) -> 0 | AS9: 121 | AT9: =COUNTIF(L16:L17,AS9) -> 0 | AU9: =AT9/(AV4-AT11) -> 0 | AV9: =IF(AU9=0,0,(AU9*((LOG(AU9))/LOG(2)))) -> 0
A10: 12 | B10: 397 | C10: 24 | D10: 409 | E10: 24 | F10: 425 | K10: 0 | L10: 122 | N10: 122 | O10: 6 | P10: 0.5454545455 | Q10: -0.4769831552 | T10: 122 | U10: =COUNTIF(L7:L8,T10) -> 1 | V10: =U10/(W4-U11) -> 0.5 | W10: =IF(V10=0,0,(V10*((LOG(V10))/LOG(2)))) -> -0.5 | Y10: 122 | Z10: =COUNTIF(L9:L10,Y10) -> 1 | AA10: =Z10/(AB4-Z11) -> 0.5 | AB10: =IF(AA10=0,0,(AA10*((LOG(AA10))/LOG(2)))) -> -0.5 | AD10: 122 | AE10: =COUNTIF(L11:L11,AD10) -> 1 | AF10: =AE10/(AG4-AE11) -> 1 | AG10: =IF(AF10=0,0,(AF10*((LOG(AF10))/LOG(2)))) -> 0 | AI10: 122 | AJ10: =COUNTIF(L12:L13,AI10) -> 1 | AK10: =AJ10/(AL4-AJ11) -> 0.5 | AL10: =IF(AK10=0,0,(AK10*((LOG(AK10))/LOG(2)))) -> -0.5 | AN10: 122 | AO10: =COUNTIF(L14:L15,AN10) -> 1 | AP10: =AO10/(AQ4-AO11) -> 0.5 | AQ10: =IF(AP10=0,0,(AP10*((LOG(AP10))/LOG(2)))) -> -0.5 | AS10: 122 | AT10: =COUNTIF(L16:L17,AS10) -> 1 | AU10: =AT10/(AV4-AT11) -> 0.5 | AV10: =IF(AU10=0,0,(AU10*((LOG(AU10))/LOG(2)))) -> -0.5
A11: 12 | B11: 541 | C11: 24 | D11: 553 | E11: 24 | F11: 557 | K11: 0 | L11: 122 | N11: 211 | O11: 0 | P11: 0 | Q11: 0 | T11: 211 | U11: =COUNTIF(L7:L8,T11) -> 0 | Y11: 211 | Z11: =COUNTIF(L9:L10,Y11) -> 0 | AD11: 211 | AE11: =COUNTIF(L11:L11,AD11) -> 0 | AI11: 211 | AJ11: =COUNTIF(L12:L13,AI11) -> 0 | AN11: 211 | AO11: =COUNTIF(L14:L15,AN11) -> 0 | AS11: 211 | AT11: =COUNTIF(L16:L17,AS11) -> 0
A12: 12 | B12: 655 | C12: 24 | D12: 678 | E12: 24 | F12: 682 | K12: 0 | L12: 122 | N12: 212 | O12: 0 | P12: 0 | Q12: 0 | T12: 212 | U12: =COUNTIF(L7:L8,T12) -> 0 | V12: =U12/(W4-U11) -> 0 | W12: =IF(V12=0,0,(V12*((LOG(V12))/LOG(2)))) -> 0 | Y12: 212 | Z12: =COUNTIF(L9:L10,Y12) -> 0 | AA12: =Z12/(AB4-Z11) -> 0 | AB12: =IF(AA12=0,0,(AA12*((LOG(AA12))/LOG(2)))) -> 0 | AD12: 212 | AE12: =COUNTIF(L11:L11,AD12) -> 0 | AF12: =AE12/(AG4-AE11) -> 0 | AG12: =IF(AF12=0,0,(AF12*((LOG(AF12))/LOG(2)))) -> 0 | AI12: 212 | AJ12: =COUNTIF(L12:L13,AI12) -> 0 | AK12: =AJ12/(AL4-AJ11) -> 0 | AL12: =IF(AK12=0,0,(AK12*((LOG(AK12))/LOG(2)))) -> 0 | AN12: 212 | AO12: =COUNTIF(L14:L15,AN12) -> 0 | AP12: =AO12/(AQ4-AO11) -> 0 | AQ12: =IF(AP12=0,0,(AP12*((LOG(AP12))/LOG(2)))) -> 0 | AS12: 212 | AT12: =COUNTIF(L16:L17,AS12) -> 0 | AU12: =AT12/(AV4-AT11) -> 0 | AV12: =IF(AU12=0,0,(AU12*((LOG(AU12))/LOG(2)))) -> 0
A13: 21 | B13: 811 | C13: 22 | D13: 823 | E13: 24 | F13: 829 | K13: 0 | L13: 222 | N13: 221 | O13: 1 | P13: 0.09090909091 | Q13: -0.3144937835 | T13: 221 | U13: =COUNTIF(L7:L8,T13) -> 1 | V13: =U13/(W4-U11) -> 0.5 | W13: =IF(V13=0,0,(V13*((LOG(V13))/LOG(2)))) -> -0.5 | Y13: 221 | Z13: =COUNTIF(L9:L10,Y13) -> 0 | AA13: =Z13/(AB4-Z11) -> 0 | AB13: =IF(AA13=0,0,(AA13*((LOG(AA13))/LOG(2)))) -> 0 | AD13: 221 | AE13: =COUNTIF(L11:L11,AD13) -> 0 | AF13: =AE13/(AG4-AE11) -> 0 | AG13: =IF(AF13=0,0,(AF13*((LOG(AF13))/LOG(2)))) -> 0 | AI13: 221 | AJ13: =COUNTIF(L12:L13,AI13) -> 0 | AK13: =AJ13/(AL4-AJ11) -> 0 | AL13: =IF(AK13=0,0,(AK13*((LOG(AK13))/LOG(2)))) -> 0 | AN13: 221 | AO13: =COUNTIF(L14:L15,AN13) -> 0 | AP13: =AO13/(AQ4-AO11) -> 0 | AQ13: =IF(AP13=0,0,(AP13*((LOG(AP13))/LOG(2)))) -> 0 | AS13: 221 | AT13: =COUNTIF(L16:L17,AS13) -> 0 | AU13: =AT13/(AV4-AT11) -> 0 | AV13: =IF(AU13=0,0,(AU13*((LOG(AU13))/LOG(2)))) -> 0
A14: 21 | B14: 952 | C14: 22 | D14: 959 | E14: 24 | F14: 966 | K14: 0 | L14: 222 | N14: 222 | O14: 3 | P14: 0.2727272727 | Q14: -0.5112188503 | T14: 222 | U14: =COUNTIF(L7:L8,T14) -> 0 | V14: =U14/(W4-U11) -> 0 | W14: =IF(V14=0,0,(V14*((LOG(V14))/LOG(2)))) -> 0 | Y14: 222 | Z14: =COUNTIF(L9:L10,Y14) -> 1 | AA14: =Z14/(AB4-Z11) -> 0.5 | AB14: =IF(AA14=0,0,(AA14*((LOG(AA14))/LOG(2)))) -> -0.5 | AD14: 222 | AE14: =COUNTIF(L11:L11,AD14) -> 0 | AF14: =AE14/(AG4-AE11) -> 0 | AG14: =IF(AF14=0,0,(AF14*((LOG(AF14))/LOG(2)))) -> 0 | AI14: 222 | AJ14: =COUNTIF(L12:L13,AI14) -> 1 | AK14: =AJ14/(AL4-AJ11) -> 0.5 | AL14: =IF(AK14=0,0,(AK14*((LOG(AK14))/LOG(2)))) -> -0.5 | AN14: 222 | AO14: =COUNTIF(L14:L15,AN14) -> 1 | AP14: =AO14/(AQ4-AO11) -> 0.5 | AQ14: =IF(AP14=0,0,(AP14*((LOG(AP14))/LOG(2)))) -> -0.5 | AS14: 222 | AT14: =COUNTIF(L16:L17,AS14) -> 0 | AU14: =AT14/(AV4-AT11) -> 0 | AV14: =IF(AU14=0,0,(AU14*((LOG(AU14))/LOG(2)))) -> 0
A15: 12 | B15: 1084 | C15: 24 | D15: 1101 | E15: 24 | F15: 1107 | K15: 0 | L15: 122 | P15: =SUM(P7:P14) -> 1 | Q15: =-SUM(Q7:Q14) -> 1.617189573 | V15: =SUM(V7:V14) -> 1 | W15: =-SUM(W7:W14) -> 1 | AA15: =SUM(AA7:AA14) -> 1 | AB15: =-SUM(AB7:AB14) -> 1 | AF15: =SUM(AF7:AF14) -> 1 | AG15: =-SUM(AG7:AG14) -> 0 | AK15: =SUM(AK7:AK14) -> 1 | AL15: =-SUM(AL7:AL14) -> 1 | AP15: =SUM(AP7:AP14) -> 1 | AQ15: =-SUM(AQ7:AQ14) -> 1 | AU15: =SUM(AU7:AU14) -> 1 | AV15: =-SUM(AV7:AV14) -> 1
A16: 12 | B16: 1608 | C16: 24 | D16: 5957 | E16: 24 | F16: 14418 | K16: 0 | L16: 122 | P16: U= | Q16: =Q15/(LOG(Q4)/LOG(2)) -> 0.4674726229 | V16: U1= | W16: =W15/(LOG(W4)/LOG(2)) -> 1 | AA16: U2= | AB16: =AB15/(LOG(AB4)/LOG(2)) -> 1 | AF16: U3= | AG16: =AG15/(LOG(AG4)/LOG(2)) ->  | AK16: U4= | AL16: =AL15/(LOG(AL4)/LOG(2)) -> 1 | AP16: U5= | AQ16: =AQ15/(LOG(AQ4)/LOG(2)) -> 1 | AU16: U6= | AV16: =AV15/(LOG(AV4)/LOG(2)) -> 1
A17: 12 | B17: 16378 | C17: 13 | D17: 20630 | E17: 24 | F17: 21302 | K17: 0 | L17: 112
N19: Total Target Seq
N20: =COUNTIF(L7:L17,G3) -> 0 | P20: 2 | Q20: 2 | R20: 1 | S20: 2 | T20: 2 | U20: 2
P21: % of reinforcement given in 6 equal intervals based on number of trials
P22: %_1 | Q22: %_2 | R22: %_3 | S22: %_4 | T22: %_5 | U22: %_6
O23: target sequence | P23: =$G$3 -> 211 | Q23: 211 | R23: 211 | S23: 211 | T23: 211 | U23: 211
O24: total reinforcement | P24: =U11 -> 0 | Q24: =Z11 -> 0 | R24: =AE11 -> 0 | S24: =AJ11 -> 0 | T24: =AO11 -> 0 | U24: =AT11 -> 0
O25: % target
O26: CCRF
O27: % CCRf
O28: average response rate | P28: =F8/P20 -> 80.5 | Q28: =(F10-F8)/Q20 -> 132 | R28: =(F11-F10)/R20 -> 132 | S28: =(F13-F11)/S20 -> 136 | T28: =(F15-F13)/T20 -> 139 | U28: =(F17-F15)/U20 -> 10097.5

Sheet !L820A2I.sha
A1: Report for:!L820A2I.sha
A2: Date: | B2: <date>
A3: Hen: | B3: <hen> | F3: Correct Sequence | G3: =Start!J2 -> 211 | P3: Total Sequences in Data | Q3: =4994-COUNTBLANK(L7:L5000) -> 15 | V3: Total Sequences in Block Data | W3: =COUNTA(L7:L9) -> 3 | AA3: Total Sequences in Block Data | AB3: =COUNTA(L10:L11) -> 2 | AF3: Total Sequences in Block Data | AG3: =COUNTA(L12:L14) -> 3 | AK3: Total Sequences in Block Data | AL3: =COUNTA(L15:L16) -> 2 | AP3: Total Sequences in Block Data | AQ3: =COUNTA(L17:L19) -> 3 | AU3: Total Sequences in Block Data | AV3: =COUNTA(L20:L21) -> 2
P4: Total Sequences in Summary | Q4: =SUM(O7:O14) -> 14 | V4: Total Sequences in Block Summary | W4: =SUM(U7:U14) -> 3 | AA4: Total Sequences in Block Summary | AB4: =SUM(Z7:Z14) -> 2 | AF4: Total Sequences in Block Summary | AG4: =SUM(AE7:AE14) -> 3 | AK4: Total Sequences in Block Summary | AL4: =SUM(AJ7:AJ14) -> 2 | AP4: Total Sequences in Block Summary | AQ4: =SUM(AO7:AO14) -> 3 | AU4: Total Sequences in Block Summary | AV4: =SUM(AT7:AT14) -> 1
T5: Block 1 | Y5: Block 2 | AD5: Block 3 | AI5: Block 4 | AN5: Block 5 | AS5: Block 6
A6: Sequence Component 1 | B6: Time 1 | C6: Sequence Component 2 | D6: Time 2 | E6: Sequence Component 3 | F6: Time 3 | G6: Sequence Component 4 | H6: Time 4 | I6: Sequence Component 5 | J6: Time 5 | K6: Correct? 0=No 1=Yes | L6: Sequence | N6: Frequency | P6: Relative Frequency | Q6: Variability | T6: Frequency | V6: Relative Frequency | W6: Variability | Y6: Frequency | AA6: Relative Frequency | AB6: Variability | AD6: Frequency | AF6: Relative Frequency | AG6: Variability | AI6: Frequency | AK6: Relative Frequency | AL6: Variability | AN6: Frequency | AP6: Relative Frequency | AQ6: Variability | AS6: Frequency | AU6: Relative Frequency | AV6: Variability
A7: 12 | B7: 59 | C7: 24 | D7: 71 | E7: 24 | F7: 75 | K7: 0 | L7: 122 | N7: 111 | O7: =COUNTIF($L$7:$L$500,N7) -> 1 | P7: =O7/$Q$4 -> 0.07142857143 | Q7: =IF(P7=0,0,(P7*((LOG(P7))/LOG(2)))) -> -0.271953923 | T7: =N7 -> 111 | U7: =COUNTIF(L7:L9,T7) -> 0 | V7: =U7/(W4-U11) -> 0 | W7: =IF(V7=0,0,(V7*((LOG(V7))/LOG(2)))) -> 0 | Y7: =N7 -> 111 | Z7: =COUNTIF(L10:L11,Y7) -> 0 | AA7: =Z7/(AB4-Z11) -> 0 | AB7: =IF(AA7=0,0,(AA7*((LOG(AA7))/LOG(2)))) -> 0 | AD7: =N7 -> 111 | AE7: =COUNTIF(L12:L14,AD7) -> 0 | AF7: =AE7/(AG4-AE11) -> 0 | AG7: =IF(AF7=0,0,(AF7*((LOG(AF7))/LOG(2)))) -> 0 | AI7: =N7 -> 111 | AJ7: =COUNTIF(L15:L16,AI7) -> 0 | AK7: =AJ7/(AL4-AJ11) -> 0 | AL7: =IF(AK7=0,0,(AK7*((LOG(AK7))/LOG(2)))) -> 0 | AN7: =N7 -> 111 | AO7: =COUNTIF(L17:L19,AN7) -> 0 | AP7: =AO7/(AQ4-AO11) -> 0 | AQ7: =IF(AP7=0,0,(AP7*((LOG(AP7))/LOG(2)))) -> 0 | AS7: =N7 -> 111 | AT7: =COUNTIF(L20:L21,AS7) -> 1 | AU7: =AT7/(AV4-AT11) -> 1 | AV7: =IF(AU7=0,0,(AU7*((LOG(AU7))/LOG(2)))) -> 0
A8: 12 | B8: 175 | C8: 24 | D8: 189 | E8: 24 | F8: 200 | K8: 0 | L8: 122 | N8: 112 | O8: 3 | P8: 0.2142857143 | Q8: -0.4762269474 | T8: 112 | U8: =COUNTIF(L7:L9,T8) -> 0 | V8: =U8/(W4-U11) -> 0 | W8: =IF(V8=0,0,(V8*((LOG(V8))/LOG(2)))) -> 0 | Y8: 112 | Z8: =COUNTIF(L10:L11,Y8) -> 0 | AA8: =Z8/(AB4-Z11) -> 0 | AB8: =IF(AA8=0,0,(AA8*((LOG(AA8))/LOG(2)))) -> 0 | AD8: 112 | AE8: =COUNTIF(L12:L14,AD8) -> 1 | AF8: =AE8/(AG4-AE11) -> 0.3333333333 | AG8: =IF(AF8=0,0,(AF8*((LOG(AF8))/LOG(2)))) -> -0.5283208336 | AI8: 112 | AJ8: =COUNTIF(L15:L16,AI8) -> 2 | AK8: =AJ8/(AL4-AJ11) -> 1 | AL8: =IF(AK8=0,0,(AK8*((LOG(AK8))/LOG(2)))) -> 0 | AN8: 112 | AO8: =COUNTIF(L17:L19,AN8) -> 0 | AP8: =AO8/(AQ4-AO11) -> 0 | AQ8: =IF(AP8=0,0,(AP8*((LOG(AP8))/LOG(2)))) -> 0 | AS8: 112 | AT8: =COUNTIF(L20:L21,AS8) -> 0 | AU8: =AT8/(AV4-AT11) -> 0 | AV8: =IF(AU8=0,0,(AU8*((LOG(AU8))/LOG(2)))) -> 0
A9: 12 | B9: 303 | C9: 24 | D9: 315 | E9: 24 | F9: 327 | K9: 0 | L9: 122 | N9: 121 | O9: 0 | P9: 0 | Q9: 0 | T9: 121 | U9: =COUNTIF(L7:L9,T9) -> 0 | V9: =U9/(W4-U11) -> 0 | W9: =IF(V9=0,0,(V9*((LOG(V9))/LOG(2)))) -> 0 | Y9: 121 | Z9: =COUNTIF(L10:L11,Y9) -> 0 | AA9: =Z9/(AB4-Z11) -> 0 | AB9: =IF(AA9=0,0,(AA9*((LOG(AA9))/LOG(2)))) -> 0 | AD9: 121 | AE9: =COUNTIF(L12:L14,AD9) -> 0 | AF9: =AE9/(AG4-AE11) -> 0 | AG9: =IF(AF9=0,0,(AF9*((LOG(AF9))/LOG(2)))) -> 0 | AI9: 121 | AJ9: =COUNTIF(L15:L16,AI9) -> 0 | AK9: =AJ9/(AL4-AJ11) -> 0 | AL9: =IF(AK9=0,0,(AK9*((LOG(AK9))/LOG(2)))) -> 0 | AN9: 121 | AO9: =COUNTIF(L17:L19,AN9) -> 0 | AP9: =AO9/(AQ4-AO11) -> 0 | AQ9: =IF(AP9=0,0,(AP9*((LOG(AP9))/LOG(2)))) -> 0 | AS9: 121 | AT9: =COUNTIF(L20:L21,AS9) -> 0 | AU9: =AT9/(AV4-AT11) -> 0 | AV9: =IF(AU9=0,0,(AU9*((LOG(AU9))/LOG(2)))) -> 0
A10: 12 | B10: 424 | C10: 24 | D10: 444 | E10: 24 | F10: 448 | K10: 0 | L10: 122 | N10: 122 | O10: 9 | P10: 0.6428571429 | Q10: -0.4097763775 | T10: 122 | U10: =COUNTIF(L7:L9,T10) -> 3 | V10: =U10/(W4-U11) -> 1 | W10: =IF(V10=0,0,(V10*((LOG(V10))/LOG(2)))) -> 0 | Y10: 122 | Z10: =COUNTIF(L10:L11,Y10) -> 2 | AA10: =Z10/(AB4-Z11) -> 1 | AB10: =IF(AA10=0,0,(AA10*((LOG(AA10))/LOG(2)))) -> 0 | AD10: 122 | AE10: =COUNTIF(L12:L14,AD10) -> 2 | AF10: =AE10/(AG4-AE11) -> 0.6666666667 | AG10: =IF(AF10=0,0,(AF10*((LOG(AF10))/LOG(2)))) -> -0.3899750005 | AI10: 122 | AJ10: =COUNTIF(L15:L16,AI10) -> 0 | AK10: =AJ10/(AL4-AJ11) -> 0 | AL10: =IF(AK10=0,0,(AK10*((LOG(AK10))/LOG(2)))) -> 0 | AN10: 122 | AO10: =COUNTIF(L17:L19,AN10) -> 2 | AP10: =AO10/(AQ4-AO11) -> 0.6666666667 | AQ10: =IF(AP10=0,0,(AP10*((LOG(AP10))/LOG(2)))) -> -0.3899750005 | AS10: 122 | AT10: =COUNTIF(L20:L21,AS10) -> 0 | AU10: =AT10/(AV4-AT11) -> 0 | AV10: =IF(AU10=0,0,(AU10*((LOG(AU10))/LOG(2)))) -> 0
A11: 12 | B11: 546 | C11: 24 | D11: 564 | E11: 24 | F11: 568 | K11: 0 | L11: 122 | N11: 211 | O11: 0 | P11: 0 | Q11: 0 | T11: 211 | U11: =COUNTIF(L7:L9,T11) -> 0 | Y11: 211 | Z11: =COUNTIF(L10:L11,Y11) -> 0 | AD11: 211 | AE11: =COUNTIF(L12:L14,AD11) -> 0 | AI11: 211 | AJ11: =COUNTIF(L15:L16,AI11) -> 0 | AN11: 211 | AO11: =COUNTIF(L17:L19,AN11) -> 0 | AS11: 211 | AT11: =COUNTIF(L20:L21,AS11) -> 0
A12: 12 | B12: 673 | C12: 24 | D12: 688 | E12: 24 | F12: 694 | K12: 0 | L12: 122 | N12: 212 | O12: 0 | P12: 0 | Q12: 0 | T12: 212 | U12: =COUNTIF(L7:L9,T12) -> 0 | V12: =U12/(W4-U11) -> 0 | W12: =IF(V12=0,0,(V12*((LOG(V12))/LOG(2)))) -> 0 | Y12: 212 | Z12: =COUNTIF(L10:L11,Y12) -> 0 | AA12: =Z12/(AB4-Z11) -> 0 | AB12: =IF(AA12=0,0,(AA12*((LOG(AA12))/LOG(2)))) -> 0 | AD12: 212 | AE12: =COUNTIF(L12:L14,AD12) -> 0 | AF12: =AE12/(AG4-AE11) -> 0 | AG12: =IF(AF12=0,0,(AF12*((LOG(AF12))/LOG(2)))) -> 0 | AI12: 212 | AJ12: =COUNTIF(L15:L16,AI12) -> 0 | AK12: =AJ12/(AL4-AJ11) -> 0 | AL12: =IF(AK12=0,0,(AK12*((LOG(AK12))/LOG(2)))) -> 0 | AN12: 212 | AO12: =COUNTIF(L17:L19,AN12) -> 0 | AP12: =AO12/(AQ4-AO11) -> 0 | AQ12: =IF(AP12=0,0,(AP12*((LOG(AP12))/LOG(2)))) -> 0 | AS12: 212 | AT12: =COUNTIF(L20:L21,AS12) -> 0 | AU12: =AT12/(AV4-AT11) -> 0 | AV12: =IF(AU12=0,0,(AU12*((LOG(AU12))/LOG(2)))) -> 0
A13: 12 | B13: 792 | C13: 24 | D13: 807 | E13: 24 | F13: 810 | K13: 0 | L13: 122 | N13: 221 | O13: 0 | P13: 0 | Q13: 0 | T13: 221 | U13: =COUNTIF(L7:L9,T13) -> 0 | V13: =U13/(W4-U11) -> 0 | W13: =IF(V13=0,0,(V13*((LOG(V13))/LOG(2)))) -> 0 | Y13: 221 | Z13: =COUNTIF(L10:L11,Y13) -> 0 | AA13: =Z13/(AB4-Z11) -> 0 | AB13: =IF(AA13=0,0,(AA13*((LOG(AA13))/LOG(2)))) -> 0 | AD13: 221 | AE13: =COUNTIF(L12:L14,AD13) -> 0 | AF13: =AE13/(AG4-AE11) -> 0 | AG13: =IF(AF13=0,0,(AF13*((LOG(AF13))/LOG(2)))) -> 0 | AI13: 221 | AJ13: =COUNTIF(L15:L16,AI13) -> 0 | AK13: =AJ13/(AL4-AJ11) -> 0 | AL13: =IF(AK13=0,0,(AK13*((LOG(AK13))/LOG(2)))) -> 0 | AN13: 221 | AO13: =COUNTIF(L17:L19,AN13) -> 0 | AP13: =AO13/(AQ4-AO11) -> 0 | AQ13: =IF(AP13=0,0,(AP13*((LOG(AP13))/LOG(2)))) -> 0 | AS13: 221 | AT13: =COUNTIF(L20:L21,AS13) -> 0 | AU13: =AT13/(AV4-AT11) -> 0 | AV13: =IF(AU13=0,0,(AU13*((LOG(AU13))/LOG(2)))) -> 0
A14: 12 | B14: 920 | C14: 13 | D14: 927 | E14: 24 | F14: 938 | K14: 0 | L14: 112 | N14: 222 | O14: 1 | P14: 0.07142857143 | Q14: -0.271953923 | T14: 222 | U14: =COUNTIF(L7:L9,T14) -> 0 | V14: =U14/(W4-U11) -> 0 | W14: =IF(V14=0,0,(V14*((LOG(V14))/LOG(2)))) -> 0 | Y14: 222 | Z14: =COUNTIF(L10:L11,Y14) -> 0 | AA14: =Z14/(AB4-Z11) -> 0 | AB14: =IF(AA14=0,0,(AA14*((LOG(AA14))/LOG(2)))) -> 0 | AD14: 222 | AE14: =COUNTIF(L12:L14,AD14) -> 0 | AF14: =AE14/(AG4-AE11) -> 0 | AG14: =IF(AF14=0,0,(AF14*((LOG(AF14))/LOG(2)))) -> 0 | AI14: 222 | AJ14: =COUNTIF(L15:L16,AI14) -> 0 | AK14: =AJ14/(AL4-AJ11) -> 0 | AL14: =IF(AK14=0,0,(AK14*((LOG(AK14))/LOG(2)))) -> 0 | AN14: 222 | AO14: =COUNTIF(L17:L19,AN14) -> 1 | AP14: =AO14/(AQ4-AO11) -> 0.3333333333 | AQ14: =IF(AP14=0,0,(AP14*((LOG(AP14))/LOG(2)))) -> -0.5283208336 | AS14: 222 | AT14: =COUNTIF(L20:L21,AS14) -> 0 | AU14: =AT14/(AV4-AT11) -> 0 | AV14: =IF(AU14=0,0,(AU14*((LOG(AU14))/LOG(2)))) -> 0
A15: 12 | B15: 1040 | C15: 13 | D15: 1046 | E15: 24 | F15: 1063 | K15: 0 | L15: 112 | P15: =SUM(P7:P14) -> 1 | Q15: =-SUM(Q7:Q14) -> 1.429911171 | V15: =SUM(V7:V14) -> 1 | W15: =-SUM(W7:W14) -> 0 | AA15: =SUM(AA7:AA14) -> 1 | AB15: =-SUM(AB7:AB14) -> 0 | AF15: =SUM(AF7:AF14) -> 1 | AG15: =-SUM(AG7:AG14) -> 0.9182958341 | AK15: =SUM(AK7:AK14) -> 1 | AL15: =-SUM(AL7:AL14) -> 0 | AP15: =SUM(AP7:AP14) -> 1 | AQ15: =-SUM(AQ7:AQ14) -> 0.9182958341 | AU15: =SUM(AU7:AU14) -> 1 | AV15: =-SUM(AV7:AV14) -> 0
A16: 12 | B16: 1160 | C16: 13 | D16: 1165 | E16: 24 | F16: 1183 | K16: 0 | L16: 112 | P16: U= | Q16: =Q15/(LOG(Q4)/LOG(2)) -> 0.3755655042 | V16: U1= | W16: =W15/(LOG(W4)/LOG(2)) -> 0 | AA16: U2= | AB16: =AB15/(LOG(AB4)/LOG(2)) -> 0 | AF16: U3= | AG16: =AG15/(LOG(AG4)/LOG(2)) -> 0.5793801643 | AK16: U4= | AL16: =AL15/(LOG(AL4)/LOG(2)) -> 0 | AP16: U5= | AQ16: =AQ15/(LOG(AQ4)/LOG(2)) -> 0.5793801643 | AU16: U6= | AV16: =AV15/(LOG(AV4)/LOG(2)) -> 
A17: 12 | B17: 1288 | C17: 24 | D17: 1315 | E17: 24 | F17: 1322 | K17: 0 | L17: 122
A18: 21 | B18: 1566 | C18: 22 | D18: 1569 | E18: 24 | F18: 1576 | K18: 0 | L18: 222
A19: 12 | B19: 4932 | C19: 24 | D19: 4941 | E19: 24 | F19: 4946 | K19: 0 | L19: 122 | N19: Total Target Seq
A20: 12 | B20: 15930 | C20: 13 | D20: 18681 | E20: 13 | F20: 19387 | K20: 0 | L20: 111 | N20: =COUNTIF(L7:L21,G3) -> 0 | P20: 3 | Q20: 2 | R20: 3 | S20: 2 | T20: 3 | U20: 2
A21: 12 | B21: 22431 | L21: 1 | P21: % of reinforcement given in 6 equal intervals based on number of trials
P22: %_1 | Q22: %_2 | R22: %_3 | S22: %_4 | T22: %_5 | U22: %_6
O23: target sequence | P23: =$G$3 -> 211 | Q23: 211 | R23: 211 | S23: 211 | T23: 211 | U23: 211
O24: total reinforcement | P24: =U11 -> 0 | Q24: =Z11 -> 0 | R24: =AE11 -> 0 | S24: =AJ11 -> 0 | T24: =AO11 -> 0 | U24: =AT11 -> 0
O25: % target
O26: CCRF
O27: % CCRf
O28: average response rate | P28: =F9/P20 -> 109 | Q28: =(F11-F9)/Q20 -> 120.5 | R28: =(F14-F11)/R20 -> 123.3333333 | S28: =(F16-F14)/S20 -> 122.5 | T28: =(F19-F16)/T20 -> 1254.333333 | U28: =(F21-F19)/U20 -> -2473

Sheet !L822A5I.sha
A1: Report for:!L822A5I.sha
A2: Date: | B2: <date>
A3: Hen: | B3: <hen> | F3: Correct Sequence | G3: =Start!J2 -> 211 | P3: Total Sequences in Data | Q3: =4994-COUNTBLANK(L7:L5000) -> 38 | V3: Total Sequences in Block Data | W3: =COUNTA(L7:L12) -> 6 | AA3: Total Sequences in Block Data | AB3: =COUNTA(L13:L19) -> 7 | AF3: Total Sequences in Block Data | AG3: =COUNTA(L20:L25) -> 6 | AK3: Total Sequences in Block Data | AL3: =COUNTA(L26:L31) -> 6 | AP3: Total Sequences in Block Data | AQ3: =COUNTA(L32:L38) -> 7 | AU3: Total Sequences in Block Data | AV3: =COUNTA(L39:L44) -> 6
P4: Total Sequences in Summary | Q4: =SUM(O7:O14) -> 38 | V4: Total Sequences in Block Summary | W4: =SUM(U7:U14) -> 6 | AA4: Total Sequences in Block Summary | AB4: =SUM(Z7:Z14) -> 7 | AF4: Total Sequences in Block Summary | AG4: =SUM(AE7:AE14) -> 6 | AK4: Total Sequences in Block Summary | AL4: =SUM(AJ7:AJ14) -> 6 | AP4: Total Sequences in Block Summary | AQ4: =SUM(AO7:AO14) -> 7 | AU4: Total Sequences in Block Summary | AV4: =SUM(AT7:AT14) -> 6
T5: Block 1 | Y5: Block 2 | AD5: Block 3 | AI5: Block 4 | AN5: Block 5 | AS5: Block 6
A6: Sequence Component 1 | B6: Time 1 | C6: Sequence Component 2 | D6: Time 2 | E6: Sequence Component 3 | F6: Time 3 | G6: Sequence Component 4 | H6: Time 4 | I6: Sequence Component 5 | J6: Time 5 | K6: Correct? 0=No 1=Yes | L6: Sequence | N6: Frequency | P6: Relative Frequency | Q6: Variability | T6: Frequency | V6: Relative Frequency | W6: Variability | Y6: Frequency | AA6: Relative Frequency | AB6: Variability | AD6: Frequency | AF6: Relative Frequency | AG6: Variability | AI6: Frequency | AK6: Relative Frequency | AL6: Variability | AN6: Frequency | AP6: Relative Frequency | AQ6: Variability | AS6: Frequency | AU6: Relative Frequency | AV6: Variability
A7: 21 | B7: 25 | C7: 11 | D7: 82 | E7: 11 | F7: 269 | K7: 0 | L7: 211 | N7: 111 | O7: =COUNTIF($L$7:$L$500,N7) -> 4 | P7: =O7/$Q$4 -> 0.1052631579 | Q7: =IF(P7=0,0,(P7*((LOG(P7))/LOG(2)))) -> -0.3418871067 | T7: =N7 -> 111 | U7: =COUNTIF(L7:L12,T7) -> 0 | V7: =U7/(W4-U11) -> 0 | W7: =IF(V7=0,0,(V7*((LOG(V7))/LOG(2)))) -> 0 | Y7: =N7 -> 111 | Z7: =COUNTIF(L13:L19,Y7) -> 0 | AA7: =Z7/(AB4-Z11) -> 0 | AB7: =IF(AA7=0,0,(AA7*((LOG(AA7))/LOG(2)))) -> 0 | AD7: =N7 -> 111 | AE7: =COUNTIF(L20:L25,AD7) -> 1 | AF7: =AE7/(AG4-AE11) -> 0.1666666667 | AG7: =IF(AF7=0,0,(AF7*((LOG(AF7))/LOG(2)))) -> -0.4308270835 | AI7: =N7 -> 111 | AJ7: =COUNTIF(L26:L31,AI7) -> 1 | AK7: =AJ7/(AL4-AJ11) -> 0.1666666667 | AL7: =IF(AK7=0,0,(AK7*((LOG(AK7))/LOG(2)))) -> -0.4308270835 | AN7: =N7 -> 111 | AO7: =COUNTIF(L32:L38,AN7) -> 0 | AP7: =AO7/(AQ4-AO11) -> 0 | AQ7: =IF(AP7=0,0,(AP7*((LOG(AP7))/LOG(2)))) -> 0 | AS7: =N7 -> 111 | AT7: =COUNTIF(L39:L44,AS7) -> 2 | AU7: =AT7/(AV4-AT11) -> 0.3333333333 | AV7: =IF(AU7=0,0,(AU7*((LOG(AU7))/LOG(2)))) -> -0.5283208336
A8: 12 | B8: 489 | C8: 24 | D8: 502 | E8: 24 | F8: 512 | K8: 0 | L8: 122 | N8: 112 | O8: 13 | P8: 0.3421052632 | Q8: -0.5294037194 | T8: 112 | U8: =COUNTIF(L7:L12,T8) -> 1 | V8: =U8/(W4-U11) -> 0.2 | W8: =IF(V8=0,0,(V8*((LOG(V8))/LOG(2)))) -> -0.464385619 | Y8: 112 | Z8: =COUNTIF(L13:L19,Y8) -> 5 | AA8: =Z8/(AB4-Z11) -> 0.7142857143 | AB8: =IF(AA8=0,0,(AA8*((LOG(AA8))/LOG(2)))) -> -0.346733448 | AD8: 112 | AE8: =COUNTIF(L20:L25,AD8) -> 3 | AF8: =AE8/(AG4-AE11) -> 0.5 | AG8: =IF(AF8=0,0,(AF8*((LOG(AF8))/LOG(2)))) -> -0.5 | AI8: 112 | AJ8: =COUNTIF(L26:L31,AI8) -> 1 | AK8: =AJ8/(AL4-AJ11) -> 0.1666666667 | AL8: =IF(AK8=0,0,(AK8*((LOG(AK8))/LOG(2)))) -> -0.4308270835 | AN8: 112 | AO8: =COUNTIF(L32:L38,AN8) -> 1 | AP8: =AO8/(AQ4-AO11) -> 0.1428571429 | AQ8: =IF(AP8=0,0,(AP8*((LOG(AP8))/LOG(2)))) -> -0.4010507032 | AS8: 112 | AT8: =COUNTIF(L39:L44,AS8) -> 2 | AU8: =AT8/(AV4-AT11) -> 0.3333333333 | AV8: =IF(AU8=0,0,(AU8*((LOG(AU8))/LOG(2)))) -> -0.5283208336
A9: 21 | B9: 628 | C9: 22 | D9: 635 | E9: 24 | F9: 644 | K9: 0 | L9: 222 | N9: 121 | O9: 0 | P9: 0 | Q9: 0 | T9: 121 | U9: =COUNTIF(L7:L12,T9) -> 0 | V9: =U9/(W4-U11) -> 0 | W9: =IF(V9=0,0,(V9*((LOG(V9))/LOG(2)))) -> 0 | Y9: 121 | Z9: =COUNTIF(L13:L19,Y9) -> 0 | AA9: =Z9/(AB4-Z11) -> 0 | AB9: =IF(AA9=0,0,(AA9*((LOG(AA9))/LOG(2)))) -> 0 | AD9: 121 | AE9: =COUNTIF(L20:L25,AD9) -> 0 | AF9: =AE9/(AG4-AE11) -> 0 | AG9: =IF(AF9=0,0,(AF9*((LOG(AF9))/LOG(2)))) -> 0 | AI9: 121 | AJ9: =COUNTIF(L26:L31,AI9) -> 0 | AK9: =AJ9/(AL4-AJ11) -> 0 | AL9: =IF(AK9=0,0,(AK9*((LOG(AK9))/LOG(2)))) -> 0 | AN9: 121 | AO9: =COUNTIF(L32:L38,AN9) -> 0 | AP9: =AO9/(AQ4-AO11) -> 0 | AQ9: =IF(AP9=0,0,(AP9*((LOG(AP9))/LOG(2)))) -> 0 | AS9: 121 | AT9: =COUNTIF(L39:L44,AS9) -> 0 | AU9: =AT9/(AV4-AT11) -> 0 | AV9: =IF(AU9=0,0,(AU9*((LOG(AU9))/LOG(2)))) -> 0
A10: 21 | B10: 784 | C10: 22 | D10: 790 | E10: 24 | F10: 798 | K10: 0 | L10: 222 | N10: 122 | O10: 13 | P10: 0.3421052632 | Q10: -0.5294037194 | T10: 122 | U10: =COUNTIF(L7:L12,T10) -> 2 | V10: =U10/(W4-U11) -> 0.4 | W10: =IF(V10=0,0,(V10*((LOG(V10))/LOG(2)))) -> -0.528771238 | Y10: 122 | Z10: =COUNTIF(L13:L19,Y10) -> 1 | AA10: =Z10/(AB4-Z11) -> 0.1428571429 | AB10: =IF(AA10=0,0,(AA10*((LOG(AA10))/LOG(2)))) -> -0.4010507032 | AD10: 122 | AE10: =COUNTIF(L20:L25,AD10) -> 0 | AF10: =AE10/(AG4-AE11) -> 0 | AG10: =IF(AF10=0,0,(AF10*((LOG(AF10))/LOG(2)))) -> 0 | AI10: 122 | AJ10: =COUNTIF(L26:L31,AI10) -> 4 | AK10: =AJ10/(AL4-AJ11) -> 0.6666666667 | AL10: =IF(AK10=0,0,(AK10*((LOG(AK10))/LOG(2)))) -> -0.3899750005 | AN10: 122 | AO10: =COUNTIF(L32:L38,AN10) -> 4 | AP10: =AO10/(AQ4-AO11) -> 0.5714285714 | AQ10: =IF(AP10=0,0,(AP10*((LOG(AP10))/LOG(2)))) -> -0.4613456697 | AS10: 122 | AT10: =COUNTIF(L39:L44,AS10) -> 2 | AU10: =AT10/(AV4-AT11) -> 0.3333333333 | AV10: =IF(AU10=0,0,(AU10*((LOG(AU10))/LOG(2)))) -> -0.5283208336
A11: 12 | B11: 897 | C11: 24 | D11: 909 | E11: 24 | F11: 915 | K11: 0 | L11: 122 | N11: 211 | O11: 1 | P11: 0.02631578947 | Q11: -0.1381033556 | T11: 211 | U11: =COUNTIF(L7:L12,T11) -> 1 | Y11: 211 | Z11: =COUNTIF(L13:L19,Y11) -> 0 | AD11: 211 | AE11: =COUNTIF(L20:L25,AD11) -> 0 | AI11: 211 | AJ11: =COUNTIF(L26:L31,AI11) -> 0 | AN11: 211 | AO11: =COUNTIF(L32:L38,AN11) -> 0 | AS11: 211 | AT11: =COUNTIF(L39:L44,AS11) -> 0
A12: 12 | B12: 1016 | C12: 13 | D12: 1018 | E12: 24 | F12: 1030 | K12: 0 | L12: 112 | N12: 212 | O12: 0 | P12: 0 | Q12: 0 | T12: 212 | U12: =COUNTIF(L7:L12,T12) -> 0 | V12: =U12/(W4-U11) -> 0 | W12: =IF(V12=0,0,(V12*((LOG(V12))/LOG(2)))) -> 0 | Y12: 212 | Z12: =COUNTIF(L13:L19,Y12) -> 0 | AA12: =Z12/(AB4-Z11) -> 0 | AB12: =IF(AA12=0,0,(AA12*((LOG(AA12))/LOG(2)))) -> 0 | AD12: 212 | AE12: =COUNTIF(L20:L25,AD12) -> 0 | AF12: =AE12/(AG4-AE11) -> 0 | AG12: =IF(AF12=0,0,(AF12*((LOG(AF12))/LOG(2)))) -> 0 | AI12: 212 | AJ12: =COUNTIF(L26:L31,AI12) -> 0 | AK12: =AJ12/(AL4-AJ11) -> 0 | AL12: =IF(AK12=0,0,(AK12*((LOG(AK12))/LOG(2)))) -> 0 | AN12: 212 | AO12: =COUNTIF(L32:L38,AN12) -> 0 | AP12: =AO12/(AQ4-AO11) -> 0 | AQ12: =IF(AP12=0,0,(AP12*((LOG(AP12))/LOG(2)))) -> 0 | AS12: 212 | AT12: =COUNTIF(L39:L44,AS12) -> 0 | AU12: =AT12/(AV4-AT11) -> 0 | AV12: =IF(AU12=0,0,(AU12*((LOG(AU12))/LOG(2)))) -> 0
A13: 12 | B13: 1131 | C13: 13 | D13: 1137 | E13: 24 | F13: 1148 | K13: 0 | L13: 112 | N13: 221 | O13: 0 | P13: 0 | Q13: 0 | T13: 221 | U13: =COUNTIF(L7:L12,T13) -> 0 | V13: =U13/(W4-U11) -> 0 | W13: =IF(V13=0,0,(V13*((LOG(V13))/LOG(2)))) -> 0 | Y13: 221 | Z13: =COUNTIF(L13:L19,Y13) -> 0 | AA13: =Z13/(AB4-Z11) -> 0 | AB13: =IF(AA13=0,0,(AA13*((LOG(AA13))/LOG(2)))) -> 0 | AD13: 221 | AE13: =COUNTIF(L20:L25,AD13) -> 0 | AF13: =AE13/(AG4-AE11) -> 0 | AG13: =IF(AF13=0,0,(AF13*((LOG(AF13))/LOG(2)))) -> 0 | AI13: 221 | AJ13: =COUNTIF(L26:L31,AI13) -> 0 | AK13: =AJ13/(AL4-AJ11) -> 0 | AL13: =IF(AK13=0,0,(AK13*((LOG(AK13))/LOG(2)))) -> 0 | AN13: 221 | AO13: =COUNTIF(L32:L38,AN13) -> 0 | AP13: =AO13/(AQ4-AO11) -> 0 | AQ13: =IF(AP13=0,0,(AP13*((LOG(AP13))/LOG(2)))) -> 0 | AS13: 221 | AT13: =COUNTIF(L39:L44,AS13) -> 0 | AU13: =AT13/(AV4-AT11) -> 0 | AV13: =IF(AU13=0,0,(AU13*((LOG(AU13))/LOG(2)))) -> 0
A14: 21 | B14: 1265 | C14: 22 | D14: 1270 | E14: 24 | F14: 1277 | K14: 0 | L14: 222 | N14: 222 | O14: 7 | P14: 0.1842105263 | Q14: -0.4495791616 | T14: 222 | U14: =COUNTIF(L7:L12,T14) -> 2 | V14: =U14/(W4-U11) -> 0.4 | W14: =IF(V14=0,0,(V14*((LOG(V14))/LOG(2)))) -> -0.528771238 | Y14: 222 | Z14: =COUNTIF(L13:L19,Y14) -> 1 | AA14: =Z14/(AB4-Z11) -> 0.1428571429 | AB14: =IF(AA14=0,0,(AA14*((LOG(AA14))/LOG(2)))) -> -0.4010507032 | AD14: 222 | AE14: =COUNTIF(L20:L25,AD14) -> 2 | AF14: =AE14/(AG4-AE11) -> 0.3333333333 | AG14: =IF(AF14=0,0,(AF14*((LOG(AF14))/LOG(2)))) -> -0.5283208336 | AI14: 222 | AJ14: =COUNTIF(L26:L31,AI14) -> 0 | AK14: =AJ14/(AL4-AJ11) -> 0 | AL14: =IF(AK14=0,0,(AK14*((LOG(AK14))/LOG(2)))) -> 0 | AN14: 222 | AO14: =COUNTIF(L32:L38,AN14) -> 2 | AP14: =AO14/(AQ4-AO11) -> 0.2857142857 | AQ14: =IF(AP14=0,0,(AP14*((LOG(AP14))/LOG(2)))) -> -0.5163871206 | AS14: 222 | AT14: =COUNTIF(L39:L44,AS14) -> 0 | AU14: =AT14/(AV4-AT11) -> 0 | AV14: =IF(AU14=0,0,(AU14*((LOG(AU14))/LOG(2)))) -> 0
A15: 12 | B15: 1377 | C15: 13 | D15: 1392 | E15: 24 | F15: 1405 | K15: 0 | L15: 112 | P15: =SUM(P7:P14) -> 1 | Q15: =-SUM(Q7:Q14) -> 1.988377063 | V15: =SUM(V7:V14) -> 1 | W15: =-SUM(W7:W14) -> 1.521928095 | AA15: =SUM(AA7:AA14) -> 1 | AB15: =-SUM(AB7:AB14) -> 1.148834854 | AF15: =SUM(AF7:AF14) -> 1 | AG15: =-SUM(AG7:AG14) -> 1.459147917 | AK15: =SUM(AK7:AK14) -> 1 | AL15: =-SUM(AL7:AL14) -> 1.251629167 | AP15: =SUM(AP7:AP14) -> 1 | AQ15: =-SUM(AQ7:AQ14) -> 1.378783493 | AU15: =SUM(AU7:AU14) -> 1 | AV15: =-SUM(AV7:AV14) -> 1.584962501
A16: 12 | B16: 1508 | C16: 24 | D16: 1521 | E16: 24 | F16: 1524 | K16: 0 | L16: 122 | P16: U= | Q16: =Q15/(LOG(Q4)/LOG(2)) -> 0.3788880577 | V16: U1= | W16: =W15/(LOG(W4)/LOG(2)) -> 0.5887621559 | AA16: U2= | AB16: =AB15/(LOG(AB4)/LOG(2)) -> 0.4092232319 | AF16: U3= | AG16: =AG15/(LOG(AG4)/LOG(2)) -> 0.5644754679 | AK16: U4= | AL16: =AL15/(LOG(AL4)/LOG(2)) -> 0.484196257 | AP16: U5= | AQ16: =AQ15/(LOG(AQ4)/LOG(2)) -> 0.4911325898 | AU16: U6= | AV16: =AV15/(LOG(AV4)/LOG(2)) -> 0.6131471928
A17: 12 | B17: 1623 | C17: 13 | D17: 1626 | E17: 24 | F17: 1651 | K17: 0 | L17: 112
A18: 12 | B18: 1755 | C18: 13 | D18: 1764 | E18: 24 | F18: 1776 | K18: 0 | L18: 112
A19: 12 | B19: 1875 | C19: 13 | D19: 1882 | E19: 24 | F19: 1900 | K19: 0 | L19: 112 | N19: Total Target Seq
A20: 12 | B20: 2048 | C20: 13 | D20: 2061 | E20: 24 | F20: 2078 | K20: 0 | L20: 112 | N20: =COUNTIF(L7:L44,G3) -> 1 | P20: 6 | Q20: 7 | R20: 6 | S20: 6 | T20: 7 | U20: 6
A21: 21 | B21: 2196 | C21: 22 | D21: 2200 | E21: 24 | F21: 2210 | K21: 0 | L21: 222 | P21: % of reinforcement given in 6 equal intervals based on number of trials
A22: 12 | B22: 2363 | C22: 13 | D22: 2374 | E22: 24 | F22: 2393 | K22: 0 | L22: 112 | P22: %_1 | Q22: %_2 | R22: %_3 | S22: %_4 | T22: %_5 | U22: %_6
A23: 12 | B23: 2493 | C23: 13 | D23: 2518 | E23: 24 | F23: 2530 | K23: 0 | L23: 112 | O23: target sequence | P23: =$G$3 -> 211 | Q23: 211 | R23: 211 | S23: 211 | T23: 211 | U23: 211
A24: 21 | B24: 2693 | C24: 22 | D24: 2702 | E24: 24 | F24: 2710 | K24: 0 | L24: 222 | O24: total reinforcement | P24: =U11 -> 1 | Q24: =Z11 -> 0 | R24: =AE11 -> 0 | S24: =AJ11 -> 0 | T24: =AO11 -> 0 | U24: =AT11 -> 0
A25: 12 | B25: 2805 | C25: 13 | D25: 2810 | E25: 13 | F25: 2813 | K25: 0 | L25: 111 | O25: % target
A26: 12 | B26: 2918 | C26: 24 | D26: 2935 | E26: 24 | F26: 2942 | K26: 0 | L26: 122 | O26: CCRF
A27: 12 | B27: 3053 | C27: 13 | D27: 3060 | E27: 24 | F27: 3070 | K27: 0 | L27: 112 | O27: % CCRf
A28: 12 | B28: 3168 | C28: 13 | D28: 3173 | E28: 13 | F28: 3193 | K28: 0 | L28: 111 | O28: average response rate | P28: =F12/P20 -> 171.6666667 | Q28: =(F19-F12)/Q20 -> 124.2857143 | R28: =(F25-F19)/R20 -> 152.1666667 | S28: =(F31-F25)/S20 -> 128 | T28: =(F38-F31)/T20 -> 331.2857143 | U28: =(F44-F38)/U20 -> 165
A29: 12 | B29: 3300 | C29: 24 | D29: 3311 | E29: 24 | F29: 3315 | K29: 0 | L29: 122
A30: 12 | B30: 3446 | C30: 24 | D30: 3458 | E30: 24 | F30: 3462 | K30: 0 | L30: 122
A31: 12 | B31: 3561 | C31: 24 | D31: 3575 | E31: 24 | F31: 3581 | K31: 0 | L31: 122
A32: 12 | B32: 3723 | C32: 24 | D32: 3747 | E32: 24 | F32: 3750 | K32: 0 | L32: 122
A33: 12 | B33: 3854 | C33: 24 | D33: 3866 | E33: 24 | F33: 3870 | K33: 0 | L33: 122
A34: 12 | B34: 3973 | C34: 24 | D34: 3985 | E34: 24 | F34: 3991 | K34: 0 | L34: 122
A35: 21 | B35: 4090 | C35: 22 | D35: 4095 | E35: 24 | F35: 4102 | K35: 0 | L35: 222
A36: 12 | B36: 4199 | C36: 13 | D36: 4201 | E36: 24 | F36: 4219 | K36: 0 | L36: 112
A37: 21 | B37: 5762 | C37: 22 | D37: 5766 | E37: 24 | F37: 5774 | K37: 0 | L37: 222
A38: 12 | B38: 5876 | C38: 24 | D38: 5897 | E38: 24 | F38: 5900 | K38: 0 | L38: 122
A39: 12 | B39: 6063 | C39: 24 | D39: 6074 | E39: 24 | F39: 6078 | K39: 0 | L39: 122
A40: 12 | B40: 6177 | C40: 13 | D40: 6181 | E40: 24 | F40: 6193 | K40: 0 | L40: 112
A41: 12 | B41: 6318 | C41: 24 | D41: 6332 | E41: 24 | F41: 6335 | K41: 0 | L41: 122
A42: 12 | B42: 6459 | C42: 13 | D42: 6462 | E42: 24 | F42: 6478 | K42: 0 | L42: 112
A43: 12 | B43: 6576 | C43: 13 | D43: 6578 | E43: 13 | F43: 6582 | K43: 0 | L43: 111
A44: 12 | B44: 6872 | C44: 13 | D44: 6875 | E44: 13 | F44: 6890 | K44: 0 | L44: 111

Sheet !L82393I.sha
A1: Report for:!L82393I.sha
A2: Date: | B2: <date>
A3: Hen: | B3: <hen> | F3: Correct Sequence | G3: =Start!J2 -> 211 | P3: Total Sequences in Data | Q3: =4994-COUNTBLANK(L7:L5000) -> 1 | V3: Total Sequences in Block Data | W3: =COUNTA(L6:L7) -> 2 | AA3: Total Sequences in Block Data | AB3: =COUNTA(L6:L7) -> 2 | AF3: Total Sequences in Block Data | AG3: =COUNTA(L7:L7) -> 1 | AK3: Total Sequences in Block Data | AL3: =COUNTA(L7:L8) -> 1 | AP3: Total Sequences in Block Data | AQ3: =COUNTA(L7:L8) -> 1 | AU3: Total Sequences in Block Data | AV3: =COUNTA(L7:L8) -> 1
P4: Total Sequences in Summary | Q4: =SUM(O7:O14) -> 1 | V4: Total Sequences in Block Summary | W4: =SUM(U7:U14) -> 1 | AA4: Total Sequences in Block Summary | AB4: =SUM(Z7:Z14) -> 1 | AF4: Total Sequences in Block Summary | AG4: =SUM(AE7:AE14) -> 1 | AK4: Total Sequences in Block Summary | AL4: =SUM(AJ7:AJ14) -> 1 | AP4: Total Sequences in Block Summary | AQ4: =SUM(AO7:AO14) -> 1 | AU4: Total Sequences in Block Summary | AV4: =SUM(AT7:AT14) -> 1
T5: Block 1 | Y5: Block 2 | AD5: Block 3 | AI5: Block 4 | AN5: Block 5 | AS5: Block 6
A6: Sequence Component 1 | B6: Time 1 | C6: Sequence Component 2 | D6: Time 2 | E6: Sequence Component 3 | F6: Time 3 | G6: Sequence Component 4 | H6: Time 4 | I6: Sequence Component 5 | J6: Time 5 | K6: Correct? 0=No 1=Yes | L6: Sequence | N6: Frequency | P6: Relative Frequency | Q6: Variability | T6: Frequency | V6: Relative Frequency | W6: Variability | Y6: Frequency | AA6: Relative Frequency | AB6: Variability | AD6: Frequency | AF6: Relative Frequency | AG6: Variability | AI6: Frequency | AK6: Relative Frequency | AL6: Variability | AN6: Frequency | AP6: Relative Frequency | AQ6: Variability | AS6: Frequency | AU6: Relative Frequency | AV6: Variability
A7: 21 | B7: 33 | C7: 22 | D7: 354 | E7: 13 | F7: 714 | K7: 0 | L7: 221 | N7: 111 | O7: =COUNTIF($L$7:$L$500,N7) -> 0 | P7: =O7/$Q$4 -> 0 | Q7: =IF(P7=0,0,(P7*((LOG(P7))/LOG(2)))) -> 0 | T7: =N7 -> 111 | U7: =COUNTIF(L6:L7,T7) -> 0 | V7: =U7/(W4-U11) -> 0 | W7: =IF(V7=0,0,(V7*((LOG(V7))/LOG(2)))) -> 0 | Y7: =N7 -> 111 | Z7: =COUNTIF(L6:L7,Y7) -> 0 | AA7: =Z7/(AB4-Z11) -> 0 | AB7: =IF(AA7=0,0,(AA7*((LOG(AA7))/LOG(2)))) -> 0 | AD7: =N7 -> 111 | AE7: =COUNTIF(L7:L7,AD7) -> 0 | AF7: =AE7/(AG4-AE11) -> 0 | AG7: =IF(AF7=0,0,(AF7*((LOG(AF7))/LOG(2)))) -> 0 | AI7: =N7 -> 111 | AJ7: =COUNTIF(L7:L8,AI7) -> 0 | AK7: =AJ7/(AL4-AJ11) -> 0 | AL7: =IF(AK7=0,0,(AK7*((LOG(AK7))/LOG(2)))) -> 0 | AN7: =N7 -> 111 | AO7: =COUNTIF(L7:L8,AN7) -> 0 | AP7: =AO7/(AQ4-AO11) -> 0 | AQ7: =IF(AP7=0,0,(AP7*((LOG(AP7))/LOG(2)))) -> 0 | AS7: =N7 -> 111 | AT7: =COUNTIF(L7:L8,AS7) -> 0 | AU7: =AT7/(AV4-AT11) -> 0 | AV7: =IF(AU7=0,0,(AU7*((LOG(AU7))/LOG(2)))) -> 0
N8: 112 | O8: 0 | P8: 0 | Q8: 0 | T8: 112 | U8: =COUNTIF(L6:L7,T8) -> 0 | V8: =U8/(W4-U11) -> 0 | W8: =IF(V8=0,0,(V8*((LOG(V8))/LOG(2)))) -> 0 | Y8: 112 | Z8: =COUNTIF(L6:L7,Y8) -> 0 | AA8: =Z8/(AB4-Z11) -> 0 | AB8: =IF(AA8=0,0,(AA8*((LOG(AA8))/LOG(2)))) -> 0 | AD8: 112 | AE8: =COUNTIF(L7:L7,AD8) -> 0 | AF8: =AE8/(AG4-AE11) -> 0 | AG8: =IF(AF8=0,0,(AF8*((LOG(AF8))/LOG(2)))) -> 0 | AI8: 112 | AJ8: =COUNTIF(L7:L8,AI8) -> 0 | AK8: =AJ8/(AL4-AJ11) -> 0 | AL8: =IF(AK8=0,0,(AK8*((LOG(AK8))/LOG(2)))) -> 0 | AN8: 112 | AO8: =COUNTIF(L7:L8,AN8) -> 0 | AP8: =AO8/(AQ4-AO11) -> 0 | AQ8: =IF(AP8=0,0,(AP8*((LOG(AP8))/LOG(2)))) -> 0 | AS8: 112 | AT8: =COUNTIF(L7:L8,AS8) -> 0 | AU8: =AT8/(AV4-AT11) -> 0 | AV8: =IF(AU8=0,0,(AU8*((LOG(AU8))/LOG(2)))) -> 0
N9: 121 | O9: 0 | P9: 0 | Q9: 0 | T9: 121 | U9: =COUNTIF(L6:L7,T9) -> 0 | V9: =U9/(W4-U11) -> 0 | W9: =IF(V9=0,0,(V9*((LOG(V9))/LOG(2)))) -> 0 | Y9: 121 | Z9: =COUNTIF(L6:L7,Y9) -> 0 | AA9: =Z9/(AB4-Z11) -> 0 | AB9: =IF(AA9=0,0,(AA9*((LOG(AA9))/LOG(2)))) -> 0 | AD9: 121 | AE9: =COUNTIF(L7:L7,AD9) -> 0 | AF9: =AE9/(AG4-AE11) -> 0 | AG9: =IF(AF9=0,0,(AF9*((LOG(AF9))/LOG(2)))) -> 0 | AI9: 121 | AJ9: =COUNTIF(L7:L8,AI9) -> 0 | AK9: =AJ9/(AL4-AJ11) -> 0 | AL9: =IF(AK9=0,0,(AK9*((LOG(AK9))/LOG(2)))) -> 0 | AN9: 121 | AO9: =COUNTIF(L7:L8,AN9) -> 0 | AP9: =AO9/(AQ4-AO11) -> 0 | AQ9: =IF(AP9=0,0,(AP9*((LOG(AP9))/LOG(2)))) -> 0 | AS9: 121 | AT9: =COUNTIF(L7:L8,AS9) -> 0 | AU9: =AT9/(AV4-AT11) -> 0 | AV9: =IF(AU9=0,0,(AU9*((LOG(AU9))/LOG(2)))) -> 0
N10: 122 | O10: 0 | P10: 0 | Q10: 0 | T10: 122 | U10: =COUNTIF(L6:L7,T10) -> 0 | V10: =U10/(W4-U11) -> 0 | W10: =IF(V10=0,0,(V10*((LOG(V10))/LOG(2)))) -> 0 | Y10: 122 | Z10: =COUNTIF(L6:L7,Y10) -> 0 | AA10: =Z10/(AB4-Z11) -> 0 | AB10: =IF(AA10=0,0,(AA10*((LOG(AA10))/LOG(2)))) -> 0 | AD10: 122 | AE10: =COUNTIF(L7:L7,AD10) -> 0 | AF10: =AE10/(AG4-AE11) -> 0 | AG10: =IF(AF10=0,0,(AF10*((LOG(AF10))/LOG(2)))) -> 0 | AI10: 122 | AJ10: =COUNTIF(L7:L8,AI10) -> 0 | AK10: =AJ10/(AL4-AJ11) -> 0 | AL10: =IF(AK10=0,0,(AK10*((LOG(AK10))/LOG(2)))) -> 0 | AN10: 122 | AO10: =COUNTIF(L7:L8,AN10) -> 0 | AP10: =AO10/(AQ4-AO11) -> 0 | AQ10: =IF(AP10=0,0,(AP10*((LOG(AP10))/LOG(2)))) -> 0 | AS10: 122 | AT10: =COUNTIF(L7:L8,AS10) -> 0 | AU10: =AT10/(AV4-AT11) -> 0 | AV10: =IF(AU10=0,0,(AU10*((LOG(AU10))/LOG(2)))) -> 0
N11: 211 | O11: 0 | P11: 0 | Q11: 0 | T11: 211 | U11: =COUNTIF(L6:L7,T11) -> 0 | Y11: 211 | Z11: =COUNTIF(L6:L7,Y11) -> 0 | AD11: 211 | AE11: =COUNTIF(L7:L7,AD11) -> 0 | AI11: 211 | AJ11: =COUNTIF(L7:L8,AI11) -> 0 | AN11: 211 | AO11: =COUNTIF(L7:L8,AN11) -> 0 | AS11: 211 | AT11: =COUNTIF(L7:L8,AS11) -> 0
N12: 212 | O12: 0 | P12: 0 | Q12: 0 | T12: 212 | U12: =COUNTIF(L6:L7,T12) -> 0 | V12: =U12/(W4-U11) -> 0 | W12: =IF(V12=0,0,(V12*((LOG(V12))/LOG(2)))) -> 0 | Y12: 212 | Z12: =COUNTIF(L6:L7,Y12) -> 0 | AA12: =Z12/(AB4-Z11) -> 0 | AB12: =IF(AA12=0,0,(AA12*((LOG(AA12))/LOG(2)))) -> 0 | AD12: 212 | AE12: =COUNTIF(L7:L7,AD12) -> 0 | AF12: =AE12/(AG4-AE11) -> 0 | AG12: =IF(AF12=0,0,(AF12*((LOG(AF12))/LOG(2)))) -> 0 | AI12: 212 | AJ12: =COUNTIF(L7:L8,AI12) -> 0 | AK12: =AJ12/(AL4-AJ11) -> 0 | AL12: =IF(AK12=0,0,(AK12*((LOG(AK12))/LOG(2)))) -> 0 | AN12: 212 | AO12: =COUNTIF(L7:L8,AN12) -> 0 | AP12: =AO12/(AQ4-AO11) -> 0 | AQ12: =IF(AP12=0,0,(AP12*((LOG(AP12))/LOG(2)))) -> 0 | AS12: 212 | AT12: =COUNTIF(L7:L8,AS12) -> 0 | AU12: =AT12/(AV4-AT11) -> 0 | AV12: =IF(AU12=0,0,(AU12*((LOG(AU12))/LOG(2)))) -> 0
N13: 221 | O13: 1 | P13: 1 | Q13: 0 | T13: 221 | U13: =COUNTIF(L6:L7,T13) -> 1 | V13: =U13/(W4-U11) -> 1 | W13: =IF(V13=0,0,(V13*((LOG(V13))/LOG(2)))) -> 0 | Y13: 221 | Z13: =COUNTIF(L6:L7,Y13) -> 1 | AA13: =Z13/(AB4-Z11) -> 1 | AB13: =IF(AA13=0,0,(AA13*((LOG(AA13))/LOG(2)))) -> 0 | AD13: 221 | AE13: =COUNTIF(L7:L7,AD13) -> 1 | AF13: =AE13/(AG4-AE11) -> 1 | AG13: =IF(AF13=0,0,(AF13*((LOG(AF13))/LOG(2)))) -> 0 | AI13: 221 | AJ13: =COUNTIF(L7:L8,AI13) -> 1 | AK13: =AJ13/(AL4-AJ11) -> 1 | AL13: =IF(AK13=0,0,(AK13*((LOG(AK13))/LOG(2)))) -> 0 | AN13: 221 | AO13: =COUNTIF(L7:L8,AN13) -> 1 | AP13: =AO13/(AQ4-AO11) -> 1 | AQ13: =IF(AP13=0,0,(AP13*((LOG(AP13))/LOG(2)))) -> 0 | AS13: 221 | AT13: =COUNTIF(L7:L8,AS13) -> 1 | AU13: =AT13/(AV4-AT11) -> 1 | AV13: =IF(AU13=0,0,(AU13*((LOG(AU13))/LOG(2)))) -> 0
N14: 222 | O14: 0 | P14: 0 | Q14: 0 | T14: 222 | U14: =COUNTIF(L6:L7,T14) -> 0 | V14: =U14/(W4-U11) -> 0 | W14: =IF(V14=0,0,(V14*((LOG(V14))/LOG(2)))) -> 0 | Y14: 222 | Z14: =COUNTIF(L6:L7,Y14) -> 0 | AA14: =Z14/(AB4-Z11) -> 0 | AB14: =IF(AA14=0,0,(AA14*((LOG(AA14))/LOG(2)))) -> 0 | AD14: 222 | AE14: =COUNTIF(L7:L7,AD14) -> 0 | AF14: =AE14/(AG4-AE11) -> 0 | AG14: =IF(AF14=0,0,(AF14*((LOG(AF14))/LOG(2)))) -> 0 | AI14: 222 | AJ14: =COUNTIF(L7:L8,AI14) -> 0 | AK14: =AJ14/(AL4-AJ11) -> 0 | AL14: =IF(AK14=0,0,(AK14*((LOG(AK14))/LOG(2)))) -> 0 | AN14: 222 | AO14: =COUNTIF(L7:L8,AN14) -> 0 | AP14: =AO14/(AQ4-AO11) -> 0 | AQ14: =IF(AP14=0,0,(AP14*((LOG(AP14))/LOG(2)))) -> 0 | AS14: 222 | AT14: =COUNTIF(L7:L8,AS14) -> 0 | AU14: =AT14/(AV4-AT11) -> 0 | AV14: =IF(AU14=0,0,(AU14*((LOG(AU14))/LOG(2)))) -> 0
P15: =SUM(P7:P14) -> 1 | Q15: =-SUM(Q7:Q14) -> 0 | V15: =SUM(V7:V14) -> 1 | W15: =-SUM(W7:W14) -> 0 | AA15: =SUM(AA7:AA14) -> 1 | AB15: =-SUM(AB7:AB14) -> 0 | AF15: =SUM(AF7:AF14) -> 1 | AG15: =-SUM(AG7:AG14) -> 0 | AK15: =SUM(AK7:AK14) -> 1 | AL15: =-SUM(AL7:AL14) -> 0 | AP15: =SUM(AP7:AP14) -> 1 | AQ15: =-SUM(AQ7:AQ14) -> 0 | AU15: =SUM(AU7:AU14) -> 1 | AV15: =-SUM(AV7:AV14) -> 0
P16: U= | Q16: =Q15/(LOG(Q4)/LOG(2)) ->  | V16: U1= | W16: =W15/(LOG(W4)/LOG(2)) ->  | AA16: U2= | AB16: =AB15/(LOG(AB4)/LOG(2)) ->  | AF16: U3= | AG16: =AG15/(LOG(AG4)/LOG(2)) ->  | AK16: U4= | AL16: =AL15/(LOG(AL4)/LOG(2)) ->  | AP16: U5= | AQ16: =AQ15/(LOG(AQ4)/LOG(2)) ->  | AU16: U6= | AV16: =AV15/(LOG(AV4)/LOG(2)) -> 
N19: Total Target Seq
N20: =COUNTIF(L7:L7,G3) -> 0 | P20: 0 | Q20: 0 | R20: 1 | S20: 0 | T20: 0 | U20: 0
P21: % of reinforcement given in 6 equal intervals based on number of trials
P22: %_1 | Q22: %_2 | R22: %_3 | S22: %_4 | T22: %_5 | U22: %_6
O23: target sequence | P23: =$G$3 -> 211 | Q23: 211 | R23: 211 | S23: 211 | T23: 211 | U23: 211
O24: total reinforcement | P24: =U11 -> 0 | Q24: =Z11 -> 0 | R24: =AE11 -> 0 | S24: =AJ11 -> 0 | T24: =AO11 -> 0 | U24: =AT11 -> 0
O25: % target
O26: CCRF
O27: % CCRf
O28: average response rate | P28: =F6/P20 ->  | Q28: =(F6-F6)/Q20 ->  | R28: =(F7-F6)/R20 ->  | S28: =(F7-F7)/S20 ->  | T28: =(F7-F7)/T20 ->  | U28: =(F7-F7)/U20 -> 

Sheet !L824A1I.sha
A1: Report for:!L824A1I.sha
A2: Date: | B2: <date>
A3: Hen: | B3: <hen> | F3: Correct Sequence | G3: =Start!J2 -> 211 | P3: Total Sequences in Data | Q3: =4994-COUNTBLANK(L7:L5000) -> 36 | V3: Total Sequences in Block Data | W3: =COUNTA(L7:L12) -> 6 | AA3: Total Sequences in Block Data | AB3: =COUNTA(L13:L18) -> 6 | AF3: Total Sequences in Block Data | AG3: =COUNTA(L19:L24) -> 6 | AK3: Total Sequences in Block Data | AL3: =COUNTA(L25:L30) -> 6 | AP3: Total Sequences in Block Data | AQ3: =COUNTA(L31:L36) -> 6 | AU3: Total Sequences in Block Data | AV3: =COUNTA(L37:L42) -> 6
P4: Total Sequences in Summary | Q4: =SUM(O7:O14) -> 35 | V4: Total Sequences in Block Summary | W4: =SUM(U7:U14) -> 6 | AA4: Total Sequences in Block Summary | AB4: =SUM(Z7:Z14) -> 6 | AF4: Total Sequences in Block Summary | AG4: =SUM(AE7:AE14) -> 6 | AK4: Total Sequences in Block Summary | AL4: =SUM(AJ7:AJ14) -> 6 | AP4: Total Sequences in Block Summary | AQ4: =SUM(AO7:AO14) -> 6 | AU4: Total Sequences in Block Summary | AV4: =SUM(AT7:AT14) -> 5
T5: Block 1 | Y5: Block 2 | AD5: Block 3 | AI5: Block 4 | AN5: Block 5 | AS5: Block 6
A6: Sequence Component 1 | B6: Time 1 | C6: Sequence Component 2 | D6: Time 2 | E6: Sequence Component 3 | F6: Time 3 | G6: Sequence Component 4 | H6: Time 4 | I6: Sequence Component 5 | J6: Time 5 | K6: Correct? 0=No 1=Yes | L6: Sequence | N6: Frequency | P6: Relative Frequency | Q6: Variability | T6: Frequency | V6: Relative Frequency | W6: Variability | Y6: Frequency | AA6: Relative Frequency | AB6: Variability | AD6: Frequency | AF6: Relative Frequency | AG6: Variability | AI6: Frequency | AK6: Relative Frequency | AL6: Variability | AN6: Frequency | AP6: Relative Frequency | AQ6: Variability | AS6: Frequency | AU6: Relative Frequency | AV6: Variability
A7: 12 | B7: 15 | C7: 24 | D7: 76 | E7: 13 | F7: 86 | K7: 0 | L7: 121 | N7: 111 | O7: =COUNTIF($L$7:$L$500,N7) -> 5 | P7: =O7/$Q$4 -> 0.1428571429 | Q7: =IF(P7=0,0,(P7*((LOG(P7))/LOG(2)))) -> -0.4010507032 | T7: =N7 -> 111 | U7: =COUNTIF(L7:L12,T7) -> 1 | V7: =U7/(W4-U11) -> 0.2 | W7: =IF(V7=0,0,(V7*((LOG(V7))/LOG(2)))) -> -0.464385619 | Y7: =N7 -> 111 | Z7: =COUNTIF(L13:L18,Y7) -> 2 | AA7: =Z7/(AB4-Z11) -> 0.3333333333 | AB7: =IF(AA7=0,0,(AA7*((LOG(AA7))/LOG(2)))) -> -0.5283208336 | AD7: =N7 -> 111 | AE7: =COUNTIF(L19:L24,AD7) -> 2 | AF7: =AE7/(AG4-AE11) -> 0.3333333333 | AG7: =IF(AF7=0,0,(AF7*((LOG(AF7))/LOG(2)))) -> -0.5283208336 | AI7: =N7 -> 111 | AJ7: =COUNTIF(L25:L30,AI7) -> 0 | AK7: =AJ7/(AL4-AJ11) -> 0 | AL7: =IF(AK7=0,0,(AK7*((LOG(AK7))/LOG(2)))) -> 0 | AN7: =N7 -> 111 | AO7: =COUNTIF(L31:L36,AN7) -> 0 | AP7: =AO7/(AQ4-AO11) -> 0 | AQ7: =IF(AP7=0,0,(AP7*((LOG(AP7))/LOG(2)))) -> 0 | AS7: =N7 -> 111 | AT7: =COUNTIF(L37:L42,AS7) -> 0 | AU7: =AT7/(AV4-AT11) -> 0 | AV7: =IF(AU7=0,0,(AU7*((LOG(AU7))/LOG(2)))) -> 0
A8: 12 | B8: 184 | C8: 13 | D8: 189 | E8: 24 | F8: 208 | K8: 0 | L8: 112 | N8: 112 | O8: 15 | P8: 0.4285714286 | Q8: -0.5238824663 | T8: 112 | U8: =COUNTIF(L7:L12,T8) -> 2 | V8: =U8/(W4-U11) -> 0.4 | W8: =IF(V8=0,0,(V8*((LOG(V8))/LOG(2)))) -> -0.528771238 | Y8: 112 | Z8: =COUNTIF(L13:L18,Y8) -> 0 | AA8: =Z8/(AB4-Z11) -> 0 | AB8: =IF(AA8=0,0,(AA8*((LOG(AA8))/LOG(2)))) -> 0 | AD8: 112 | AE8: =COUNTIF(L19:L24,AD8) -> 3 | AF8: =AE8/(AG4-AE11) -> 0.5 | AG8: =IF(AF8=0,0,(AF8*((LOG(AF8))/LOG(2)))) -> -0.5 | AI8: 112 | AJ8: =COUNTIF(L25:L30,AI8) -> 4 | AK8: =AJ8/(AL4-AJ11) -> 0.6666666667 | AL8: =IF(AK8=0,0,(AK8*((LOG(AK8))/LOG(2)))) -> -0.3899750005 | AN8: 112 | AO8: =COUNTIF(L31:L36,AN8) -> 3 | AP8: =AO8/(AQ4-AO11) -> 0.5 | AQ8: =IF(AP8=0,0,(AP8*((LOG(AP8))/LOG(2)))) -> -0.5 | AS8: 112 | AT8: =COUNTIF(L37:L42,AS8) -> 3 | AU8: =AT8/(AV4-AT11) -> 0.6 | AV8: =IF(AU8=0,0,(AU8*((LOG(AU8))/LOG(2)))) -> -0.4421793565
A9: 12 | B9: 319 | C9: 24 | D9: 329 | E9: 13 | F9: 447 | K9: 0 | L9: 121 | N9: 121 | O9: 2 | P9: 0.05714285714 | Q9: -0.2359590295 | T9: 121 | U9: =COUNTIF(L7:L12,T9) -> 2 | V9: =U9/(W4-U11) -> 0.4 | W9: =IF(V9=0,0,(V9*((LOG(V9))/LOG(2)))) -> -0.528771238 | Y9: 121 | Z9: =COUNTIF(L13:L18,Y9) -> 0 | AA9: =Z9/(AB4-Z11) -> 0 | AB9: =IF(AA9=0,0,(AA9*((LOG(AA9))/LOG(2)))) -> 0 | AD9: 121 | AE9: =COUNTIF(L19:L24,AD9) -> 0 | AF9: =AE9/(AG4-AE11) -> 0 | AG9: =IF(AF9=0,0,(AF9*((LOG(AF9))/LOG(2)))) -> 0 | AI9: 121 | AJ9: =COUNTIF(L25:L30,AI9) -> 0 | AK9: =AJ9/(AL4-AJ11) -> 0 | AL9: =IF(AK9=0,0,(AK9*((LOG(AK9))/LOG(2)))) -> 0 | AN9: 121 | AO9: =COUNTIF(L31:L36,AN9) -> 0 | AP9: =AO9/(AQ4-AO11) -> 0 | AQ9: =IF(AP9=0,0,(AP9*((LOG(AP9))/LOG(2)))) -> 0 | AS9: 121 | AT9: =COUNTIF(L37:L42,AS9) -> 0 | AU9: =AT9/(AV4-AT11) -> 0 | AV9: =IF(AU9=0,0,(AU9*((LOG(AU9))/LOG(2)))) -> 0
A10: 21 | B10: 604 | C10: 11 | D10: 627 | E10: 11 | F10: 644 | K10: 0 | L10: 211 | N10: 122 | O10: 10 | P10: 0.2857142857 | Q10: -0.5163871206 | T10: 122 | U10: =COUNTIF(L7:L12,T10) -> 0 | V10: =U10/(W4-U11) -> 0 | W10: =IF(V10=0,0,(V10*((LOG(V10))/LOG(2)))) -> 0 | Y10: 122 | Z10: =COUNTIF(L13:L18,Y10) -> 3 | AA10: =Z10/(AB4-Z11) -> 0.5 | AB10: =IF(AA10=0,0,(AA10*((LOG(AA10))/LOG(2)))) -> -0.5 | AD10: 122 | AE10: =COUNTIF(L19:L24,AD10) -> 1 | AF10: =AE10/(AG4-AE11) -> 0.1666666667 | AG10: =IF(AF10=0,0,(AF10*((LOG(AF10))/LOG(2)))) -> -0.4308270835 | AI10: 122 | AJ10: =COUNTIF(L25:L30,AI10) -> 1 | AK10: =AJ10/(AL4-AJ11) -> 0.1666666667 | AL10: =IF(AK10=0,0,(AK10*((LOG(AK10))/LOG(2)))) -> -0.4308270835 | AN10: 122 | AO10: =COUNTIF(L31:L36,AN10) -> 3 | AP10: =AO10/(AQ4-AO11) -> 0.5 | AQ10: =IF(AP10=0,0,(AP10*((LOG(AP10))/LOG(2)))) -> -0.5 | AS10: 122 | AT10: =COUNTIF(L37:L42,AS10) -> 2 | AU10: =AT10/(AV4-AT11) -> 0.4 | AV10: =IF(AU10=0,0,(AU10*((LOG(AU10))/LOG(2)))) -> -0.528771238
A11: 12 | B11: 926 | C11: 13 | D11: 933 | E11: 13 | F11: 941 | K11: 0 | L11: 111 | N11: 211 | O11: 1 | P11: 0.02857142857 | Q11: -0.1465509433 | T11: 211 | U11: =COUNTIF(L7:L12,T11) -> 1 | Y11: 211 | Z11: =COUNTIF(L13:L18,Y11) -> 0 | AD11: 211 | AE11: =COUNTIF(L19:L24,AD11) -> 0 | AI11: 211 | AJ11: =COUNTIF(L25:L30,AI11) -> 0 | AN11: 211 | AO11: =COUNTIF(L31:L36,AN11) -> 0 | AS11: 211 | AT11: =COUNTIF(L37:L42,AS11) -> 0
A12: 12 | B12: 1084 | C12: 13 | D12: 1090 | E12: 24 | F12: 1108 | K12: 0 | L12: 112 | N12: 212 | O12: 0 | P12: 0 | Q12: 0 | T12: 212 | U12: =COUNTIF(L7:L12,T12) -> 0 | V12: =U12/(W4-U11) -> 0 | W12: =IF(V12=0,0,(V12*((LOG(V12))/LOG(2)))) -> 0 | Y12: 212 | Z12: =COUNTIF(L13:L18,Y12) -> 0 | AA12: =Z12/(AB4-Z11) -> 0 | AB12: =IF(AA12=0,0,(AA12*((LOG(AA12))/LOG(2)))) -> 0 | AD12: 212 | AE12: =COUNTIF(L19:L24,AD12) -> 0 | AF12: =AE12/(AG4-AE11) -> 0 | AG12: =IF(AF12=0,0,(AF12*((LOG(AF12))/LOG(2)))) -> 0 | AI12: 212 | AJ12: =COUNTIF(L25:L30,AI12) -> 0 | AK12: =AJ12/(AL4-AJ11) -> 0 | AL12: =IF(AK12=0,0,(AK12*((LOG(AK12))/LOG(2)))) -> 0 | AN12: 212 | AO12: =COUNTIF(L31:L36,AN12) -> 0 | AP12: =AO12/(AQ4-AO11) -> 0 | AQ12: =IF(AP12=0,0,(AP12*((LOG(AP12))/LOG(2)))) -> 0 | AS12: 212 | AT12: =COUNTIF(L37:L42,AS12) -> 0 | AU12: =AT12/(AV4-AT11) -> 0 | AV12: =IF(AU12=0,0,(AU12*((LOG(AU12))/LOG(2)))) -> 0
A13: 12 | B13: 1203 | C13: 24 | D13: 1221 | E13: 24 | F13: 1228 | K13: 0 | L13: 122 | N13: 221 | O13: 0 | P13: 0 | Q13: 0 | T13: 221 | U13: =COUNTIF(L7:L12,T13) -> 0 | V13: =U13/(W4-U11) -> 0 | W13: =IF(V13=0,0,(V13*((LOG(V13))/LOG(2)))) -> 0 | Y13: 221 | Z13: =COUNTIF(L13:L18,Y13) -> 0 | AA13: =Z13/(AB4-Z11) -> 0 | AB13: =IF(AA13=0,0,(AA13*((LOG(AA13))/LOG(2)))) -> 0 | AD13: 221 | AE13: =COUNTIF(L19:L24,AD13) -> 0 | AF13: =AE13/(AG4-AE11) -> 0 | AG13: =IF(AF13=0,0,(AF13*((LOG(AF13))/LOG(2)))) -> 0 | AI13: 221 | AJ13: =COUNTIF(L25:L30,AI13) -> 0 | AK13: =AJ13/(AL4-AJ11) -> 0 | AL13: =IF(AK13=0,0,(AK13*((LOG(AK13))/LOG(2)))) -> 0 | AN13: 221 | AO13: =COUNTIF(L31:L36,AN13) -> 0 | AP13: =AO13/(AQ4-AO11) -> 0 | AQ13: =IF(AP13=0,0,(AP13*((LOG(AP13))/LOG(2)))) -> 0 | AS13: 221 | AT13: =COUNTIF(L37:L42,AS13) -> 0 | AU13: =AT13/(AV4-AT11) -> 0 | AV13: =IF(AU13=0,0,(AU13*((LOG(AU13))/LOG(2)))) -> 0
A14: 12 | B14: 1327 | C14: 24 | D14: 1349 | E14: 24 | F14: 1357 | K14: 0 | L14: 122 | N14: 222 | O14: 2 | P14: 0.05714285714 | Q14: -0.2359590295 | T14: 222 | U14: =COUNTIF(L7:L12,T14) -> 0 | V14: =U14/(W4-U11) -> 0 | W14: =IF(V14=0,0,(V14*((LOG(V14))/LOG(2)))) -> 0 | Y14: 222 | Z14: =COUNTIF(L13:L18,Y14) -> 1 | AA14: =Z14/(AB4-Z11) -> 0.1666666667 | AB14: =IF(AA14=0,0,(AA14*((LOG(AA14))/LOG(2)))) -> -0.4308270835 | AD14: 222 | AE14: =COUNTIF(L19:L24,AD14) -> 0 | AF14: =AE14/(AG4-AE11) -> 0 | AG14: =IF(AF14=0,0,(AF14*((LOG(AF14))/LOG(2)))) -> 0 | AI14: 222 | AJ14: =COUNTIF(L25:L30,AI14) -> 1 | AK14: =AJ14/(AL4-AJ11) -> 0.1666666667 | AL14: =IF(AK14=0,0,(AK14*((LOG(AK14))/LOG(2)))) -> -0.4308270835 | AN14: 222 | AO14: =COUNTIF(L31:L36,AN14) -> 0 | AP14: =AO14/(AQ4-AO11) -> 0 | AQ14: =IF(AP14=0,0,(AP14*((LOG(AP14))/LOG(2)))) -> 0 | AS14: 222 | AT14: =COUNTIF(L37:L42,AS14) -> 0 | AU14: =AT14/(AV4-AT11) -> 0 | AV14: =IF(AU14=0,0,(AU14*((LOG(AU14))/LOG(2)))) -> 0
A15: 12 | B15: 1455 | C15: 13 | D15: 1459 | E15: 13 | F15: 1464 | K15: 0 | L15: 111 | P15: =SUM(P7:P14) -> 1 | Q15: =-SUM(Q7:Q14) -> 2.059789292 | V15: =SUM(V7:V14) -> 1 | W15: =-SUM(W7:W14) -> 1.521928095 | AA15: =SUM(AA7:AA14) -> 1 | AB15: =-SUM(AB7:AB14) -> 1.459147917 | AF15: =SUM(AF7:AF14) -> 1 | AG15: =-SUM(AG7:AG14) -> 1.459147917 | AK15: =SUM(AK7:AK14) -> 1 | AL15: =-SUM(AL7:AL14) -> 1.251629167 | AP15: =SUM(AP7:AP14) -> 1 | AQ15: =-SUM(AQ7:AQ14) -> 1 | AU15: =SUM(AU7:AU14) -> 1 | AV15: =-SUM(AV7:AV14) -> 0.9709505945
A16: 12 | B16: 1583 | C16: 13 | D16: 1589 | E16: 13 | F16: 1593 | K16: 0 | L16: 111 | P16: U= | Q16: =Q15/(LOG(Q4)/LOG(2)) -> 0.4015745058 | V16: U1= | W16: =W15/(LOG(W4)/LOG(2)) -> 0.5887621559 | AA16: U2= | AB16: =AB15/(LOG(AB4)/LOG(2)) -> 0.5644754679 | AF16: U3= | AG16: =AG15/(LOG(AG4)/LOG(2)) -> 0.5644754679 | AK16: U4= | AL16: =AL15/(LOG(AL4)/LOG(2)) -> 0.484196257 | AP16: U5= | AQ16: =AQ15/(LOG(AQ4)/LOG(2)) -> 0.3868528072 | AU16: U6= | AV16: =AV15/(LOG(AV4)/LOG(2)) -> 0.4181656601
A17: 21 | B17: 1707 | C17: 22 | D17: 1718 | E17: 24 | F17: 1724 | K17: 0 | L17: 222
A18: 12 | B18: 1823 | C18: 24 | D18: 1841 | E18: 24 | F18: 1846 | K18: 0 | L18: 122
A19: 12 | B19: 1944 | C19: 13 | D19: 1950 | E19: 24 | F19: 1964 | K19: 0 | L19: 112 | N19: Total Target Seq
A20: 12 | B20: 2148 | C20: 13 | D20: 2157 | E20: 24 | F20: 2176 | K20: 0 | L20: 112 | N20: =COUNTIF(L7:L42,G3) -> 1 | P20: 6 | Q20: 6 | R20: 6 | S20: 6 | T20: 6 | U20: 6
A21: 12 | B21: 2272 | C21: 13 | D21: 2280 | E21: 13 | F21: 2284 | K21: 0 | L21: 111 | P21: % of reinforcement given in 6 equal intervals based on number of trials
A22: 12 | B22: 2427 | C22: 13 | D22: 2431 | E22: 24 | F22: 2453 | K22: 0 | L22: 112 | P22: %_1 | Q22: %_2 | R22: %_3 | S22: %_4 | T22: %_5 | U22: %_6
A23: 12 | B23: 2549 | C23: 13 | D23: 2551 | E23: 13 | F23: 2554 | K23: 0 | L23: 111 | O23: target sequence | P23: =$G$3 -> 211 | Q23: 211 | R23: 211 | S23: 211 | T23: 211 | U23: 211
A24: 12 | B24: 2656 | C24: 24 | D24: 2678 | E24: 24 | F24: 2685 | K24: 0 | L24: 122 | O24: total reinforcement | P24: =U11 -> 1 | Q24: =Z11 -> 0 | R24: =AE11 -> 0 | S24: =AJ11 -> 0 | T24: =AO11 -> 0 | U24: =AT11 -> 0
A25: 12 | B25: 2788 | C25: 24 | D25: 2808 | E25: 24 | F25: 2811 | K25: 0 | L25: 122 | O25: % target
A26: 12 | B26: 2919 | C26: 13 | D26: 2923 | E26: 24 | F26: 2938 | K26: 0 | L26: 112 | O26: CCRF
A27: 12 | B27: 3139 | C27: 13 | D27: 3190 | E27: 24 | F27: 3207 | K27: 0 | L27: 112 | O27: % CCRf
A28: 12 | B28: 3306 | C28: 13 | D28: 3313 | E28: 24 | F28: 3321 | K28: 0 | L28: 112 | O28: average response rate | P28: =F12/P20 -> 184.6666667 | Q28: =(F18-F12)/Q20 -> 123 | R28: =(F24-F18)/R20 -> 139.8333333 | S28: =(F30-F24)/S20 -> 149 | T28: =(F36-F30)/T20 -> 290.3333333 | U28: =(F42-F36)/U20 -> -886.8333333
A29: 21 | B29: 3424 | C29: 22 | D29: 3429 | E29: 24 | F29: 3436 | K29: 0 | L29: 222
A30: 12 | B30: 3557 | C30: 13 | D30: 3561 | E30: 24 | F30: 3579 | K30: 0 | L30: 112
A31: 12 | B31: 3844 | C31: 24 | D31: 3864 | E31: 24 | F31: 3876 | K31: 0 | L31: 122
A32: 12 | B32: 4199 | C32: 24 | D32: 4233 | E32: 24 | F32: 4240 | K32: 0 | L32: 122
A33: 12 | B33: 4340 | C33: 24 | D33: 4354 | E33: 24 | F33: 4358 | K33: 0 | L33: 122
A34: 12 | B34: 4459 | C34: 13 | D34: 4463 | E34: 24 | F34: 4475 | K34: 0 | L34: 112
A35: 12 | B35: 4602 | C35: 13 | D35: 4618 | E35: 24 | F35: 4629 | K35: 0 | L35: 112
A36: 12 | B36: 5302 | C36: 13 | D36: 5310 | E36: 24 | F36: 5321 | K36: 0 | L36: 112
A37: 12 | B37: 5460 | C37: 24 | D37: 5471 | E37: 24 | F37: 5474 | K37: 0 | L37: 122
A38: 12 | B38: 5576 | C38: 13 | D38: 5582 | E38: 24 | F38: 5599 | K38: 0 | L38: 112
A39: 12 | B39: 6019 | C39: 13 | D39: 6027 | E39: 24 | F39: 6038 | K39: 0 | L39: 112
A40: 12 | B40: 7355 | C40: 13 | D40: 7362 | E40: 24 | F40: 7372 | K40: 0 | L40: 112
A41: 12 | B41: 22157 | C41: 24 | D41: 22172 | E41: 24 | F41: 22178 | K41: 0 | L41: 122
A42: 12 | B42: 23720 | L42: 1

Sheet !L825A3I.sha
A1: Report for:!L825A3I.sha
A2: Date: | B2: <date>
A3: Hen: | B3: <hen> | F3: Correct Sequence | G3: =Start!J2 -> 211 | P3: Total Sequences in Data | Q3: =4994-COUNTBLANK(L7:L5000) -> 9 | V3: Total Sequences in Block Data | W3: =COUNTA(L7:L8) -> 2 | AA3: Total Sequences in Block Data | AB3: =COUNTA(L9:L9) -> 1 | AF3: Total Sequences in Block Data | AG3: =COUNTA(L10:L11) -> 2 | AK3: Total Sequences in Block Data | AL3: =COUNTA(L12:L12) -> 1 | AP3: Total Sequences in Block Data | AQ3: =COUNTA(L13:L14) -> 2 | AU3: Total Sequences in Block Data | AV3: =COUNTA(L15:L15) -> 1
P4: Total Sequences in Summary | Q4: =SUM(O7:O14) -> 8 | V4: Total Sequences in Block Summary | W4: =SUM(U7:U14) -> 2 | AA4: Total Sequences in Block Summary | AB4: =SUM(Z7:Z14) -> 1 | AF4: Total Sequences in Block Summary | AG4: =SUM(AE7:AE14) -> 2 | AK4: Total Sequences in Block Summary | AL4: =SUM(AJ7:AJ14) -> 1 | AP4: Total Sequences in Block Summary | AQ4: =SUM(AO7:AO14) -> 2 | AU4: Total Sequences in Block Summary | AV4: =SUM(AT7:AT14) -> 0
T5: Block 1 | Y5: Block 2 | AD5: Block 3 | AI5: Block 4 | AN5: Block 5 | AS5: Block 6
A6: Sequence Component 1 | B6: Time 1 | C6: Sequence Component 2 | D6: Time 2 | E6: Sequence Component 3 | F6: Time 3 | G6: Sequence Component 4 | H6: Time 4 | I6: Sequence Component 5 | J6: Time 5 | K6: Correct? 0=No 1=Yes | L6: Sequence | N6: Frequency | P6: Relative Frequency | Q6: Variability | T6: Frequency | V6: Relative Frequency | W6: Variability | Y6: Frequency | AA6: Relative Frequency | AB6: Variability | AD6: Frequency | AF6: Relative Frequency | AG6: Variability | AI6: Frequency | AK6: Relative Frequency | AL6: Variability | AN6: Frequency | AP6: Relative Frequency | AQ6: Variability | AS6: Frequency | AU6: Relative Frequency | AV6: Variability
A7: 12 | B7: 116 | C7: 24 | D7: 136 | E7: 24 | F7: 142 | K7: 0 | L7: 122 | N7: 111 | O7: =COUNTIF($L$7:$L$500,N7) -> 2 | P7: =O7/$Q$4 -> 0.25 | Q7: =IF(P7=0,0,(P7*((LOG(P7))/LOG(2)))) -> -0.5 | T7: =N7 -> 111 | U7: =COUNTIF(L7:L8,T7) -> 1 | V7: =U7/(W4-U11) -> 0.5 | W7: =IF(V7=0,0,(V7*((LOG(V7))/LOG(2)))) -> -0.5 | Y7: =N7 -> 111 | Z7: =COUNTIF(L9:L9,Y7) -> 0 | AA7: =Z7/(AB4-Z11) -> 0 | AB7: =IF(AA7=0,0,(AA7*((LOG(AA7))/LOG(2)))) -> 0 | AD7: =N7 -> 111 | AE7: =COUNTIF(L10:L11,AD7) -> 0 | AF7: =AE7/(AG4-AE11) -> 0 | AG7: =IF(AF7=0,0,(AF7*((LOG(AF7))/LOG(2)))) -> 0 | AI7: =N7 -> 111 | AJ7: =COUNTIF(L12:L12,AI7) -> 0 | AK7: =AJ7/(AL4-AJ11) -> 0 | AL7: =IF(AK7=0,0,(AK7*((LOG(AK7))/LOG(2)))) -> 0 | AN7: =N7 -> 111 | AO7: =COUNTIF(L13:L14,AN7) -> 1 | AP7: =AO7/(AQ4-AO11) -> 0.5 | AQ7: =IF(AP7=0,0,(AP7*((LOG(AP7))/LOG(2)))) -> -0.5 | AS7: =N7 -> 111 | AT7: =COUNTIF(L15:L15,AS7) -> 0 | AU7: =AT7/(AV4-AT11) ->  | AV7: =IF(AU7=0,0,(AU7*((LOG(AU7))/LOG(2)))) -> 
A8: 12 | B8: 284 | C8: 13 | D8: 316 | E8: 13 | F8: 324 | K8: 0 | L8: 111 | N8: 112 | O8: 4 | P8: 0.5 | Q8: -0.5 | T8: 112 | U8: =COUNTIF(L7:L8,T8) -> 0 | V8: =U8/(W4-U11) -> 0 | W8: =IF(V8=0,0,(V8*((LOG(V8))/LOG(2)))) -> 0 | Y8: 112 | Z8: =COUNTIF(L9:L9,Y8) -> 0 | AA8: =Z8/(AB4-Z11) -> 0 | AB8: =IF(AA8=0,0,(AA8*((LOG(AA8))/LOG(2)))) -> 0 | AD8: 112 | AE8: =COUNTIF(L10:L11,AD8) -> 2 | AF8: =AE8/(AG4-AE11) -> 1 | AG8: =IF(AF8=0,0,(AF8*((LOG(AF8))/LOG(2)))) -> 0 | AI8: 112 | AJ8: =COUNTIF(L12:L12,AI8) -> 1 | AK8: =AJ8/(AL4-AJ11) -> 1 | AL8: =IF(AK8=0,0,(AK8*((LOG(AK8))/LOG(2)))) -> 0 | AN8: 112 | AO8: =COUNTIF(L13:L14,AN8) -> 1 | AP8: =AO8/(AQ4-AO11) -> 0.5 | AQ8: =IF(AP8=0,0,(AP8*((LOG(AP8))/LOG(2)))) -> -0.5 | AS8: 112 | AT8: =COUNTIF(L15:L15,AS8) -> 0 | AU8: =AT8/(AV4-AT11) ->  | AV8: =IF(AU8=0,0,(AU8*((LOG(AU8))/LOG(2)))) -> 
A9: 12 | B9: 449 | C9: 24 | D9: 467 | E9: 24 | F9: 570 | K9: 0 | L9: 122 | N9: 121 | O9: 0 | P9: 0 | Q9: 0 | T9: 121 | U9: =COUNTIF(L7:L8,T9) -> 0 | V9: =U9/(W4-U11) -> 0 | W9: =IF(V9=0,0,(V9*((LOG(V9))/LOG(2)))) -> 0 | Y9: 121 | Z9: =COUNTIF(L9:L9,Y9) -> 0 | AA9: =Z9/(AB4-Z11) -> 0 | AB9: =IF(AA9=0,0,(AA9*((LOG(AA9))/LOG(2)))) -> 0 | AD9: 121 | AE9: =COUNTIF(L10:L11,AD9) -> 0 | AF9: =AE9/(AG4-AE11) -> 0 | AG9: =IF(AF9=0,0,(AF9*((LOG(AF9))/LOG(2)))) -> 0 | AI9: 121 | AJ9: =COUNTIF(L12:L12,AI9) -> 0 | AK9: =AJ9/(AL4-AJ11) -> 0 | AL9: =IF(AK9=0,0,(AK9*((LOG(AK9))/LOG(2)))) -> 0 | AN9: 121 | AO9: =COUNTIF(L13:L14,AN9) -> 0 | AP9: =AO9/(AQ4-AO11) -> 0 | AQ9: =IF(AP9=0,0,(AP9*((LOG(AP9))/LOG(2)))) -> 0 | AS9: 121 | AT9: =COUNTIF(L15:L15,AS9) -> 0 | AU9: =AT9/(AV4-AT11) ->  | AV9: =IF(AU9=0,0,(AU9*((LOG(AU9))/LOG(2)))) -> 
A10: 12 | B10: 738 | C10: 13 | D10: 745 | E10: 24 | F10: 763 | K10: 0 | L10: 112 | N10: 122 | O10: 2 | P10: 0.25 | Q10: -0.5 | T10: 122 | U10: =COUNTIF(L7:L8,T10) -> 1 | V10: =U10/(W4-U11) -> 0.5 | W10: =IF(V10=0,0,(V10*((LOG(V10))/LOG(2)))) -> -0.5 | Y10: 122 | Z10: =COUNTIF(L9:L9,Y10) -> 1 | AA10: =Z10/(AB4-Z11) -> 1 | AB10: =IF(AA10=0,0,(AA10*((LOG(AA10))/LOG(2)))) -> 0 | AD10: 122 | AE10: =COUNTIF(L10:L11,AD10) -> 0 | AF10: =AE10/(AG4-AE11) -> 0 | AG10: =IF(AF10=0,0,(AF10*((LOG(AF10))/LOG(2)))) -> 0 | AI10: 122 | AJ10: =COUNTIF(L12:L12,AI10) -> 0 | AK10: =AJ10/(AL4-AJ11) -> 0 | AL10: =IF(AK10=0,0,(AK10*((LOG(AK10))/LOG(2)))) -> 0 | AN10: 122 | AO10: =COUNTIF(L13:L14,AN10) -> 0 | AP10: =AO10/(AQ4-AO11) -> 0 | AQ10: =IF(AP10=0,0,(AP10*((LOG(AP10))/LOG(2)))) -> 0 | AS10: 122 | AT10: =COUNTIF(L15:L15,AS10) -> 0 | AU10: =AT10/(AV4-AT11) ->  | AV10: =IF(AU10=0,0,(AU10*((LOG(AU10))/LOG(2)))) -> 
A11: 12 | B11: 1841 | C11: 13 | D11: 1873 | E11: 24 | F11: 1891 | K11: 0 | L11: 112 | N11: 211 | O11: 0 | P11: 0 | Q11: 0 | T11: 211 | U11: =COUNTIF(L7:L8,T11) -> 0 | Y11: 211 | Z11: =COUNTIF(L9:L9,Y11) -> 0 | AD11: 211 | AE11: =COUNTIF(L10:L11,AD11) -> 0 | AI11: 211 | AJ11: =COUNTIF(L12:L12,AI11) -> 0 | AN11: 211 | AO11: =COUNTIF(L13:L14,AN11) -> 0 | AS11: 211 | AT11: =COUNTIF(L15:L15,AS11) -> 0
A12: 12 | B12: 1996 | C12: 13 | D12: 2002 | E12: 24 | F12: 2019 | K12: 0 | L12: 112 | N12: 212 | O12: 0 | P12: 0 | Q12: 0 | T12: 212 | U12: =COUNTIF(L7:L8,T12) -> 0 | V12: =U12/(W4-U11) -> 0 | W12: =IF(V12=0,0,(V12*((LOG(V12))/LOG(2)))) -> 0 | Y12: 212 | Z12: =COUNTIF(L9:L9,Y12) -> 0 | AA12: =Z12/(AB4-Z11) -> 0 | AB12: =IF(AA12=0,0,(AA12*((LOG(AA12))/LOG(2)))) -> 0 | AD12: 212 | AE12: =COUNTIF(L10:L11,AD12) -> 0 | AF12: =AE12/(AG4-AE11) -> 0 | AG12: =IF(AF12=0,0,(AF12*((LOG(AF12))/LOG(2)))) -> 0 | AI12: 212 | AJ12: =COUNTIF(L12:L12,AI12) -> 0 | AK12: =AJ12/(AL4-AJ11) -> 0 | AL12: =IF(AK12=0,0,(AK12*((LOG(AK12))/LOG(2)))) -> 0 | AN12: 212 | AO12: =COUNTIF(L13:L14,AN12) -> 0 | AP12: =AO12/(AQ4-AO11) -> 0 | AQ12: =IF(AP12=0,0,(AP12*((LOG(AP12))/LOG(2)))) -> 0 | AS12: 212 | AT12: =COUNTIF(L15:L15,AS12) -> 0 | AU12: =AT12/(AV4-AT11) ->  | AV12: =IF(AU12=0,0,(AU12*((LOG(AU12))/LOG(2)))) -> 
A13: 12 | B13: 2887 | C13: 13 | D13: 2892 | E13: 24 | F13: 2904 | K13: 0 | L13: 112 | N13: 221 | O13: 0 | P13: 0 | Q13: 0 | T13: 221 | U13: =COUNTIF(L7:L8,T13) -> 0 | V13: =U13/(W4-U11) -> 0 | W13: =IF(V13=0,0,(V13*((LOG(V13))/LOG(2)))) -> 0 | Y13: 221 | Z13: =COUNTIF(L9:L9,Y13) -> 0 | AA13: =Z13/(AB4-Z11) -> 0 | AB13: =IF(AA13=0,0,(AA13*((LOG(AA13))/LOG(2)))) -> 0 | AD13: 221 | AE13: =COUNTIF(L10:L11,AD13) -> 0 | AF13: =AE13/(AG4-AE11) -> 0 | AG13: =IF(AF13=0,0,(AF13*((LOG(AF13))/LOG(2)))) -> 0 | AI13: 221 | AJ13: =COUNTIF(L12:L12,AI13) -> 0 | AK13: =AJ13/(AL4-AJ11) -> 0 | AL13: =IF(AK13=0,0,(AK13*((LOG(AK13))/LOG(2)))) -> 0 | AN13: 221 | AO13: =COUNTIF(L13:L14,AN13) -> 0 | AP13: =AO13/(AQ4-AO11) -> 0 | AQ13: =IF(AP13=0,0,(AP13*((LOG(AP13))/LOG(2)))) -> 0 | AS13: 221 | AT13: =COUNTIF(L15:L15,AS13) -> 0 | AU13: =AT13/(AV4-AT11) ->  | AV13: =IF(AU13=0,0,(AU13*((LOG(AU13))/LOG(2)))) -> 
A14: 12 | B14: 3040 | C14: 13 | D14: 3049 | E14: 13 | F14: 4575 | K14: 0 | L14: 111 | N14: 222 | O14: 0 | P14: 0 | Q14: 0 | T14: 222 | U14: =COUNTIF(L7:L8,T14) -> 0 | V14: =U14/(W4-U11) -> 0 | W14: =IF(V14=0,0,(V14*((LOG(V14))/LOG(2)))) -> 0 | Y14: 222 | Z14: =COUNTIF(L9:L9,Y14) -> 0 | AA14: =Z14/(AB4-Z11) -> 0 | AB14: =IF(AA14=0,0,(AA14*((LOG(AA14))/LOG(2)))) -> 0 | AD14: 222 | AE14: =COUNTIF(L10:L11,AD14) -> 0 | AF14: =AE14/(AG4-AE11) -> 0 | AG14: =IF(AF14=0,0,(AF14*((LOG(AF14))/LOG(2)))) -> 0 | AI14: 222 | AJ14: =COUNTIF(L12:L12,AI14) -> 0 | AK14: =AJ14/(AL4-AJ11) -> 0 | AL14: =IF(AK14=0,0,(AK14*((LOG(AK14))/LOG(2)))) -> 0 | AN14: 222 | AO14: =COUNTIF(L13:L14,AN14) -> 0 | AP14: =AO14/(AQ4-AO11) -> 0 | AQ14: =IF(AP14=0,0,(AP14*((LOG(AP14))/LOG(2)))) -> 0 | AS14: 222 | AT14: =COUNTIF(L15:L15,AS14) -> 0 | AU14: =AT14/(AV4-AT11) ->  | AV14: =IF(AU14=0,0,(AU14*((LOG(AU14))/LOG(2)))) -> 
A15: 21 | B15: 17767 | C15: 22 | D15: 21775 | L15: 22 | P15: =SUM(P7:P14) -> 1 | Q15: =-SUM(Q7:Q14) -> 1.5 | V15: =SUM(V7:V14) -> 1 | W15: =-SUM(W7:W14) -> 1 | AA15: =SUM(AA7:AA14) -> 1 | AB15: =-SUM(AB7:AB14) -> 0 | AF15: =SUM(AF7:AF14) -> 1 | AG15: =-SUM(AG7:AG14) -> 0 | AK15: =SUM(AK7:AK14) -> 1 | AL15: =-SUM(AL7:AL14) -> 0 | AP15: =SUM(AP7:AP14) -> 1 | AQ15: =-SUM(AQ7:AQ14) -> 1 | AU15: =SUM(AU7:AU14) ->  | AV15: =-SUM(AV7:AV14) -> 
P16: U= | Q16: =Q15/(LOG(Q4)/LOG(2)) -> 0.5 | V16: U1= | W16: =W15/(LOG(W4)/LOG(2)) -> 1 | AA16: U2= | AB16: =AB15/(LOG(AB4)/LOG(2)) ->  | AF16: U3= | AG16: =AG15/(LOG(AG4)/LOG(2)) -> 0 | AK16: U4= | AL16: =AL15/(LOG(AL4)/LOG(2)) ->  | AP16: U5= | AQ16: =AQ15/(LOG(AQ4)/LOG(2)) -> 1 | AU16: U6= | AV16: =AV15/(LOG(AV4)/LOG(2)) -> 
N19: Total Target Seq
N20: =COUNTIF(L7:L15,G3) -> 0 | P20: 2 | Q20: 1 | R20: 2 | S20: 1 | T20: 2 | U20: 1
P21: % of reinforcement given in 6 equal intervals based on number of trials
P22: %_1 | Q22: %_2 | R22: %_3 | S22: %_4 | T22: %_5 | U22: %_6
O23: target sequence | P23: =$G$3 -> 211 | Q23: 211 | R23: 211 | S23: 211 | T23: 211 | U23: 211
O24: total reinforcement | P24: =U11 -> 0 | Q24: =Z11 -> 0 | R24: =AE11 -> 0 | S24: =AJ11 -> 0 | T24: =AO11 -> 0 | U24: =AT11 -> 0
O25: % target
O26: CCRF
O27: % CCRf
O28: average response rate | P28: =F8/P20 -> 162 | Q28: =(F9-F8)/Q20 -> 246 | R28: =(F11-F9)/R20 -> 660.5 | S28: =(F12-F11)/S20 -> 128 | T28: =(F14-F12)/T20 -> 1278 | U28: =(F15-F14)/U20 -> -4575

Sheet !L826A1I.sha
A1: Report for:!L826A1I.sha
A2: Date: | B2: <date>
A3: Hen: | B3: <hen> | F3: Correct Sequence | G3: =Start!J2 -> 211 | P3: Total Sequences in Data | Q3: =4994-COUNTBLANK(L7:L5000) -> 6 | V3: Total Sequences in Block Data | W3: =COUNTA(L7:L7) -> 1 | AA3: Total Sequences in Block Data | AB3: =COUNTA(L8:L8) -> 1 | AF3: Total Sequences in Block Data | AG3: =COUNTA(L9:L9) -> 1 | AK3: Total Sequences in Block Data | AL3: =COUNTA(L10:L10) -> 1 | AP3: Total Sequences in Block Data | AQ3: =COUNTA(L11:L11) -> 1 | AU3: Total Sequences in Block Data | AV3: =COUNTA(L12:L12) -> 1
P4: Total Sequences in Summary | Q4: =SUM(O7:O14) -> 5 | V4: Total Sequences in Block Summary | W4: =SUM(U7:U14) -> 1 | AA4: Total Sequences in Block Summary | AB4: =SUM(Z7:Z14) -> 1 | AF4: Total Sequences in Block Summary | AG4: =SUM(AE7:AE14) -> 1 | AK4: Total Sequences in Block Summary | AL4: =SUM(AJ7:AJ14) -> 1 | AP4: Total Sequences in Block Summary | AQ4: =SUM(AO7:AO14) -> 1 | AU4: Total Sequences in Block Summary | AV4: =SUM(AT7:AT14) -> 0
T5: Block 1 | Y5: Block 2 | AD5: Block 3 | AI5: Block 4 | AN5: Block 5 | AS5: Block 6
A6: Sequence Component 1 | B6: Time 1 | C6: Sequence Component 2 | D6: Time 2 | E6: Sequence Component 3 | F6: Time 3 | G6: Sequence Component 4 | H6: Time 4 | I6: Sequence Component 5 | J6: Time 5 | K6: Correct? 0=No 1=Yes | L6: Sequence | N6: Frequency | P6: Relative Frequency | Q6: Variability | T6: Frequency | V6: Relative Frequency | W6: Variability | Y6: Frequency | AA6: Relative Frequency | AB6: Variability | AD6: Frequency | AF6: Relative Frequency | AG6: Variability | AI6: Frequency | AK6: Relative Frequency | AL6: Variability | AN6: Frequency | AP6: Relative Frequency | AQ6: Variability | AS6: Frequency | AU6: Relative Frequency | AV6: Variability
A7: 12 | B7: 83 | C7: 13 | D7: 91 | E7: 24 | F7: 104 | K7: 0 | L7: 112 | N7: 111 | O7: =COUNTIF($L$7:$L$500,N7) -> 1 | P7: =O7/$Q$4 -> 0.2 | Q7: =IF(P7=0,0,(P7*((LOG(P7))/LOG(2)))) -> -0.464385619 | T7: =N7 -> 111 | U7: =COUNTIF(L7:L7,T7) -> 0 | V7: =U7/(W4-U11) -> 0 | W7: =IF(V7=0,0,(V7*((LOG(V7))/LOG(2)))) -> 0 | Y7: =N7 -> 111 | Z7: =COUNTIF(L8:L8,Y7) -> 1 | AA7: =Z7/(AB4-Z11) -> 1 | AB7: =IF(AA7=0,0,(AA7*((LOG(AA7))/LOG(2)))) -> 0 | AD7: =N7 -> 111 | AE7: =COUNTIF(L9:L9,AD7) -> 0 | AF7: =AE7/(AG4-AE11) -> 0 | AG7: =IF(AF7=0,0,(AF7*((LOG(AF7))/LOG(2)))) -> 0 | AI7: =N7 -> 111 | AJ7: =COUNTIF(L10:L10,AI7) -> 0 | AK7: =AJ7/(AL4-AJ11) -> 0 | AL7: =IF(AK7=0,0,(AK7*((LOG(AK7))/LOG(2)))) -> 0 | AN7: =N7 -> 111 | AO7: =COUNTIF(L11:L11,AN7) -> 0 | AP7: =AO7/(AQ4-AO11) -> 0 | AQ7: =IF(AP7=0,0,(AP7*((LOG(AP7))/LOG(2)))) -> 0 | AS7: =N7 -> 111 | AT7: =COUNTIF(L12:L12,AS7) -> 0 | AU7: =AT7/(AV4-AT11) ->  | AV7: =IF(AU7=0,0,(AU7*((LOG(AU7))/LOG(2)))) -> 
A8: 12 | B8: 378 | C8: 13 | D8: 382 | E8: 13 | F8: 394 | K8: 0 | L8: 111 | N8: 112 | O8: 2 | P8: 0.4 | Q8: -0.528771238 | T8: 112 | U8: =COUNTIF(L7:L7,T8) -> 1 | V8: =U8/(W4-U11) -> 1 | W8: =IF(V8=0,0,(V8*((LOG(V8))/LOG(2)))) -> 0 | Y8: 112 | Z8: =COUNTIF(L8:L8,Y8) -> 0 | AA8: =Z8/(AB4-Z11) -> 0 | AB8: =IF(AA8=0,0,(AA8*((LOG(AA8))/LOG(2)))) -> 0 | AD8: 112 | AE8: =COUNTIF(L9:L9,AD8) -> 0 | AF8: =AE8/(AG4-AE11) -> 0 | AG8: =IF(AF8=0,0,(AF8*((LOG(AF8))/LOG(2)))) -> 0 | AI8: 112 | AJ8: =COUNTIF(L10:L10,AI8) -> 1 | AK8: =AJ8/(AL4-AJ11) -> 1 | AL8: =IF(AK8=0,0,(AK8*((LOG(AK8))/LOG(2)))) -> 0 | AN8: 112 | AO8: =COUNTIF(L11:L11,AN8) -> 0 | AP8: =AO8/(AQ4-AO11) -> 0 | AQ8: =IF(AP8=0,0,(AP8*((LOG(AP8))/LOG(2)))) -> 0 | AS8: 112 | AT8: =COUNTIF(L12:L12,AS8) -> 0 | AU8: =AT8/(AV4-AT11) ->  | AV8: =IF(AU8=0,0,(AU8*((LOG(AU8))/LOG(2)))) -> 
A9: 12 | B9: 1094 | C9: 24 | D9: 1112 | E9: 24 | F9: 1118 | K9: 0 | L9: 122 | N9: 121 | O9: 0 | P9: 0 | Q9: 0 | T9: 121 | U9: =COUNTIF(L7:L7,T9) -> 0 | V9: =U9/(W4-U11) -> 0 | W9: =IF(V9=0,0,(V9*((LOG(V9))/LOG(2)))) -> 0 | Y9: 121 | Z9: =COUNTIF(L8:L8,Y9) -> 0 | AA9: =Z9/(AB4-Z11) -> 0 | AB9: =IF(AA9=0,0,(AA9*((LOG(AA9))/LOG(2)))) -> 0 | AD9: 121 | AE9: =COUNTIF(L9:L9,AD9) -> 0 | AF9: =AE9/(AG4-AE11) -> 0 | AG9: =IF(AF9=0,0,(AF9*((LOG(AF9))/LOG(2)))) -> 0 | AI9: 121 | AJ9: =COUNTIF(L10:L10,AI9) -> 0 | AK9: =AJ9/(AL4-AJ11) -> 0 | AL9: =IF(AK9=0,0,(AK9*((LOG(AK9))/LOG(2)))) -> 0 | AN9: 121 | AO9: =COUNTIF(L11:L11,AN9) -> 0 | AP9: =AO9/(AQ4-AO11) -> 0 | AQ9: =IF(AP9=0,0,(AP9*((LOG(AP9))/LOG(2)))) -> 0 | AS9: 121 | AT9: =COUNTIF(L12:L12,AS9) -> 0 | AU9: =AT9/(AV4-AT11) ->  | AV9: =IF(AU9=0,0,(AU9*((LOG(AU9))/LOG(2)))) -> 
A10: 12 | B10: 1275 | C10: 13 | D10: 1290 | E10: 24 | F10: 1301 | K10: 0 | L10: 112 | N10: 122 | O10: 1 | P10: 0.2 | Q10: -0.464385619 | T10: 122 | U10: =COUNTIF(L7:L7,T10) -> 0 | V10: =U10/(W4-U11) -> 0 | W10: =IF(V10=0,0,(V10*((LOG(V10))/LOG(2)))) -> 0 | Y10: 122 | Z10: =COUNTIF(L8:L8,Y10) -> 0 | AA10: =Z10/(AB4-Z11) -> 0 | AB10: =IF(AA10=0,0,(AA10*((LOG(AA10))/LOG(2)))) -> 0 | AD10: 122 | AE10: =COUNTIF(L9:L9,AD10) -> 1 | AF10: =AE10/(AG4-AE11) -> 1 | AG10: =IF(AF10=0,0,(AF10*((LOG(AF10))/LOG(2)))) -> 0 | AI10: 122 | AJ10: =COUNTIF(L10:L10,AI10) -> 0 | AK10: =AJ10/(AL4-AJ11) -> 0 | AL10: =IF(AK10=0,0,(AK10*((LOG(AK10))/LOG(2)))) -> 0 | AN10: 122 | AO10: =COUNTIF(L11:L11,AN10) -> 0 | AP10: =AO10/(AQ4-AO11) -> 0 | AQ10: =IF(AP10=0,0,(AP10*((LOG(AP10))/LOG(2)))) -> 0 | AS10: 122 | AT10: =COUNTIF(L12:L12,AS10) -> 0 | AU10: =AT10/(AV4-AT11) ->  | AV10: =IF(AU10=0,0,(AU10*((LOG(AU10))/LOG(2)))) -> 
A11: 21 | B11: 2924 | C11: 22 | D11: 2926 | E11: 13 | F11: 7322 | K11: 0 | L11: 221 | N11: 211 | O11: 0 | P11: 0 | Q11: 0 | T11: 211 | U11: =COUNTIF(L7:L7,T11) -> 0 | Y11: 211 | Z11: =COUNTIF(L8:L8,Y11) -> 0 | AD11: 211 | AE11: =COUNTIF(L9:L9,AD11) -> 0 | AI11: 211 | AJ11: =COUNTIF(L10:L10,AI11) -> 0 | AN11: 211 | AO11: =COUNTIF(L11:L11,AN11) -> 0 | AS11: 211 | AT11: =COUNTIF(L12:L12,AS11) -> 0
A12: 12 | B12: 11974 | L12: 1 | N12: 212 | O12: 0 | P12: 0 | Q12: 0 | T12: 212 | U12: =COUNTIF(L7:L7,T12) -> 0 | V12: =U12/(W4-U11) -> 0 | W12: =IF(V12=0,0,(V12*((LOG(V12))/LOG(2)))) -> 0 | Y12: 212 | Z12: =COUNTIF(L8:L8,Y12) -> 0 | AA12: =Z12/(AB4-Z11) -> 0 | AB12: =IF(AA12=0,0,(AA12*((LOG(AA12))/LOG(2)))) -> 0 | AD12: 212 | AE12: =COUNTIF(L9:L9,AD12) -> 0 | AF12: =AE12/(AG4-AE11) -> 0 | AG12: =IF(AF12=0,0,(AF12*((LOG(AF12))/LOG(2)))) -> 0 | AI12: 212 | AJ12: =COUNTIF(L10:L10,AI12) -> 0 | AK12: =AJ12/(AL4-AJ11) -> 0 | AL12: =IF(AK12=0,0,(AK12*((LOG(AK12))/LOG(2)))) -> 0 | AN12: 212 | AO12: =COUNTIF(L11:L11,AN12) -> 0 | AP12: =AO12/(AQ4-AO11) -> 0 | AQ12: =IF(AP12=0,0,(AP12*((LOG(AP12))/LOG(2)))) -> 0 | AS12: 212 | AT12: =COUNTIF(L12:L12,AS12) -> 0 | AU12: =AT12/(AV4-AT11) ->  | AV12: =IF(AU12=0,0,(AU12*((LOG(AU12))/LOG(2)))) -> 
N13: 221 | O13: 1 | P13: 0.2 | Q13: -0.464385619 | T13: 221 | U13: =COUNTIF(L7:L7,T13) -> 0 | V13: =U13/(W4-U11) -> 0 | W13: =IF(V13=0,0,(V13*((LOG(V13))/LOG(2)))) -> 0 | Y13: 221 | Z13: =COUNTIF(L8:L8,Y13) -> 0 | AA13: =Z13/(AB4-Z11) -> 0 | AB13: =IF(AA13=0,0,(AA13*((LOG(AA13))/LOG(2)))) -> 0 | AD13: 221 | AE13: =COUNTIF(L9:L9,AD13) -> 0 | AF13: =AE13/(AG4-AE11) -> 0 | AG13: =IF(AF13=0,0,(AF13*((LOG(AF13))/LOG(2)))) -> 0 | AI13: 221 | AJ13: =COUNTIF(L10:L10,AI13) -> 0 | AK13: =AJ13/(AL4-AJ11) -> 0 | AL13: =IF(AK13=0,0,(AK13*((LOG(AK13))/LOG(2)))) -> 0 | AN13: 221 | AO13: =COUNTIF(L11:L11,AN13) -> 1 | AP13: =AO13/(AQ4-AO11) -> 1 | AQ13: =IF(AP13=0,0,(AP13*((LOG(AP13))/LOG(2)))) -> 0 | AS13: 221 | AT13: =COUNTIF(L12:L12,AS13) -> 0 | AU13: =AT13/(AV4-AT11) ->  | AV13: =IF(AU13=0,0,(AU13*((LOG(AU13))/LOG(2)))) -> 
N14: 222 | O14: 0 | P14: 0 | Q14: 0 | T14: 222 | U14: =COUNTIF(L7:L7,T14) -> 0 | V14: =U14/(W4-U11) -> 0 | W14: =IF(V14=0,0,(V14*((LOG(V14))/LOG(2)))) -> 0 | Y14: 222 | Z14: =COUNTIF(L8:L8,Y14) -> 0 | AA14: =Z14/(AB4-Z11) -> 0 | AB14: =IF(AA14=0,0,(AA14*((LOG(AA14))/LOG(2)))) -> 0 | AD14: 222 | AE14: =COUNTIF(L9:L9,AD14) -> 0 | AF14: =AE14/(AG4-AE11) -> 0 | AG14: =IF(AF14=0,0,(AF14*((LOG(AF14))/LOG(2)))) -> 0 | AI14: 222 | AJ14: =COUNTIF(L10:L10,AI14) -> 0 | AK14: =AJ14/(AL4-AJ11) -> 0 | AL14: =IF(AK14=0,0,(AK14*((LOG(AK14))/LOG(2)))) -> 0 | AN14: 222 | AO14: =COUNTIF(L11:L11,AN14) -> 0 | AP14: =AO14/(AQ4-AO11) -> 0 | AQ14: =IF(AP14=0,0,(AP14*((LOG(AP14))/LOG(2)))) -> 0 | AS14: 222 | AT14: =COUNTIF(L12:L12,AS14) -> 0 | AU14: =AT14/(AV4-AT11) ->  | AV14: =IF(AU14=0,0,(AU14*((LOG(AU14))/LOG(2)))) -> 
P15: =SUM(P7:P14) -> 1 | Q15: =-SUM(Q7:Q14) -> 1.921928095 | V15: =SUM(V7:V14) -> 1 | W15: =-SUM(W7:W14) -> 0 | AA15: =SUM(AA7:AA14) -> 1 | AB15: =-SUM(AB7:AB14) -> 0 | AF15: =SUM(AF7:AF14) -> 1 | AG15: =-SUM(AG7:AG14) -> 0 | AK15: =SUM(AK7:AK14) -> 1 | AL15: =-SUM(AL7:AL14) -> 0 | AP15: =SUM(AP7:AP14) -> 1 | AQ15: =-SUM(AQ7:AQ14) -> 0 | AU15: =SUM(AU7:AU14) ->  | AV15: =-SUM(AV7:AV14) -> 
P16: U= | Q16: =Q15/(LOG(Q4)/LOG(2)) -> 0.8277293768 | V16: U1= | W16: =W15/(LOG(W4)/LOG(2)) ->  | AA16: U2= | AB16: =AB15/(LOG(AB4)/LOG(2)) ->  | AF16: U3= | AG16: =AG15/(LOG(AG4)/LOG(2)) ->  | AK16: U4= | AL16: =AL15/(LOG(AL4)/LOG(2)) ->  | AP16: U5= | AQ16: =AQ15/(LOG(AQ4)/LOG(2)) ->  | AU16: U6= | AV16: =AV15/(LOG(AV4)/LOG(2)) -> 
N19: Total Target Seq
N20: =COUNTIF(L7:L12,G3) -> 0 | P20: 1 | Q20: 1 | R20: 1 | S20: 1 | T20: 1 | U20: 1
P21: % of reinforcement given in 6 equal intervals based on number of trials
P22: %_1 | Q22: %_2 | R22: %_3 | S22: %_4 | T22: %_5 | U22: %_6
O23: target sequence | P23: =$G$3 -> 211 | Q23: 211 | R23: 211 | S23: 211 | T23: 211 | U23: 211
O24: total reinforcement | P24: =U11 -> 0 | Q24: =Z11 -> 0 | R24: =AE11 -> 0 | S24: =AJ11 -> 0 | T24: =AO11 -> 0 | U24: =AT11 -> 0
O25: % target
O26: CCRF
O27: % CCRf
O28: average response rate | P28: =F7/P20 -> 104 | Q28: =(F8-F7)/Q20 -> 290 | R28: =(F9-F8)/R20 -> 724 | S28: =(F10-F9)/S20 -> 183 | T28: =(F11-F10)/T20 -> 6021 | U28: =(F12-F11)/U20 -> -7322

Sheet !L826G1I.sha
A1: Report for:!L826G1I.sha
A2: Date: | B2: <date>
A3: Hen: | B3: <hen> | F3: Correct Sequence | G3: =Start!J2 -> 211 | P3: Total Sequences in Data | Q3: =4994-COUNTBLANK(L7:L5000) -> 0 | V3: Total Sequences in Block Data | W3: =COUNTA(L6:L7) -> 1 | AA3: Total Sequences in Block Data | AB3: =COUNTA(L6:L7) -> 1 | AF3: Total Sequences in Block Data | AG3: =COUNTA(L6:L7) -> 1 | AK3: Total Sequences in Block Data | AL3: =COUNTA(L6:L7) -> 1 | AP3: Total Sequences in Block Data | AQ3: =COUNTA(L6:L7) -> 1 | AU3: Total Sequences in Block Data | AV3: =COUNTA(L6:L7) -> 1
P4: Total Sequences in Summary | Q4: =SUM(O7:O14) -> 0 | V4: Total Sequences in Block Summary | W4: =SUM(U7:U14) -> 0 | AA4: Total Sequences in Block Summary | AB4: =SUM(Z7:Z14) -> 0 | AF4: Total Sequences in Block Summary | AG4: =SUM(AE7:AE14) -> 0 | AK4: Total Sequences in Block Summary | AL4: =SUM(AJ7:AJ14) -> 0 | AP4: Total Sequences in Block Summary | AQ4: =SUM(AO7:AO14) -> 0 | AU4: Total Sequences in Block Summary | AV4: =SUM(AT7:AT14) -> 0
T5: Block 1 | Y5: Block 2 | AD5: Block 3 | AI5: Block 4 | AN5: Block 5 | AS5: Block 6
A6: Sequence Component 1 | B6: Time 1 | C6: Sequence Component 2 | D6: Time 2 | E6: Sequence Component 3 | F6: Time 3 | G6: Sequence Component 4 | H6: Time 4 | I6: Sequence Component 5 | J6: Time 5 | K6: Correct? 0=No 1=Yes | L6: Sequence | N6: Frequency | P6: Relative Frequency | Q6: Variability | T6: Frequency | V6: Relative Frequency | W6: Variability | Y6: Frequency | AA6: Relative Frequency | AB6: Variability | AD6: Frequency | AF6: Relative Frequency | AG6: Variability | AI6: Frequency | AK6: Relative Frequency | AL6: Variability | AN6: Frequency | AP6: Relative Frequency | AQ6: Variability | AS6: Frequency | AU6: Relative Frequency | AV6: Variability
N7: 111 | O7: =COUNTIF($L$7:$L$500,N7) -> 0 | P7: =O7/$Q$4 ->  | Q7: =IF(P7=0,0,(P7*((LOG(P7))/LOG(2)))) ->  | T7: =N7 -> 111 | U7: =COUNTIF(L6:L7,T7) -> 0 | V7: =U7/(W4-U11) ->  | W7: =IF(V7=0,0,(V7*((LOG(V7))/LOG(2)))) ->  | Y7: =N7 -> 111 | Z7: =COUNTIF(L6:L7,Y7) -> 0 | AA7: =Z7/(AB4-Z11) ->  | AB7: =IF(AA7=0,0,(AA7*((LOG(AA7))/LOG(2)))) ->  | AD7: =N7 -> 111 | AE7: =COUNTIF(L6:L7,AD7) -> 0 | AF7: =AE7/(AG4-AE11) ->  | AG7: =IF(AF7=0,0,(AF7*((LOG(AF7))/LOG(2)))) ->  | AI7: =N7 -> 111 | AJ7: =COUNTIF(L6:L7,AI7) -> 0 | AK7: =AJ7/(AL4-AJ11) ->  | AL7: =IF(AK7=0,0,(AK7*((LOG(AK7))/LOG(2)))) ->  | AN7: =N7 -> 111 | AO7: =COUNTIF(L6:L7,AN7) -> 0 | AP7: =AO7/(AQ4-AO11) ->  | AQ7: =IF(AP7=0,0,(AP7*((LOG(AP7))/LOG(2)))) ->  | AS7: =N7 -> 111 | AT7: =COUNTIF(L6:L7,AS7) -> 0 | AU7: =AT7/(AV4-AT11) ->  | AV7: =IF(AU7=0,0,(AU7*((LOG(AU7))/LOG(2)))) -> 
N8: 112 | O8: 0 | T8: 112 | U8: =COUNTIF(L6:L7,T8) -> 0 | V8: =U8/(W4-U11) ->  | W8: =IF(V8=0,0,(V8*((LOG(V8))/LOG(2)))) ->  | Y8: 112 | Z8: =COUNTIF(L6:L7,Y8) -> 0 | AA8: =Z8/(AB4-Z11) ->  | AB8: =IF(AA8=0,0,(AA8*((LOG(AA8))/LOG(2)))) ->  | AD8: 112 | AE8: =COUNTIF(L6:L7,AD8) -> 0 | AF8: =AE8/(AG4-AE11) ->  | AG8: =IF(AF8=0,0,(AF8*((LOG(AF8))/LOG(2)))) ->  | AI8: 112 | AJ8: =COUNTIF(L6:L7,AI8) -> 0 | AK8: =AJ8/(AL4-AJ11) ->  | AL8: =IF(AK8=0,0,(AK8*((LOG(AK8))/LOG(2)))) ->  | AN8: 112 | AO8: =COUNTIF(L6:L7,AN8) -> 0 | AP8: =AO8/(AQ4-AO11) ->  | AQ8: =IF(AP8=0,0,(AP8*((LOG(AP8))/LOG(2)))) ->  | AS8: 112 | AT8: =COUNTIF(L6:L7,AS8) -> 0 | AU8: =AT8/(AV4-AT11) ->  | AV8: =IF(AU8=0,0,(AU8*((LOG(AU8))/LOG(2)))) -> 
N9: 121 | O9: 0 | T9: 121 | U9: =COUNTIF(L6:L7,T9) -> 0 | V9: =U9/(W4-U11) ->  | W9: =IF(V9=0,0,(V9*((LOG(V9))/LOG(2)))) ->  | Y9: 121 | Z9: =COUNTIF(L6:L7,Y9) -> 0 | AA9: =Z9/(AB4-Z11) ->  | AB9: =IF(AA9=0,0,(AA9*((LOG(AA9))/LOG(2)))) ->  | AD9: 121 | AE9: =COUNTIF(L6:L7,AD9) -> 0 | AF9: =AE9/(AG4-AE11) ->  | AG9: =IF(AF9=0,0,(AF9*((LOG(AF9))/LOG(2)))) ->  | AI9: 121 | AJ9: =COUNTIF(L6:L7,AI9) -> 0 | AK9: =AJ9/(AL4-AJ11) ->  | AL9: =IF(AK9=0,0,(AK9*((LOG(AK9))/LOG(2)))) ->  | AN9: 121 | AO9: =COUNTIF(L6:L7,AN9) -> 0 | AP9: =AO9/(AQ4-AO11) ->  | AQ9: =IF(AP9=0,0,(AP9*((LOG(AP9))/LOG(2)))) ->  | AS9: 121 | AT9: =COUNTIF(L6:L7,AS9) -> 0 | AU9: =AT9/(AV4-AT11) ->  | AV9: =IF(AU9=0,0,(AU9*((LOG(AU9))/LOG(2)))) -> 
N10: 122 | O10: 0 | T10: 122 | U10: =COUNTIF(L6:L7,T10) -> 0 | V10: =U10/(W4-U11) ->  | W10: =IF(V10=0,0,(V10*((LOG(V10))/LOG(2)))) ->  | Y10: 122 | Z10: =COUNTIF(L6:L7,Y10) -> 0 | AA10: =Z10/(AB4-Z11) ->  | AB10: =IF(AA10=0,0,(AA10*((LOG(AA10))/LOG(2)))) ->  | AD10: 122 | AE10: =COUNTIF(L6:L7,AD10) -> 0 | AF10: =AE10/(AG4-AE11) ->  | AG10: =IF(AF10=0,0,(AF10*((LOG(AF10))/LOG(2)))) ->  | AI10: 122 | AJ10: =COUNTIF(L6:L7,AI10) -> 0 | AK10: =AJ10/(AL4-AJ11) ->  | AL10: =IF(AK10=0,0,(AK10*((LOG(AK10))/LOG(2)))) ->  | AN10: 122 | AO10: =COUNTIF(L6:L7,AN10) -> 0 | AP10: =AO10/(AQ4-AO11) ->  | AQ10: =IF(AP10=0,0,(AP10*((LOG(AP10))/LOG(2)))) ->  | AS10: 122 | AT10: =COUNTIF(L6:L7,AS10) -> 0 | AU10: =AT10/(AV4-AT11) ->  | AV10: =IF(AU10=0,0,(AU10*((LOG(AU10))/LOG(2)))) -> 
N11: 211 | O11: 0 | T11: 211 | U11: =COUNTIF(L6:L7,T11) -> 0 | Y11: 211 | Z11: =COUNTIF(L6:L7,Y11) -> 0 | AD11: 211 | AE11: =COUNTIF(L6:L7,AD11) -> 0 | AI11: 211 | AJ11: =COUNTIF(L6:L7,AI11) -> 0 | AN11: 211 | AO11: =COUNTIF(L6:L7,AN11) -> 0 | AS11: 211 | AT11: =COUNTIF(L6:L7,AS11) -> 0
N12: 212 | O12: 0 | T12: 212 | U12: =COUNTIF(L6:L7,T12) -> 0 | V12: =U12/(W4-U11) ->  | W12: =IF(V12=0,0,(V12*((LOG(V12))/LOG(2)))) ->  | Y12: 212 | Z12: =COUNTIF(L6:L7,Y12) -> 0 | AA12: =Z12/(AB4-Z11) ->  | AB12: =IF(AA12=0,0,(AA12*((LOG(AA12))/LOG(2)))) ->  | AD12: 212 | AE12: =COUNTIF(L6:L7,AD12) -> 0 | AF12: =AE12/(AG4-AE11) ->  | AG12: =IF(AF12=0,0,(AF12*((LOG(AF12))/LOG(2)))) ->  | AI12: 212 | AJ12: =COUNTIF(L6:L7,AI12) -> 0 | AK12: =AJ12/(AL4-AJ11) ->  | AL12: =IF(AK12=0,0,(AK12*((LOG(AK12))/LOG(2)))) ->  | AN12: 212 | AO12: =COUNTIF(L6:L7,AN12) -> 0 | AP12: =AO12/(AQ4-AO11) ->  | AQ12: =IF(AP12=0,0,(AP12*((LOG(AP12))/LOG(2)))) ->  | AS12: 212 | AT12: =COUNTIF(L6:L7,AS12) -> 0 | AU12: =AT12/(AV4-AT11) ->  | AV12: =IF(AU12=0,0,(AU12*((LOG(AU12))/LOG(2)))) -> 
N13: 221 | O13: 0 | T13: 221 | U13: =COUNTIF(L6:L7,T13) -> 0 | V13: =U13/(W4-U11) ->  | W13: =IF(V13=0,0,(V13*((LOG(V13))/LOG(2)))) ->  | Y13: 221 | Z13: =COUNTIF(L6:L7,Y13) -> 0 | AA13: =Z13/(AB4-Z11) ->  | AB13: =IF(AA13=0,0,(AA13*((LOG(AA13))/LOG(2)))) ->  | AD13: 221 | AE13: =COUNTIF(L6:L7,AD13) -> 0 | AF13: =AE13/(AG4-AE11) ->  | AG13: =IF(AF13=0,0,(AF13*((LOG(AF13))/LOG(2)))) ->  | AI13: 221 | AJ13: =COUNTIF(L6:L7,AI13) -> 0 | AK13: =AJ13/(AL4-AJ11) ->  | AL13: =IF(AK13=0,0,(AK13*((LOG(AK13))/LOG(2)))) ->  | AN13: 221 | AO13: =COUNTIF(L6:L7,AN13) -> 0 | AP13: =AO13/(AQ4-AO11) ->  | AQ13: =IF(AP13=0,0,(AP13*((LOG(AP13))/LOG(2)))) ->  | AS13: 221 | AT13: =COUNTIF(L6:L7,AS13) -> 0 | AU13: =AT13/(AV4-AT11) ->  | AV13: =IF(AU13=0,0,(AU13*((LOG(AU13))/LOG(2)))) -> 
N14: 222 | O14: 0 | T14: 222 | U14: =COUNTIF(L6:L7,T14) -> 0 | V14: =U14/(W4-U11) ->  | W14: =IF(V14=0,0,(V14*((LOG(V14))/LOG(2)))) ->  | Y14: 222 | Z14: =COUNTIF(L6:L7,Y14) -> 0 | AA14: =Z14/(AB4-Z11) ->  | AB14: =IF(AA14=0,0,(AA14*((LOG(AA14))/LOG(2)))) ->  | AD14: 222 | AE14: =COUNTIF(L6:L7,AD14) -> 0 | AF14: =AE14/(AG4-AE11) ->  | AG14: =IF(AF14=0,0,(AF14*((LOG(AF14))/LOG(2)))) ->  | AI14: 222 | AJ14: =COUNTIF(L6:L7,AI14) -> 0 | AK14: =AJ14/(AL4-AJ11) ->  | AL14: =IF(AK14=0,0,(AK14*((LOG(AK14))/LOG(2)))) ->  | AN14: 222 | AO14: =COUNTIF(L6:L7,AN14) -> 0 | AP14: =AO14/(AQ4-AO11) ->  | AQ14: =IF(AP14=0,0,(AP14*((LOG(AP14))/LOG(2)))) ->  | AS14: 222 | AT14: =COUNTIF(L6:L7,AS14) -> 0 | AU14: =AT14/(AV4-AT11) ->  | AV14: =IF(AU14=0,0,(AU14*((LOG(AU14))/LOG(2)))) -> 
P15: =SUM(P7:P14) ->  | Q15: =-SUM(Q7:Q14) ->  | V15: =SUM(V7:V14) ->  | W15: =-SUM(W7:W14) ->  | AA15: =SUM(AA7:AA14) ->  | AB15: =-SUM(AB7:AB14) ->  | AF15: =SUM(AF7:AF14) ->  | AG15: =-SUM(AG7:AG14) ->  | AK15: =SUM(AK7:AK14) ->  | AL15: =-SUM(AL7:AL14) ->  | AP15: =SUM(AP7:AP14) ->  | AQ15: =-SUM(AQ7:AQ14) ->  | AU15: =SUM(AU7:AU14) ->  | AV15: =-SUM(AV7:AV14) -> 
P16: U= | Q16: =Q15/(LOG(Q4)/LOG(2)) ->  | V16: U1= | W16: =W15/(LOG(W4)/LOG(2)) ->  | AA16: U2= | AB16: =AB15/(LOG(AB4)/LOG(2)) ->  | AF16: U3= | AG16: =AG15/(LOG(AG4)/LOG(2)) ->  | AK16: U4= | AL16: =AL15/(LOG(AL4)/LOG(2)) ->  | AP16: U5= | AQ16: =AQ15/(LOG(AQ4)/LOG(2)) ->  | AU16: U6= | AV16: =AV15/(LOG(AV4)/LOG(2)) -> 
N19: Total Target Seq
N20: =COUNTIF(L6:L7,G3) -> 0 | P20: 0 | Q20: 0 | R20: 0 | S20: 0 | T20: 0 | U20: 0
P21: % of reinforcement given in 6 equal intervals based on number of trials
P22: %_1 | Q22: %_2 | R22: %_3 | S22: %_4 | T22: %_5 | U22: %_6
O23: target sequence | P23: =$G$3 -> 211 | Q23: 211 | R23: 211 | S23: 211 | T23: 211 | U23: 211
O24: total reinforcement | P24: =U11 -> 0 | Q24: =Z11 -> 0 | R24: =AE11 -> 0 | S24: =AJ11 -> 0 | T24: =AO11 -> 0 | U24: =AT11 -> 0
O25: % target
O26: CCRF
O27: % CCRf
O28: average response rate | P28: =F6/P20 ->  | Q28: =(F6-F6)/Q20 ->  | R28: =(F6-F6)/R20 ->  | S28: =(F6-F6)/S20 ->  | T28: =(F6-F6)/T20 ->  | U28: =(F6-F6)/U20 -> 

Sheet !L82784I.sha
A1: Report for:!L82784I.sha
A2: Date: | B2: <date>
A3: Hen: | B3: <hen> | F3: Correct Sequence | G3: =Start!J2 -> 211 | P3: Total Sequences in Data | Q3: =4994-COUNTBLANK(L7:L5000) -> 2 | V3: Total Sequences in Block Data | W3: =COUNTA(L6:L7) -> 2 | AA3: Total Sequences in Block Data | AB3: =COUNTA(L7:L7) -> 1 | AF3: Total Sequences in Block Data | AG3: =COUNTA(L7:L8) -> 2 | AK3: Total Sequences in Block Data | AL3: =COUNTA(L7:L8) -> 2 | AP3: Total Sequences in Block Data | AQ3: =COUNTA(L8:L8) -> 1 | AU3: Total Sequences in Block Data | AV3: =COUNTA(L8:L9) -> 1
P4: Total Sequences in Summary | Q4: =SUM(O7:O14) -> 2 | V4: Total Sequences in Block Summary | W4: =SUM(U7:U14) -> 1 | AA4: Total Sequences in Block Summary | AB4: =SUM(Z7:Z14) -> 1 | AF4: Total Sequences in Block Summary | AG4: =SUM(AE7:AE14) -> 2 | AK4: Total Sequences in Block Summary | AL4: =SUM(AJ7:AJ14) -> 2 | AP4: Total Sequences in Block Summary | AQ4: =SUM(AO7:AO14) -> 1 | AU4: Total Sequences in Block Summary | AV4: =SUM(AT7:AT14) -> 1
T5: Block 1 | Y5: Block 2 | AD5: Block 3 | AI5: Block 4 | AN5: Block 5 | AS5: Block 6
A6: Sequence Component 1 | B6: Time 1 | C6: Sequence Component 2 | D6: Time 2 | E6: Sequence Component 3 | F6: Time 3 | G6: Sequence Component 4 | H6: Time 4 | I6: Sequence Component 5 | J6: Time 5 | K6: Correct? 0=No 1=Yes | L6: Sequence | N6: Frequency | P6: Relative Frequency | Q6: Variability | T6: Frequency | V6: Relative Frequency | W6: Variability | Y6: Frequency | AA6: Relative Frequency | AB6: Variability | AD6: Frequency | AF6: Relative Frequency | AG6: Variability | AI6: Frequency | AK6: Relative Frequency | AL6: Variability | AN6: Frequency | AP6: Relative Frequency | AQ6: Variability | AS6: Frequency | AU6: Relative Frequency | AV6: Variability
A7: 12 | B7: 53 | C7: 13 | D7: 61 | E7: 13 | F7: 70 | K7: 0 | L7: 111 | N7: 111 | O7: =COUNTIF($L$7:$L$500,N7) -> 1 | P7: =O7/$Q$4 -> 0.5 | Q7: =IF(P7=0,0,(P7*((LOG(P7))/LOG(2)))) -> -0.5 | T7: =N7 -> 111 | U7: =COUNTIF(L6:L7,T7) -> 1 | V7: =U7/(W4-U11) -> 1 | W7: =IF(V7=0,0,(V7*((LOG(V7))/LOG(2)))) -> 0 | Y7: =N7 -> 111 | Z7: =COUNTIF(L7:L7,Y7) -> 1 | AA7: =Z7/(AB4-Z11) -> 1 | AB7: =IF(AA7=0,0,(AA7*((LOG(AA7))/LOG(2)))) -> 0 | AD7: =N7 -> 111 | AE7: =COUNTIF(L7:L8,AD7) -> 1 | AF7: =AE7/(AG4-AE11) -> 0.5 | AG7: =IF(AF7=0,0,(AF7*((LOG(AF7))/LOG(2)))) -> -0.5 | AI7: =N7 -> 111 | AJ7: =COUNTIF(L7:L8,AI7) -> 1 | AK7: =AJ7/(AL4-AJ11) -> 0.5 | AL7: =IF(AK7=0,0,(AK7*((LOG(AK7))/LOG(2)))) -> -0.5 | AN7: =N7 -> 111 | AO7: =COUNTIF(L8:L8,AN7) -> 0 | AP7: =AO7/(AQ4-AO11) -> 0 | AQ7: =IF(AP7=0,0,(AP7*((LOG(AP7))/LOG(2)))) -> 0 | AS7: =N7 -> 111 | AT7: =COUNTIF(L8:L9,AS7) -> 0 | AU7: =AT7/(AV4-AT11) -> 0 | AV7: =IF(AU7=0,0,(AU7*((LOG(AU7))/LOG(2)))) -> 0
A8: 21 | B8: 738 | C8: 22 | D8: 751 | E8: 24 | F8: 757 | K8: 0 | L8: 222 | N8: 112 | O8: 0 | P8: 0 | Q8: 0 | T8: 112 | U8: =COUNTIF(L6:L7,T8) -> 0 | V8: =U8/(W4-U11) -> 0 | W8: =IF(V8=0,0,(V8*((LOG(V8))/LOG(2)))) -> 0 | Y8: 112 | Z8: =COUNTIF(L7:L7,Y8) -> 0 | AA8: =Z8/(AB4-Z11) -> 0 | AB8: =IF(AA8=0,0,(AA8*((LOG(AA8))/LOG(2)))) -> 0 | AD8: 112 | AE8: =COUNTIF(L7:L8,AD8) -> 0 | AF8: =AE8/(AG4-AE11) -> 0 | AG8: =IF(AF8=0,0,(AF8*((LOG(AF8))/LOG(2)))) -> 0 | AI8: 112 | AJ8: =COUNTIF(L7:L8,AI8) -> 0 | AK8: =AJ8/(AL4-AJ11) -> 0 | AL8: =IF(AK8=0,0,(AK8*((LOG(AK8))/LOG(2)))) -> 0 | AN8: 112 | AO8: =COUNTIF(L8:L8,AN8) -> 0 | AP8: =AO8/(AQ4-AO11) -> 0 | AQ8: =IF(AP8=0,0,(AP8*((LOG(AP8))/LOG(2)))) -> 0 | AS8: 112 | AT8: =COUNTIF(L8:L9,AS8) -> 0 | AU8: =AT8/(AV4-AT11) -> 0 | AV8: =IF(AU8=0,0,(AU8*((LOG(AU8))/LOG(2)))) -> 0
N9: 121 | O9: 0 | P9: 0 | Q9: 0 | T9: 121 | U9: =COUNTIF(L6:L7,T9) -> 0 | V9: =U9/(W4-U11) -> 0 | W9: =IF(V9=0,0,(V9*((LOG(V9))/LOG(2)))) -> 0 | Y9: 121 | Z9: =COUNTIF(L7:L7,Y9) -> 0 | AA9: =Z9/(AB4-Z11) -> 0 | AB9: =IF(AA9=0,0,(AA9*((LOG(AA9))/LOG(2)))) -> 0 | AD9: 121 | AE9: =COUNTIF(L7:L8,AD9) -> 0 | AF9: =AE9/(AG4-AE11) -> 0 | AG9: =IF(AF9=0,0,(AF9*((LOG(AF9))/LOG(2)))) -> 0 | AI9: 121 | AJ9: =COUNTIF(L7:L8,AI9) -> 0 | AK9: =AJ9/(AL4-AJ11) -> 0 | AL9: =IF(AK9=0,0,(AK9*((LOG(AK9))/LOG(2)))) -> 0 | AN9: 121 | AO9: =COUNTIF(L8:L8,AN9) -> 0 | AP9: =AO9/(AQ4-AO11) -> 0 | AQ9: =IF(AP9=0,0,(AP9*((LOG(AP9))/LOG(2)))) -> 0 | AS9: 121 | AT9: =COUNTIF(L8:L9,AS9) -> 0 | AU9: =AT9/(AV4-AT11) -> 0 | AV9: =IF(AU9=0,0,(AU9*((LOG(AU9))/LOG(2)))) -> 0
N10: 122 | O10: 0 | P10: 0 | Q10: 0 | T10: 122 | U10: =COUNTIF(L6:L7,T10) -> 0 | V10: =U10/(W4-U11) -> 0 | W10: =IF(V10=0,0,(V10*((LOG(V10))/LOG(2)))) -> 0 | Y10: 122 | Z10: =COUNTIF(L7:L7,Y10) -> 0 | AA10: =Z10/(AB4-Z11) -> 0 | AB10: =IF(AA10=0,0,(AA10*((LOG(AA10))/LOG(2)))) -> 0 | AD10: 122 | AE10: =COUNTIF(L7:L8,AD10) -> 0 | AF10: =AE10/(AG4-AE11) -> 0 | AG10: =IF(AF10=0,0,(AF10*((LOG(AF10))/LOG(2)))) -> 0 | AI10: 122 | AJ10: =COUNTIF(L7:L8,AI10) -> 0 | AK10: =AJ10/(AL4-AJ11) -> 0 | AL10: =IF(AK10=0,0,(AK10*((LOG(AK10))/LOG(2)))) -> 0 | AN10: 122 | AO10: =COUNTIF(L8:L8,AN10) -> 0 | AP10: =AO10/(AQ4-AO11) -> 0 | AQ10: =IF(AP10=0,0,(AP10*((LOG(AP10))/LOG(2)))) -> 0 | AS10: 122 | AT10: =COUNTIF(L8:L9,AS10) -> 0 | AU10: =AT10/(AV4-AT11) -> 0 | AV10: =IF(AU10=0,0,(AU10*((LOG(AU10))/LOG(2)))) -> 0
N11: 211 | O11: 0 | P11: 0 | Q11: 0 | T11: 211 | U11: =COUNTIF(L6:L7,T11) -> 0 | Y11: 211 | Z11: =COUNTIF(L7:L7,Y11) -> 0 | AD11: 211 | AE11: =COUNTIF(L7:L8,AD11) -> 0 | AI11: 211 | AJ11: =COUNTIF(L7:L8,AI11) -> 0 | AN11: 211 | AO11: =COUNTIF(L8:L8,AN11) -> 0 | AS11: 211 | AT11: =COUNTIF(L8:L9,AS11) -> 0
N12: 212 | O12: 0 | P12: 0 | Q12: 0 | T12: 212 | U12: =COUNTIF(L6:L7,T12) -> 0 | V12: =U12/(W4-U11) -> 0 | W12: =IF(V12=0,0,(V12*((LOG(V12))/LOG(2)))) -> 0 | Y12: 212 | Z12: =COUNTIF(L7:L7,Y12) -> 0 | AA12: =Z12/(AB4-Z11) -> 0 | AB12: =IF(AA12=0,0,(AA12*((LOG(AA12))/LOG(2)))) -> 0 | AD12: 212 | AE12: =COUNTIF(L7:L8,AD12) -> 0 | AF12: =AE12/(AG4-AE11) -> 0 | AG12: =IF(AF12=0,0,(AF12*((LOG(AF12))/LOG(2)))) -> 0 | AI12: 212 | AJ12: =COUNTIF(L7:L8,AI12) -> 0 | AK12: =AJ12/(AL4-AJ11) -> 0 | AL12: =IF(AK12=0,0,(AK12*((LOG(AK12))/LOG(2)))) -> 0 | AN12: 212 | AO12: =COUNTIF(L8:L8,AN12) -> 0 | AP12: =AO12/(AQ4-AO11) -> 0 | AQ12: =IF(AP12=0,0,(AP12*((LOG(AP12))/LOG(2)))) -> 0 | AS12: 212 | AT12: =COUNTIF(L8:L9,AS12) -> 0 | AU12: =AT12/(AV4-AT11) -> 0 | AV12: =IF(AU12=0,0,(AU12*((LOG(AU12))/LOG(2)))) -> 0
N13: 221 | O13: 0 | P13: 0 | Q13: 0 | T13: 221 | U13: =COUNTIF(L6:L7,T13) -> 0 | V13: =U13/(W4-U11) -> 0 | W13: =IF(V13=0,0,(V13*((LOG(V13))/LOG(2)))) -> 0 | Y13: 221 | Z13: =COUNTIF(L7:L7,Y13) -> 0 | AA13: =Z13/(AB4-Z11) -> 0 | AB13: =IF(AA13=0,0,(AA13*((LOG(AA13))/LOG(2)))) -> 0 | AD13: 221 | AE13: =COUNTIF(L7:L8,AD13) -> 0 | AF13: =AE13/(AG4-AE11) -> 0 | AG13: =IF(AF13=0,0,(AF13*((LOG(AF13))/LOG(2)))) -> 0 | AI13: 221 | AJ13: =COUNTIF(L7:L8,AI13) -> 0 | AK13: =AJ13/(AL4-AJ11) -> 0 | AL13: =IF(AK13=0,0,(AK13*((LOG(AK13))/LOG(2)))) -> 0 | AN13: 221 | AO13: =COUNTIF(L8:L8,AN13) -> 0 | AP13: =AO13/(AQ4-AO11) -> 0 | AQ13: =IF(AP13=0,0,(AP13*((LOG(AP13))/LOG(2)))) -> 0 | AS13: 221 | AT13: =COUNTIF(L8:L9,AS13) -> 0 | AU13: =AT13/(AV4-AT11) -> 0 | AV13: =IF(AU13=0,0,(AU13*((LOG(AU13))/LOG(2)))) -> 0
N14: 222 | O14: 1 | P14: 0.5 | Q14: -0.5 | T14: 222 | U14: =COUNTIF(L6:L7,T14) -> 0 | V14: =U14/(W4-U11) -> 0 | W14: =IF(V14=0,0,(V14*((LOG(V14))/LOG(2)))) -> 0 | Y14: 222 | Z14: =COUNTIF(L7:L7,Y14) -> 0 | AA14: =Z14/(AB4-Z11) -> 0 | AB14: =IF(AA14=0,0,(AA14*((LOG(AA14))/LOG(2)))) -> 0 | AD14: 222 | AE14: =COUNTIF(L7:L8,AD14) -> 1 | AF14: =AE14/(AG4-AE11) -> 0.5 | AG14: =IF(AF14=0,0,(AF14*((LOG(AF14))/LOG(2)))) -> -0.5 | AI14: 222 | AJ14: =COUNTIF(L7:L8,AI14) -> 1 | AK14: =AJ14/(AL4-AJ11) -> 0.5 | AL14: =IF(AK14=0,0,(AK14*((LOG(AK14))/LOG(2)))) -> -0.5 | AN14: 222 | AO14: =COUNTIF(L8:L8,AN14) -> 1 | AP14: =AO14/(AQ4-AO11) -> 1 | AQ14: =IF(AP14=0,0,(AP14*((LOG(AP14))/LOG(2)))) -> 0 | AS14: 222 | AT14: =COUNTIF(L8:L9,AS14) -> 1 | AU14: =AT14/(AV4-AT11) -> 1 | AV14: =IF(AU14=0,0,(AU14*((LOG(AU14))/LOG(2)))) -> 0
P15: =SUM(P7:P14) -> 1 | Q15: =-SUM(Q7:Q14) -> 1 | V15: =SUM(V7:V14) -> 1 | W15: =-SUM(W7:W14) -> 0 | AA15: =SUM(AA7:AA14) -> 1 | AB15: =-SUM(AB7:AB14) -> 0 | AF15: =SUM(AF7:AF14) -> 1 | AG15: =-SUM(AG7:AG14) -> 1 | AK15: =SUM(AK7:AK14) -> 1 | AL15: =-SUM(AL7:AL14) -> 1 | AP15: =SUM(AP7:AP14) -> 1 | AQ15: =-SUM(AQ7:AQ14) -> 0 | AU15: =SUM(AU7:AU14) -> 1 | AV15: =-SUM(AV7:AV14) -> 0
P16: U= | Q16: =Q15/(LOG(Q4)/LOG(2)) -> 1 | V16: U1= | W16: =W15/(LOG(W4)/LOG(2)) ->  | AA16: U2= | AB16: =AB15/(LOG(AB4)/LOG(2)) ->  | AF16: U3= | AG16: =AG15/(LOG(AG4)/LOG(2)) -> 1 | AK16: U4= | AL16: =AL15/(LOG(AL4)/LOG(2)) -> 1 | AP16: U5= | AQ16: =AQ15/(LOG(AQ4)/LOG(2)) ->  | AU16: U6= | AV16: =AV15/(LOG(AV4)/LOG(2)) -> 
N19: Total Target Seq
N20: =COUNTIF(L7:L8,G3) -> 0 | P20: 0 | Q20: 1 | R20: 0 | S20: 0 | T20: 1 | U20: 0
P21: % of reinforcement given in 6 equal intervals based on number of trials
P22: %_1 | Q22: %_2 | R22: %_3 | S22: %_4 | T22: %_5 | U22: %_6
O23: target sequence | P23: =$G$3 -> 211 | Q23: 211 | R23: 211 | S23: 211 | T23: 211 | U23: 211
O24: total reinforcement | P24: =U11 -> 0 | Q24: =Z11 -> 0 | R24: =AE11 -> 0 | S24: =AJ11 -> 0 | T24: =AO11 -> 0 | U24: =AT11 -> 0
O25: % target
O26: CCRF
O27: % CCRf
O28: average response rate | P28: =F6/P20 ->  | Q28: =(F7-F6)/Q20 ->  | R28: =(F7-F7)/R20 ->  | S28: =(F7-F7)/S20 ->  | T28: =(F8-F7)/T20 -> 687 | U28: =(F8-F8)/U20 -> 

Sheet !L82890I.sha
A1: Report for:!L82890I.sha
A2: Date: | B2: <date>
A3: Hen: | B3: <hen> | F3: Correct Sequence | G3: =Start!J2 -> 211 | P3: Total Sequences in Data | Q3: =4994-COUNTBLANK(L7:L5000) -> 2 | V3: Total Sequences in Block Data | W3: =COUNTA(L6:L7) -> 2 | AA3: Total Sequences in Block Data | AB3: =COUNTA(L7:L7) -> 1 | AF3: Total Sequences in Block Data | AG3: =COUNTA(L7:L8) -> 2 | AK3: Total Sequences in Block Data | AL3: =COUNTA(L7:L8) -> 2 | AP3: Total Sequences in Block Data | AQ3: =COUNTA(L8:L8) -> 1 | AU3: Total Sequences in Block Data | AV3: =COUNTA(L8:L9) -> 1
P4: Total Sequences in Summary | Q4: =SUM(O7:O14) -> 2 | V4: Total Sequences in Block Summary | W4: =SUM(U7:U14) -> 1 | AA4: Total Sequences in Block Summary | AB4: =SUM(Z7:Z14) -> 1 | AF4: Total Sequences in Block Summary | AG4: =SUM(AE7:AE14) -> 2 | AK4: Total Sequences in Block Summary | AL4: =SUM(AJ7:AJ14) -> 2 | AP4: Total Sequences in Block Summary | AQ4: =SUM(AO7:AO14) -> 1 | AU4: Total Sequences in Block Summary | AV4: =SUM(AT7:AT14) -> 1
T5: Block 1 | Y5: Block 2 | AD5: Block 3 | AI5: Block 4 | AN5: Block 5 | AS5: Block 6
A6: Sequence Component 1 | B6: Time 1 | C6: Sequence Component 2 | D6: Time 2 | E6: Sequence Component 3 | F6: Time 3 | G6: Sequence Component 4 | H6: Time 4 | I6: Sequence Component 5 | J6: Time 5 | K6: Correct? 0=No 1=Yes | L6: Sequence | N6: Frequency | P6: Relative Frequency | Q6: Variability | T6: Frequency | V6: Relative Frequency | W6: Variability | Y6: Frequency | AA6: Relative Frequency | AB6: Variability | AD6: Frequency | AF6: Relative Frequency | AG6: Variability | AI6: Frequency | AK6: Relative Frequency | AL6: Variability | AN6: Frequency | AP6: Relative Frequency | AQ6: Variability | AS6: Frequency | AU6: Relative Frequency | AV6: Variability
A7: 12 | B7: 262 | C7: 24 | D7: 275 | E7: 13 | F7: 1330 | K7: 0 | L7: 121 | N7: 111 | O7: =COUNTIF($L$7:$L$500,N7) -> 0 | P7: =O7/$Q$4 -> 0 | Q7: =IF(P7=0,0,(P7*((LOG(P7))/LOG(2)))) -> 0 | T7: =N7 -> 111 | U7: =COUNTIF(L6:L7,T7) -> 0 | V7: =U7/(W4-U11) -> 0 | W7: =IF(V7=0,0,(V7*((LOG(V7))/LOG(2)))) -> 0 | Y7: =N7 -> 111 | Z7: =COUNTIF(L7:L7,Y7) -> 0 | AA7: =Z7/(AB4-Z11) -> 0 | AB7: =IF(AA7=0,0,(AA7*((LOG(AA7))/LOG(2)))) -> 0 | AD7: =N7 -> 111 | AE7: =COUNTIF(L7:L8,AD7) -> 0 | AF7: =AE7/(AG4-AE11) -> 0 | AG7: =IF(AF7=0,0,(AF7*((LOG(AF7))/LOG(2)))) -> 0 | AI7: =N7 -> 111 | AJ7: =COUNTIF(L7:L8,AI7) -> 0 | AK7: =AJ7/(AL4-AJ11) -> 0 | AL7: =IF(AK7=0,0,(AK7*((LOG(AK7))/LOG(2)))) -> 0 | AN7: =N7 -> 111 | AO7: =COUNTIF(L8:L8,AN7) -> 0 | AP7: =AO7/(AQ4-AO11) -> 0 | AQ7: =IF(AP7=0,0,(AP7*((LOG(AP7))/LOG(2)))) -> 0 | AS7: =N7 -> 111 | AT7: =COUNTIF(L8:L9,AS7) -> 0 | AU7: =AT7/(AV4-AT11) -> 0 | AV7: =IF(AU7=0,0,(AU7*((LOG(AU7))/LOG(2)))) -> 0
A8: 12 | B8: 18424 | C8: 24 | D8: 19927 | E8: 13 | F8: 23440 | K8: 0 | L8: 121 | N8: 112 | O8: 0 | P8: 0 | Q8: 0 | T8: 112 | U8: =COUNTIF(L6:L7,T8) -> 0 | V8: =U8/(W4-U11) -> 0 | W8: =IF(V8=0,0,(V8*((LOG(V8))/LOG(2)))) -> 0 | Y8: 112 | Z8: =COUNTIF(L7:L7,Y8) -> 0 | AA8: =Z8/(AB4-Z11) -> 0 | AB8: =IF(AA8=0,0,(AA8*((LOG(AA8))/LOG(2)))) -> 0 | AD8: 112 | AE8: =COUNTIF(L7:L8,AD8) -> 0 | AF8: =AE8/(AG4-AE11) -> 0 | AG8: =IF(AF8=0,0,(AF8*((LOG(AF8))/LOG(2)))) -> 0 | AI8: 112 | AJ8: =COUNTIF(L7:L8,AI8) -> 0 | AK8: =AJ8/(AL4-AJ11) -> 0 | AL8: =IF(AK8=0,0,(AK8*((LOG(AK8))/LOG(2)))) -> 0 | AN8: 112 | AO8: =COUNTIF(L8:L8,AN8) -> 0 | AP8: =AO8/(AQ4-AO11) -> 0 | AQ8: =IF(AP8=0,0,(AP8*((LOG(AP8))/LOG(2)))) -> 0 | AS8: 112 | AT8: =COUNTIF(L8:L9,AS8) -> 0 | AU8: =AT8/(AV4-AT11) -> 0 | AV8: =IF(AU8=0,0,(AU8*((LOG(AU8))/LOG(2)))) -> 0
N9: 121 | O9: 2 | P9: 1 | Q9: 0 | T9: 121 | U9: =COUNTIF(L6:L7,T9) -> 1 | V9: =U9/(W4-U11) -> 1 | W9: =IF(V9=0,0,(V9*((LOG(V9))/LOG(2)))) -> 0 | Y9: 121 | Z9: =COUNTIF(L7:L7,Y9) -> 1 | AA9: =Z9/(AB4-Z11) -> 1 | AB9: =IF(AA9=0,0,(AA9*((LOG(AA9))/LOG(2)))) -> 0 | AD9: 121 | AE9: =COUNTIF(L7:L8,AD9) -> 2 | AF9: =AE9/(AG4-AE11) -> 1 | AG9: =IF(AF9=0,0,(AF9*((LOG(AF9))/LOG(2)))) -> 0 | AI9: 121 | AJ9: =COUNTIF(L7:L8,AI9) -> 2 | AK9: =AJ9/(AL4-AJ11) -> 1 | AL9: =IF(AK9=0,0,(AK9*((LOG(AK9))/LOG(2)))) -> 0 | AN9: 121 | AO9: =COUNTIF(L8:L8,AN9) -> 1 | AP9: =AO9/(AQ4-AO11) -> 1 | AQ9: =IF(AP9=0,0,(AP9*((LOG(AP9))/LOG(2)))) -> 0 | AS9: 121 | AT9: =COUNTIF(L8:L9,AS9) -> 1 | AU9: =AT9/(AV4-AT11) -> 1 | AV9: =IF(AU9=0,0,(AU9*((LOG(AU9))/LOG(2)))) -> 0
N10: 122 | O10: 0 | P10: 0 | Q10: 0 | T10: 122 | U10: =COUNTIF(L6:L7,T10) -> 0 | V10: =U10/(W4-U11) -> 0 | W10: =IF(V10=0,0,(V10*((LOG(V10))/LOG(2)))) -> 0 | Y10: 122 | Z10: =COUNTIF(L7:L7,Y10) -> 0 | AA10: =Z10/(AB4-Z11) -> 0 | AB10: =IF(AA10=0,0,(AA10*((LOG(AA10))/LOG(2)))) -> 0 | AD10: 122 | AE10: =COUNTIF(L7:L8,AD10) -> 0 | AF10: =AE10/(AG4-AE11) -> 0 | AG10: =IF(AF10=0,0,(AF10*((LOG(AF10))/LOG(2)))) -> 0 | AI10: 122 | AJ10: =COUNTIF(L7:L8,AI10) -> 0 | AK10: =AJ10/(AL4-AJ11) -> 0 | AL10: =IF(AK10=0,0,(AK10*((LOG(AK10))/LOG(2)))) -> 0 | AN10: 122 | AO10: =COUNTIF(L8:L8,AN10) -> 0 | AP10: =AO10/(AQ4-AO11) -> 0 | AQ10: =IF(AP10=0,0,(AP10*((LOG(AP10))/LOG(2)))) -> 0 | AS10: 122 | AT10: =COUNTIF(L8:L9,AS10) -> 0 | AU10: =AT10/(AV4-AT11) -> 0 | AV10: =IF(AU10=0,0,(AU10*((LOG(AU10))/LOG(2)))) -> 0
N11: 211 | O11: 0 | P11: 0 | Q11: 0 | T11: 211 | U11: =COUNTIF(L6:L7,T11) -> 0 | Y11: 211 | Z11: =COUNTIF(L7:L7,Y11) -> 0 | AD11: 211 | AE11: =COUNTIF(L7:L8,AD11) -> 0 | AI11: 211 | AJ11: =COUNTIF(L7:L8,AI11) -> 0 | AN11: 211 | AO11: =COUNTIF(L8:L8,AN11) -> 0 | AS11: 211 | AT11: =COUNTIF(L8:L9,AS11) -> 0
N12: 212 | O12: 0 | P12: 0 | Q12: 0 | T12: 212 | U12: =COUNTIF(L6:L7,T12) -> 0 | V12: =U12/(W4-U11) -> 0 | W12: =IF(V12=0,0,(V12*((LOG(V12))/LOG(2)))) -> 0 | Y12: 212 | Z12: =COUNTIF(L7:L7,Y12) -> 0 | AA12: =Z12/(AB4-Z11) -> 0 | AB12: =IF(AA12=0,0,(AA12*((LOG(AA12))/LOG(2)))) -> 0 | AD12: 212 | AE12: =COUNTIF(L7:L8,AD12) -> 0 | AF12: =AE12/(AG4-AE11) -> 0 | AG12: =IF(AF12=0,0,(AF12*((LOG(AF12))/LOG(2)))) -> 0 | AI12: 212 | AJ12: =COUNTIF(L7:L8,AI12) -> 0 | AK12: =AJ12/(AL4-AJ11) -> 0 | AL12: =IF(AK12=0,0,(AK12*((LOG(AK12))/LOG(2)))) -> 0 | AN12: 212 | AO12: =COUNTIF(L8:L8,AN12) -> 0 | AP12: =AO12/(AQ4-AO11) -> 0 | AQ12: =IF(AP12=0,0,(AP12*((LOG(AP12))/LOG(2)))) -> 0 | AS12: 212 | AT12: =COUNTIF(L8:L9,AS12) -> 0 | AU12: =AT12/(AV4-AT11) -> 0 | AV12: =IF(AU12=0,0,(AU12*((LOG(AU12))/LOG(2)))) -> 0
N13: 221 | O13: 0 | P13: 0 | Q13: 0 | T13: 221 | U13: =COUNTIF(L6:L7,T13) -> 0 | V13: =U13/(W4-U11) -> 0 | W13: =IF(V13=0,0,(V13*((LOG(V13))/LOG(2)))) -> 0 | Y13: 221 | Z13: =COUNTIF(L7:L7,Y13) -> 0 | AA13: =Z13/(AB4-Z11) -> 0 | AB13: =IF(AA13=0,0,(AA13*((LOG(AA13))/LOG(2)))) -> 0 | AD13: 221 | AE13: =COUNTIF(L7:L8,AD13) -> 0 | AF13: =AE13/(AG4-AE11) -> 0 | AG13: =IF(AF13=0,0,(AF13*((LOG(AF13))/LOG(2)))) -> 0 | AI13: 221 | AJ13: =COUNTIF(L7:L8,AI13) -> 0 | AK13: =AJ13/(AL4-AJ11) -> 0 | AL13: =IF(AK13=0,0,(AK13*((LOG(AK13))/LOG(2)))) -> 0 | AN13: 221 | AO13: =COUNTIF(L8:L8,AN13) -> 0 | AP13: =AO13/(AQ4-AO11) -> 0 | AQ13: =IF(AP13=0,0,(AP13*((LOG(AP13))/LOG(2)))) -> 0 | AS13: 221 | AT13: =COUNTIF(L8:L9,AS13) -> 0 | AU13: =AT13/(AV4-AT11) -> 0 | AV13: =IF(AU13=0,0,(AU13*((LOG(AU13))/LOG(2)))) -> 0
N14: 222 | O14: 0 | P14: 0 | Q14: 0 | T14: 222 | U14: =COUNTIF(L6:L7,T14) -> 0 | V14: =U14/(W4-U11) -> 0 | W14: =IF(V14=0,0,(V14*((LOG(V14))/LOG(2)))) -> 0 | Y14: 222 | Z14: =COUNTIF(L7:L7,Y14) -> 0 | AA14: =Z14/(AB4-Z11) -> 0 | AB14: =IF(AA14=0,0,(AA14*((LOG(AA14))/LOG(2)))) -> 0 | AD14: 222 | AE14: =COUNTIF(L7:L8,AD14) -> 0 | AF14: =AE14/(AG4-AE11) -> 0 | AG14: =IF(AF14=0,0,(AF14*((LOG(AF14))/LOG(2)))) -> 0 | AI14: 222 | AJ14: =COUNTIF(L7:L8,AI14) -> 0 | AK14: =AJ14/(AL4-AJ11) -> 0 | AL14: =IF(AK14=0,0,(AK14*((LOG(AK14))/LOG(2)))) -> 0 | AN14: 222 | AO14: =COUNTIF(L8:L8,AN14) -> 0 | AP14: =AO14/(AQ4-AO11) -> 0 | AQ14: =IF(AP14=0,0,(AP14*((LOG(AP14))/LOG(2)))) -> 0 | AS14: 222 | AT14: =COUNTIF(L8:L9,AS14) -> 0 | AU14: =AT14/(AV4-AT11) -> 0 | AV14: =IF(AU14=0,0,(AU14*((LOG(AU14))/LOG(2)))) -> 0
P15: =SUM(P7:P14) -> 1 | Q15: =-SUM(Q7:Q14) -> 0 | V15: =SUM(V7:V14) -> 1 | W15: =-SUM(W7:W14) -> 0 | AA15: =SUM(AA7:AA14) -> 1 | AB15: =-SUM(AB7:AB14) -> 0 | AF15: =SUM(AF7:AF14) -> 1 | AG15: =-SUM(AG7:AG14) -> 0 | AK15: =SUM(AK7:AK14) -> 1 | AL15: =-SUM(AL7:AL14) -> 0 | AP15: =SUM(AP7:AP14) -> 1 | AQ15: =-SUM(AQ7:AQ14) -> 0 | AU15: =SUM(AU7:AU14) -> 1 | AV15: =-SUM(AV7:AV14) -> 0
P16: U= | Q16: =Q15/(LOG(Q4)/LOG(2)) -> 0 | V16: U1= | W16: =W15/(LOG(W4)/LOG(2)) ->  | AA16: U2= | AB16: =AB15/(LOG(AB4)/LOG(2)) ->  | AF16: U3= | AG16: =AG15/(LOG(AG4)/LOG(2)) -> 0 | AK16: U4= | AL16: =AL15/(LOG(AL4)/LOG(2)) -> 0 | AP16: U5= | AQ16: =AQ15/(LOG(AQ4)/LOG(2)) ->  | AU16: U6= | AV16: =AV15/(LOG(AV4)/LOG(2)) -> 
N19: Total Target Seq
N20: =COUNTIF(L7:L8,G3) -> 0 | P20: 0 | Q20: 1 | R20: 0 | S20: 0 | T20: 1 | U20: 0
P21: % of reinforcement given in 6 equal intervals based on number of trials
P22: %_1 | Q22: %_2 | R22: %_3 | S22: %_4 | T22: %_5 | U22: %_6
O23: target sequence | P23: =$G$3 -> 211 | Q23: 211 | R23: 211 | S23: 211 | T23: 211 | U23: 211
O24: total reinforcement | P24: =U11 -> 0 | Q24: =Z11 -> 0 | R24: =AE11 -> 0 | S24: =AJ11 -> 0 | T24: =AO11 -> 0 | U24: =AT11 -> 0
O25: % target
O26: CCRF
O27: % CCRf
O28: average response rate | P28: =F6/P20 ->  | Q28: =(F7-F6)/Q20 ->  | R28: =(F7-F7)/R20 ->  | S28: =(F7-F7)/S20 ->  | T28: =(F8-F7)/T20 -> 22110 | U28: =(F8-F8)/U20 -> 

Sheet !L829A4I.sha
A1: Report for:!L829A4I.sha
A2: Date: | B2: <date>
A3: Hen: | B3: <hen> | F3: Correct Sequence | G3: =Start!J2 -> 211 | P3: Total Sequences in Data | Q3: =4994-COUNTBLANK(L7:L5000) -> 5 | V3: Total Sequences in Block Data | W3: =COUNTA(L7:L7) -> 1 | AA3: Total Sequences in Block Data | AB3: =COUNTA(L8:L8) -> 1 | AF3: Total Sequences in Block Data | AG3: =COUNTA(L8:L9) -> 2 | AK3: Total Sequences in Block Data | AL3: =COUNTA(L9:L9) -> 1 | AP3: Total Sequences in Block Data | AQ3: =COUNTA(L10:L10) -> 1 | AU3: Total Sequences in Block Data | AV3: =COUNTA(L11:L11) -> 1
P4: Total Sequences in Summary | Q4: =SUM(O7:O14) -> 4 | V4: Total Sequences in Block Summary | W4: =SUM(U7:U14) -> 1 | AA4: Total Sequences in Block Summary | AB4: =SUM(Z7:Z14) -> 1 | AF4: Total Sequences in Block Summary | AG4: =SUM(AE7:AE14) -> 2 | AK4: Total Sequences in Block Summary | AL4: =SUM(AJ7:AJ14) -> 1 | AP4: Total Sequences in Block Summary | AQ4: =SUM(AO7:AO14) -> 1 | AU4: Total Sequences in Block Summary | AV4: =SUM(AT7:AT14) -> 0
T5: Block 1 | Y5: Block 2 | AD5: Block 3 | AI5: Block 4 | AN5: Block 5 | AS5: Block 6
A6: Sequence Component 1 | B6: Time 1 | C6: Sequence Component 2 | D6: Time 2 | E6: Sequence Component 3 | F6: Time 3 | G6: Sequence Component 4 | H6: Time 4 | I6: Sequence Component 5 | J6: Time 5 | K6: Correct? 0=No 1=Yes | L6: Sequence | N6: Frequency | P6: Relative Frequency | Q6: Variability | T6: Frequency | V6: Relative Frequency | W6: Variability | Y6: Frequency | AA6: Relative Frequency | AB6: Variability | AD6: Frequency | AF6: Relative Frequency | AG6: Variability | AI6: Frequency | AK6: Relative Frequency | AL6: Variability | AN6: Frequency | AP6: Relative Frequency | AQ6: Variability | AS6: Frequency | AU6: Relative Frequency | AV6: Variability
A7: 12 | B7: 21 | C7: 13 | D7: 27 | E7: 13 | F7: 224 | K7: 0 | L7: 111 | N7: 111 | O7: =COUNTIF($L$7:$L$500,N7) -> 4 | P7: =O7/$Q$4 -> 1 | Q7: =IF(P7=0,0,(P7*((LOG(P7))/LOG(2)))) -> 0 | T7: =N7 -> 111 | U7: =COUNTIF(L7:L7,T7) -> 1 | V7: =U7/(W4-U11) -> 1 | W7: =IF(V7=0,0,(V7*((LOG(V7))/LOG(2)))) -> 0 | Y7: =N7 -> 111 | Z7: =COUNTIF(L8:L8,Y7) -> 1 | AA7: =Z7/(AB4-Z11) -> 1 | AB7: =IF(AA7=0,0,(AA7*((LOG(AA7))/LOG(2)))) -> 0 | AD7: =N7 -> 111 | AE7: =COUNTIF(L8:L9,AD7) -> 2 | AF7: =AE7/(AG4-AE11) -> 1 | AG7: =IF(AF7=0,0,(AF7*((LOG(AF7))/LOG(2)))) -> 0 | AI7: =N7 -> 111 | AJ7: =COUNTIF(L9:L9,AI7) -> 1 | AK7: =AJ7/(AL4-AJ11) -> 1 | AL7: =IF(AK7=0,0,(AK7*((LOG(AK7))/LOG(2)))) -> 0 | AN7: =N7 -> 111 | AO7: =COUNTIF(L10:L10,AN7) -> 1 | AP7: =AO7/(AQ4-AO11) -> 1 | AQ7: =IF(AP7=0,0,(AP7*((LOG(AP7))/LOG(2)))) -> 0 | AS7: =N7 -> 111 | AT7: =COUNTIF(L11:L11,AS7) -> 0 | AU7: =AT7/(AV4-AT11) ->  | AV7: =IF(AU7=0,0,(AU7*((LOG(AU7))/LOG(2)))) -> 
A8: 12 | B8: 338 | C8: 13 | D8: 349 | E8: 13 | F8: 417 | K8: 0 | L8: 111 | N8: 112 | O8: 0 | P8: 0 | Q8: 0 | T8: 112 | U8: =COUNTIF(L7:L7,T8) -> 0 | V8: =U8/(W4-U11) -> 0 | W8: =IF(V8=0,0,(V8*((LOG(V8))/LOG(2)))) -> 0 | Y8: 112 | Z8: =COUNTIF(L8:L8,Y8) -> 0 | AA8: =Z8/(AB4-Z11) -> 0 | AB8: =IF(AA8=0,0,(AA8*((LOG(AA8))/LOG(2)))) -> 0 | AD8: 112 | AE8: =COUNTIF(L8:L9,AD8) -> 0 | AF8: =AE8/(AG4-AE11) -> 0 | AG8: =IF(AF8=0,0,(AF8*((LOG(AF8))/LOG(2)))) -> 0 | AI8: 112 | AJ8: =COUNTIF(L9:L9,AI8) -> 0 | AK8: =AJ8/(AL4-AJ11) -> 0 | AL8: =IF(AK8=0,0,(AK8*((LOG(AK8))/LOG(2)))) -> 0 | AN8: 112 | AO8: =COUNTIF(L10:L10,AN8) -> 0 | AP8: =AO8/(AQ4-AO11) -> 0 | AQ8: =IF(AP8=0,0,(AP8*((LOG(AP8))/LOG(2)))) -> 0 | AS8: 112 | AT8: =COUNTIF(L11:L11,AS8) -> 0 | AU8: =AT8/(AV4-AT11) ->  | AV8: =IF(AU8=0,0,(AU8*((LOG(AU8))/LOG(2)))) -> 
A9: 12 | B9: 713 | C9: 13 | D9: 718 | E9: 13 | F9: 6144 | K9: 0 | L9: 111 | N9: 121 | O9: 0 | P9: 0 | Q9: 0 | T9: 121 | U9: =COUNTIF(L7:L7,T9) -> 0 | V9: =U9/(W4-U11) -> 0 | W9: =IF(V9=0,0,(V9*((LOG(V9))/LOG(2)))) -> 0 | Y9: 121 | Z9: =COUNTIF(L8:L8,Y9) -> 0 | AA9: =Z9/(AB4-Z11) -> 0 | AB9: =IF(AA9=0,0,(AA9*((LOG(AA9))/LOG(2)))) -> 0 | AD9: 121 | AE9: =COUNTIF(L8:L9,AD9) -> 0 | AF9: =AE9/(AG4-AE11) -> 0 | AG9: =IF(AF9=0,0,(AF9*((LOG(AF9))/LOG(2)))) -> 0 | AI9: 121 | AJ9: =COUNTIF(L9:L9,AI9) -> 0 | AK9: =AJ9/(AL4-AJ11) -> 0 | AL9: =IF(AK9=0,0,(AK9*((LOG(AK9))/LOG(2)))) -> 0 | AN9: 121 | AO9: =COUNTIF(L10:L10,AN9) -> 0 | AP9: =AO9/(AQ4-AO11) -> 0 | AQ9: =IF(AP9=0,0,(AP9*((LOG(AP9))/LOG(2)))) -> 0 | AS9: 121 | AT9: =COUNTIF(L11:L11,AS9) -> 0 | AU9: =AT9/(AV4-AT11) ->  | AV9: =IF(AU9=0,0,(AU9*((LOG(AU9))/LOG(2)))) -> 
A10: 12 | B10: 8463 | C10: 13 | D10: 8470 | E10: 13 | F10: 8473 | K10: 0 | L10: 111 | N10: 122 | O10: 0 | P10: 0 | Q10: 0 | T10: 122 | U10: =COUNTIF(L7:L7,T10) -> 0 | V10: =U10/(W4-U11) -> 0 | W10: =IF(V10=0,0,(V10*((LOG(V10))/LOG(2)))) -> 0 | Y10: 122 | Z10: =COUNTIF(L8:L8,Y10) -> 0 | AA10: =Z10/(AB4-Z11) -> 0 | AB10: =IF(AA10=0,0,(AA10*((LOG(AA10))/LOG(2)))) -> 0 | AD10: 122 | AE10: =COUNTIF(L8:L9,AD10) -> 0 | AF10: =AE10/(AG4-AE11) -> 0 | AG10: =IF(AF10=0,0,(AF10*((LOG(AF10))/LOG(2)))) -> 0 | AI10: 122 | AJ10: =COUNTIF(L9:L9,AI10) -> 0 | AK10: =AJ10/(AL4-AJ11) -> 0 | AL10: =IF(AK10=0,0,(AK10*((LOG(AK10))/LOG(2)))) -> 0 | AN10: 122 | AO10: =COUNTIF(L10:L10,AN10) -> 0 | AP10: =AO10/(AQ4-AO11) -> 0 | AQ10: =IF(AP10=0,0,(AP10*((LOG(AP10))/LOG(2)))) -> 0 | AS10: 122 | AT10: =COUNTIF(L11:L11,AS10) -> 0 | AU10: =AT10/(AV4-AT11) ->  | AV10: =IF(AU10=0,0,(AU10*((LOG(AU10))/LOG(2)))) -> 
A11: 12 | B11: 8580 | C11: 13 | D11: 8623 | L11: 11 | N11: 211 | O11: 0 | P11: 0 | Q11: 0 | T11: 211 | U11: =COUNTIF(L7:L7,T11) -> 0 | Y11: 211 | Z11: =COUNTIF(L8:L8,Y11) -> 0 | AD11: 211 | AE11: =COUNTIF(L8:L9,AD11) -> 0 | AI11: 211 | AJ11: =COUNTIF(L9:L9,AI11) -> 0 | AN11: 211 | AO11: =COUNTIF(L10:L10,AN11) -> 0 | AS11: 211 | AT11: =COUNTIF(L11:L11,AS11) -> 0
N12: 212 | O12: 0 | P12: 0 | Q12: 0 | T12: 212 | U12: =COUNTIF(L7:L7,T12) -> 0 | V12: =U12/(W4-U11) -> 0 | W12: =IF(V12=0,0,(V12*((LOG(V12))/LOG(2)))) -> 0 | Y12: 212 | Z12: =COUNTIF(L8:L8,Y12) -> 0 | AA12: =Z12/(AB4-Z11) -> 0 | AB12: =IF(AA12=0,0,(AA12*((LOG(AA12))/LOG(2)))) -> 0 | AD12: 212 | AE12: =COUNTIF(L8:L9,AD12) -> 0 | AF12: =AE12/(AG4-AE11) -> 0 | AG12: =IF(AF12=0,0,(AF12*((LOG(AF12))/LOG(2)))) -> 0 | AI12: 212 | AJ12: =COUNTIF(L9:L9,AI12) -> 0 | AK12: =AJ12/(AL4-AJ11) -> 0 | AL12: =IF(AK12=0,0,(AK12*((LOG(AK12))/LOG(2)))) -> 0 | AN12: 212 | AO12: =COUNTIF(L10:L10,AN12) -> 0 | AP12: =AO12/(AQ4-AO11) -> 0 | AQ12: =IF(AP12=0,0,(AP12*((LOG(AP12))/LOG(2)))) -> 0 | AS12: 212 | AT12: =COUNTIF(L11:L11,AS12) -> 0 | AU12: =AT12/(AV4-AT11) ->  | AV12: =IF(AU12=0,0,(AU12*((LOG(AU12))/LOG(2)))) -> 
N13: 221 | O13: 0 | P13: 0 | Q13: 0 | T13: 221 | U13: =COUNTIF(L7:L7,T13) -> 0 | V13: =U13/(W4-U11) -> 0 | W13: =IF(V13=0,0,(V13*((LOG(V13))/LOG(2)))) -> 0 | Y13: 221 | Z13: =COUNTIF(L8:L8,Y13) -> 0 | AA13: =Z13/(AB4-Z11) -> 0 | AB13: =IF(AA13=0,0,(AA13*((LOG(AA13))/LOG(2)))) -> 0 | AD13: 221 | AE13: =COUNTIF(L8:L9,AD13) -> 0 | AF13: =AE13/(AG4-AE11) -> 0 | AG13: =IF(AF13=0,0,(AF13*((LOG(AF13))/LOG(2)))) -> 0 | AI13: 221 | AJ13: =COUNTIF(L9:L9,AI13) -> 0 | AK13: =AJ13/(AL4-AJ11) -> 0 | AL13: =IF(AK13=0,0,(AK13*((LOG(AK13))/LOG(2)))) -> 0 | AN13: 221 | AO13: =COUNTIF(L10:L10,AN13) -> 0 | AP13: =AO13/(AQ4-AO11) -> 0 | AQ13: =IF(AP13=0,0,(AP13*((LOG(AP13))/LOG(2)))) -> 0 | AS13: 221 | AT13: =COUNTIF(L11:L11,AS13) -> 0 | AU13: =AT13/(AV4-AT11) ->  | AV13: =IF(AU13=0,0,(AU13*((LOG(AU13))/LOG(2)))) -> 
N14: 222 | O14: 0 | P14: 0 | Q14: 0 | T14: 222 | U14: =COUNTIF(L7:L7,T14) -> 0 | V14: =U14/(W4-U11) -> 0 | W14: =IF(V14=0,0,(V14*((LOG(V14))/LOG(2)))) -> 0 | Y14: 222 | Z14: =COUNTIF(L8:L8,Y14) -> 0 | AA14: =Z14/(AB4-Z11) -> 0 | AB14: =IF(AA14=0,0,(AA14*((LOG(AA14))/LOG(2)))) -> 0 | AD14: 222 | AE14: =COUNTIF(L8:L9,AD14) -> 0 | AF14: =AE14/(AG4-AE11) -> 0 | AG14: =IF(AF14=0,0,(AF14*((LOG(AF14))/LOG(2)))) -> 0 | AI14: 222 | AJ14: =COUNTIF(L9:L9,AI14) -> 0 | AK14: =AJ14/(AL4-AJ11) -> 0 | AL14: =IF(AK14=0,0,(AK14*((LOG(AK14))/LOG(2)))) -> 0 | AN14: 222 | AO14: =COUNTIF(L10:L10,AN14) -> 0 | AP14: =AO14/(AQ4-AO11) -> 0 | AQ14: =IF(AP14=0,0,(AP14*((LOG(AP14))/LOG(2)))) -> 0 | AS14: 222 | AT14: =COUNTIF(L11:L11,AS14) -> 0 | AU14: =AT14/(AV4-AT11) ->  | AV14: =IF(AU14=0,0,(AU14*((LOG(AU14))/LOG(2)))) -> 
P15: =SUM(P7:P14) -> 1 | Q15: =-SUM(Q7:Q14) -> 0 | V15: =SUM(V7:V14) -> 1 | W15: =-SUM(W7:W14) -> 0 | AA15: =SUM(AA7:AA14) -> 1 | AB15: =-SUM(AB7:AB14) -> 0 | AF15: =SUM(AF7:AF14) -> 1 | AG15: =-SUM(AG7:AG14) -> 0 | AK15: =SUM(AK7:AK14) -> 1 | AL15: =-SUM(AL7:AL14) -> 0 | AP15: =SUM(AP7:AP14) -> 1 | AQ15: =-SUM(AQ7:AQ14) -> 0 | AU15: =SUM(AU7:AU14) ->  | AV15: =-SUM(AV7:AV14) -> 
P16: U= | Q16: =Q15/(LOG(Q4)/LOG(2)) -> 0 | V16: U1= | W16: =W15/(LOG(W4)/LOG(2)) ->  | AA16: U2= | AB16: =AB15/(LOG(AB4)/LOG(2)) ->  | AF16: U3= | AG16: =AG15/(LOG(AG4)/LOG(2)) -> 0 | AK16: U4= | AL16: =AL15/(LOG(AL4)/LOG(2)) ->  | AP16: U5= | AQ16: =AQ15/(LOG(AQ4)/LOG(2)) ->  | AU16: U6= | AV16: =AV15/(LOG(AV4)/LOG(2)) -> 
N19: Total Target Seq
N20: =COUNTIF(L7:L11,G3) -> 0 | P20: 1 | Q20: 1 | R20: 0 | S20: 1 | T20: 1 | U20: 1
P21: % of reinforcement given in 6 equal intervals based on number of trials
P22: %_1 | Q22: %_2 | R22: %_3 | S22: %_4 | T22: %_5 | U22: %_6
O23: target sequence | P23: =$G$3 -> 211 | Q23: 211 | R23: 211 | S23: 211 | T23: 211 | U23: 211
O24: total reinforcement | P24: =U11 -> 0 | Q24: =Z11 -> 0 | R24: =AE11 -> 0 | S24: =AJ11 -> 0 | T24: =AO11 -> 0 | U24: =AT11 -> 0
O25: % target
O26: CCRF
O27: % CCRf
O28: average response rate | P28: =F7/P20 -> 224 | Q28: =(F8-F7)/Q20 -> 193 | R28: =(F8-F8)/R20 ->  | S28: =(F9-F8)/S20 -> 5727 | T28: =(F10-F9)/T20 -> 2329 | U28: =(F11-F10)/U20 -> -8473

Sheet !L830A5I.sha
A1: Report for:!L830A5I.sha
A2: Date: | B2: <date>
A3: Hen: | B3: <hen> | F3: Correct Sequence | G3: =Start!J2 -> 211 | P3: Total Sequences in Data | Q3: =4994-COUNTBLANK(L7:L5000) -> 3 | V3: Total Sequences in Block Data | W3: =COUNTA(L7:L7) -> 1 | AA3: Total Sequences in Block Data | AB3: =COUNTA(L7:L8) -> 2 | AF3: Total Sequences in Block Data | AG3: =COUNTA(L8:L8) -> 1 | AK3: Total Sequences in Block Data | AL3: =COUNTA(L8:L9) -> 2 | AP3: Total Sequences in Block Data | AQ3: =COUNTA(L9:L9) -> 1 | AU3: Total Sequences in Block Data | AV3: =COUNTA(L9:L10) -> 1
P4: Total Sequences in Summary | Q4: =SUM(O7:O14) -> 3 | V4: Total Sequences in Block Summary | W4: =SUM(U7:U14) -> 1 | AA4: Total Sequences in Block Summary | AB4: =SUM(Z7:Z14) -> 2 | AF4: Total Sequences in Block Summary | AG4: =SUM(AE7:AE14) -> 1 | AK4: Total Sequences in Block Summary | AL4: =SUM(AJ7:AJ14) -> 2 | AP4: Total Sequences in Block Summary | AQ4: =SUM(AO7:AO14) -> 1 | AU4: Total Sequences in Block Summary | AV4: =SUM(AT7:AT14) -> 1
T5: Block 1 | Y5: Block 2 | AD5: Block 3 | AI5: Block 4 | AN5: Block 5 | AS5: Block 6
A6: Sequence Component 1 | B6: Time 1 | C6: Sequence Component 2 | D6: Time 2 | E6: Sequence Component 3 | F6: Time 3 | G6: Sequence Component 4 | H6: Time 4 | I6: Sequence Component 5 | J6: Time 5 | K6: Correct? 0=No 1=Yes | L6: Sequence | N6: Frequency | P6: Relative Frequency | Q6: Variability | T6: Frequency | V6: Relative Frequency | W6: Variability | Y6: Frequency | AA6: Relative Frequency | AB6: Variability | AD6: Frequency | AF6: Relative Frequency | AG6: Variability | AI6: Frequency | AK6: Relative Frequency | AL6: Variability | AN6: Frequency | AP6: Relative Frequency | AQ6: Variability | AS6: Frequency | AU6: Relative Frequency | AV6: Variability
A7: 12 | B7: 60 | C7: 13 | D7: 364 | E7: 24 | F7: 379 | K7: 0 | L7: 112 | N7: 111 | O7: =COUNTIF($L$7:$L$500,N7) -> 0 | P7: =O7/$Q$4 -> 0 | Q7: =IF(P7=0,0,(P7*((LOG(P7))/LOG(2)))) -> 0 | T7: =N7 -> 111 | U7: =COUNTIF(L7:L7,T7) -> 0 | V7: =U7/(W4-U11) -> 0 | W7: =IF(V7=0,0,(V7*((LOG(V7))/LOG(2)))) -> 0 | Y7: =N7 -> 111 | Z7: =COUNTIF(L7:L8,Y7) -> 0 | AA7: =Z7/(AB4-Z11) -> 0 | AB7: =IF(AA7=0,0,(AA7*((LOG(AA7))/LOG(2)))) -> 0 | AD7: =N7 -> 111 | AE7: =COUNTIF(L8:L8,AD7) -> 0 | AF7: =AE7/(AG4-AE11) -> 0 | AG7: =IF(AF7=0,0,(AF7*((LOG(AF7))/LOG(2)))) -> 0 | AI7: =N7 -> 111 | AJ7: =COUNTIF(L8:L9,AI7) -> 0 | AK7: =AJ7/(AL4-AJ11) -> 0 | AL7: =IF(AK7=0,0,(AK7*((LOG(AK7))/LOG(2)))) -> 0 | AN7: =N7 -> 111 | AO7: =COUNTIF(L9:L9,AN7) -> 0 | AP7: =AO7/(AQ4-AO11) -> 0 | AQ7: =IF(AP7=0,0,(AP7*((LOG(AP7))/LOG(2)))) -> 0 | AS7: =N7 -> 111 | AT7: =COUNTIF(L9:L10,AS7) -> 0 | AU7: =AT7/(AV4-AT11) -> 0 | AV7: =IF(AU7=0,0,(AU7*((LOG(AU7))/LOG(2)))) -> 0
A8: 12 | B8: 624 | C8: 24 | D8: 648 | E8: 24 | F8: 653 | K8: 0 | L8: 122 | N8: 112 | O8: 2 | P8: 0.6666666667 | Q8: -0.3899750005 | T8: 112 | U8: =COUNTIF(L7:L7,T8) -> 1 | V8: =U8/(W4-U11) -> 1 | W8: =IF(V8=0,0,(V8*((LOG(V8))/LOG(2)))) -> 0 | Y8: 112 | Z8: =COUNTIF(L7:L8,Y8) -> 1 | AA8: =Z8/(AB4-Z11) -> 0.5 | AB8: =IF(AA8=0,0,(AA8*((LOG(AA8))/LOG(2)))) -> -0.5 | AD8: 112 | AE8: =COUNTIF(L8:L8,AD8) -> 0 | AF8: =AE8/(AG4-AE11) -> 0 | AG8: =IF(AF8=0,0,(AF8*((LOG(AF8))/LOG(2)))) -> 0 | AI8: 112 | AJ8: =COUNTIF(L8:L9,AI8) -> 1 | AK8: =AJ8/(AL4-AJ11) -> 0.5 | AL8: =IF(AK8=0,0,(AK8*((LOG(AK8))/LOG(2)))) -> -0.5 | AN8: 112 | AO8: =COUNTIF(L9:L9,AN8) -> 1 | AP8: =AO8/(AQ4-AO11) -> 1 | AQ8: =IF(AP8=0,0,(AP8*((LOG(AP8))/LOG(2)))) -> 0 | AS8: 112 | AT8: =COUNTIF(L9:L10,AS8) -> 1 | AU8: =AT8/(AV4-AT11) -> 1 | AV8: =IF(AU8=0,0,(AU8*((LOG(AU8))/LOG(2)))) -> 0
A9: 12 | B9: 5775 | C9: 13 | D9: 7618 | E9: 24 | F9: 7646 | K9: 0 | L9: 112 | N9: 121 | O9: 0 | P9: 0 | Q9: 0 | T9: 121 | U9: =COUNTIF(L7:L7,T9) -> 0 | V9: =U9/(W4-U11) -> 0 | W9: =IF(V9=0,0,(V9*((LOG(V9))/LOG(2)))) -> 0 | Y9: 121 | Z9: =COUNTIF(L7:L8,Y9) -> 0 | AA9: =Z9/(AB4-Z11) -> 0 | AB9: =IF(AA9=0,0,(AA9*((LOG(AA9))/LOG(2)))) -> 0 | AD9: 121 | AE9: =COUNTIF(L8:L8,AD9) -> 0 | AF9: =AE9/(AG4-AE11) -> 0 | AG9: =IF(AF9=0,0,(AF9*((LOG(AF9))/LOG(2)))) -> 0 | AI9: 121 | AJ9: =COUNTIF(L8:L9,AI9) -> 0 | AK9: =AJ9/(AL4-AJ11) -> 0 | AL9: =IF(AK9=0,0,(AK9*((LOG(AK9))/LOG(2)))) -> 0 | AN9: 121 | AO9: =COUNTIF(L9:L9,AN9) -> 0 | AP9: =AO9/(AQ4-AO11) -> 0 | AQ9: =IF(AP9=0,0,(AP9*((LOG(AP9))/LOG(2)))) -> 0 | AS9: 121 | AT9: =COUNTIF(L9:L10,AS9) -> 0 | AU9: =AT9/(AV4-AT11) -> 0 | AV9: =IF(AU9=0,0,(AU9*((LOG(AU9))/LOG(2)))) -> 0
N10: 122 | O10: 1 | P10: 0.3333333333 | Q10: -0.5283208336 | T10: 122 | U10: =COUNTIF(L7:L7,T10) -> 0 | V10: =U10/(W4-U11) -> 0 | W10: =IF(V10=0,0,(V10*((LOG(V10))/LOG(2)))) -> 0 | Y10: 122 | Z10: =COUNTIF(L7:L8,Y10) -> 1 | AA10: =Z10/(AB4-Z11) -> 0.5 | AB10: =IF(AA10=0,0,(AA10*((LOG(AA10))/LOG(2)))) -> -0.5 | AD10: 122 | AE10: =COUNTIF(L8:L8,AD10) -> 1 | AF10: =AE10/(AG4-AE11) -> 1 | AG10: =IF(AF10=0,0,(AF10*((LOG(AF10))/LOG(2)))) -> 0 | AI10: 122 | AJ10: =COUNTIF(L8:L9,AI10) -> 1 | AK10: =AJ10/(AL4-AJ11) -> 0.5 | AL10: =IF(AK10=0,0,(AK10*((LOG(AK10))/LOG(2)))) -> -0.5 | AN10: 122 | AO10: =COUNTIF(L9:L9,AN10) -> 0 | AP10: =AO10/(AQ4-AO11) -> 0 | AQ10: =IF(AP10=0,0,(AP10*((LOG(AP10))/LOG(2)))) -> 0 | AS10: 122 | AT10: =COUNTIF(L9:L10,AS10) -> 0 | AU10: =AT10/(AV4-AT11) -> 0 | AV10: =IF(AU10=0,0,(AU10*((LOG(AU10))/LOG(2)))) -> 0
N11: 211 | O11: 0 | P11: 0 | Q11: 0 | T11: 211 | U11: =COUNTIF(L7:L7,T11) -> 0 | Y11: 211 | Z11: =COUNTIF(L7:L8,Y11) -> 0 | AD11: 211 | AE11: =COUNTIF(L8:L8,AD11) -> 0 | AI11: 211 | AJ11: =COUNTIF(L8:L9,AI11) -> 0 | AN11: 211 | AO11: =COUNTIF(L9:L9,AN11) -> 0 | AS11: 211 | AT11: =COUNTIF(L9:L10,AS11) -> 0
N12: 212 | O12: 0 | P12: 0 | Q12: 0 | T12: 212 | U12: =COUNTIF(L7:L7,T12) -> 0 | V12: =U12/(W4-U11) -> 0 | W12: =IF(V12=0,0,(V12*((LOG(V12))/LOG(2)))) -> 0 | Y12: 212 | Z12: =COUNTIF(L7:L8,Y12) -> 0 | AA12: =Z12/(AB4-Z11) -> 0 | AB12: =IF(AA12=0,0,(AA12*((LOG(AA12))/LOG(2)))) -> 0 | AD12: 212 | AE12: =COUNTIF(L8:L8,AD12) -> 0 | AF12: =AE12/(AG4-AE11) -> 0 | AG12: =IF(AF12=0,0,(AF12*((LOG(AF12))/LOG(2)))) -> 0 | AI12: 212 | AJ12: =COUNTIF(L8:L9,AI12) -> 0 | AK12: =AJ12/(AL4-AJ11) -> 0 | AL12: =IF(AK12=0,0,(AK12*((LOG(AK12))/LOG(2)))) -> 0 | AN12: 212 | AO12: =COUNTIF(L9:L9,AN12) -> 0 | AP12: =AO12/(AQ4-AO11) -> 0 | AQ12: =IF(AP12=0,0,(AP12*((LOG(AP12))/LOG(2)))) -> 0 | AS12: 212 | AT12: =COUNTIF(L9:L10,AS12) -> 0 | AU12: =AT12/(AV4-AT11) -> 0 | AV12: =IF(AU12=0,0,(AU12*((LOG(AU12))/LOG(2)))) -> 0
N13: 221 | O13: 0 | P13: 0 | Q13: 0 | T13: 221 | U13: =COUNTIF(L7:L7,T13) -> 0 | V13: =U13/(W4-U11) -> 0 | W13: =IF(V13=0,0,(V13*((LOG(V13))/LOG(2)))) -> 0 | Y13: 221 | Z13: =COUNTIF(L7:L8,Y13) -> 0 | AA13: =Z13/(AB4-Z11) -> 0 | AB13: =IF(AA13=0,0,(AA13*((LOG(AA13))/LOG(2)))) -> 0 | AD13: 221 | AE13: =COUNTIF(L8:L8,AD13) -> 0 | AF13: =AE13/(AG4-AE11) -> 0 | AG13: =IF(AF13=0,0,(AF13*((LOG(AF13))/LOG(2)))) -> 0 | AI13: 221 | AJ13: =COUNTIF(L8:L9,AI13) -> 0 | AK13: =AJ13/(AL4-AJ11) -> 0 | AL13: =IF(AK13=0,0,(AK13*((LOG(AK13))/LOG(2)))) -> 0 | AN13: 221 | AO13: =COUNTIF(L9:L9,AN13) -> 0 | AP13: =AO13/(AQ4-AO11) -> 0 | AQ13: =IF(AP13=0,0,(AP13*((LOG(AP13))/LOG(2)))) -> 0 | AS13: 221 | AT13: =COUNTIF(L9:L10,AS13) -> 0 | AU13: =AT13/(AV4-AT11) -> 0 | AV13: =IF(AU13=0,0,(AU13*((LOG(AU13))/LOG(2)))) -> 0
N14: 222 | O14: 0 | P14: 0 | Q14: 0 | T14: 222 | U14: =COUNTIF(L7:L7,T14) -> 0 | V14: =U14/(W4-U11) -> 0 | W14: =IF(V14=0,0,(V14*((LOG(V14))/LOG(2)))) -> 0 | Y14: 222 | Z14: =COUNTIF(L7:L8,Y14) -> 0 | AA14: =Z14/(AB4-Z11) -> 0 | AB14: =IF(AA14=0,0,(AA14*((LOG(AA14))/LOG(2)))) -> 0 | AD14: 222 | AE14: =COUNTIF(L8:L8,AD14) -> 0 | AF14: =AE14/(AG4-AE11) -> 0 | AG14: =IF(AF14=0,0,(AF14*((LOG(AF14))/LOG(2)))) -> 0 | AI14: 222 | AJ14: =COUNTIF(L8:L9,AI14) -> 0 | AK14: =AJ14/(AL4-AJ11) -> 0 | AL14: =IF(AK14=0,0,(AK14*((LOG(AK14))/LOG(2)))) -> 0 | AN14: 222 | AO14: =COUNTIF(L9:L9,AN14) -> 0 | AP14: =AO14/(AQ4-AO11) -> 0 | AQ14: =IF(AP14=0,0,(AP14*((LOG(AP14))/LOG(2)))) -> 0 | AS14: 222 | AT14: =COUNTIF(L9:L10,AS14) -> 0 | AU14: =AT14/(AV4-AT11) -> 0 | AV14: =IF(AU14=0,0,(AU14*((LOG(AU14))/LOG(2)))) -> 0
P15: =SUM(P7:P14) -> 1 | Q15: =-SUM(Q7:Q14) -> 0.9182958341 | V15: =SUM(V7:V14) -> 1 | W15: =-SUM(W7:W14) -> 0 | AA15: =SUM(AA7:AA14) -> 1 | AB15: =-SUM(AB7:AB14) -> 1 | AF15: =SUM(AF7:AF14) -> 1 | AG15: =-SUM(AG7:AG14) -> 0 | AK15: =SUM(AK7:AK14) -> 1 | AL15: =-SUM(AL7:AL14) -> 1 | AP15: =SUM(AP7:AP14) -> 1 | AQ15: =-SUM(AQ7:AQ14) -> 0 | AU15: =SUM(AU7:AU14) -> 1 | AV15: =-SUM(AV7:AV14) -> 0
P16: U= | Q16: =Q15/(LOG(Q4)/LOG(2)) -> 0.5793801643 | V16: U1= | W16: =W15/(LOG(W4)/LOG(2)) ->  | AA16: U2= | AB16: =AB15/(LOG(AB4)/LOG(2)) -> 1 | AF16: U3= | AG16: =AG15/(LOG(AG4)/LOG(2)) ->  | AK16: U4= | AL16: =AL15/(LOG(AL4)/LOG(2)) -> 1 | AP16: U5= | AQ16: =AQ15/(LOG(AQ4)/LOG(2)) ->  | AU16: U6= | AV16: =AV15/(LOG(AV4)/LOG(2)) -> 
N19: Total Target Seq
N20: =COUNTIF(L7:L9,G3) -> 0 | P20: 1 | Q20: 0 | R20: 1 | S20: 0 | T20: 1 | U20: 0
P21: % of reinforcement given in 6 equal intervals based on number of trials
P22: %_1 | Q22: %_2 | R22: %_3 | S22: %_4 | T22: %_5 | U22: %_6
O23: target sequence | P23: =$G$3 -> 211 | Q23: 211 | R23: 211 | S23: 211 | T23: 211 | U23: 211
O24: total reinforcement | P24: =U11 -> 0 | Q24: =Z11 -> 0 | R24: =AE11 -> 0 | S24: =AJ11 -> 0 | T24: =AO11 -> 0 | U24: =AT11 -> 0
O25: % target
O26: CCRF
O27: % CCRf
O28: average response rate | P28: =F7/P20 -> 379 | Q28: =(F7-F7)/Q20 ->  | R28: =(F8-F7)/R20 -> 274 | S28: =(F8-F8)/S20 ->  | T28: =(F9-F8)/T20 -> 6993 | U28: =(F9-F9)/U20 -> 

Sheet !L831A2I.sha
A1: Report for:!L831A2I.sha
A2: Date: | B2: <date>
A3: Hen: | B3: <hen> | F3: Correct Sequence | G3: =Start!J2 -> 211 | P3: Total Sequences in Data | Q3: =4994-COUNTBLANK(L7:L5000) -> 2 | V3: Total Sequences in Block Data | W3: =COUNTA(L6:L7) -> 2 | AA3: Total Sequences in Block Data | AB3: =COUNTA(L7:L7) -> 1 | AF3: Total Sequences in Block Data | AG3: =COUNTA(L7:L8) -> 2 | AK3: Total Sequences in Block Data | AL3: =COUNTA(L7:L8) -> 2 | AP3: Total Sequences in Block Data | AQ3: =COUNTA(L8:L8) -> 1 | AU3: Total Sequences in Block Data | AV3: =COUNTA(L8:L9) -> 1
P4: Total Sequences in Summary | Q4: =SUM(O7:O14) -> 1 | V4: Total Sequences in Block Summary | W4: =SUM(U7:U14) -> 1 | AA4: Total Sequences in Block Summary | AB4: =SUM(Z7:Z14) -> 1 | AF4: Total Sequences in Block Summary | AG4: =SUM(AE7:AE14) -> 1 | AK4: Total Sequences in Block Summary | AL4: =SUM(AJ7:AJ14) -> 1 | AP4: Total Sequences in Block Summary | AQ4: =SUM(AO7:AO14) -> 0 | AU4: Total Sequences in Block Summary | AV4: =SUM(AT7:AT14) -> 0
T5: Block 1 | Y5: Block 2 | AD5: Block 3 | AI5: Block 4 | AN5: Block 5 | AS5: Block 6
A6: Sequence Component 1 | B6: Time 1 | C6: Sequence Component 2 | D6: Time 2 | E6: Sequence Component 3 | F6: Time 3 | G6: Sequence Component 4 | H6: Time 4 | I6: Sequence Component 5 | J6: Time 5 | K6: Correct? 0=No 1=Yes | L6: Sequence | N6: Frequency | P6: Relative Frequency | Q6: Variability | T6: Frequency | V6: Relative Frequency | W6: Variability | Y6: Frequency | AA6: Relative Frequency | AB6: Variability | AD6: Frequency | AF6: Relative Frequency | AG6: Variability | AI6: Frequency | AK6: Relative Frequency | AL6: Variability | AN6: Frequency | AP6: Relative Frequency | AQ6: Variability | AS6: Frequency | AU6: Relative Frequency | AV6: Variability
A7: 12 | B7: 1827 | C7: 13 | D7: 1837 | E7: 13 | F7: 3728 | K7: 0 | L7: 111 | N7: 111 | O7: =COUNTIF($L$7:$L$500,N7) -> 1 | P7: =O7/$Q$4 -> 1 | Q7: =IF(P7=0,0,(P7*((LOG(P7))/LOG(2)))) -> 0 | T7: =N7 -> 111 | U7: =COUNTIF(L6:L7,T7) -> 1 | V7: =U7/(W4-U11) -> 1 | W7: =IF(V7=0,0,(V7*((LOG(V7))/LOG(2)))) -> 0 | Y7: =N7 -> 111 | Z7: =COUNTIF(L7:L7,Y7) -> 1 | AA7: =Z7/(AB4-Z11) -> 1 | AB7: =IF(AA7=0,0,(AA7*((LOG(AA7))/LOG(2)))) -> 0 | AD7: =N7 -> 111 | AE7: =COUNTIF(L7:L8,AD7) -> 1 | AF7: =AE7/(AG4-AE11) -> 1 | AG7: =IF(AF7=0,0,(AF7*((LOG(AF7))/LOG(2)))) -> 0 | AI7: =N7 -> 111 | AJ7: =COUNTIF(L7:L8,AI7) -> 1 | AK7: =AJ7/(AL4-AJ11) -> 1 | AL7: =IF(AK7=0,0,(AK7*((LOG(AK7))/LOG(2)))) -> 0 | AN7: =N7 -> 111 | AO7: =COUNTIF(L8:L8,AN7) -> 0 | AP7: =AO7/(AQ4-AO11) ->  | AQ7: =IF(AP7=0,0,(AP7*((LOG(AP7))/LOG(2)))) ->  | AS7: =N7 -> 111 | AT7: =COUNTIF(L8:L9,AS7) -> 0 | AU7: =AT7/(AV4-AT11) ->  | AV7: =IF(AU7=0,0,(AU7*((LOG(AU7))/LOG(2)))) -> 
A8: 12 | B8: 7949 | C8: 13 | D8: 9807 | L8: 11 | N8: 112 | O8: 0 | P8: 0 | Q8: 0 | T8: 112 | U8: =COUNTIF(L6:L7,T8) -> 0 | V8: =U8/(W4-U11) -> 0 | W8: =IF(V8=0,0,(V8*((LOG(V8))/LOG(2)))) -> 0 | Y8: 112 | Z8: =COUNTIF(L7:L7,Y8) -> 0 | AA8: =Z8/(AB4-Z11) -> 0 | AB8: =IF(AA8=0,0,(AA8*((LOG(AA8))/LOG(2)))) -> 0 | AD8: 112 | AE8: =COUNTIF(L7:L8,AD8) -> 0 | AF8: =AE8/(AG4-AE11) -> 0 | AG8: =IF(AF8=0,0,(AF8*((LOG(AF8))/LOG(2)))) -> 0 | AI8: 112 | AJ8: =COUNTIF(L7:L8,AI8) -> 0 | AK8: =AJ8/(AL4-AJ11) -> 0 | AL8: =IF(AK8=0,0,(AK8*((LOG(AK8))/LOG(2)))) -> 0 | AN8: 112 | AO8: =COUNTIF(L8:L8,AN8) -> 0 | AP8: =AO8/(AQ4-AO11) ->  | AQ8: =IF(AP8=0,0,(AP8*((LOG(AP8))/LOG(2)))) ->  | AS8: 112 | AT8: =COUNTIF(L8:L9,AS8) -> 0 | AU8: =AT8/(AV4-AT11) ->  | AV8: =IF(AU8=0,0,(AU8*((LOG(AU8))/LOG(2)))) -> 
N9: 121 | O9: 0 | P9: 0 | Q9: 0 | T9: 121 | U9: =COUNTIF(L6:L7,T9) -> 0 | V9: =U9/(W4-U11) -> 0 | W9: =IF(V9=0,0,(V9*((LOG(V9))/LOG(2)))) -> 0 | Y9: 121 | Z9: =COUNTIF(L7:L7,Y9) -> 0 | AA9: =Z9/(AB4-Z11) -> 0 | AB9: =IF(AA9=0,0,(AA9*((LOG(AA9))/LOG(2)))) -> 0 | AD9: 121 | AE9: =COUNTIF(L7:L8,AD9) -> 0 | AF9: =AE9/(AG4-AE11) -> 0 | AG9: =IF(AF9=0,0,(AF9*((LOG(AF9))/LOG(2)))) -> 0 | AI9: 121 | AJ9: =COUNTIF(L7:L8,AI9) -> 0 | AK9: =AJ9/(AL4-AJ11) -> 0 | AL9: =IF(AK9=0,0,(AK9*((LOG(AK9))/LOG(2)))) -> 0 | AN9: 121 | AO9: =COUNTIF(L8:L8,AN9) -> 0 | AP9: =AO9/(AQ4-AO11) ->  | AQ9: =IF(AP9=0,0,(AP9*((LOG(AP9))/LOG(2)))) ->  | AS9: 121 | AT9: =COUNTIF(L8:L9,AS9) -> 0 | AU9: =AT9/(AV4-AT11) ->  | AV9: =IF(AU9=0,0,(AU9*((LOG(AU9))/LOG(2)))) -> 
N10: 122 | O10: 0 | P10: 0 | Q10: 0 | T10: 122 | U10: =COUNTIF(L6:L7,T10) -> 0 | V10: =U10/(W4-U11) -> 0 | W10: =IF(V10=0,0,(V10*((LOG(V10))/LOG(2)))) -> 0 | Y10: 122 | Z10: =COUNTIF(L7:L7,Y10) -> 0 | AA10: =Z10/(AB4-Z11) -> 0 | AB10: =IF(AA10=0,0,(AA10*((LOG(AA10))/LOG(2)))) -> 0 | AD10: 122 | AE10: =COUNTIF(L7:L8,AD10) -> 0 | AF10: =AE10/(AG4-AE11) -> 0 | AG10: =IF(AF10=0,0,(AF10*((LOG(AF10))/LOG(2)))) -> 0 | AI10: 122 | AJ10: =COUNTIF(L7:L8,AI10) -> 0 | AK10: =AJ10/(AL4-AJ11) -> 0 | AL10: =IF(AK10=0,0,(AK10*((LOG(AK10))/LOG(2)))) -> 0 | AN10: 122 | AO10: =COUNTIF(L8:L8,AN10) -> 0 | AP10: =AO10/(AQ4-AO11) ->  | AQ10: =IF(AP10=0,0,(AP10*((LOG(AP10))/LOG(2)))) ->  | AS10: 122 | AT10: =COUNTIF(L8:L9,AS10) -> 0 | AU10: =AT10/(AV4-AT11) ->  | AV10: =IF(AU10=0,0,(AU10*((LOG(AU10))/LOG(2)))) -> 
N11: 211 | O11: 0 | P11: 0 | Q11: 0 | T11: 211 | U11: =COUNTIF(L6:L7,T11) -> 0 | Y11: 211 | Z11: =COUNTIF(L7:L7,Y11) -> 0 | AD11: 211 | AE11: =COUNTIF(L7:L8,AD11) -> 0 | AI11: 211 | AJ11: =COUNTIF(L7:L8,AI11) -> 0 | AN11: 211 | AO11: =COUNTIF(L8:L8,AN11) -> 0 | AS11: 211 | AT11: =COUNTIF(L8:L9,AS11) -> 0
N12: 212 | O12: 0 | P12: 0 | Q12: 0 | T12: 212 | U12: =COUNTIF(L6:L7,T12) -> 0 | V12: =U12/(W4-U11) -> 0 | W12: =IF(V12=0,0,(V12*((LOG(V12))/LOG(2)))) -> 0 | Y12: 212 | Z12: =COUNTIF(L7:L7,Y12) -> 0 | AA12: =Z12/(AB4-Z11) -> 0 | AB12: =IF(AA12=0,0,(AA12*((LOG(AA12))/LOG(2)))) -> 0 | AD12: 212 | AE12: =COUNTIF(L7:L8,AD12) -> 0 | AF12: =AE12/(AG4-AE11) -> 0 | AG12: =IF(AF12=0,0,(AF12*((LOG(AF12))/LOG(2)))) -> 0 | AI12: 212 | AJ12: =COUNTIF(L7:L8,AI12) -> 0 | AK12: =AJ12/(AL4-AJ11) -> 0 | AL12: =IF(AK12=0,0,(AK12*((LOG(AK12))/LOG(2)))) -> 0 | AN12: 212 | AO12: =COUNTIF(L8:L8,AN12) -> 0 | AP12: =AO12/(AQ4-AO11) ->  | AQ12: =IF(AP12=0,0,(AP12*((LOG(AP12))/LOG(2)))) ->  | AS12: 212 | AT12: =COUNTIF(L8:L9,AS12) -> 0 | AU12: =AT12/(AV4-AT11) ->  | AV12: =IF(AU12=0,0,(AU12*((LOG(AU12))/LOG(2)))) -> 
N13: 221 | O13: 0 | P13: 0 | Q13: 0 | T13: 221 | U13: =COUNTIF(L6:L7,T13) -> 0 | V13: =U13/(W4-U11) -> 0 | W13: =IF(V13=0,0,(V13*((LOG(V13))/LOG(2)))) -> 0 | Y13: 221 | Z13: =COUNTIF(L7:L7,Y13) -> 0 | AA13: =Z13/(AB4-Z11) -> 0 | AB13: =IF(AA13=0,0,(AA13*((LOG(AA13))/LOG(2)))) -> 0 | AD13: 221 | AE13: =COUNTIF(L7:L8,AD13) -> 0 | AF13: =AE13/(AG4-AE11) -> 0 | AG13: =IF(AF13=0,0,(AF13*((LOG(AF13))/LOG(2)))) -> 0 | AI13: 221 | AJ13: =COUNTIF(L7:L8,AI13) -> 0 | AK13: =AJ13/(AL4-AJ11) -> 0 | AL13: =IF(AK13=0,0,(AK13*((LOG(AK13))/LOG(2)))) -> 0 | AN13: 221 | AO13: =COUNTIF(L8:L8,AN13) -> 0 | AP13: =AO13/(AQ4-AO11) ->  | AQ13: =IF(AP13=0,0,(AP13*((LOG(AP13))/LOG(2)))) ->  | AS13: 221 | AT13: =COUNTIF(L8:L9,AS13) -> 0 | AU13: =AT13/(AV4-AT11) ->  | AV13: =IF(AU13=0,0,(AU13*((LOG(AU13))/LOG(2)))) -> 
N14: 222 | O14: 0 | P14: 0 | Q14: 0 | T14: 222 | U14: =COUNTIF(L6:L7,T14) -> 0 | V14: =U14/(W4-U11) -> 0 | W14: =IF(V14=0,0,(V14*((LOG(V14))/LOG(2)))) -> 0 | Y14: 222 | Z14: =COUNTIF(L7:L7,Y14) -> 0 | AA14: =Z14/(AB4-Z11) -> 0 | AB14: =IF(AA14=0,0,(AA14*((LOG(AA14))/LOG(2)))) -> 0 | AD14: 222 | AE14: =COUNTIF(L7:L8,AD14) -> 0 | AF14: =AE14/(AG4-AE11) -> 0 | AG14: =IF(AF14=0,0,(AF14*((LOG(AF14))/LOG(2)))) -> 0 | AI14: 222 | AJ14: =COUNTIF(L7:L8,AI14) -> 0 | AK14: =AJ14/(AL4-AJ11) -> 0 | AL14: =IF(AK14=0,0,(AK14*((LOG(AK14))/LOG(2)))) -> 0 | AN14: 222 | AO14: =COUNTIF(L8:L8,AN14) -> 0 | AP14: =AO14/(AQ4-AO11) ->  | AQ14: =IF(AP14=0,0,(AP14*((LOG(AP14))/LOG(2)))) ->  | AS14: 222 | AT14: =COUNTIF(L8:L9,AS14) -> 0 | AU14: =AT14/(AV4-AT11) ->  | AV14: =IF(AU14=0,0,(AU14*((LOG(AU14))/LOG(2)))) -> 
P15: =SUM(P7:P14) -> 1 | Q15: =-SUM(Q7:Q14) -> 0 | V15: =SUM(V7:V14) -> 1 | W15: =-SUM(W7:W14) -> 0 | AA15: =SUM(AA7:AA14) -> 1 | AB15: =-SUM(AB7:AB14) -> 0 | AF15: =SUM(AF7:AF14) -> 1 | AG15: =-SUM(AG7:AG14) -> 0 | AK15: =SUM(AK7:AK14) -> 1 | AL15: =-SUM(AL7:AL14) -> 0 | AP15: =SUM(AP7:AP14) ->  | AQ15: =-SUM(AQ7:AQ14) ->  | AU15: =SUM(AU7:AU14) ->  | AV15: =-SUM(AV7:AV14) -> 
P16: U= | Q16: =Q15/(LOG(Q4)/LOG(2)) ->  | V16: U1= | W16: =W15/(LOG(W4)/LOG(2)) ->  | AA16: U2= | AB16: =AB15/(LOG(AB4)/LOG(2)) ->  | AF16: U3= | AG16: =AG15/(LOG(AG4)/LOG(2)) ->  | AK16: U4= | AL16: =AL15/(LOG(AL4)/LOG(2)) ->  | AP16: U5= | AQ16: =AQ15/(LOG(AQ4)/LOG(2)) ->  | AU16: U6= | AV16: =AV15/(LOG(AV4)/LOG(2)) -> 
N19: Total Target Seq
N20: =COUNTIF(L7:L8,G3) -> 0 | P20: 0 | Q20: 1 | R20: 0 | S20: 0 | T20: 1 | U20: 0
P21: % of reinforcement given in 6 equal intervals based on number of trials
P22: %_1 | Q22: %_2 | R22: %_3 | S22: %_4 | T22: %_5 | U22: %_6
O23: target sequence | P23: =$G$3 -> 211 | Q23: 211 | R23: 211 | S23: 211 | T23: 211 | U23: 211
O24: total reinforcement | P24: =U11 -> 0 | Q24: =Z11 -> 0 | R24: =AE11 -> 0 | S24: =AJ11 -> 0 | T24: =AO11 -> 0 | U24: =AT11 -> 0
O25: % target
O26: CCRF
O27: % CCRf
O28: average response rate | P28: =F6/P20 ->  | Q28: =(F7-F6)/Q20 ->  | R28: =(F7-F7)/R20 ->  | S28: =(F7-F7)/S20 ->  | T28: =(F8-F7)/T20 -> -3728 | U28: =(F8-F8)/U20 -> 

Sheet !L901A4I.sha
A1: Report for:!L901A4I.sha
A2: Date: | B2: <date>
A3: Hen: | B3: <hen> | F3: Correct Sequence | G3: =Start!J2 -> 211 | P3: Total Sequences in Data | Q3: =4994-COUNTBLANK(L7:L5000) -> 2 | V3: Total Sequences in Block Data | W3: =COUNTA(L6:L7) -> 2 | AA3: Total Sequences in Block Data | AB3: =COUNTA(L7:L7) -> 1 | AF3: Total Sequences in Block Data | AG3: =COUNTA(L7:L8) -> 2 | AK3: Total Sequences in Block Data | AL3: =COUNTA(L7:L8) -> 2 | AP3: Total Sequences in Block Data | AQ3: =COUNTA(L8:L8) -> 1 | AU3: Total Sequences in Block Data | AV3: =COUNTA(L8:L9) -> 1
P4: Total Sequences in Summary | Q4: =SUM(O7:O14) -> 1 | V4: Total Sequences in Block Summary | W4: =SUM(U7:U14) -> 1 | AA4: Total Sequences in Block Summary | AB4: =SUM(Z7:Z14) -> 1 | AF4: Total Sequences in Block Summary | AG4: =SUM(AE7:AE14) -> 1 | AK4: Total Sequences in Block Summary | AL4: =SUM(AJ7:AJ14) -> 1 | AP4: Total Sequences in Block Summary | AQ4: =SUM(AO7:AO14) -> 0 | AU4: Total Sequences in Block Summary | AV4: =SUM(AT7:AT14) -> 0
T5: Block 1 | Y5: Block 2 | AD5: Block 3 | AI5: Block 4 | AN5: Block 5 | AS5: Block 6
A6: Sequence Component 1 | B6: Time 1 | C6: Sequence Component 2 | D6: Time 2 | E6: Sequence Component 3 | F6: Time 3 | G6: Sequence Component 4 | H6: Time 4 | I6: Sequence Component 5 | J6: Time 5 | K6: Correct? 0=No 1=Yes | L6: Sequence | N6: Frequency | P6: Relative Frequency | Q6: Variability | T6: Frequency | V6: Relative Frequency | W6: Variability | Y6: Frequency | AA6: Relative Frequency | AB6: Variability | AD6: Frequency | AF6: Relative Frequency | AG6: Variability | AI6: Frequency | AK6: Relative Frequency | AL6: Variability | AN6: Frequency | AP6: Relative Frequency | AQ6: Variability | AS6: Frequency | AU6: Relative Frequency | AV6: Variability
A7: 12 | B7: 1692 | C7: 24 | D7: 1711 | E7: 24 | F7: 1718 | K7: 0 | L7: 122 | N7: 111 | O7: =COUNTIF($L$7:$L$500,N7) -> 0 | P7: =O7/$Q$4 -> 0 | Q7: =IF(P7=0,0,(P7*((LOG(P7))/LOG(2)))) -> 0 | T7: =N7 -> 111 | U7: =COUNTIF(L6:L7,T7) -> 0 | V7: =U7/(W4-U11) -> 0 | W7: =IF(V7=0,0,(V7*((LOG(V7))/LOG(2)))) -> 0 | Y7: =N7 -> 111 | Z7: =COUNTIF(L7:L7,Y7) -> 0 | AA7: =Z7/(AB4-Z11) -> 0 | AB7: =IF(AA7=0,0,(AA7*((LOG(AA7))/LOG(2)))) -> 0 | AD7: =N7 -> 111 | AE7: =COUNTIF(L7:L8,AD7) -> 0 | AF7: =AE7/(AG4-AE11) -> 0 | AG7: =IF(AF7=0,0,(AF7*((LOG(AF7))/LOG(2)))) -> 0 | AI7: =N7 -> 111 | AJ7: =COUNTIF(L7:L8,AI7) -> 0 | AK7: =AJ7/(AL4-AJ11) -> 0 | AL7: =IF(AK7=0,0,(AK7*((LOG(AK7))/LOG(2)))) -> 0 | AN7: =N7 -> 111 | AO7: =COUNTIF(L8:L8,AN7) -> 0 | AP7: =AO7/(AQ4-AO11) ->  | AQ7: =IF(AP7=0,0,(AP7*((LOG(AP7))/LOG(2)))) ->  | AS7: =N7 -> 111 | AT7: =COUNTIF(L8:L9,AS7) -> 0 | AU7: =AT7/(AV4-AT11) ->  | AV7: =IF(AU7=0,0,(AU7*((LOG(AU7))/LOG(2)))) -> 
A8: 12 | B8: 11257 | C8: 24 | D8: 17792 | L8: 12 | N8: 112 | O8: 0 | P8: 0 | Q8: 0 | T8: 112 | U8: =COUNTIF(L6:L7,T8) -> 0 | V8: =U8/(W4-U11) -> 0 | W8: =IF(V8=0,0,(V8*((LOG(V8))/LOG(2)))) -> 0 | Y8: 112 | Z8: =COUNTIF(L7:L7,Y8) -> 0 | AA8: =Z8/(AB4-Z11) -> 0 | AB8: =IF(AA8=0,0,(AA8*((LOG(AA8))/LOG(2)))) -> 0 | AD8: 112 | AE8: =COUNTIF(L7:L8,AD8) -> 0 | AF8: =AE8/(AG4-AE11) -> 0 | AG8: =IF(AF8=0,0,(AF8*((LOG(AF8))/LOG(2)))) -> 0 | AI8: 112 | AJ8: =COUNTIF(L7:L8,AI8) -> 0 | AK8: =AJ8/(AL4-AJ11) -> 0 | AL8: =IF(AK8=0,0,(AK8*((LOG(AK8))/LOG(2)))) -> 0 | AN8: 112 | AO8: =COUNTIF(L8:L8,AN8) -> 0 | AP8: =AO8/(AQ4-AO11) ->  | AQ8: =IF(AP8=0,0,(AP8*((LOG(AP8))/LOG(2)))) ->  | AS8: 112 | AT8: =COUNTIF(L8:L9,AS8) -> 0 | AU8: =AT8/(AV4-AT11) ->  | AV8: =IF(AU8=0,0,(AU8*((LOG(AU8))/LOG(2)))) -> 
N9: 121 | O9: 0 | P9: 0 | Q9: 0 | T9: 121 | U9: =COUNTIF(L6:L7,T9) -> 0 | V9: =U9/(W4-U11) -> 0 | W9: =IF(V9=0,0,(V9*((LOG(V9))/LOG(2)))) -> 0 | Y9: 121 | Z9: =COUNTIF(L7:L7,Y9) -> 0 | AA9: =Z9/(AB4-Z11) -> 0 | AB9: =IF(AA9=0,0,(AA9*((LOG(AA9))/LOG(2)))) -> 0 | AD9: 121 | AE9: =COUNTIF(L7:L8,AD9) -> 0 | AF9: =AE9/(AG4-AE11) -> 0 | AG9: =IF(AF9=0,0,(AF9*((LOG(AF9))/LOG(2)))) -> 0 | AI9: 121 | AJ9: =COUNTIF(L7:L8,AI9) -> 0 | AK9: =AJ9/(AL4-AJ11) -> 0 | AL9: =IF(AK9=0,0,(AK9*((LOG(AK9))/LOG(2)))) -> 0 | AN9: 121 | AO9: =COUNTIF(L8:L8,AN9) -> 0 | AP9: =AO9/(AQ4-AO11) ->  | AQ9: =IF(AP9=0,0,(AP9*((LOG(AP9))/LOG(2)))) ->  | AS9: 121 | AT9: =COUNTIF(L8:L9,AS9) -> 0 | AU9: =AT9/(AV4-AT11) ->  | AV9: =IF(AU9=0,0,(AU9*((LOG(AU9))/LOG(2)))) -> 
N10: 122 | O10: 1 | P10: 1 | Q10: 0 | T10: 122 | U10: =COUNTIF(L6:L7,T10) -> 1 | V10: =U10/(W4-U11) -> 1 | W10: =IF(V10=0,0,(V10*((LOG(V10))/LOG(2)))) -> 0 | Y10: 122 | Z10: =COUNTIF(L7:L7,Y10) -> 1 | AA10: =Z10/(AB4-Z11) -> 1 | AB10: =IF(AA10=0,0,(AA10*((LOG(AA10))/LOG(2)))) -> 0 | AD10: 122 | AE10: =COUNTIF(L7:L8,AD10) -> 1 | AF10: =AE10/(AG4-AE11) -> 1 | AG10: =IF(AF10=0,0,(AF10*((LOG(AF10))/LOG(2)))) -> 0 | AI10: 122 | AJ10: =COUNTIF(L7:L8,AI10) -> 1 | AK10: =AJ10/(AL4-AJ11) -> 1 | AL10: =IF(AK10=0,0,(AK10*((LOG(AK10))/LOG(2)))) -> 0 | AN10: 122 | AO10: =COUNTIF(L8:L8,AN10) -> 0 | AP10: =AO10/(AQ4-AO11) ->  | AQ10: =IF(AP10=0,0,(AP10*((LOG(AP10))/LOG(2)))) ->  | AS10: 122 | AT10: =COUNTIF(L8:L9,AS10) -> 0 | AU10: =AT10/(AV4-AT11) ->  | AV10: =IF(AU10=0,0,(AU10*((LOG(AU10))/LOG(2)))) -> 
N11: 211 | O11: 0 | P11: 0 | Q11: 0 | T11: 211 | U11: =COUNTIF(L6:L7,T11) -> 0 | Y11: 211 | Z11: =COUNTIF(L7:L7,Y11) -> 0 | AD11: 211 | AE11: =COUNTIF(L7:L8,AD11) -> 0 | AI11: 211 | AJ11: =COUNTIF(L7:L8,AI11) -> 0 | AN11: 211 | AO11: =COUNTIF(L8:L8,AN11) -> 0 | AS11: 211 | AT11: =COUNTIF(L8:L9,AS11) -> 0
N12: 212 | O12: 0 | P12: 0 | Q12: 0 | T12: 212 | U12: =COUNTIF(L6:L7,T12) -> 0 | V12: =U12/(W4-U11) -> 0 | W12: =IF(V12=0,0,(V12*((LOG(V12))/LOG(2)))) -> 0 | Y12: 212 | Z12: =COUNTIF(L7:L7,Y12) -> 0 | AA12: =Z12/(AB4-Z11) -> 0 | AB12: =IF(AA12=0,0,(AA12*((LOG(AA12))/LOG(2)))) -> 0 | AD12: 212 | AE12: =COUNTIF(L7:L8,AD12) -> 0 | AF12: =AE12/(AG4-AE11) -> 0 | AG12: =IF(AF12=0,0,(AF12*((LOG(AF12))/LOG(2)))) -> 0 | AI12: 212 | AJ12: =COUNTIF(L7:L8,AI12) -> 0 | AK12: =AJ12/(AL4-AJ11) -> 0 | AL12: =IF(AK12=0,0,(AK12*((LOG(AK12))/LOG(2)))) -> 0 | AN12: 212 | AO12: =COUNTIF(L8:L8,AN12) -> 0 | AP12: =AO12/(AQ4-AO11) ->  | AQ12: =IF(AP12=0,0,(AP12*((LOG(AP12))/LOG(2)))) ->  | AS12: 212 | AT12: =COUNTIF(L8:L9,AS12) -> 0 | AU12: =AT12/(AV4-AT11) ->  | AV12: =IF(AU12=0,0,(AU12*((LOG(AU12))/LOG(2)))) -> 
N13: 221 | O13: 0 | P13: 0 | Q13: 0 | T13: 221 | U13: =COUNTIF(L6:L7,T13) -> 0 | V13: =U13/(W4-U11) -> 0 | W13: =IF(V13=0,0,(V13*((LOG(V13))/LOG(2)))) -> 0 | Y13: 221 | Z13: =COUNTIF(L7:L7,Y13) -> 0 | AA13: =Z13/(AB4-Z11) -> 0 | AB13: =IF(AA13=0,0,(AA13*((LOG(AA13))/LOG(2)))) -> 0 | AD13: 221 | AE13: =COUNTIF(L7:L8,AD13) -> 0 | AF13: =AE13/(AG4-AE11) -> 0 | AG13: =IF(AF13=0,0,(AF13*((LOG(AF13))/LOG(2)))) -> 0 | AI13: 221 | AJ13: =COUNTIF(L7:L8,AI13) -> 0 | AK13: =AJ13/(AL4-AJ11) -> 0 | AL13: =IF(AK13=0,0,(AK13*((LOG(AK13))/LOG(2)))) -> 0 | AN13: 221 | AO13: =COUNTIF(L8:L8,AN13) -> 0 | AP13: =AO13/(AQ4-AO11) ->  | AQ13: =IF(AP13=0,0,(AP13*((LOG(AP13))/LOG(2)))) ->  | AS13: 221 | AT13: =COUNTIF(L8:L9,AS13) -> 0 | AU13: =AT13/(AV4-AT11) ->  | AV13: =IF(AU13=0,0,(AU13*((LOG(AU13))/LOG(2)))) -> 
N14: 222 | O14: 0 | P14: 0 | Q14: 0 | T14: 222 | U14: =COUNTIF(L6:L7,T14) -> 0 | V14: =U14/(W4-U11) -> 0 | W14: =IF(V14=0,0,(V14*((LOG(V14))/LOG(2)))) -> 0 | Y14: 222 | Z14: =COUNTIF(L7:L7,Y14) -> 0 | AA14: =Z14/(AB4-Z11) -> 0 | AB14: =IF(AA14=0,0,(AA14*((LOG(AA14))/LOG(2)))) -> 0 | AD14: 222 | AE14: =COUNTIF(L7:L8,AD14) -> 0 | AF14: =AE14/(AG4-AE11) -> 0 | AG14: =IF(AF14=0,0,(AF14*((LOG(AF14))/LOG(2)))) -> 0 | AI14: 222 | AJ14: =COUNTIF(L7:L8,AI14) -> 0 | AK14: =AJ14/(AL4-AJ11) -> 0 | AL14: =IF(AK14=0,0,(AK14*((LOG(AK14))/LOG(2)))) -> 0 | AN14: 222 | AO14: =COUNTIF(L8:L8,AN14) -> 0 | AP14: =AO14/(AQ4-AO11) ->  | AQ14: =IF(AP14=0,0,(AP14*((LOG(AP14))/LOG(2)))) ->  | AS14: 222 | AT14: =COUNTIF(L8:L9,AS14) -> 0 | AU14: =AT14/(AV4-AT11) ->  | AV14: =IF(AU14=0,0,(AU14*((LOG(AU14))/LOG(2)))) -> 
P15: =SUM(P7:P14) -> 1 | Q15: =-SUM(Q7:Q14) -> 0 | V15: =SUM(V7:V14) -> 1 | W15: =-SUM(W7:W14) -> 0 | AA15: =SUM(AA7:AA14) -> 1 | AB15: =-SUM(AB7:AB14) -> 0 | AF15: =SUM(AF7:AF14) -> 1 | AG15: =-SUM(AG7:AG14) -> 0 | AK15: =SUM(AK7:AK14) -> 1 | AL15: =-SUM(AL7:AL14) -> 0 | AP15: =SUM(AP7:AP14) ->  | AQ15: =-SUM(AQ7:AQ14) ->  | AU15: =SUM(AU7:AU14) ->  | AV15: =-SUM(AV7:AV14) -> 
P16: U= | Q16: =Q15/(LOG(Q4)/LOG(2)) ->  | V16: U1= | W16: =W15/(LOG(W4)/LOG(2)) ->  | AA16: U2= | AB16: =AB15/(LOG(AB4)/LOG(2)) ->  | AF16: U3= | AG16: =AG15/(LOG(AG4)/LOG(2)) ->  | AK16: U4= | AL16: =AL15/(LOG(AL4)/LOG(2)) ->  | AP16: U5= | AQ16: =AQ15/(LOG(AQ4)/LOG(2)) ->  | AU16: U6= | AV16: =AV15/(LOG(AV4)/LOG(2)) -> 
N19: Total Target Seq
N20: =COUNTIF(L7:L8,G3) -> 0 | P20: 0 | Q20: 1 | R20: 0 | S20: 0 | T20: 1 | U20: 0
P21: % of reinforcement given in 6 equal intervals based on number of trials
P22: %_1 | Q22: %_2 | R22: %_3 | S22: %_4 | T22: %_5 | U22: %_6
O23: target sequence | P23: =$G$3 -> 211 | Q23: 211 | R23: 211 | S23: 211 | T23: 211 | U23: 211
O24: total reinforcement | P24: =U11 -> 0 | Q24: =Z11 -> 0 | R24: =AE11 -> 0 | S24: =AJ11 -> 0 | T24: =AO11 -> 0 | U24: =AT11 -> 0
O25: % target
O26: CCRF
O27: % CCRf
O28: average response rate | P28: =F6/P20 ->  | Q28: =(F7-F6)/Q20 ->  | R28: =(F7-F7)/R20 ->  | S28: =(F7-F7)/S20 ->  | T28: =(F8-F7)/T20 -> -1718 | U28: =(F8-F8)/U20 -> 

Sheet !L90294I.sha
A1: Report for:!L90294I.sha
A2: Date: | B2: <date>
A3: Hen: | B3: <hen> | F3: Correct Sequence | G3: =Start!J2 -> 211 | P3: Total Sequences in Data | Q3: =4994-COUNTBLANK(L7:L5000) -> 2 | V3: Total Sequences in Block Data | W3: =COUNTA(L6:L7) -> 2 | AA3: Total Sequences in Block Data | AB3: =COUNTA(L7:L7) -> 1 | AF3: Total Sequences in Block Data | AG3: =COUNTA(L7:L8) -> 2 | AK3: Total Sequences in Block Data | AL3: =COUNTA(L7:L8) -> 2 | AP3: Total Sequences in Block Data | AQ3: =COUNTA(L8:L8) -> 1 | AU3: Total Sequences in Block Data | AV3: =COUNTA(L8:L9) -> 1
P4: Total Sequences in Summary | Q4: =SUM(O7:O14) -> 2 | V4: Total Sequences in Block Summary | W4: =SUM(U7:U14) -> 1 | AA4: Total Sequences in Block Summary | AB4: =SUM(Z7:Z14) -> 1 | AF4: Total Sequences in Block Summary | AG4: =SUM(AE7:AE14) -> 2 | AK4: Total Sequences in Block Summary | AL4: =SUM(AJ7:AJ14) -> 2 | AP4: Total Sequences in Block Summary | AQ4: =SUM(AO7:AO14) -> 1 | AU4: Total Sequences in Block Summary | AV4: =SUM(AT7:AT14) -> 1
T5: Block 1 | Y5: Block 2 | AD5: Block 3 | AI5: Block 4 | AN5: Block 5 | AS5: Block 6
A6: Sequence Component 1 | B6: Time 1 | C6: Sequence Component 2 | D6: Time 2 | E6: Sequence Component 3 | F6: Time 3 | G6: Sequence Component 4 | H6: Time 4 | I6: Sequence Component 5 | J6: Time 5 | K6: Correct? 0=No 1=Yes | L6: Sequence | N6: Frequency | P6: Relative Frequency | Q6: Variability | T6: Frequency | V6: Relative Frequency | W6: Variability | Y6: Frequency | AA6: Relative Frequency | AB6: Variability | AD6: Frequency | AF6: Relative Frequency | AG6: Variability | AI6: Frequency | AK6: Relative Frequency | AL6: Variability | AN6: Frequency | AP6: Relative Frequency | AQ6: Variability | AS6: Frequency | AU6: Relative Frequency | AV6: Variability
A7: 12 | B7: 32 | C7: 13 | D7: 235 | E7: 24 | F7: 274 | K7: 0 | L7: 112 | N7: 111 | O7: =COUNTIF($L$7:$L$500,N7) -> 0 | P7: =O7/$Q$4 -> 0 | Q7: =IF(P7=0,0,(P7*((LOG(P7))/LOG(2)))) -> 0 | T7: =N7 -> 111 | U7: =COUNTIF(L6:L7,T7) -> 0 | V7: =U7/(W4-U11) -> 0 | W7: =IF(V7=0,0,(V7*((LOG(V7))/LOG(2)))) -> 0 | Y7: =N7 -> 111 | Z7: =COUNTIF(L7:L7,Y7) -> 0 | AA7: =Z7/(AB4-Z11) -> 0 | AB7: =IF(AA7=0,0,(AA7*((LOG(AA7))/LOG(2)))) -> 0 | AD7: =N7 -> 111 | AE7: =COUNTIF(L7:L8,AD7) -> 0 | AF7: =AE7/(AG4-AE11) -> 0 | AG7: =IF(AF7=0,0,(AF7*((LOG(AF7))/LOG(2)))) -> 0 | AI7: =N7 -> 111 | AJ7: =COUNTIF(L7:L8,AI7) -> 0 | AK7: =AJ7/(AL4-AJ11) -> 0 | AL7: =IF(AK7=0,0,(AK7*((LOG(AK7))/LOG(2)))) -> 0 | AN7: =N7 -> 111 | AO7: =COUNTIF(L8:L8,AN7) -> 0 | AP7: =AO7/(AQ4-AO11) -> 0 | AQ7: =IF(AP7=0,0,(AP7*((LOG(AP7))/LOG(2)))) -> 0 | AS7: =N7 -> 111 | AT7: =COUNTIF(L8:L9,AS7) -> 0 | AU7: =AT7/(AV4-AT11) -> 0 | AV7: =IF(AU7=0,0,(AU7*((LOG(AU7))/LOG(2)))) -> 0
A8: 12 | B8: 1866 | C8: 24 | D8: 1876 | E8: 13 | F8: 2025 | K8: 0 | L8: 121 | N8: 112 | O8: 1 | P8: 0.5 | Q8: -0.5 | T8: 112 | U8: =COUNTIF(L6:L7,T8) -> 1 | V8: =U8/(W4-U11) -> 1 | W8: =IF(V8=0,0,(V8*((LOG(V8))/LOG(2)))) -> 0 | Y8: 112 | Z8: =COUNTIF(L7:L7,Y8) -> 1 | AA8: =Z8/(AB4-Z11) -> 1 | AB8: =IF(AA8=0,0,(AA8*((LOG(AA8))/LOG(2)))) -> 0 | AD8: 112 | AE8: =COUNTIF(L7:L8,AD8) -> 1 | AF8: =AE8/(AG4-AE11) -> 0.5 | AG8: =IF(AF8=0,0,(AF8*((LOG(AF8))/LOG(2)))) -> -0.5 | AI8: 112 | AJ8: =COUNTIF(L7:L8,AI8) -> 1 | AK8: =AJ8/(AL4-AJ11) -> 0.5 | AL8: =IF(AK8=0,0,(AK8*((LOG(AK8))/LOG(2)))) -> -0.5 | AN8: 112 | AO8: =COUNTIF(L8:L8,AN8) -> 0 | AP8: =AO8/(AQ4-AO11) -> 0 | AQ8: =IF(AP8=0,0,(AP8*((LOG(AP8))/LOG(2)))) -> 0 | AS8: 112 | AT8: =COUNTIF(L8:L9,AS8) -> 0 | AU8: =AT8/(AV4-AT11) -> 0 | AV8: =IF(AU8=0,0,(AU8*((LOG(AU8))/LOG(2)))) -> 0
N9: 121 | O9: 1 | P9: 0.5 | Q9: -0.5 | T9: 121 | U9: =COUNTIF(L6:L7,T9) -> 0 | V9: =U9/(W4-U11) -> 0 | W9: =IF(V9=0,0,(V9*((LOG(V9))/LOG(2)))) -> 0 | Y9: 121 | Z9: =COUNTIF(L7:L7,Y9) -> 0 | AA9: =Z9/(AB4-Z11) -> 0 | AB9: =IF(AA9=0,0,(AA9*((LOG(AA9))/LOG(2)))) -> 0 | AD9: 121 | AE9: =COUNTIF(L7:L8,AD9) -> 1 | AF9: =AE9/(AG4-AE11) -> 0.5 | AG9: =IF(AF9=0,0,(AF9*((LOG(AF9))/LOG(2)))) -> -0.5 | AI9: 121 | AJ9: =COUNTIF(L7:L8,AI9) -> 1 | AK9: =AJ9/(AL4-AJ11) -> 0.5 | AL9: =IF(AK9=0,0,(AK9*((LOG(AK9))/LOG(2)))) -> -0.5 | AN9: 121 | AO9: =COUNTIF(L8:L8,AN9) -> 1 | AP9: =AO9/(AQ4-AO11) -> 1 | AQ9: =IF(AP9=0,0,(AP9*((LOG(AP9))/LOG(2)))) -> 0 | AS9: 121 | AT9: =COUNTIF(L8:L9,AS9) -> 1 | AU9: =AT9/(AV4-AT11) -> 1 | AV9: =IF(AU9=0,0,(AU9*((LOG(AU9))/LOG(2)))) -> 0
N10: 122 | O10: 0 | P10: 0 | Q10: 0 | T10: 122 | U10: =COUNTIF(L6:L7,T10) -> 0 | V10: =U10/(W4-U11) -> 0 | W10: =IF(V10=0,0,(V10*((LOG(V10))/LOG(2)))) -> 0 | Y10: 122 | Z10: =COUNTIF(L7:L7,Y10) -> 0 | AA10: =Z10/(AB4-Z11) -> 0 | AB10: =IF(AA10=0,0,(AA10*((LOG(AA10))/LOG(2)))) -> 0 | AD10: 122 | AE10: =COUNTIF(L7:L8,AD10) -> 0 | AF10: =AE10/(AG4-AE11) -> 0 | AG10: =IF(AF10=0,0,(AF10*((LOG(AF10))/LOG(2)))) -> 0 | AI10: 122 | AJ10: =COUNTIF(L7:L8,AI10) -> 0 | AK10: =AJ10/(AL4-AJ11) -> 0 | AL10: =IF(AK10=0,0,(AK10*((LOG(AK10))/LOG(2)))) -> 0 | AN10: 122 | AO10: =COUNTIF(L8:L8,AN10) -> 0 | AP10: =AO10/(AQ4-AO11) -> 0 | AQ10: =IF(AP10=0,0,(AP10*((LOG(AP10))/LOG(2)))) -> 0 | AS10: 122 | AT10: =COUNTIF(L8:L9,AS10) -> 0 | AU10: =AT10/(AV4-AT11) -> 0 | AV10: =IF(AU10=0,0,(AU10*((LOG(AU10))/LOG(2)))) -> 0
N11: 211 | O11: 0 | P11: 0 | Q11: 0 | T11: 211 | U11: =COUNTIF(L6:L7,T11) -> 0 | Y11: 211 | Z11: =COUNTIF(L7:L7,Y11) -> 0 | AD11: 211 | AE11: =COUNTIF(L7:L8,AD11) -> 0 | AI11: 211 | AJ11: =COUNTIF(L7:L8,AI11) -> 0 | AN11: 211 | AO11: =COUNTIF(L8:L8,AN11) -> 0 | AS11: 211 | AT11: =COUNTIF(L8:L9,AS11) -> 0
N12: 212 | O12: 0 | P12: 0 | Q12: 0 | T12: 212 | U12: =COUNTIF(L6:L7,T12) -> 0 | V12: =U12/(W4-U11) -> 0 | W12: =IF(V12=0,0,(V12*((LOG(V12))/LOG(2)))) -> 0 | Y12: 212 | Z12: =COUNTIF(L7:L7,Y12) -> 0 | AA12: =Z12/(AB4-Z11) -> 0 | AB12: =IF(AA12=0,0,(AA12*((LOG(AA12))/LOG(2)))) -> 0 | AD12: 212 | AE12: =COUNTIF(L7:L8,AD12) -> 0 | AF12: =AE12/(AG4-AE11) -> 0 | AG12: =IF(AF12=0,0,(AF12*((LOG(AF12))/LOG(2)))) -> 0 | AI12: 212 | AJ12: =COUNTIF(L7:L8,AI12) -> 0 | AK12: =AJ12/(AL4-AJ11) -> 0 | AL12: =IF(AK12=0,0,(AK12*((LOG(AK12))/LOG(2)))) -> 0 | AN12: 212 | AO12: =COUNTIF(L8:L8,AN12) -> 0 | AP12: =AO12/(AQ4-AO11) -> 0 | AQ12: =IF(AP12=0,0,(AP12*((LOG(AP12))/LOG(2)))) -> 0 | AS12: 212 | AT12: =COUNTIF(L8:L9,AS12) -> 0 | AU12: =AT12/(AV4-AT11) -> 0 | AV12: =IF(AU12=0,0,(AU12*((LOG(AU12))/LOG(2)))) -> 0
N13: 221 | O13: 0 | P13: 0 | Q13: 0 | T13: 221 | U13: =COUNTIF(L6:L7,T13) -> 0 | V13: =U13/(W4-U11) -> 0 | W13: =IF(V13=0,0,(V13*((LOG(V13))/LOG(2)))) -> 0 | Y13: 221 | Z13: =COUNTIF(L7:L7,Y13) -> 0 | AA13: =Z13/(AB4-Z11) -> 0 | AB13: =IF(AA13=0,0,(AA13*((LOG(AA13))/LOG(2)))) -> 0 | AD13: 221 | AE13: =COUNTIF(L7:L8,AD13) -> 0 | AF13: =AE13/(AG4-AE11) -> 0 | AG13: =IF(AF13=0,0,(AF13*((LOG(AF13))/LOG(2)))) -> 0 | AI13: 221 | AJ13: =COUNTIF(L7:L8,AI13) -> 0 | AK13: =AJ13/(AL4-AJ11) -> 0 | AL13: =IF(AK13=0,0,(AK13*((LOG(AK13))/LOG(2)))) -> 0 | AN13: 221 | AO13: =COUNTIF(L8:L8,AN13) -> 0 | AP13: =AO13/(AQ4-AO11) -> 0 | AQ13: =IF(AP13=0,0,(AP13*((LOG(AP13))/LOG(2)))) -> 0 | AS13: 221 | AT13: =COUNTIF(L8:L9,AS13) -> 0 | AU13: =AT13/(AV4-AT11) -> 0 | AV13: =IF(AU13=0,0,(AU13*((LOG(AU13))/LOG(2)))) -> 0
N14: 222 | O14: 0 | P14: 0 | Q14: 0 | T14: 222 | U14: =COUNTIF(L6:L7,T14) -> 0 | V14: =U14/(W4-U11) -> 0 | W14: =IF(V14=0,0,(V14*((LOG(V14))/LOG(2)))) -> 0 | Y14: 222 | Z14: =COUNTIF(L7:L7,Y14) -> 0 | AA14: =Z14/(AB4-Z11) -> 0 | AB14: =IF(AA14=0,0,(AA14*((LOG(AA14))/LOG(2)))) -> 0 | AD14: 222 | AE14: =COUNTIF(L7:L8,AD14) -> 0 | AF14: =AE14/(AG4-AE11) -> 0 | AG14: =IF(AF14=0,0,(AF14*((LOG(AF14))/LOG(2)))) -> 0 | AI14: 222 | AJ14: =COUNTIF(L7:L8,AI14) -> 0 | AK14: =AJ14/(AL4-AJ11) -> 0 | AL14: =IF(AK14=0,0,(AK14*((LOG(AK14))/LOG(2)))) -> 0 | AN14: 222 | AO14: =COUNTIF(L8:L8,AN14) -> 0 | AP14: =AO14/(AQ4-AO11) -> 0 | AQ14: =IF(AP14=0,0,(AP14*((LOG(AP14))/LOG(2)))) -> 0 | AS14: 222 | AT14: =COUNTIF(L8:L9,AS14) -> 0 | AU14: =AT14/(AV4-AT11) -> 0 | AV14: =IF(AU14=0,0,(AU14*((LOG(AU14))/LOG(2)))) -> 0
P15: =SUM(P7:P14) -> 1 | Q15: =-SUM(Q7:Q14) -> 1 | V15: =SUM(V7:V14) -> 1 | W15: =-SUM(W7:W14) -> 0 | AA15: =SUM(AA7:AA14) -> 1 | AB15: =-SUM(AB7:AB14) -> 0 | AF15: =SUM(AF7:AF14) -> 1 | AG15: =-SUM(AG7:AG14) -> 1 | AK15: =SUM(AK7:AK14) -> 1 | AL15: =-SUM(AL7:AL14) -> 1 | AP15: =SUM(AP7:AP14) -> 1 | AQ15: =-SUM(AQ7:AQ14) -> 0 | AU15: =SUM(AU7:AU14) -> 1 | AV15: =-SUM(AV7:AV14) -> 0
P16: U= | Q16: =Q15/(LOG(Q4)/LOG(2)) -> 1 | V16: U1= | W16: =W15/(LOG(W4)/LOG(2)) ->  | AA16: U2= | AB16: =AB15/(LOG(AB4)/LOG(2)) ->  | AF16: U3= | AG16: =AG15/(LOG(AG4)/LOG(2)) -> 1 | AK16: U4= | AL16: =AL15/(LOG(AL4)/LOG(2)) -> 1 | AP16: U5= | AQ16: =AQ15/(LOG(AQ4)/LOG(2)) ->  | AU16: U6= | AV16: =AV15/(LOG(AV4)/LOG(2)) -> 
N19: Total Target Seq
N20: =COUNTIF(L7:L8,G3) -> 0 | P20: 0 | Q20: 1 | R20: 0 | S20: 0 | T20: 1 | U20: 0
P21: % of reinforcement given in 6 equal intervals based on number of trials
P22: %_1 | Q22: %_2 | R22: %_3 | S22: %_4 | T22: %_5 | U22: %_6
O23: target sequence | P23: =$G$3 -> 211 | Q23: 211 | R23: 211 | S23: 211 | T23: 211 | U23: 211
O24: total reinforcement | P24: =U11 -> 0 | Q24: =Z11 -> 0 | R24: =AE11 -> 0 | S24: =AJ11 -> 0 | T24: =AO11 -> 0 | U24: =AT11 -> 0
O25: % target
O26: CCRF
O27: % CCRf
O28: average response rate | P28: =F6/P20 ->  | Q28: =(F7-F6)/Q20 ->  | R28: =(F7-F7)/R20 ->  | S28: =(F7-F7)/S20 ->  | T28: =(F8-F7)/T20 -> 1751 | U28: =(F8-F8)/U20 -> 

Sheet !L903A4I.sha
A1: Report for:!L903A4I.sha
A2: Date: | B2: <date>
A3: Hen: | B3: <hen> | F3: Correct Sequence | G3: =Start!J2 -> 211 | P3: Total Sequences in Data | Q3: =4994-COUNTBLANK(L7:L5000) -> 3 | V3: Total Sequences in Block Data | W3: =COUNTA(L7:L7) -> 1 | AA3: Total Sequences in Block Data | AB3: =COUNTA(L7:L8) -> 2 | AF3: Total Sequences in Block Data | AG3: =COUNTA(L8:L8) -> 1 | AK3: Total Sequences in Block Data | AL3: =COUNTA(L8:L9) -> 2 | AP3: Total Sequences in Block Data | AQ3: =COUNTA(L9:L9) -> 1 | AU3: Total Sequences in Block Data | AV3: =COUNTA(L9:L10) -> 1
P4: Total Sequences in Summary | Q4: =SUM(O7:O14) -> 2 | V4: Total Sequences in Block Summary | W4: =SUM(U7:U14) -> 1 | AA4: Total Sequences in Block Summary | AB4: =SUM(Z7:Z14) -> 2 | AF4: Total Sequences in Block Summary | AG4: =SUM(AE7:AE14) -> 1 | AK4: Total Sequences in Block Summary | AL4: =SUM(AJ7:AJ14) -> 1 | AP4: Total Sequences in Block Summary | AQ4: =SUM(AO7:AO14) -> 0 | AU4: Total Sequences in Block Summary | AV4: =SUM(AT7:AT14) -> 0
T5: Block 1 | Y5: Block 2 | AD5: Block 3 | AI5: Block 4 | AN5: Block 5 | AS5: Block 6
A6: Sequence Component 1 | B6: Time 1 | C6: Sequence Component 2 | D6: Time 2 | E6: Sequence Component 3 | F6: Time 3 | G6: Sequence Component 4 | H6: Time 4 | I6: Sequence Component 5 | J6: Time 5 | K6: Correct? 0=No 1=Yes | L6: Sequence | N6: Frequency | P6: Relative Frequency | Q6: Variability | T6: Frequency | V6: Relative Frequency | W6: Variability | Y6: Frequency | AA6: Relative Frequency | AB6: Variability | AD6: Frequency | AF6: Relative Frequency | AG6: Variability | AI6: Frequency | AK6: Relative Frequency | AL6: Variability | AN6: Frequency | AP6: Relative Frequency | AQ6: Variability | AS6: Frequency | AU6: Relative Frequency | AV6: Variability
A7: 12 | B7: 298 | C7: 24 | D7: 309 | E7: 24 | F7: 314 | K7: 0 | L7: 122 | N7: 111 | O7: =COUNTIF($L$7:$L$500,N7) -> 1 | P7: =O7/$Q$4 -> 0.5 | Q7: =IF(P7=0,0,(P7*((LOG(P7))/LOG(2)))) -> -0.5 | T7: =N7 -> 111 | U7: =COUNTIF(L7:L7,T7) -> 0 | V7: =U7/(W4-U11) -> 0 | W7: =IF(V7=0,0,(V7*((LOG(V7))/LOG(2)))) -> 0 | Y7: =N7 -> 111 | Z7: =COUNTIF(L7:L8,Y7) -> 1 | AA7: =Z7/(AB4-Z11) -> 0.5 | AB7: =IF(AA7=0,0,(AA7*((LOG(AA7))/LOG(2)))) -> -0.5 | AD7: =N7 -> 111 | AE7: =COUNTIF(L8:L8,AD7) -> 1 | AF7: =AE7/(AG4-AE11) -> 1 | AG7: =IF(AF7=0,0,(AF7*((LOG(AF7))/LOG(2)))) -> 0 | AI7: =N7 -> 111 | AJ7: =COUNTIF(L8:L9,AI7) -> 1 | AK7: =AJ7/(AL4-AJ11) -> 1 | AL7: =IF(AK7=0,0,(AK7*((LOG(AK7))/LOG(2)))) -> 0 | AN7: =N7 -> 111 | AO7: =COUNTIF(L9:L9,AN7) -> 0 | AP7: =AO7/(AQ4-AO11) ->  | AQ7: =IF(AP7=0,0,(AP7*((LOG(AP7))/LOG(2)))) ->  | AS7: =N7 -> 111 | AT7: =COUNTIF(L9:L10,AS7) -> 0 | AU7: =AT7/(AV4-AT11) ->  | AV7: =IF(AU7=0,0,(AU7*((LOG(AU7))/LOG(2)))) -> 
A8: 12 | B8: 444 | C8: 13 | D8: 1743 | E8: 13 | F8: 4475 | K8: 0 | L8: 111 | N8: 112 | O8: 0 | P8: 0 | Q8: 0 | T8: 112 | U8: =COUNTIF(L7:L7,T8) -> 0 | V8: =U8/(W4-U11) -> 0 | W8: =IF(V8=0,0,(V8*((LOG(V8))/LOG(2)))) -> 0 | Y8: 112 | Z8: =COUNTIF(L7:L8,Y8) -> 0 | AA8: =Z8/(AB4-Z11) -> 0 | AB8: =IF(AA8=0,0,(AA8*((LOG(AA8))/LOG(2)))) -> 0 | AD8: 112 | AE8: =COUNTIF(L8:L8,AD8) -> 0 | AF8: =AE8/(AG4-AE11) -> 0 | AG8: =IF(AF8=0,0,(AF8*((LOG(AF8))/LOG(2)))) -> 0 | AI8: 112 | AJ8: =COUNTIF(L8:L9,AI8) -> 0 | AK8: =AJ8/(AL4-AJ11) -> 0 | AL8: =IF(AK8=0,0,(AK8*((LOG(AK8))/LOG(2)))) -> 0 | AN8: 112 | AO8: =COUNTIF(L9:L9,AN8) -> 0 | AP8: =AO8/(AQ4-AO11) ->  | AQ8: =IF(AP8=0,0,(AP8*((LOG(AP8))/LOG(2)))) ->  | AS8: 112 | AT8: =COUNTIF(L9:L10,AS8) -> 0 | AU8: =AT8/(AV4-AT11) ->  | AV8: =IF(AU8=0,0,(AU8*((LOG(AU8))/LOG(2)))) -> 
A9: 12 | B9: 18099 | L9: 1 | N9: 121 | O9: 0 | P9: 0 | Q9: 0 | T9: 121 | U9: =COUNTIF(L7:L7,T9) -> 0 | V9: =U9/(W4-U11) -> 0 | W9: =IF(V9=0,0,(V9*((LOG(V9))/LOG(2)))) -> 0 | Y9: 121 | Z9: =COUNTIF(L7:L8,Y9) -> 0 | AA9: =Z9/(AB4-Z11) -> 0 | AB9: =IF(AA9=0,0,(AA9*((LOG(AA9))/LOG(2)))) -> 0 | AD9: 121 | AE9: =COUNTIF(L8:L8,AD9) -> 0 | AF9: =AE9/(AG4-AE11) -> 0 | AG9: =IF(AF9=0,0,(AF9*((LOG(AF9))/LOG(2)))) -> 0 | AI9: 121 | AJ9: =COUNTIF(L8:L9,AI9) -> 0 | AK9: =AJ9/(AL4-AJ11) -> 0 | AL9: =IF(AK9=0,0,(AK9*((LOG(AK9))/LOG(2)))) -> 0 | AN9: 121 | AO9: =COUNTIF(L9:L9,AN9) -> 0 | AP9: =AO9/(AQ4-AO11) ->  | AQ9: =IF(AP9=0,0,(AP9*((LOG(AP9))/LOG(2)))) ->  | AS9: 121 | AT9: =COUNTIF(L9:L10,AS9) -> 0 | AU9: =AT9/(AV4-AT11) ->  | AV9: =IF(AU9=0,0,(AU9*((LOG(AU9))/LOG(2)))) -> 
N10: 122 | O10: 1 | P10: 0.5 | Q10: -0.5 | T10: 122 | U10: =COUNTIF(L7:L7,T10) -> 1 | V10: =U10/(W4-U11) -> 1 | W10: =IF(V10=0,0,(V10*((LOG(V10))/LOG(2)))) -> 0 | Y10: 122 | Z10: =COUNTIF(L7:L8,Y10) -> 1 | AA10: =Z10/(AB4-Z11) -> 0.5 | AB10: =IF(AA10=0,0,(AA10*((LOG(AA10))/LOG(2)))) -> -0.5 | AD10: 122 | AE10: =COUNTIF(L8:L8,AD10) -> 0 | AF10: =AE10/(AG4-AE11) -> 0 | AG10: =IF(AF10=0,0,(AF10*((LOG(AF10))/LOG(2)))) -> 0 | AI10: 122 | AJ10: =COUNTIF(L8:L9,AI10) -> 0 | AK10: =AJ10/(AL4-AJ11) -> 0 | AL10: =IF(AK10=0,0,(AK10*((LOG(AK10))/LOG(2)))) -> 0 | AN10: 122 | AO10: =COUNTIF(L9:L9,AN10) -> 0 | AP10: =AO10/(AQ4-AO11) ->  | AQ10: =IF(AP10=0,0,(AP10*((LOG(AP10))/LOG(2)))) ->  | AS10: 122 | AT10: =COUNTIF(L9:L10,AS10) -> 0 | AU10: =AT10/(AV4-AT11) ->  | AV10: =IF(AU10=0,0,(AU10*((LOG(AU10))/LOG(2)))) -> 
N11: 211 | O11: 0 | P11: 0 | Q11: 0 | T11: 211 | U11: =COUNTIF(L7:L7,T11) -> 0 | Y11: 211 | Z11: =COUNTIF(L7:L8,Y11) -> 0 | AD11: 211 | AE11: =COUNTIF(L8:L8,AD11) -> 0 | AI11: 211 | AJ11: =COUNTIF(L8:L9,AI11) -> 0 | AN11: 211 | AO11: =COUNTIF(L9:L9,AN11) -> 0 | AS11: 211 | AT11: =COUNTIF(L9:L10,AS11) -> 0
N12: 212 | O12: 0 | P12: 0 | Q12: 0 | T12: 212 | U12: =COUNTIF(L7:L7,T12) -> 0 | V12: =U12/(W4-U11) -> 0 | W12: =IF(V12=0,0,(V12*((LOG(V12))/LOG(2)))) -> 0 | Y12: 212 | Z12: =COUNTIF(L7:L8,Y12) -> 0 | AA12: =Z12/(AB4-Z11) -> 0 | AB12: =IF(AA12=0,0,(AA12*((LOG(AA12))/LOG(2)))) -> 0 | AD12: 212 | AE12: =COUNTIF(L8:L8,AD12) -> 0 | AF12: =AE12/(AG4-AE11) -> 0 | AG12: =IF(AF12=0,0,(AF12*((LOG(AF12))/LOG(2)))) -> 0 | AI12: 212 | AJ12: =COUNTIF(L8:L9,AI12) -> 0 | AK12: =AJ12/(AL4-AJ11) -> 0 | AL12: =IF(AK12=0,0,(AK12*((LOG(AK12))/LOG(2)))) -> 0 | AN12: 212 | AO12: =COUNTIF(L9:L9,AN12) -> 0 | AP12: =AO12/(AQ4-AO11) ->  | AQ12: =IF(AP12=0,0,(AP12*((LOG(AP12))/LOG(2)))) ->  | AS12: 212 | AT12: =COUNTIF(L9:L10,AS12) -> 0 | AU12: =AT12/(AV4-AT11) ->  | AV12: =IF(AU12=0,0,(AU12*((LOG(AU12))/LOG(2)))) -> 
N13: 221 | O13: 0 | P13: 0 | Q13: 0 | T13: 221 | U13: =COUNTIF(L7:L7,T13) -> 0 | V13: =U13/(W4-U11) -> 0 | W13: =IF(V13=0,0,(V13*((LOG(V13))/LOG(2)))) -> 0 | Y13: 221 | Z13: =COUNTIF(L7:L8,Y13) -> 0 | AA13: =Z13/(AB4-Z11) -> 0 | AB13: =IF(AA13=0,0,(AA13*((LOG(AA13))/LOG(2)))) -> 0 | AD13: 221 | AE13: =COUNTIF(L8:L8,AD13) -> 0 | AF13: =AE13/(AG4-AE11) -> 0 | AG13: =IF(AF13=0,0,(AF13*((LOG(AF13))/LOG(2)))) -> 0 | AI13: 221 | AJ13: =COUNTIF(L8:L9,AI13) -> 0 | AK13: =AJ13/(AL4-AJ11) -> 0 | AL13: =IF(AK13=0,0,(AK13*((LOG(AK13))/LOG(2)))) -> 0 | AN13: 221 | AO13: =COUNTIF(L9:L9,AN13) -> 0 | AP13: =AO13/(AQ4-AO11) ->  | AQ13: =IF(AP13=0,0,(AP13*((LOG(AP13))/LOG(2)))) ->  | AS13: 221 | AT13: =COUNTIF(L9:L10,AS13) -> 0 | AU13: =AT13/(AV4-AT11) ->  | AV13: =IF(AU13=0,0,(AU13*((LOG(AU13))/LOG(2)))) -> 
N14: 222 | O14: 0 | P14: 0 | Q14: 0 | T14: 222 | U14: =COUNTIF(L7:L7,T14) -> 0 | V14: =U14/(W4-U11) -> 0 | W14: =IF(V14=0,0,(V14*((LOG(V14))/LOG(2)))) -> 0 | Y14: 222 | Z14: =COUNTIF(L7:L8,Y14) -> 0 | AA14: =Z14/(AB4-Z11) -> 0 | AB14: =IF(AA14=0,0,(AA14*((LOG(AA14))/LOG(2)))) -> 0 | AD14: 222 | AE14: =COUNTIF(L8:L8,AD14) -> 0 | AF14: =AE14/(AG4-AE11) -> 0 | AG14: =IF(AF14=0,0,(AF14*((LOG(AF14))/LOG(2)))) -> 0 | AI14: 222 | AJ14: =COUNTIF(L8:L9,AI14) -> 0 | AK14: =AJ14/(AL4-AJ11) -> 0 | AL14: =IF(AK14=0,0,(AK14*((LOG(AK14))/LOG(2)))) -> 0 | AN14: 222 | AO14: =COUNTIF(L9:L9,AN14) -> 0 | AP14: =AO14/(AQ4-AO11) ->  | AQ14: =IF(AP14=0,0,(AP14*((LOG(AP14))/LOG(2)))) ->  | AS14: 222 | AT14: =COUNTIF(L9:L10,AS14) -> 0 | AU14: =AT14/(AV4-AT11) ->  | AV14: =IF(AU14=0,0,(AU14*((LOG(AU14))/LOG(2)))) -> 
P15: =SUM(P7:P14) -> 1 | Q15: =-SUM(Q7:Q14) -> 1 | V15: =SUM(V7:V14) -> 1 | W15: =-SUM(W7:W14) -> 0 | AA15: =SUM(AA7:AA14) -> 1 | AB15: =-SUM(AB7:AB14) -> 1 | AF15: =SUM(AF7:AF14) -> 1 | AG15: =-SUM(AG7:AG14) -> 0 | AK15: =SUM(AK7:AK14) -> 1 | AL15: =-SUM(AL7:AL14) -> 0 | AP15: =SUM(AP7:AP14) ->  | AQ15: =-SUM(AQ7:AQ14) ->  | AU15: =SUM(AU7:AU14) ->  | AV15: =-SUM(AV7:AV14) -> 
P16: U= | Q16: =Q15/(LOG(Q4)/LOG(2)) -> 1 | V16: U1= | W16: =W15/(LOG(W4)/LOG(2)) ->  | AA16: U2= | AB16: =AB15/(LOG(AB4)/LOG(2)) -> 1 | AF16: U3= | AG16: =AG15/(LOG(AG4)/LOG(2)) ->  | AK16: U4= | AL16: =AL15/(LOG(AL4)/LOG(2)) ->  | AP16: U5= | AQ16: =AQ15/(LOG(AQ4)/LOG(2)) ->  | AU16: U6= | AV16: =AV15/(LOG(AV4)/LOG(2)) -> 
N19: Total Target Seq
N20: =COUNTIF(L7:L9,G3) -> 0 | P20: 1 | Q20: 0 | R20: 1 | S20: 0 | T20: 1 | U20: 0
P21: % of reinforcement given in 6 equal intervals based on number of trials
P22: %_1 | Q22: %_2 | R22: %_3 | S22: %_4 | T22: %_5 | U22: %_6
O23: target sequence | P23: =$G$3 -> 211 | Q23: 211 | R23: 211 | S23: 211 | T23: 211 | U23: 211
O24: total reinforcement | P24: =U11 -> 0 | Q24: =Z11 -> 0 | R24: =AE11 -> 0 | S24: =AJ11 -> 0 | T24: =AO11 -> 0 | U24: =AT11 -> 0
O25: % target
O26: CCRF
O27: % CCRf
O28: average response rate | P28: =F7/P20 -> 314 | Q28: =(F7-F7)/Q20 ->  | R28: =(F8-F7)/R20 -> 4161 | S28: =(F8-F8)/S20 ->  | T28: =(F9-F8)/T20 -> -4475 | U28: =(F9-F9)/U20 -> 

Sheet !L905A4I.sha
A1: Report for:!L905A4I.sha
A2: Date: | B2: <date>
A3: Hen: | B3: <hen> | F3: Correct Sequence | G3: =Start!J2 -> 211 | P3: Total Sequences in Data | Q3: =4994-COUNTBLANK(L7:L5000) -> 1 | V3: Total Sequences in Block Data | W3: =COUNTA(L6:L7) -> 2 | AA3: Total Sequences in Block Data | AB3: =COUNTA(L6:L7) -> 2 | AF3: Total Sequences in Block Data | AG3: =COUNTA(L7:L7) -> 1 | AK3: Total Sequences in Block Data | AL3: =COUNTA(L7:L8) -> 1 | AP3: Total Sequences in Block Data | AQ3: =COUNTA(L7:L8) -> 1 | AU3: Total Sequences in Block Data | AV3: =COUNTA(L7:L8) -> 1
P4: Total Sequences in Summary | Q4: =SUM(O7:O14) -> 1 | V4: Total Sequences in Block Summary | W4: =SUM(U7:U14) -> 1 | AA4: Total Sequences in Block Summary | AB4: =SUM(Z7:Z14) -> 1 | AF4: Total Sequences in Block Summary | AG4: =SUM(AE7:AE14) -> 1 | AK4: Total Sequences in Block Summary | AL4: =SUM(AJ7:AJ14) -> 1 | AP4: Total Sequences in Block Summary | AQ4: =SUM(AO7:AO14) -> 1 | AU4: Total Sequences in Block Summary | AV4: =SUM(AT7:AT14) -> 1
T5: Block 1 | Y5: Block 2 | AD5: Block 3 | AI5: Block 4 | AN5: Block 5 | AS5: Block 6
A6: Sequence Component 1 | B6: Time 1 | C6: Sequence Component 2 | D6: Time 2 | E6: Sequence Component 3 | F6: Time 3 | G6: Sequence Component 4 | H6: Time 4 | I6: Sequence Component 5 | J6: Time 5 | K6: Correct? 0=No 1=Yes | L6: Sequence | N6: Frequency | P6: Relative Frequency | Q6: Variability | T6: Frequency | V6: Relative Frequency | W6: Variability | Y6: Frequency | AA6: Relative Frequency | AB6: Variability | AD6: Frequency | AF6: Relative Frequency | AG6: Variability | AI6: Frequency | AK6: Relative Frequency | AL6: Variability | AN6: Frequency | AP6: Relative Frequency | AQ6: Variability | AS6: Frequency | AU6: Relative Frequency | AV6: Variability
A7: 12 | B7: 1740 | C7: 13 | D7: 8740 | E7: 13 | F7: 11899 | K7: 0 | L7: 111 | N7: 111 | O7: =COUNTIF($L$7:$L$500,N7) -> 1 | P7: =O7/$Q$4 -> 1 | Q7: =IF(P7=0,0,(P7*((LOG(P7))/LOG(2)))) -> 0 | T7: =N7 -> 111 | U7: =COUNTIF(L6:L7,T7) -> 1 | V7: =U7/(W4-U11) -> 1 | W7: =IF(V7=0,0,(V7*((LOG(V7))/LOG(2)))) -> 0 | Y7: =N7 -> 111 | Z7: =COUNTIF(L6:L7,Y7) -> 1 | AA7: =Z7/(AB4-Z11) -> 1 | AB7: =IF(AA7=0,0,(AA7*((LOG(AA7))/LOG(2)))) -> 0 | AD7: =N7 -> 111 | AE7: =COUNTIF(L7:L7,AD7) -> 1 | AF7: =AE7/(AG4-AE11) -> 1 | AG7: =IF(AF7=0,0,(AF7*((LOG(AF7))/LOG(2)))) -> 0 | AI7: =N7 -> 111 | AJ7: =COUNTIF(L7:L8,AI7) -> 1 | AK7: =AJ7/(AL4-AJ11) -> 1 | AL7: =IF(AK7=0,0,(AK7*((LOG(AK7))/LOG(2)))) -> 0 | AN7: =N7 -> 111 | AO7: =COUNTIF(L7:L8,AN7) -> 1 | AP7: =AO7/(AQ4-AO11) -> 1 | AQ7: =IF(AP7=0,0,(AP7*((LOG(AP7))/LOG(2)))) -> 0 | AS7: =N7 -> 111 | AT7: =COUNTIF(L7:L8,AS7) -> 1 | AU7: =AT7/(AV4-AT11) -> 1 | AV7: =IF(AU7=0,0,(AU7*((LOG(AU7))/LOG(2)))) -> 0
N8: 112 | O8: 0 | P8: 0 | Q8: 0 | T8: 112 | U8: =COUNTIF(L6:L7,T8) -> 0 | V8: =U8/(W4-U11) -> 0 | W8: =IF(V8=0,0,(V8*((LOG(V8))/LOG(2)))) -> 0 | Y8: 112 | Z8: =COUNTIF(L6:L7,Y8) -> 0 | AA8: =Z8/(AB4-Z11) -> 0 | AB8: =IF(AA8=0,0,(AA8*((LOG(AA8))/LOG(2)))) -> 0 | AD8: 112 | AE8: =COUNTIF(L7:L7,AD8) -> 0 | AF8: =AE8/(AG4-AE11) -> 0 | AG8: =IF(AF8=0,0,(AF8*((LOG(AF8))/LOG(2)))) -> 0 | AI8: 112 | AJ8: =COUNTIF(L7:L8,AI8) -> 0 | AK8: =AJ8/(AL4-AJ11) -> 0 | AL8: =IF(AK8=0,0,(AK8*((LOG(AK8))/LOG(2)))) -> 0 | AN8: 112 | AO8: =COUNTIF(L7:L8,AN8) -> 0 | AP8: =AO8/(AQ4-AO11) -> 0 | AQ8: =IF(AP8=0,0,(AP8*((LOG(AP8))/LOG(2)))) -> 0 | AS8: 112 | AT8: =COUNTIF(L7:L8,AS8) -> 0 | AU8: =AT8/(AV4-AT11) -> 0 | AV8: =IF(AU8=0,0,(AU8*((LOG(AU8))/LOG(2)))) -> 0
N9: 121 | O9: 0 | P9: 0 | Q9: 0 | T9: 121 | U9: =COUNTIF(L6:L7,T9) -> 0 | V9: =U9/(W4-U11) -> 0 | W9: =IF(V9=0,0,(V9*((LOG(V9))/LOG(2)))) -> 0 | Y9: 121 | Z9: =COUNTIF(L6:L7,Y9) -> 0 | AA9: =Z9/(AB4-Z11) -> 0 | AB9: =IF(AA9=0,0,(AA9*((LOG(AA9))/LOG(2)))) -> 0 | AD9: 121 | AE9: =COUNTIF(L7:L7,AD9) -> 0 | AF9: =AE9/(AG4-AE11) -> 0 | AG9: =IF(AF9=0,0,(AF9*((LOG(AF9))/LOG(2)))) -> 0 | AI9: 121 | AJ9: =COUNTIF(L7:L8,AI9) -> 0 | AK9: =AJ9/(AL4-AJ11) -> 0 | AL9: =IF(AK9=0,0,(AK9*((LOG(AK9))/LOG(2)))) -> 0 | AN9: 121 | AO9: =COUNTIF(L7:L8,AN9) -> 0 | AP9: =AO9/(AQ4-AO11) -> 0 | AQ9: =IF(AP9=0,0,(AP9*((LOG(AP9))/LOG(2)))) -> 0 | AS9: 121 | AT9: =COUNTIF(L7:L8,AS9) -> 0 | AU9: =AT9/(AV4-AT11) -> 0 | AV9: =IF(AU9=0,0,(AU9*((LOG(AU9))/LOG(2)))) -> 0
N10: 122 | O10: 0 | P10: 0 | Q10: 0 | T10: 122 | U10: =COUNTIF(L6:L7,T10) -> 0 | V10: =U10/(W4-U11) -> 0 | W10: =IF(V10=0,0,(V10*((LOG(V10))/LOG(2)))) -> 0 | Y10: 122 | Z10: =COUNTIF(L6:L7,Y10) -> 0 | AA10: =Z10/(AB4-Z11) -> 0 | AB10: =IF(AA10=0,0,(AA10*((LOG(AA10))/LOG(2)))) -> 0 | AD10: 122 | AE10: =COUNTIF(L7:L7,AD10) -> 0 | AF10: =AE10/(AG4-AE11) -> 0 | AG10: =IF(AF10=0,0,(AF10*((LOG(AF10))/LOG(2)))) -> 0 | AI10: 122 | AJ10: =COUNTIF(L7:L8,AI10) -> 0 | AK10: =AJ10/(AL4-AJ11) -> 0 | AL10: =IF(AK10=0,0,(AK10*((LOG(AK10))/LOG(2)))) -> 0 | AN10: 122 | AO10: =COUNTIF(L7:L8,AN10) -> 0 | AP10: =AO10/(AQ4-AO11) -> 0 | AQ10: =IF(AP10=0,0,(AP10*((LOG(AP10))/LOG(2)))) -> 0 | AS10: 122 | AT10: =COUNTIF(L7:L8,AS10) -> 0 | AU10: =AT10/(AV4-AT11) -> 0 | AV10: =IF(AU10=0,0,(AU10*((LOG(AU10))/LOG(2)))) -> 0
N11: 211 | O11: 0 | P11: 0 | Q11: 0 | T11: 211 | U11: =COUNTIF(L6:L7,T11) -> 0 | Y11: 211 | Z11: =COUNTIF(L6:L7,Y11) -> 0 | AD11: 211 | AE11: =COUNTIF(L7:L7,AD11) -> 0 | AI11: 211 | AJ11: =COUNTIF(L7:L8,AI11) -> 0 | AN11: 211 | AO11: =COUNTIF(L7:L8,AN11) -> 0 | AS11: 211 | AT11: =COUNTIF(L7:L8,AS11) -> 0
N12: 212 | O12: 0 | P12: 0 | Q12: 0 | T12: 212 | U12: =COUNTIF(L6:L7,T12) -> 0 | V12: =U12/(W4-U11) -> 0 | W12: =IF(V12=0,0,(V12*((LOG(V12))/LOG(2)))) -> 0 | Y12: 212 | Z12: =COUNTIF(L6:L7,Y12) -> 0 | AA12: =Z12/(AB4-Z11) -> 0 | AB12: =IF(AA12=0,0,(AA12*((LOG(AA12))/LOG(2)))) -> 0 | AD12: 212 | AE12: =COUNTIF(L7:L7,AD12) -> 0 | AF12: =AE12/(AG4-AE11) -> 0 | AG12: =IF(AF12=0,0,(AF12*((LOG(AF12))/LOG(2)))) -> 0 | AI12: 212 | AJ12: =COUNTIF(L7:L8,AI12) -> 0 | AK12: =AJ12/(AL4-AJ11) -> 0 | AL12: =IF(AK12=0,0,(AK12*((LOG(AK12))/LOG(2)))) -> 0 | AN12: 212 | AO12: =COUNTIF(L7:L8,AN12) -> 0 | AP12: =AO12/(AQ4-AO11) -> 0 | AQ12: =IF(AP12=0,0,(AP12*((LOG(AP12))/LOG(2)))) -> 0 | AS12: 212 | AT12: =COUNTIF(L7:L8,AS12) -> 0 | AU12: =AT12/(AV4-AT11) -> 0 | AV12: =IF(AU12=0,0,(AU12*((LOG(AU12))/LOG(2)))) -> 0
N13: 221 | O13: 0 | P13: 0 | Q13: 0 | T13: 221 | U13: =COUNTIF(L6:L7,T13) -> 0 | V13: =U13/(W4-U11) -> 0 | W13: =IF(V13=0,0,(V13*((LOG(V13))/LOG(2)))) -> 0 | Y13: 221 | Z13: =COUNTIF(L6:L7,Y13) -> 0 | AA13: =Z13/(AB4-Z11) -> 0 | AB13: =IF(AA13=0,0,(AA13*((LOG(AA13))/LOG(2)))) -> 0 | AD13: 221 | AE13: =COUNTIF(L7:L7,AD13) -> 0 | AF13: =AE13/(AG4-AE11) -> 0 | AG13: =IF(AF13=0,0,(AF13*((LOG(AF13))/LOG(2)))) -> 0 | AI13: 221 | AJ13: =COUNTIF(L7:L8,AI13) -> 0 | AK13: =AJ13/(AL4-AJ11) -> 0 | AL13: =IF(AK13=0,0,(AK13*((LOG(AK13))/LOG(2)))) -> 0 | AN13: 221 | AO13: =COUNTIF(L7:L8,AN13) -> 0 | AP13: =AO13/(AQ4-AO11) -> 0 | AQ13: =IF(AP13=0,0,(AP13*((LOG(AP13))/LOG(2)))) -> 0 | AS13: 221 | AT13: =COUNTIF(L7:L8,AS13) -> 0 | AU13: =AT13/(AV4-AT11) -> 0 | AV13: =IF(AU13=0,0,(AU13*((LOG(AU13))/LOG(2)))) -> 0
N14: 222 | O14: 0 | P14: 0 | Q14: 0 | T14: 222 | U14: =COUNTIF(L6:L7,T14) -> 0 | V14: =U14/(W4-U11) -> 0 | W14: =IF(V14=0,0,(V14*((LOG(V14))/LOG(2)))) -> 0 | Y14: 222 | Z14: =COUNTIF(L6:L7,Y14) -> 0 | AA14: =Z14/(AB4-Z11) -> 0 | AB14: =IF(AA14=0,0,(AA14*((LOG(AA14))/LOG(2)))) -> 0 | AD14: 222 | AE14: =COUNTIF(L7:L7,AD14) -> 0 | AF14: =AE14/(AG4-AE11) -> 0 | AG14: =IF(AF14=0,0,(AF14*((LOG(AF14))/LOG(2)))) -> 0 | AI14: 222 | AJ14: =COUNTIF(L7:L8,AI14) -> 0 | AK14: =AJ14/(AL4-AJ11) -> 0 | AL14: =IF(AK14=0,0,(AK14*((LOG(AK14))/LOG(2)))) -> 0 | AN14: 222 | AO14: =COUNTIF(L7:L8,AN14) -> 0 | AP14: =AO14/(AQ4-AO11) -> 0 | AQ14: =IF(AP14=0,0,(AP14*((LOG(AP14))/LOG(2)))) -> 0 | AS14: 222 | AT14: =COUNTIF(L7:L8,AS14) -> 0 | AU14: =AT14/(AV4-AT11) -> 0 | AV14: =IF(AU14=0,0,(AU14*((LOG(AU14))/LOG(2)))) -> 0
P15: =SUM(P7:P14) -> 1 | Q15: =-SUM(Q7:Q14) -> 0 | V15: =SUM(V7:V14) -> 1 | W15: =-SUM(W7:W14) -> 0 | AA15: =SUM(AA7:AA14) -> 1 | AB15: =-SUM(AB7:AB14) -> 0 | AF15: =SUM(AF7:AF14) -> 1 | AG15: =-SUM(AG7:AG14) -> 0 | AK15: =SUM(AK7:AK14) -> 1 | AL15: =-SUM(AL7:AL14) -> 0 | AP15: =SUM(AP7:AP14) -> 1 | AQ15: =-SUM(AQ7:AQ14) -> 0 | AU15: =SUM(AU7:AU14) -> 1 | AV15: =-SUM(AV7:AV14) -> 0
P16: U= | Q16: =Q15/(LOG(Q4)/LOG(2)) ->  | V16: U1= | W16: =W15/(LOG(W4)/LOG(2)) ->  | AA16: U2= | AB16: =AB15/(LOG(AB4)/LOG(2)) ->  | AF16: U3= | AG16: =AG15/(LOG(AG4)/LOG(2)) ->  | AK16: U4= | AL16: =AL15/(LOG(AL4)/LOG(2)) ->  | AP16: U5= | AQ16: =AQ15/(LOG(AQ4)/LOG(2)) ->  | AU16: U6= | AV16: =AV15/(LOG(AV4)/LOG(2)) -> 
N19: Total Target Seq
N20: =COUNTIF(L7:L7,G3) -> 0 | P20: 0 | Q20: 0 | R20: 1 | S20: 0 | T20: 0 | U20: 0
P21: % of reinforcement given in 6 equal intervals based on number of trials
P22: %_1 | Q22: %_2 | R22: %_3 | S22: %_4 | T22: %_5 | U22: %_6
O23: target sequence | P23: =$G$3 -> 211 | Q23: 211 | R23: 211 | S23: 211 | T23: 211 | U23: 211
O24: total reinforcement | P24: =U11 -> 0 | Q24: =Z11 -> 0 | R24: =AE11 -> 0 | S24: =AJ11 -> 0 | T24: =AO11 -> 0 | U24: =AT11 -> 0
O25: % target
O26: CCRF
O27: % CCRf
O28: average response rate | P28: =F6/P20 ->  | Q28: =(F6-F6)/Q20 ->  | R28: =(F7-F6)/R20 ->  | S28: =(F7-F7)/S20 ->  | T28: =(F7-F7)/T20 ->  | U28: =(F7-F7)/U20 -> 

Sheet !L906A4I.sha
A1: Report for:!L906A4I.sha
A2: Date: | B2: <date>
A3: Hen: | B3: <hen> | F3: Correct Sequence | G3: =Start!J2 -> 211 | P3: Total Sequences in Data | Q3: =4994-COUNTBLANK(L7:L5000) -> 3 | V3: Total Sequences in Block Data | W3: =COUNTA(L7:L7) -> 1 | AA3: Total Sequences in Block Data | AB3: =COUNTA(L7:L8) -> 2 | AF3: Total Sequences in Block Data | AG3: =COUNTA(L8:L8) -> 1 | AK3: Total Sequences in Block Data | AL3: =COUNTA(L8:L9) -> 2 | AP3: Total Sequences in Block Data | AQ3: =COUNTA(L9:L9) -> 1 | AU3: Total Sequences in Block Data | AV3: =COUNTA(L9:L10) -> 1
P4: Total Sequences in Summary | Q4: =SUM(O7:O14) -> 2 | V4: Total Sequences in Block Summary | W4: =SUM(U7:U14) -> 1 | AA4: Total Sequences in Block Summary | AB4: =SUM(Z7:Z14) -> 2 | AF4: Total Sequences in Block Summary | AG4: =SUM(AE7:AE14) -> 1 | AK4: Total Sequences in Block Summary | AL4: =SUM(AJ7:AJ14) -> 1 | AP4: Total Sequences in Block Summary | AQ4: =SUM(AO7:AO14) -> 0 | AU4: Total Sequences in Block Summary | AV4: =SUM(AT7:AT14) -> 0
T5: Block 1 | Y5: Block 2 | AD5: Block 3 | AI5: Block 4 | AN5: Block 5 | AS5: Block 6
A6: Sequence Component 1 | B6: Time 1 | C6: Sequence Component 2 | D6: Time 2 | E6: Sequence Component 3 | F6: Time 3 | G6: Sequence Component 4 | H6: Time 4 | I6: Sequence Component 5 | J6: Time 5 | K6: Correct? 0=No 1=Yes | L6: Sequence | N6: Frequency | P6: Relative Frequency | Q6: Variability | T6: Frequency | V6: Relative Frequency | W6: Variability | Y6: Frequency | AA6: Relative Frequency | AB6: Variability | AD6: Frequency | AF6: Relative Frequency | AG6: Variability | AI6: Frequency | AK6: Relative Frequency | AL6: Variability | AN6: Frequency | AP6: Relative Frequency | AQ6: Variability | AS6: Frequency | AU6: Relative Frequency | AV6: Variability
A7: 12 | B7: 1116 | C7: 13 | D7: 7734 | E7: 13 | F7: 9578 | K7: 0 | L7: 111 | N7: 111 | O7: =COUNTIF($L$7:$L$500,N7) -> 2 | P7: =O7/$Q$4 -> 1 | Q7: =IF(P7=0,0,(P7*((LOG(P7))/LOG(2)))) -> 0 | T7: =N7 -> 111 | U7: =COUNTIF(L7:L7,T7) -> 1 | V7: =U7/(W4-U11) -> 1 | W7: =IF(V7=0,0,(V7*((LOG(V7))/LOG(2)))) -> 0 | Y7: =N7 -> 111 | Z7: =COUNTIF(L7:L8,Y7) -> 2 | AA7: =Z7/(AB4-Z11) -> 1 | AB7: =IF(AA7=0,0,(AA7*((LOG(AA7))/LOG(2)))) -> 0 | AD7: =N7 -> 111 | AE7: =COUNTIF(L8:L8,AD7) -> 1 | AF7: =AE7/(AG4-AE11) -> 1 | AG7: =IF(AF7=0,0,(AF7*((LOG(AF7))/LOG(2)))) -> 0 | AI7: =N7 -> 111 | AJ7: =COUNTIF(L8:L9,AI7) -> 1 | AK7: =AJ7/(AL4-AJ11) -> 1 | AL7: =IF(AK7=0,0,(AK7*((LOG(AK7))/LOG(2)))) -> 0 | AN7: =N7 -> 111 | AO7: =COUNTIF(L9:L9,AN7) -> 0 | AP7: =AO7/(AQ4-AO11) ->  | AQ7: =IF(AP7=0,0,(AP7*((LOG(AP7))/LOG(2)))) ->  | AS7: =N7 -> 111 | AT7: =COUNTIF(L9:L10,AS7) -> 0 | AU7: =AT7/(AV4-AT11) ->  | AV7: =IF(AU7=0,0,(AU7*((LOG(AU7))/LOG(2)))) -> 
A8: 12 | B8: 16077 | C8: 13 | D8: 17113 | E8: 13 | F8: 17646 | K8: 0 | L8: 111 | N8: 112 | O8: 0 | P8: 0 | Q8: 0 | T8: 112 | U8: =COUNTIF(L7:L7,T8) -> 0 | V8: =U8/(W4-U11) -> 0 | W8: =IF(V8=0,0,(V8*((LOG(V8))/LOG(2)))) -> 0 | Y8: 112 | Z8: =COUNTIF(L7:L8,Y8) -> 0 | AA8: =Z8/(AB4-Z11) -> 0 | AB8: =IF(AA8=0,0,(AA8*((LOG(AA8))/LOG(2)))) -> 0 | AD8: 112 | AE8: =COUNTIF(L8:L8,AD8) -> 0 | AF8: =AE8/(AG4-AE11) -> 0 | AG8: =IF(AF8=0,0,(AF8*((LOG(AF8))/LOG(2)))) -> 0 | AI8: 112 | AJ8: =COUNTIF(L8:L9,AI8) -> 0 | AK8: =AJ8/(AL4-AJ11) -> 0 | AL8: =IF(AK8=0,0,(AK8*((LOG(AK8))/LOG(2)))) -> 0 | AN8: 112 | AO8: =COUNTIF(L9:L9,AN8) -> 0 | AP8: =AO8/(AQ4-AO11) ->  | AQ8: =IF(AP8=0,0,(AP8*((LOG(AP8))/LOG(2)))) ->  | AS8: 112 | AT8: =COUNTIF(L9:L10,AS8) -> 0 | AU8: =AT8/(AV4-AT11) ->  | AV8: =IF(AU8=0,0,(AU8*((LOG(AU8))/LOG(2)))) -> 
A9: 12 | B9: 21642 | L9: 1 | N9: 121 | O9: 0 | P9: 0 | Q9: 0 | T9: 121 | U9: =COUNTIF(L7:L7,T9) -> 0 | V9: =U9/(W4-U11) -> 0 | W9: =IF(V9=0,0,(V9*((LOG(V9))/LOG(2)))) -> 0 | Y9: 121 | Z9: =COUNTIF(L7:L8,Y9) -> 0 | AA9: =Z9/(AB4-Z11) -> 0 | AB9: =IF(AA9=0,0,(AA9*((LOG(AA9))/LOG(2)))) -> 0 | AD9: 121 | AE9: =COUNTIF(L8:L8,AD9) -> 0 | AF9: =AE9/(AG4-AE11) -> 0 | AG9: =IF(AF9=0,0,(AF9*((LOG(AF9))/LOG(2)))) -> 0 | AI9: 121 | AJ9: =COUNTIF(L8:L9,AI9) -> 0 | AK9: =AJ9/(AL4-AJ11) -> 0 | AL9: =IF(AK9=0,0,(AK9*((LOG(AK9))/LOG(2)))) -> 0 | AN9: 121 | AO9: =COUNTIF(L9:L9,AN9) -> 0 | AP9: =AO9/(AQ4-AO11) ->  | AQ9: =IF(AP9=0,0,(AP9*((LOG(AP9))/LOG(2)))) ->  | AS9: 121 | AT9: =COUNTIF(L9:L10,AS9) -> 0 | AU9: =AT9/(AV4-AT11) ->  | AV9: =IF(AU9=0,0,(AU9*((LOG(AU9))/LOG(2)))) -> 
N10: 122 | O10: 0 | P10: 0 | Q10: 0 | T10: 122 | U10: =COUNTIF(L7:L7,T10) -> 0 | V10: =U10/(W4-U11) -> 0 | W10: =IF(V10=0,0,(V10*((LOG(V10))/LOG(2)))) -> 0 | Y10: 122 | Z10: =COUNTIF(L7:L8,Y10) -> 0 | AA10: =Z10/(AB4-Z11) -> 0 | AB10: =IF(AA10=0,0,(AA10*((LOG(AA10))/LOG(2)))) -> 0 | AD10: 122 | AE10: =COUNTIF(L8:L8,AD10) -> 0 | AF10: =AE10/(AG4-AE11) -> 0 | AG10: =IF(AF10=0,0,(AF10*((LOG(AF10))/LOG(2)))) -> 0 | AI10: 122 | AJ10: =COUNTIF(L8:L9,AI10) -> 0 | AK10: =AJ10/(AL4-AJ11) -> 0 | AL10: =IF(AK10=0,0,(AK10*((LOG(AK10))/LOG(2)))) -> 0 | AN10: 122 | AO10: =COUNTIF(L9:L9,AN10) -> 0 | AP10: =AO10/(AQ4-AO11) ->  | AQ10: =IF(AP10=0,0,(AP10*((LOG(AP10))/LOG(2)))) ->  | AS10: 122 | AT10: =COUNTIF(L9:L10,AS10) -> 0 | AU10: =AT10/(AV4-AT11) ->  | AV10: =IF(AU10=0,0,(AU10*((LOG(AU10))/LOG(2)))) -> 
N11: 211 | O11: 0 | P11: 0 | Q11: 0 | T11: 211 | U11: =COUNTIF(L7:L7,T11) -> 0 | Y11: 211 | Z11: =COUNTIF(L7:L8,Y11) -> 0 | AD11: 211 | AE11: =COUNTIF(L8:L8,AD11) -> 0 | AI11: 211 | AJ11: =COUNTIF(L8:L9,AI11) -> 0 | AN11: 211 | AO11: =COUNTIF(L9:L9,AN11) -> 0 | AS11: 211 | AT11: =COUNTIF(L9:L10,AS11) -> 0
N12: 212 | O12: 0 | P12: 0 | Q12: 0 | T12: 212 | U12: =COUNTIF(L7:L7,T12) -> 0 | V12: =U12/(W4-U11) -> 0 | W12: =IF(V12=0,0,(V12*((LOG(V12))/LOG(2)))) -> 0 | Y12: 212 | Z12: =COUNTIF(L7:L8,Y12) -> 0 | AA12: =Z12/(AB4-Z11) -> 0 | AB12: =IF(AA12=0,0,(AA12*((LOG(AA12))/LOG(2)))) -> 0 | AD12: 212 | AE12: =COUNTIF(L8:L8,AD12) -> 0 | AF12: =AE12/(AG4-AE11) -> 0 | AG12: =IF(AF12=0,0,(AF12*((LOG(AF12))/LOG(2)))) -> 0 | AI12: 212 | AJ12: =COUNTIF(L8:L9,AI12) -> 0 | AK12: =AJ12/(AL4-AJ11) -> 0 | AL12: =IF(AK12=0,0,(AK12*((LOG(AK12))/LOG(2)))) -> 0 | AN12: 212 | AO12: =COUNTIF(L9:L9,AN12) -> 0 | AP12: =AO12/(AQ4-AO11) ->  | AQ12: =IF(AP12=0,0,(AP12*((LOG(AP12))/LOG(2)))) ->  | AS12: 212 | AT12: =COUNTIF(L9:L10,AS12) -> 0 | AU12: =AT12/(AV4-AT11) ->  | AV12: =IF(AU12=0,0,(AU12*((LOG(AU12))/LOG(2)))) -> 
N13: 221 | O13: 0 | P13: 0 | Q13: 0 | T13: 221 | U13: =COUNTIF(L7:L7,T13) -> 0 | V13: =U13/(W4-U11) -> 0 | W13: =IF(V13=0,0,(V13*((LOG(V13))/LOG(2)))) -> 0 | Y13: 221 | Z13: =COUNTIF(L7:L8,Y13) -> 0 | AA13: =Z13/(AB4-Z11) -> 0 | AB13: =IF(AA13=0,0,(AA13*((LOG(AA13))/LOG(2)))) -> 0 | AD13: 221 | AE13: =COUNTIF(L8:L8,AD13) -> 0 | AF13: =AE13/(AG4-AE11) -> 0 | AG13: =IF(AF13=0,0,(AF13*((LOG(AF13))/LOG(2)))) -> 0 | AI13: 221 | AJ13: =COUNTIF(L8:L9,AI13) -> 0 | AK13: =AJ13/(AL4-AJ11) -> 0 | AL13: =IF(AK13=0,0,(AK13*((LOG(AK13))/LOG(2)))) -> 0 | AN13: 221 | AO13: =COUNTIF(L9:L9,AN13) -> 0 | AP13: =AO13/(AQ4-AO11) ->  | AQ13: =IF(AP13=0,0,(AP13*((LOG(AP13))/LOG(2)))) ->  | AS13: 221 | AT13: =COUNTIF(L9:L10,AS13) -> 0 | AU13: =AT13/(AV4-AT11) ->  | AV13: =IF(AU13=0,0,(AU13*((LOG(AU13))/LOG(2)))) -> 
N14: 222 | O14: 0 | P14: 0 | Q14: 0 | T14: 222 | U14: =COUNTIF(L7:L7,T14) -> 0 | V14: =U14/(W4-U11) -> 0 | W14: =IF(V14=0,0,(V14*((LOG(V14))/LOG(2)))) -> 0 | Y14: 222 | Z14: =COUNTIF(L7:L8,Y14) -> 0 | AA14: =Z14/(AB4-Z11) -> 0 | AB14: =IF(AA14=0,0,(AA14*((LOG(AA14))/LOG(2)))) -> 0 | AD14: 222 | AE14: =COUNTIF(L8:L8,AD14) -> 0 | AF14: =AE14/(AG4-AE11) -> 0 | AG14: =IF(AF14=0,0,(AF14*((LOG(AF14))/LOG(2)))) -> 0 | AI14: 222 | AJ14: =COUNTIF(L8:L9,AI14) -> 0 | AK14: =AJ14/(AL4-AJ11) -> 0 | AL14: =IF(AK14=0,0,(AK14*((LOG(AK14))/LOG(2)))) -> 0 | AN14: 222 | AO14: =COUNTIF(L9:L9,AN14) -> 0 | AP14: =AO14/(AQ4-AO11) ->  | AQ14: =IF(AP14=0,0,(AP14*((LOG(AP14))/LOG(2)))) ->  | AS14: 222 | AT14: =COUNTIF(L9:L10,AS14) -> 0 | AU14: =AT14/(AV4-AT11) ->  | AV14: =IF(AU14=0,0,(AU14*((LOG(AU14))/LOG(2)))) -> 
P15: =SUM(P7:P14) -> 1 | Q15: =-SUM(Q7:Q14) -> 0 | V15: =SUM(V7:V14) -> 1 | W15: =-SUM(W7:W14) -> 0 | AA15: =SUM(AA7:AA14) -> 1 | AB15: =-SUM(AB7:AB14) -> 0 | AF15: =SUM(AF7:AF14) -> 1 | AG15: =-SUM(AG7:AG14) -> 0 | AK15: =SUM(AK7:AK14) -> 1 | AL15: =-SUM(AL7:AL14) -> 0 | AP15: =SUM(AP7:AP14) ->  | AQ15: =-SUM(AQ7:AQ14) ->  | AU15: =SUM(AU7:AU14) ->  | AV15: =-SUM(AV7:AV14) -> 
P16: U= | Q16: =Q15/(LOG(Q4)/LOG(2)) -> 0 | V16: U1= | W16: =W15/(LOG(W4)/LOG(2)) ->  | AA16: U2= | AB16: =AB15/(LOG(AB4)/LOG(2)) -> 0 | AF16: U3= | AG16: =AG15/(LOG(AG4)/LOG(2)) ->  | AK16: U4= | AL16: =AL15/(LOG(AL4)/LOG(2)) ->  | AP16: U5= | AQ16: =AQ15/(LOG(AQ4)/LOG(2)) ->  | AU16: U6= | AV16: =AV15/(LOG(AV4)/LOG(2)) -> 
N19: Total Target Seq
N20: =COUNTIF(L7:L9,G3) -> 0 | P20: 1 | Q20: 0 | R20: 1 | S20: 0 | T20: 1 | U20: 0
P21: % of reinforcement given in 6 equal intervals based on number of trials
P22: %_1 | Q22: %_2 | R22: %_3 | S22: %_4 | T22: %_5 | U22: %_6
O23: target sequence | P23: =$G$3 -> 211 | Q23: 211 | R23: 211 | S23: 211 | T23: 211 | U23: 211
O24: total reinforcement | P24: =U11 -> 0 | Q24: =Z11 -> 0 | R24: =AE11 -> 0 | S24: =AJ11 -> 0 | T24: =AO11 -> 0 | U24: =AT11 -> 0
O25: % target
O26: CCRF
O27: % CCRf
O28: average response rate | P28: =F7/P20 -> 9578 | Q28: =(F7-F7)/Q20 ->  | R28: =(F8-F7)/R20 -> 8068 | S28: =(F8-F8)/S20 ->  | T28: =(F9-F8)/T20 -> -17646 | U28: =(F9-F9)/U20 -> 

Sheet !L907A4I.sha
A1: Report for:!L907A4I.sha
A2: Date: | B2: <date>
A3: Hen: | B3: <hen> | F3: Correct Sequence | G3: =Start!J2 -> 211 | P3: Total Sequences in Data | Q3: =4994-COUNTBLANK(L7:L5000) -> 21 | V3: Total Sequences in Block Data | W3: =COUNTA(L7:L10) -> 4 | AA3: Total Sequences in Block Data | AB3: =COUNTA(L11:L13) -> 3 | AF3: Total Sequences in Block Data | AG3: =COUNTA(L14:L17) -> 4 | AK3: Total Sequences in Block Data | AL3: =COUNTA(L18:L20) -> 3 | AP3: Total Sequences in Block Data | AQ3: =COUNTA(L21:L24) -> 4 | AU3: Total Sequences in Block Data | AV3: =COUNTA(L25:L27) -> 3
P4: Total Sequences in Summary | Q4: =SUM(O7:O14) -> 20 | V4: Total Sequences in Block Summary | W4: =SUM(U7:U14) -> 4 | AA4: Total Sequences in Block Summary | AB4: =SUM(Z7:Z14) -> 3 | AF4: Total Sequences in Block Summary | AG4: =SUM(AE7:AE14) -> 4 | AK4: Total Sequences in Block Summary | AL4: =SUM(AJ7:AJ14) -> 3 | AP4: Total Sequences in Block Summary | AQ4: =SUM(AO7:AO14) -> 4 | AU4: Total Sequences in Block Summary | AV4: =SUM(AT7:AT14) -> 2
T5: Block 1 | Y5: Block 2 | AD5: Block 3 | AI5: Block 4 | AN5: Block 5 | AS5: Block 6
A6: Sequence Component 1 | B6: Time 1 | C6: Sequence Component 2 | D6: Time 2 | E6: Sequence Component 3 | F6: Time 3 | G6: Sequence Component 4 | H6: Time 4 | I6: Sequence Component 5 | J6: Time 5 | K6: Correct? 0=No 1=Yes | L6: Sequence | N6: Frequency | P6: Relative Frequency | Q6: Variability | T6: Frequency | V6: Relative Frequency | W6: Variability | Y6: Frequency | AA6: Relative Frequency | AB6: Variability | AD6: Frequency | AF6: Relative Frequency | AG6: Variability | AI6: Frequency | AK6: Relative Frequency | AL6: Variability | AN6: Frequency | AP6: Relative Frequency | AQ6: Variability | AS6: Frequency | AU6: Relative Frequency | AV6: Variability
A7: 12 | B7: 40 | C7: 13 | D7: 48 | E7: 13 | F7: 84 | K7: 0 | L7: 111 | N7: 111 | O7: =COUNTIF($L$7:$L$500,N7) -> 9 | P7: =O7/$Q$4 -> 0.45 | Q7: =IF(P7=0,0,(P7*((LOG(P7))/LOG(2)))) -> -0.5184013921 | T7: =N7 -> 111 | U7: =COUNTIF(L7:L10,T7) -> 2 | V7: =U7/(W4-U11) -> 0.5 | W7: =IF(V7=0,0,(V7*((LOG(V7))/LOG(2)))) -> -0.5 | Y7: =N7 -> 111 | Z7: =COUNTIF(L11:L13,Y7) -> 0 | AA7: =Z7/(AB4-Z11) -> 0 | AB7: =IF(AA7=0,0,(AA7*((LOG(AA7))/LOG(2)))) -> 0 | AD7: =N7 -> 111 | AE7: =COUNTIF(L14:L17,AD7) -> 1 | AF7: =AE7/(AG4-AE11) -> 0.25 | AG7: =IF(AF7=0,0,(AF7*((LOG(AF7))/LOG(2)))) -> -0.5 | AI7: =N7 -> 111 | AJ7: =COUNTIF(L18:L20,AI7) -> 2 | AK7: =AJ7/(AL4-AJ11) -> 0.6666666667 | AL7: =IF(AK7=0,0,(AK7*((LOG(AK7))/LOG(2)))) -> -0.3899750005 | AN7: =N7 -> 111 | AO7: =COUNTIF(L21:L24,AN7) -> 3 | AP7: =AO7/(AQ4-AO11) -> 0.75 | AQ7: =IF(AP7=0,0,(AP7*((LOG(AP7))/LOG(2)))) -> -0.3112781245 | AS7: =N7 -> 111 | AT7: =COUNTIF(L25:L27,AS7) -> 1 | AU7: =AT7/(AV4-AT11) -> 0.5 | AV7: =IF(AU7=0,0,(AU7*((LOG(AU7))/LOG(2)))) -> -0.5
A8: 12 | B8: 182 | C8: 13 | D8: 209 | E8: 13 | F8: 215 | K8: 0 | L8: 111 | N8: 112 | O8: 5 | P8: 0.25 | Q8: -0.5 | T8: 112 | U8: =COUNTIF(L7:L10,T8) -> 0 | V8: =U8/(W4-U11) -> 0 | W8: =IF(V8=0,0,(V8*((LOG(V8))/LOG(2)))) -> 0 | Y8: 112 | Z8: =COUNTIF(L11:L13,Y8) -> 2 | AA8: =Z8/(AB4-Z11) -> 0.6666666667 | AB8: =IF(AA8=0,0,(AA8*((LOG(AA8))/LOG(2)))) -> -0.3899750005 | AD8: 112 | AE8: =COUNTIF(L14:L17,AD8) -> 2 | AF8: =AE8/(AG4-AE11) -> 0.5 | AG8: =IF(AF8=0,0,(AF8*((LOG(AF8))/LOG(2)))) -> -0.5 | AI8: 112 | AJ8: =COUNTIF(L18:L20,AI8) -> 1 | AK8: =AJ8/(AL4-AJ11) -> 0.3333333333 | AL8: =IF(AK8=0,0,(AK8*((LOG(AK8))/LOG(2)))) -> -0.5283208336 | AN8: 112 | AO8: =COUNTIF(L21:L24,AN8) -> 0 | AP8: =AO8/(AQ4-AO11) -> 0 | AQ8: =IF(AP8=0,0,(AP8*((LOG(AP8))/LOG(2)))) -> 0 | AS8: 112 | AT8: =COUNTIF(L25:L27,AS8) -> 0 | AU8: =AT8/(AV4-AT11) -> 0 | AV8: =IF(AU8=0,0,(AU8*((LOG(AU8))/LOG(2)))) -> 0
A9: 12 | B9: 317 | C9: 24 | D9: 330 | E9: 24 | F9: 336 | K9: 0 | L9: 122 | N9: 121 | O9: 0 | P9: 0 | Q9: 0 | T9: 121 | U9: =COUNTIF(L7:L10,T9) -> 0 | V9: =U9/(W4-U11) -> 0 | W9: =IF(V9=0,0,(V9*((LOG(V9))/LOG(2)))) -> 0 | Y9: 121 | Z9: =COUNTIF(L11:L13,Y9) -> 0 | AA9: =Z9/(AB4-Z11) -> 0 | AB9: =IF(AA9=0,0,(AA9*((LOG(AA9))/LOG(2)))) -> 0 | AD9: 121 | AE9: =COUNTIF(L14:L17,AD9) -> 0 | AF9: =AE9/(AG4-AE11) -> 0 | AG9: =IF(AF9=0,0,(AF9*((LOG(AF9))/LOG(2)))) -> 0 | AI9: 121 | AJ9: =COUNTIF(L18:L20,AI9) -> 0 | AK9: =AJ9/(AL4-AJ11) -> 0 | AL9: =IF(AK9=0,0,(AK9*((LOG(AK9))/LOG(2)))) -> 0 | AN9: 121 | AO9: =COUNTIF(L21:L24,AN9) -> 0 | AP9: =AO9/(AQ4-AO11) -> 0 | AQ9: =IF(AP9=0,0,(AP9*((LOG(AP9))/LOG(2)))) -> 0 | AS9: 121 | AT9: =COUNTIF(L25:L27,AS9) -> 0 | AU9: =AT9/(AV4-AT11) -> 0 | AV9: =IF(AU9=0,0,(AU9*((LOG(AU9))/LOG(2)))) -> 0
A10: 21 | B10: 449 | C10: 22 | D10: 456 | E10: 24 | F10: 463 | K10: 0 | L10: 222 | N10: 122 | O10: 3 | P10: 0.15 | Q10: -0.4105448391 | T10: 122 | U10: =COUNTIF(L7:L10,T10) -> 1 | V10: =U10/(W4-U11) -> 0.25 | W10: =IF(V10=0,0,(V10*((LOG(V10))/LOG(2)))) -> -0.5 | Y10: 122 | Z10: =COUNTIF(L11:L13,Y10) -> 1 | AA10: =Z10/(AB4-Z11) -> 0.3333333333 | AB10: =IF(AA10=0,0,(AA10*((LOG(AA10))/LOG(2)))) -> -0.5283208336 | AD10: 122 | AE10: =COUNTIF(L14:L17,AD10) -> 1 | AF10: =AE10/(AG4-AE11) -> 0.25 | AG10: =IF(AF10=0,0,(AF10*((LOG(AF10))/LOG(2)))) -> -0.5 | AI10: 122 | AJ10: =COUNTIF(L18:L20,AI10) -> 0 | AK10: =AJ10/(AL4-AJ11) -> 0 | AL10: =IF(AK10=0,0,(AK10*((LOG(AK10))/LOG(2)))) -> 0 | AN10: 122 | AO10: =COUNTIF(L21:L24,AN10) -> 0 | AP10: =AO10/(AQ4-AO11) -> 0 | AQ10: =IF(AP10=0,0,(AP10*((LOG(AP10))/LOG(2)))) -> 0 | AS10: 122 | AT10: =COUNTIF(L25:L27,AS10) -> 0 | AU10: =AT10/(AV4-AT11) -> 0 | AV10: =IF(AU10=0,0,(AU10*((LOG(AU10))/LOG(2)))) -> 0
A11: 12 | B11: 657 | C11: 24 | D11: 671 | E11: 24 | F11: 682 | K11: 0 | L11: 122 | N11: 211 | O11: 0 | P11: 0 | Q11: 0 | T11: 211 | U11: =COUNTIF(L7:L10,T11) -> 0 | Y11: 211 | Z11: =COUNTIF(L11:L13,Y11) -> 0 | AD11: 211 | AE11: =COUNTIF(L14:L17,AD11) -> 0 | AI11: 211 | AJ11: =COUNTIF(L18:L20,AI11) -> 0 | AN11: 211 | AO11: =COUNTIF(L21:L24,AN11) -> 0 | AS11: 211 | AT11: =COUNTIF(L25:L27,AS11) -> 0
A12: 12 | B12: 781 | C12: 13 | D12: 786 | E12: 24 | F12: 797 | K12: 0 | L12: 112 | N12: 212 | O12: 0 | P12: 0 | Q12: 0 | T12: 212 | U12: =COUNTIF(L7:L10,T12) -> 0 | V12: =U12/(W4-U11) -> 0 | W12: =IF(V12=0,0,(V12*((LOG(V12))/LOG(2)))) -> 0 | Y12: 212 | Z12: =COUNTIF(L11:L13,Y12) -> 0 | AA12: =Z12/(AB4-Z11) -> 0 | AB12: =IF(AA12=0,0,(AA12*((LOG(AA12))/LOG(2)))) -> 0 | AD12: 212 | AE12: =COUNTIF(L14:L17,AD12) -> 0 | AF12: =AE12/(AG4-AE11) -> 0 | AG12: =IF(AF12=0,0,(AF12*((LOG(AF12))/LOG(2)))) -> 0 | AI12: 212 | AJ12: =COUNTIF(L18:L20,AI12) -> 0 | AK12: =AJ12/(AL4-AJ11) -> 0 | AL12: =IF(AK12=0,0,(AK12*((LOG(AK12))/LOG(2)))) -> 0 | AN12: 212 | AO12: =COUNTIF(L21:L24,AN12) -> 0 | AP12: =AO12/(AQ4-AO11) -> 0 | AQ12: =IF(AP12=0,0,(AP12*((LOG(AP12))/LOG(2)))) -> 0 | AS12: 212 | AT12: =COUNTIF(L25:L27,AS12) -> 0 | AU12: =AT12/(AV4-AT11) -> 0 | AV12: =IF(AU12=0,0,(AU12*((LOG(AU12))/LOG(2)))) -> 0
A13: 12 | B13: 892 | C13: 13 | D13: 896 | E13: 24 | F13: 911 | K13: 0 | L13: 112 | N13: 221 | O13: 0 | P13: 0 | Q13: 0 | T13: 221 | U13: =COUNTIF(L7:L10,T13) -> 0 | V13: =U13/(W4-U11) -> 0 | W13: =IF(V13=0,0,(V13*((LOG(V13))/LOG(2)))) -> 0 | Y13: 221 | Z13: =COUNTIF(L11:L13,Y13) -> 0 | AA13: =Z13/(AB4-Z11) -> 0 | AB13: =IF(AA13=0,0,(AA13*((LOG(AA13))/LOG(2)))) -> 0 | AD13: 221 | AE13: =COUNTIF(L14:L17,AD13) -> 0 | AF13: =AE13/(AG4-AE11) -> 0 | AG13: =IF(AF13=0,0,(AF13*((LOG(AF13))/LOG(2)))) -> 0 | AI13: 221 | AJ13: =COUNTIF(L18:L20,AI13) -> 0 | AK13: =AJ13/(AL4-AJ11) -> 0 | AL13: =IF(AK13=0,0,(AK13*((LOG(AK13))/LOG(2)))) -> 0 | AN13: 221 | AO13: =COUNTIF(L21:L24,AN13) -> 0 | AP13: =AO13/(AQ4-AO11) -> 0 | AQ13: =IF(AP13=0,0,(AP13*((LOG(AP13))/LOG(2)))) -> 0 | AS13: 221 | AT13: =COUNTIF(L25:L27,AS13) -> 0 | AU13: =AT13/(AV4-AT11) -> 0 | AV13: =IF(AU13=0,0,(AU13*((LOG(AU13))/LOG(2)))) -> 0
A14: 12 | B14: 1008 | C14: 13 | D14: 1023 | E14: 24 | F14: 1034 | K14: 0 | L14: 112 | N14: 222 | O14: 3 | P14: 0.15 | Q14: -0.4105448391 | T14: 222 | U14: =COUNTIF(L7:L10,T14) -> 1 | V14: =U14/(W4-U11) -> 0.25 | W14: =IF(V14=0,0,(V14*((LOG(V14))/LOG(2)))) -> -0.5 | Y14: 222 | Z14: =COUNTIF(L11:L13,Y14) -> 0 | AA14: =Z14/(AB4-Z11) -> 0 | AB14: =IF(AA14=0,0,(AA14*((LOG(AA14))/LOG(2)))) -> 0 | AD14: 222 | AE14: =COUNTIF(L14:L17,AD14) -> 0 | AF14: =AE14/(AG4-AE11) -> 0 | AG14: =IF(AF14=0,0,(AF14*((LOG(AF14))/LOG(2)))) -> 0 | AI14: 222 | AJ14: =COUNTIF(L18:L20,AI14) -> 0 | AK14: =AJ14/(AL4-AJ11) -> 0 | AL14: =IF(AK14=0,0,(AK14*((LOG(AK14))/LOG(2)))) -> 0 | AN14: 222 | AO14: =COUNTIF(L21:L24,AN14) -> 1 | AP14: =AO14/(AQ4-AO11) -> 0.25 | AQ14: =IF(AP14=0,0,(AP14*((LOG(AP14))/LOG(2)))) -> -0.5 | AS14: 222 | AT14: =COUNTIF(L25:L27,AS14) -> 1 | AU14: =AT14/(AV4-AT11) -> 0.5 | AV14: =IF(AU14=0,0,(AU14*((LOG(AU14))/LOG(2)))) -> -0.5
A15: 12 | B15: 1172 | C15: 13 | D15: 1179 | E15: 24 | F15: 1188 | K15: 0 | L15: 112 | P15: =SUM(P7:P14) -> 1 | Q15: =-SUM(Q7:Q14) -> 1.83949107 | V15: =SUM(V7:V14) -> 1 | W15: =-SUM(W7:W14) -> 1.5 | AA15: =SUM(AA7:AA14) -> 1 | AB15: =-SUM(AB7:AB14) -> 0.9182958341 | AF15: =SUM(AF7:AF14) -> 1 | AG15: =-SUM(AG7:AG14) -> 1.5 | AK15: =SUM(AK7:AK14) -> 1 | AL15: =-SUM(AL7:AL14) -> 0.9182958341 | AP15: =SUM(AP7:AP14) -> 1 | AQ15: =-SUM(AQ7:AQ14) -> 0.8112781245 | AU15: =SUM(AU7:AU14) -> 1 | AV15: =-SUM(AV7:AV14) -> 1
A16: 12 | B16: 1284 | C16: 13 | D16: 1290 | E16: 13 | F16: 1295 | K16: 0 | L16: 111 | P16: U= | Q16: =Q15/(LOG(Q4)/LOG(2)) -> 0.425618157 | V16: U1= | W16: =W15/(LOG(W4)/LOG(2)) -> 0.75 | AA16: U2= | AB16: =AB15/(LOG(AB4)/LOG(2)) -> 0.5793801643 | AF16: U3= | AG16: =AG15/(LOG(AG4)/LOG(2)) -> 0.75 | AK16: U4= | AL16: =AL15/(LOG(AL4)/LOG(2)) -> 0.5793801643 | AP16: U5= | AQ16: =AQ15/(LOG(AQ4)/LOG(2)) -> 0.4056390622 | AU16: U6= | AV16: =AV15/(LOG(AV4)/LOG(2)) -> 1
A17: 12 | B17: 1400 | C17: 24 | D17: 1413 | E17: 24 | F17: 1421 | K17: 0 | L17: 122
A18: 12 | B18: 1520 | C18: 13 | D18: 1527 | E18: 13 | F18: 1531 | K18: 0 | L18: 111
A19: 12 | B19: 1656 | C19: 13 | D19: 1666 | E19: 24 | F19: 1680 | K19: 0 | L19: 112 | N19: Total Target Seq
A20: 12 | B20: 1775 | C20: 13 | D20: 1780 | E20: 13 | F20: 1786 | K20: 0 | L20: 111 | N20: =COUNTIF(L7:L27,G3) -> 0 | P20: 4 | Q20: 3 | R20: 4 | S20: 3 | T20: 4 | U20: 3
A21: 21 | B21: 1886 | C21: 22 | D21: 1891 | E21: 24 | F21: 1897 | K21: 0 | L21: 222 | P21: % of reinforcement given in 6 equal intervals based on number of trials
A22: 12 | B22: 2016 | C22: 13 | D22: 2020 | E22: 13 | F22: 2026 | K22: 0 | L22: 111 | P22: %_1 | Q22: %_2 | R22: %_3 | S22: %_4 | T22: %_5 | U22: %_6
A23: 12 | B23: 2166 | C23: 13 | D23: 2171 | E23: 13 | F23: 2178 | K23: 0 | L23: 111 | O23: target sequence | P23: =$G$3 -> 211 | Q23: 211 | R23: 211 | S23: 211 | T23: 211 | U23: 211
A24: 12 | B24: 2321 | C24: 13 | D24: 2326 | E24: 13 | F24: 2332 | K24: 0 | L24: 111 | O24: total reinforcement | P24: =U11 -> 0 | Q24: =Z11 -> 0 | R24: =AE11 -> 0 | S24: =AJ11 -> 0 | T24: =AO11 -> 0 | U24: =AT11 -> 0
A25: 12 | B25: 2442 | C25: 13 | D25: 2446 | E25: 13 | F25: 2449 | K25: 0 | L25: 111 | O25: % target
A26: 21 | B26: 2572 | C26: 22 | D26: 2578 | E26: 24 | F26: 2583 | K26: 0 | L26: 222 | O26: CCRF
A27: 12 | B27: 6595 | C27: 13 | D27: 6939 | L27: 11 | O27: % CCRf
O28: average response rate | P28: =F10/P20 -> 115.75 | Q28: =(F13-F10)/Q20 -> 149.3333333 | R28: =(F17-F13)/R20 -> 127.5 | S28: =(F20-F17)/S20 -> 121.6666667 | T28: =(F24-F20)/T20 -> 136.5 | U28: =(F27-F24)/U20 -> -777.3333333

Sheet !L908A3I.sha
A1: Report for:!L908A3I.sha
A2: Date: | B2: <date>
A3: Hen: | B3: <hen> | F3: Correct Sequence | G3: =Start!J2 -> 211 | P3: Total Sequences in Data | Q3: =4994-COUNTBLANK(L7:L5000) -> 1 | V3: Total Sequences in Block Data | W3: =COUNTA(L6:L7) -> 2 | AA3: Total Sequences in Block Data | AB3: =COUNTA(L6:L7) -> 2 | AF3: Total Sequences in Block Data | AG3: =COUNTA(L7:L7) -> 1 | AK3: Total Sequences in Block Data | AL3: =COUNTA(L7:L8) -> 1 | AP3: Total Sequences in Block Data | AQ3: =COUNTA(L7:L8) -> 1 | AU3: Total Sequences in Block Data | AV3: =COUNTA(L7:L8) -> 1
P4: Total Sequences in Summary | Q4: =SUM(O7:O14) -> 0 | V4: Total Sequences in Block Summary | W4: =SUM(U7:U14) -> 0 | AA4: Total Sequences in Block Summary | AB4: =SUM(Z7:Z14) -> 0 | AF4: Total Sequences in Block Summary | AG4: =SUM(AE7:AE14) -> 0 | AK4: Total Sequences in Block Summary | AL4: =SUM(AJ7:AJ14) -> 0 | AP4: Total Sequences in Block Summary | AQ4: =SUM(AO7:AO14) -> 0 | AU4: Total Sequences in Block Summary | AV4: =SUM(AT7:AT14) -> 0
T5: Block 1 | Y5: Block 2 | AD5: Block 3 | AI5: Block 4 | AN5: Block 5 | AS5: Block 6
A6: Sequence Component 1 | B6: Time 1 | C6: Sequence Component 2 | D6: Time 2 | E6: Sequence Component 3 | F6: Time 3 | G6: Sequence Component 4 | H6: Time 4 | I6: Sequence Component 5 | J6: Time 5 | K6: Correct? 0=No 1=Yes | L6: Sequence | N6: Frequency | P6: Relative Frequency | Q6: Variability | T6: Frequency | V6: Relative Frequency | W6: Variability | Y6: Frequency | AA6: Relative Frequency | AB6: Variability | AD6: Frequency | AF6: Relative Frequency | AG6: Variability | AI6: Frequency | AK6: Relative Frequency | AL6: Variability | AN6: Frequency | AP6: Relative Frequency | AQ6: Variability | AS6: Frequency | AU6: Relative Frequency | AV6: Variability
A7: 12 | B7: 18201 | C7: 13 | D7: 20871 | L7: 11 | N7: 111 | O7: =COUNTIF($L$7:$L$500,N7) -> 0 | P7: =O7/$Q$4 ->  | Q7: =IF(P7=0,0,(P7*((LOG(P7))/LOG(2)))) ->  | T7: =N7 -> 111 | U7: =COUNTIF(L6:L7,T7) -> 0 | V7: =U7/(W4-U11) ->  | W7: =IF(V7=0,0,(V7*((LOG(V7))/LOG(2)))) ->  | Y7: =N7 -> 111 | Z7: =COUNTIF(L6:L7,Y7) -> 0 | AA7: =Z7/(AB4-Z11) ->  | AB7: =IF(AA7=0,0,(AA7*((LOG(AA7))/LOG(2)))) ->  | AD7: =N7 -> 111 | AE7: =COUNTIF(L7:L7,AD7) -> 0 | AF7: =AE7/(AG4-AE11) ->  | AG7: =IF(AF7=0,0,(AF7*((LOG(AF7))/LOG(2)))) ->  | AI7: =N7 -> 111 | AJ7: =COUNTIF(L7:L8,AI7) -> 0 | AK7: =AJ7/(AL4-AJ11) ->  | AL7: =IF(AK7=0,0,(AK7*((LOG(AK7))/LOG(2)))) ->  | AN7: =N7 -> 111 | AO7: =COUNTIF(L7:L8,AN7) -> 0 | AP7: =AO7/(AQ4-AO11) ->  | AQ7: =IF(AP7=0,0,(AP7*((LOG(AP7))/LOG(2)))) ->  | AS7: =N7 -> 111 | AT7: =COUNTIF(L7:L8,AS7) -> 0 | AU7: =AT7/(AV4-AT11) ->  | AV7: =IF(AU7=0,0,(AU7*((LOG(AU7))/LOG(2)))) -> 
N8: 112 | O8: 0 | T8: 112 | U8: =COUNTIF(L6:L7,T8) -> 0 | V8: =U8/(W4-U11) ->  | W8: =IF(V8=0,0,(V8*((LOG(V8))/LOG(2)))) ->  | Y8: 112 | Z8: =COUNTIF(L6:L7,Y8) -> 0 | AA8: =Z8/(AB4-Z11) ->  | AB8: =IF(AA8=0,0,(AA8*((LOG(AA8))/LOG(2)))) ->  | AD8: 112 | AE8: =COUNTIF(L7:L7,AD8) -> 0 | AF8: =AE8/(AG4-AE11) ->  | AG8: =IF(AF8=0,0,(AF8*((LOG(AF8))/LOG(2)))) ->  | AI8: 112 | AJ8: =COUNTIF(L7:L8,AI8) -> 0 | AK8: =AJ8/(AL4-AJ11) ->  | AL8: =IF(AK8=0,0,(AK8*((LOG(AK8))/LOG(2)))) ->  | AN8: 112 | AO8: =COUNTIF(L7:L8,AN8) -> 0 | AP8: =AO8/(AQ4-AO11) ->  | AQ8: =IF(AP8=0,0,(AP8*((LOG(AP8))/LOG(2)))) ->  | AS8: 112 | AT8: =COUNTIF(L7:L8,AS8) -> 0 | AU8: =AT8/(AV4-AT11) ->  | AV8: =IF(AU8=0,0,(AU8*((LOG(AU8))/LOG(2)))) -> 
N9: 121 | O9: 0 | T9: 121 | U9: =COUNTIF(L6:L7,T9) -> 0 | V9: =U9/(W4-U11) ->  | W9: =IF(V9=0,0,(V9*((LOG(V9))/LOG(2)))) ->  | Y9: 121 | Z9: =COUNTIF(L6:L7,Y9) -> 0 | AA9: =Z9/(AB4-Z11) ->  | AB9: =IF(AA9=0,0,(AA9*((LOG(AA9))/LOG(2)))) ->  | AD9: 121 | AE9: =COUNTIF(L7:L7,AD9) -> 0 | AF9: =AE9/(AG4-AE11) ->  | AG9: =IF(AF9=0,0,(AF9*((LOG(AF9))/LOG(2)))) ->  | AI9: 121 | AJ9: =COUNTIF(L7:L8,AI9) -> 0 | AK9: =AJ9/(AL4-AJ11) ->  | AL9: =IF(AK9=0,0,(AK9*((LOG(AK9))/LOG(2)))) ->  | AN9: 121 | AO9: =COUNTIF(L7:L8,AN9) -> 0 | AP9: =AO9/(AQ4-AO11) ->  | AQ9: =IF(AP9=0,0,(AP9*((LOG(AP9))/LOG(2)))) ->  | AS9: 121 | AT9: =COUNTIF(L7:L8,AS9) -> 0 | AU9: =AT9/(AV4-AT11) ->  | AV9: =IF(AU9=0,0,(AU9*((LOG(AU9))/LOG(2)))) -> 
N10: 122 | O10: 0 | T10: 122 | U10: =COUNTIF(L6:L7,T10) -> 0 | V10: =U10/(W4-U11) ->  | W10: =IF(V10=0,0,(V10*((LOG(V10))/LOG(2)))) ->  | Y10: 122 | Z10: =COUNTIF(L6:L7,Y10) -> 0 | AA10: =Z10/(AB4-Z11) ->  | AB10: =IF(AA10=0,0,(AA10*((LOG(AA10))/LOG(2)))) ->  | AD10: 122 | AE10: =COUNTIF(L7:L7,AD10) -> 0 | AF10: =AE10/(AG4-AE11) ->  | AG10: =IF(AF10=0,0,(AF10*((LOG(AF10))/LOG(2)))) ->  | AI10: 122 | AJ10: =COUNTIF(L7:L8,AI10) -> 0 | AK10: =AJ10/(AL4-AJ11) ->  | AL10: =IF(AK10=0,0,(AK10*((LOG(AK10))/LOG(2)))) ->  | AN10: 122 | AO10: =COUNTIF(L7:L8,AN10) -> 0 | AP10: =AO10/(AQ4-AO11) ->  | AQ10: =IF(AP10=0,0,(AP10*((LOG(AP10))/LOG(2)))) ->  | AS10: 122 | AT10: =COUNTIF(L7:L8,AS10) -> 0 | AU10: =AT10/(AV4-AT11) ->  | AV10: =IF(AU10=0,0,(AU10*((LOG(AU10))/LOG(2)))) -> 
N11: 211 | O11: 0 | T11: 211 | U11: =COUNTIF(L6:L7,T11) -> 0 | Y11: 211 | Z11: =COUNTIF(L6:L7,Y11) -> 0 | AD11: 211 | AE11: =COUNTIF(L7:L7,AD11) -> 0 | AI11: 211 | AJ11: =COUNTIF(L7:L8,AI11) -> 0 | AN11: 211 | AO11: =COUNTIF(L7:L8,AN11) -> 0 | AS11: 211 | AT11: =COUNTIF(L7:L8,AS11) -> 0
N12: 212 | O12: 0 | T12: 212 | U12: =COUNTIF(L6:L7,T12) -> 0 | V12: =U12/(W4-U11) ->  | W12: =IF(V12=0,0,(V12*((LOG(V12))/LOG(2)))) ->  | Y12: 212 | Z12: =COUNTIF(L6:L7,Y12) -> 0 | AA12: =Z12/(AB4-Z11) ->  | AB12: =IF(AA12=0,0,(AA12*((LOG(AA12))/LOG(2)))) ->  | AD12: 212 | AE12: =COUNTIF(L7:L7,AD12) -> 0 | AF12: =AE12/(AG4-AE11) ->  | AG12: =IF(AF12=0,0,(AF12*((LOG(AF12))/LOG(2)))) ->  | AI12: 212 | AJ12: =COUNTIF(L7:L8,AI12) -> 0 | AK12: =AJ12/(AL4-AJ11) ->  | AL12: =IF(AK12=0,0,(AK12*((LOG(AK12))/LOG(2)))) ->  | AN12: 212 | AO12: =COUNTIF(L7:L8,AN12) -> 0 | AP12: =AO12/(AQ4-AO11) ->  | AQ12: =IF(AP12=0,0,(AP12*((LOG(AP12))/LOG(2)))) ->  | AS12: 212 | AT12: =COUNTIF(L7:L8,AS12) -> 0 | AU12: =AT12/(AV4-AT11) ->  | AV12: =IF(AU12=0,0,(AU12*((LOG(AU12))/LOG(2)))) -> 
N13: 221 | O13: 0 | T13: 221 | U13: =COUNTIF(L6:L7,T13) -> 0 | V13: =U13/(W4-U11) ->  | W13: =IF(V13=0,0,(V13*((LOG(V13))/LOG(2)))) ->  | Y13: 221 | Z13: =COUNTIF(L6:L7,Y13) -> 0 | AA13: =Z13/(AB4-Z11) ->  | AB13: =IF(AA13=0,0,(AA13*((LOG(AA13))/LOG(2)))) ->  | AD13: 221 | AE13: =COUNTIF(L7:L7,AD13) -> 0 | AF13: =AE13/(AG4-AE11) ->  | AG13: =IF(AF13=0,0,(AF13*((LOG(AF13))/LOG(2)))) ->  | AI13: 221 | AJ13: =COUNTIF(L7:L8,AI13) -> 0 | AK13: =AJ13/(AL4-AJ11) ->  | AL13: =IF(AK13=0,0,(AK13*((LOG(AK13))/LOG(2)))) ->  | AN13: 221 | AO13: =COUNTIF(L7:L8,AN13) -> 0 | AP13: =AO13/(AQ4-AO11) ->  | AQ13: =IF(AP13=0,0,(AP13*((LOG(AP13))/LOG(2)))) ->  | AS13: 221 | AT13: =COUNTIF(L7:L8,AS13) -> 0 | AU13: =AT13/(AV4-AT11) ->  | AV13: =IF(AU13=0,0,(AU13*((LOG(AU13))/LOG(2)))) -> 
N14: 222 | O14: 0 | T14: 222 | U14: =COUNTIF(L6:L7,T14) -> 0 | V14: =U14/(W4-U11) ->  | W14: =IF(V14=0,0,(V14*((LOG(V14))/LOG(2)))) ->  | Y14: 222 | Z14: =COUNTIF(L6:L7,Y14) -> 0 | AA14: =Z14/(AB4-Z11) ->  | AB14: =IF(AA14=0,0,(AA14*((LOG(AA14))/LOG(2)))) ->  | AD14: 222 | AE14: =COUNTIF(L7:L7,AD14) -> 0 | AF14: =AE14/(AG4-AE11) ->  | AG14: =IF(AF14=0,0,(AF14*((LOG(AF14))/LOG(2)))) ->  | AI14: 222 | AJ14: =COUNTIF(L7:L8,AI14) -> 0 | AK14: =AJ14/(AL4-AJ11) ->  | AL14: =IF(AK14=0,0,(AK14*((LOG(AK14))/LOG(2)))) ->  | AN14: 222 | AO14: =COUNTIF(L7:L8,AN14) -> 0 | AP14: =AO14/(AQ4-AO11) ->  | AQ14: =IF(AP14=0,0,(AP14*((LOG(AP14))/LOG(2)))) ->  | AS14: 222 | AT14: =COUNTIF(L7:L8,AS14) -> 0 | AU14: =AT14/(AV4-AT11) ->  | AV14: =IF(AU14=0,0,(AU14*((LOG(AU14))/LOG(2)))) -> 
P15: =SUM(P7:P14) ->  | Q15: =-SUM(Q7:Q14) ->  | V15: =SUM(V7:V14) ->  | W15: =-SUM(W7:W14) ->  | AA15: =SUM(AA7:AA14) ->  | AB15: =-SUM(AB7:AB14) ->  | AF15: =SUM(AF7:AF14) ->  | AG15: =-SUM(AG7:AG14) ->  | AK15: =SUM(AK7:AK14) ->  | AL15: =-SUM(AL7:AL14) ->  | AP15: =SUM(AP7:AP14) ->  | AQ15: =-SUM(AQ7:AQ14) ->  | AU15: =SUM(AU7:AU14) ->  | AV15: =-SUM(AV7:AV14) -> 
P16: U= | Q16: =Q15/(LOG(Q4)/LOG(2)) ->  | V16: U1= | W16: =W15/(LOG(W4)/LOG(2)) ->  | AA16: U2= | AB16: =AB15/(LOG(AB4)/LOG(2)) ->  | AF16: U3= | AG16: =AG15/(LOG(AG4)/LOG(2)) ->  | AK16: U4= | AL16: =AL15/(LOG(AL4)/LOG(2)) ->  | AP16: U5= | AQ16: =AQ15/(LOG(AQ4)/LOG(2)) ->  | AU16: U6= | AV16: =AV15/(LOG(AV4)/LOG(2)) -> 
N19: Total Target Seq
N20: =COUNTIF(L7:L7,G3) -> 0 | P20: 0 | Q20: 0 | R20: 1 | S20: 0 | T20: 0 | U20: 0
P21: % of reinforcement given in 6 equal intervals based on number of trials
P22: %_1 | Q22: %_2 | R22: %_3 | S22: %_4 | T22: %_5 | U22: %_6
O23: target sequence | P23: =$G$3 -> 211 | Q23: 211 | R23: 211 | S23: 211 | T23: 211 | U23: 211
O24: total reinforcement | P24: =U11 -> 0 | Q24: =Z11 -> 0 | R24: =AE11 -> 0 | S24: =AJ11 -> 0 | T24: =AO11 -> 0 | U24: =AT11 -> 0
O25: % target
O26: CCRF
O27: % CCRf
O28: average response rate | P28: =F6/P20 ->  | Q28: =(F6-F6)/Q20 ->  | R28: =(F7-F6)/R20 ->  | S28: =(F7-F7)/S20 ->  | T28: =(F7-F7)/T20 ->  | U28: =(F7-F7)/U20 -> 

Sheet !L90995I.sha
A1: Report for:!L90995I.sha
A2: Date: | B2: <date>
A3: Hen: | B3: <hen> | F3: Correct Sequence | G3: =Start!J2 -> 211 | P3: Total Sequences in Data | Q3: =4994-COUNTBLANK(L7:L5000) -> 0 | V3: Total Sequences in Block Data | W3: =COUNTA(L6:L7) -> 1 | AA3: Total Sequences in Block Data | AB3: =COUNTA(L6:L7) -> 1 | AF3: Total Sequences in Block Data | AG3: =COUNTA(L6:L7) -> 1 | AK3: Total Sequences in Block Data | AL3: =COUNTA(L6:L7) -> 1 | AP3: Total Sequences in Block Data | AQ3: =COUNTA(L6:L7) -> 1 | AU3: Total Sequences in Block Data | AV3: =COUNTA(L6:L7) -> 1
P4: Total Sequences in Summary | Q4: =SUM(O7:O14) -> 0 | V4: Total Sequences in Block Summary | W4: =SUM(U7:U14) -> 0 | AA4: Total Sequences in Block Summary | AB4: =SUM(Z7:Z14) -> 0 | AF4: Total Sequences in Block Summary | AG4: =SUM(AE7:AE14) -> 0 | AK4: Total Sequences in Block Summary | AL4: =SUM(AJ7:AJ14) -> 0 | AP4: Total Sequences in Block Summary | AQ4: =SUM(AO7:AO14) -> 0 | AU4: Total Sequences in Block Summary | AV4: =SUM(AT7:AT14) -> 0
T5: Block 1 | Y5: Block 2 | AD5: Block 3 | AI5: Block 4 | AN5: Block 5 | AS5: Block 6
A6: Sequence Component 1 | B6: Time 1 | C6: Sequence Component 2 | D6: Time 2 | E6: Sequence Component 3 | F6: Time 3 | G6: Sequence Component 4 | H6: Time 4 | I6: Sequence Component 5 | J6: Time 5 | K6: Correct? 0=No 1=Yes | L6: Sequence | N6: Frequency | P6: Relative Frequency | Q6: Variability | T6: Frequency | V6: Relative Frequency | W6: Variability | Y6: Frequency | AA6: Relative Frequency | AB6: Variability | AD6: Frequency | AF6: Relative Frequency | AG6: Variability | AI6: Frequency | AK6: Relative Frequency | AL6: Variability | AN6: Frequency | AP6: Relative Frequency | AQ6: Variability | AS6: Frequency | AU6: Relative Frequency | AV6: Variability
N7: 111 | O7: =COUNTIF($L$7:$L$500,N7) -> 0 | P7: =O7/$Q$4 ->  | Q7: =IF(P7=0,0,(P7*((LOG(P7))/LOG(2)))) ->  | T7: =N7 -> 111 | U7: =COUNTIF(L6:L7,T7) -> 0 | V7: =U7/(W4-U11) ->  | W7: =IF(V7=0,0,(V7*((LOG(V7))/LOG(2)))) ->  | Y7: =N7 -> 111 | Z7: =COUNTIF(L6:L7,Y7) -> 0 | AA7: =Z7/(AB4-Z11) ->  | AB7: =IF(AA7=0,0,(AA7*((LOG(AA7))/LOG(2)))) ->  | AD7: =N7 -> 111 | AE7: =COUNTIF(L6:L7,AD7) -> 0 | AF7: =AE7/(AG4-AE11) ->  | AG7: =IF(AF7=0,0,(AF7*((LOG(AF7))/LOG(2)))) ->  | AI7: =N7 -> 111 | AJ7: =COUNTIF(L6:L7,AI7) -> 0 | AK7: =AJ7/(AL4-AJ11) ->  | AL7: =IF(AK7=0,0,(AK7*((LOG(AK7))/LOG(2)))) ->  | AN7: =N7 -> 111 | AO7: =COUNTIF(L6:L7,AN7) -> 0 | AP7: =AO7/(AQ4-AO11) ->  | AQ7: =IF(AP7=0,0,(AP7*((LOG(AP7))/LOG(2)))) ->  | AS7: =N7 -> 111 | AT7: =COUNTIF(L6:L7,AS7) -> 0 | AU7: =AT7/(AV4-AT11) ->  | AV7: =IF(AU7=0,0,(AU7*((LOG(AU7))/LOG(2)))) -> 
N8: 112 | O8: 0 | T8: 112 | U8: =COUNTIF(L6:L7,T8) -> 0 | V8: =U8/(W4-U11) ->  | W8: =IF(V8=0,0,(V8*((LOG(V8))/LOG(2)))) ->  | Y8: 112 | Z8: =COUNTIF(L6:L7,Y8) -> 0 | AA8: =Z8/(AB4-Z11) ->  | AB8: =IF(AA8=0,0,(AA8*((LOG(AA8))/LOG(2)))) ->  | AD8: 112 | AE8: =COUNTIF(L6:L7,AD8) -> 0 | AF8: =AE8/(AG4-AE11) ->  | AG8: =IF(AF8=0,0,(AF8*((LOG(AF8))/LOG(2)))) ->  | AI8: 112 | AJ8: =COUNTIF(L6:L7,AI8) -> 0 | AK8: =AJ8/(AL4-AJ11) ->  | AL8: =IF(AK8=0,0,(AK8*((LOG(AK8))/LOG(2)))) ->  | AN8: 112 | AO8: =COUNTIF(L6:L7,AN8) -> 0 | AP8: =AO8/(AQ4-AO11) ->  | AQ8: =IF(AP8=0,0,(AP8*((LOG(AP8))/LOG(2)))) ->  | AS8: 112 | AT8: =COUNTIF(L6:L7,AS8) -> 0 | AU8: =AT8/(AV4-AT11) ->  | AV8: =IF(AU8=0,0,(AU8*((LOG(AU8))/LOG(2)))) -> 
N9: 121 | O9: 0 | T9: 121 | U9: =COUNTIF(L6:L7,T9) -> 0 | V9: =U9/(W4-U11) ->  | W9: =IF(V9=0,0,(V9*((LOG(V9))/LOG(2)))) ->  | Y9: 121 | Z9: =COUNTIF(L6:L7,Y9) -> 0 | AA9: =Z9/(AB4-Z11) ->  | AB9: =IF(AA9=0,0,(AA9*((LOG(AA9))/LOG(2)))) ->  | AD9: 121 | AE9: =COUNTIF(L6:L7,AD9) -> 0 | AF9: =AE9/(AG4-AE11) ->  | AG9: =IF(AF9=0,0,(AF9*((LOG(AF9))/LOG(2)))) ->  | AI9: 121 | AJ9: =COUNTIF(L6:L7,AI9) -> 0 | AK9: =AJ9/(AL4-AJ11) ->  | AL9: =IF(AK9=0,0,(AK9*((LOG(AK9))/LOG(2)))) ->  | AN9: 121 | AO9: =COUNTIF(L6:L7,AN9) -> 0 | AP9: =AO9/(AQ4-AO11) ->  | AQ9: =IF(AP9=0,0,(AP9*((LOG(AP9))/LOG(2)))) ->  | AS9: 121 | AT9: =COUNTIF(L6:L7,AS9) -> 0 | AU9: =AT9/(AV4-AT11) ->  | AV9: =IF(AU9=0,0,(AU9*((LOG(AU9))/LOG(2)))) -> 
N10: 122 | O10: 0 | T10: 122 | U10: =COUNTIF(L6:L7,T10) -> 0 | V10: =U10/(W4-U11) ->  | W10: =IF(V10=0,0,(V10*((LOG(V10))/LOG(2)))) ->  | Y10: 122 | Z10: =COUNTIF(L6:L7,Y10) -> 0 | AA10: =Z10/(AB4-Z11) ->  | AB10: =IF(AA10=0,0,(AA10*((LOG(AA10))/LOG(2)))) ->  | AD10: 122 | AE10: =COUNTIF(L6:L7,AD10) -> 0 | AF10: =AE10/(AG4-AE11) ->  | AG10: =IF(AF10=0,0,(AF10*((LOG(AF10))/LOG(2)))) ->  | AI10: 122 | AJ10: =COUNTIF(L6:L7,AI10) -> 0 | AK10: =AJ10/(AL4-AJ11) ->  | AL10: =IF(AK10=0,0,(AK10*((LOG(AK10))/LOG(2)))) ->  | AN10: 122 | AO10: =COUNTIF(L6:L7,AN10) -> 0 | AP10: =AO10/(AQ4-AO11) ->  | AQ10: =IF(AP10=0,0,(AP10*((LOG(AP10))/LOG(2)))) ->  | AS10: 122 | AT10: =COUNTIF(L6:L7,AS10) -> 0 | AU10: =AT10/(AV4-AT11) ->  | AV10: =IF(AU10=0,0,(AU10*((LOG(AU10))/LOG(2)))) -> 
N11: 211 | O11: 0 | T11: 211 | U11: =COUNTIF(L6:L7,T11) -> 0 | Y11: 211 | Z11: =COUNTIF(L6:L7,Y11) -> 0 | AD11: 211 | AE11: =COUNTIF(L6:L7,AD11) -> 0 | AI11: 211 | AJ11: =COUNTIF(L6:L7,AI11) -> 0 | AN11: 211 | AO11: =COUNTIF(L6:L7,AN11) -> 0 | AS11: 211 | AT11: =COUNTIF(L6:L7,AS11) -> 0
N12: 212 | O12: 0 | T12: 212 | U12: =COUNTIF(L6:L7,T12) -> 0 | V12: =U12/(W4-U11) ->  | W12: =IF(V12=0,0,(V12*((LOG(V12))/LOG(2)))) ->  | Y12: 212 | Z12: =COUNTIF(L6:L7,Y12) -> 0 | AA12: =Z12/(AB4-Z11) ->  | AB12: =IF(AA12=0,0,(AA12*((LOG(AA12))/LOG(2)))) ->  | AD12: 212 | AE12: =COUNTIF(L6:L7,AD12) -> 0 | AF12: =AE12/(AG4-AE11) ->  | AG12: =IF(AF12=0,0,(AF12*((LOG(AF12))/LOG(2)))) ->  | AI12: 212 | AJ12: =COUNTIF(L6:L7,AI12) -> 0 | AK12: =AJ12/(AL4-AJ11) ->  | AL12: =IF(AK12=0,0,(AK12*((LOG(AK12))/LOG(2)))) ->  | AN12: 212 | AO12: =COUNTIF(L6:L7,AN12) -> 0 | AP12: =AO12/(AQ4-AO11) ->  | AQ12: =IF(AP12=0,0,(AP12*((LOG(AP12))/LOG(2)))) ->  | AS12: 212 | AT12: =COUNTIF(L6:L7,AS12) -> 0 | AU12: =AT12/(AV4-AT11) ->  | AV12: =IF(AU12=0,0,(AU12*((LOG(AU12))/LOG(2)))) -> 
N13: 221 | O13: 0 | T13: 221 | U13: =COUNTIF(L6:L7,T13) -> 0 | V13: =U13/(W4-U11) ->  | W13: =IF(V13=0,0,(V13*((LOG(V13))/LOG(2)))) ->  | Y13: 221 | Z13: =COUNTIF(L6:L7,Y13) -> 0 | AA13: =Z13/(AB4-Z11) ->  | AB13: =IF(AA13=0,0,(AA13*((LOG(AA13))/LOG(2)))) ->  | AD13: 221 | AE13: =COUNTIF(L6:L7,AD13) -> 0 | AF13: =AE13/(AG4-AE11) ->  | AG13: =IF(AF13=0,0,(AF13*((LOG(AF13))/LOG(2)))) ->  | AI13: 221 | AJ13: =COUNTIF(L6:L7,AI13) -> 0 | AK13: =AJ13/(AL4-AJ11) ->  | AL13: =IF(AK13=0,0,(AK13*((LOG(AK13))/LOG(2)))) ->  | AN13: 221 | AO13: =COUNTIF(L6:L7,AN13) -> 0 | AP13: =AO13/(AQ4-AO11) ->  | AQ13: =IF(AP13=0,0,(AP13*((LOG(AP13))/LOG(2)))) ->  | AS13: 221 | AT13: =COUNTIF(L6:L7,AS13) -> 0 | AU13: =AT13/(AV4-AT11) ->  | AV13: =IF(AU13=0,0,(AU13*((LOG(AU13))/LOG(2)))) -> 
N14: 222 | O14: 0 | T14: 222 | U14: =COUNTIF(L6:L7,T14) -> 0 | V14: =U14/(W4-U11) ->  | W14: =IF(V14=0,0,(V14*((LOG(V14))/LOG(2)))) ->  | Y14: 222 | Z14: =COUNTIF(L6:L7,Y14) -> 0 | AA14: =Z14/(AB4-Z11) ->  | AB14: =IF(AA14=0,0,(AA14*((LOG(AA14))/LOG(2)))) ->  | AD14: 222 | AE14: =COUNTIF(L6:L7,AD14) -> 0 | AF14: =AE14/(AG4-AE11) ->  | AG14: =IF(AF14=0,0,(AF14*((LOG(AF14))/LOG(2)))) ->  | AI14: 222 | AJ14: =COUNTIF(L6:L7,AI14) -> 0 | AK14: =AJ14/(AL4-AJ11) ->  | AL14: =IF(AK14=0,0,(AK14*((LOG(AK14))/LOG(2)))) ->  | AN14: 222 | AO14: =COUNTIF(L6:L7,AN14) -> 0 | AP14: =AO14/(AQ4-AO11) ->  | AQ14: =IF(AP14=0,0,(AP14*((LOG(AP14))/LOG(2)))) ->  | AS14: 222 | AT14: =COUNTIF(L6:L7,AS14) -> 0 | AU14: =AT14/(AV4-AT11) ->  | AV14: =IF(AU14=0,0,(AU14*((LOG(AU14))/LOG(2)))) -> 
P15: =SUM(P7:P14) ->  | Q15: =-SUM(Q7:Q14) ->  | V15: =SUM(V7:V14) ->  | W15: =-SUM(W7:W14) ->  | AA15: =SUM(AA7:AA14) ->  | AB15: =-SUM(AB7:AB14) ->  | AF15: =SUM(AF7:AF14) ->  | AG15: =-SUM(AG7:AG14) ->  | AK15: =SUM(AK7:AK14) ->  | AL15: =-SUM(AL7:AL14) ->  | AP15: =SUM(AP7:AP14) ->  | AQ15: =-SUM(AQ7:AQ14) ->  | AU15: =SUM(AU7:AU14) ->  | AV15: =-SUM(AV7:AV14) -> 
P16: U= | Q16: =Q15/(LOG(Q4)/LOG(2)) ->  | V16: U1= | W16: =W15/(LOG(W4)/LOG(2)) ->  | AA16: U2= | AB16: =AB15/(LOG(AB4)/LOG(2)) ->  | AF16: U3= | AG16: =AG15/(LOG(AG4)/LOG(2)) ->  | AK16: U4= | AL16: =AL15/(LOG(AL4)/LOG(2)) ->  | AP16: U5= | AQ16: =AQ15/(LOG(AQ4)/LOG(2)) ->  | AU16: U6= | AV16: =AV15/(LOG(AV4)/LOG(2)) -> 
N19: Total Target Seq
N20: =COUNTIF(L6:L7,G3) -> 0 | P20: 0 | Q20: 0 | R20: 0 | S20: 0 | T20: 0 | U20: 0
P21: % of reinforcement given in 6 equal intervals based on number of trials
P22: %_1 | Q22: %_2 | R22: %_3 | S22: %_4 | T22: %_5 | U22: %_6
O23: target sequence | P23: =$G$3 -> 211 | Q23: 211 | R23: 211 | S23: 211 | T23: 211 | U23: 211
O24: total reinforcement | P24: =U11 -> 0 | Q24: =Z11 -> 0 | R24: =AE11 -> 0 | S24: =AJ11 -> 0 | T24: =AO11 -> 0 | U24: =AT11 -> 0
O25: % target
O26: CCRF
O27: % CCRf
O28: average response rate | P28: =F6/P20 ->  | Q28: =(F6-F6)/Q20 ->  | R28: =(F6-F6)/R20 ->  | S28: =(F6-F6)/S20 ->  | T28: =(F6-F6)/T20 ->  | U28: =(F6-F6)/U20 -> 

Sheet !L91092I.sha
A1: Report for:!L91092I.sha
A2: Date: | B2: <date>
A3: Hen: | B3: <hen> | F3: Correct Sequence | G3: =Start!J2 -> 211 | P3: Total Sequences in Data | Q3: =4994-COUNTBLANK(L7:L5000) -> 1 | V3: Total Sequences in Block Data | W3: =COUNTA(L6:L7) -> 2 | AA3: Total Sequences in Block Data | AB3: =COUNTA(L6:L7) -> 2 | AF3: Total Sequences in Block Data | AG3: =COUNTA(L7:L7) -> 1 | AK3: Total Sequences in Block Data | AL3: =COUNTA(L7:L8) -> 1 | AP3: Total Sequences in Block Data | AQ3: =COUNTA(L7:L8) -> 1 | AU3: Total Sequences in Block Data | AV3: =COUNTA(L7:L8) -> 1
P4: Total Sequences in Summary | Q4: =SUM(O7:O14) -> 0 | V4: Total Sequences in Block Summary | W4: =SUM(U7:U14) -> 0 | AA4: Total Sequences in Block Summary | AB4: =SUM(Z7:Z14) -> 0 | AF4: Total Sequences in Block Summary | AG4: =SUM(AE7:AE14) -> 0 | AK4: Total Sequences in Block Summary | AL4: =SUM(AJ7:AJ14) -> 0 | AP4: Total Sequences in Block Summary | AQ4: =SUM(AO7:AO14) -> 0 | AU4: Total Sequences in Block Summary | AV4: =SUM(AT7:AT14) -> 0
T5: Block 1 | Y5: Block 2 | AD5: Block 3 | AI5: Block 4 | AN5: Block 5 | AS5: Block 6
A6: Sequence Component 1 | B6: Time 1 | C6: Sequence Component 2 | D6: Time 2 | E6: Sequence Component 3 | F6: Time 3 | G6: Sequence Component 4 | H6: Time 4 | I6: Sequence Component 5 | J6: Time 5 | K6: Correct? 0=No 1=Yes | L6: Sequence | N6: Frequency | P6: Relative Frequency | Q6: Variability | T6: Frequency | V6: Relative Frequency | W6: Variability | Y6: Frequency | AA6: Relative Frequency | AB6: Variability | AD6: Frequency | AF6: Relative Frequency | AG6: Variability | AI6: Frequency | AK6: Relative Frequency | AL6: Variability | AN6: Frequency | AP6: Relative Frequency | AQ6: Variability | AS6: Frequency | AU6: Relative Frequency | AV6: Variability
A7: 12 | B7: 19212 | L7: 1 | N7: 111 | O7: =COUNTIF($L$7:$L$500,N7) -> 0 | P7: =O7/$Q$4 ->  | Q7: =IF(P7=0,0,(P7*((LOG(P7))/LOG(2)))) ->  | T7: =N7 -> 111 | U7: =COUNTIF(L6:L7,T7) -> 0 | V7: =U7/(W4-U11) ->  | W7: =IF(V7=0,0,(V7*((LOG(V7))/LOG(2)))) ->  | Y7: =N7 -> 111 | Z7: =COUNTIF(L6:L7,Y7) -> 0 | AA7: =Z7/(AB4-Z11) ->  | AB7: =IF(AA7=0,0,(AA7*((LOG(AA7))/LOG(2)))) ->  | AD7: =N7 -> 111 | AE7: =COUNTIF(L7:L7,AD7) -> 0 | AF7: =AE7/(AG4-AE11) ->  | AG7: =IF(AF7=0,0,(AF7*((LOG(AF7))/LOG(2)))) ->  | AI7: =N7 -> 111 | AJ7: =COUNTIF(L7:L8,AI7) -> 0 | AK7: =AJ7/(AL4-AJ11) ->  | AL7: =IF(AK7=0,0,(AK7*((LOG(AK7))/LOG(2)))) ->  | AN7: =N7 -> 111 | AO7: =COUNTIF(L7:L8,AN7) -> 0 | AP7: =AO7/(AQ4-AO11) ->  | AQ7: =IF(AP7=0,0,(AP7*((LOG(AP7))/LOG(2)))) ->  | AS7: =N7 -> 111 | AT7: =COUNTIF(L7:L8,AS7) -> 0 | AU7: =AT7/(AV4-AT11) ->  | AV7: =IF(AU7=0,0,(AU7*((LOG(AU7))/LOG(2)))) -> 
N8: 112 | O8: 0 | T8: 112 | U8: =COUNTIF(L6:L7,T8) -> 0 | V8: =U8/(W4-U11) ->  | W8: =IF(V8=0,0,(V8*((LOG(V8))/LOG(2)))) ->  | Y8: 112 | Z8: =COUNTIF(L6:L7,Y8) -> 0 | AA8: =Z8/(AB4-Z11) ->  | AB8: =IF(AA8=0,0,(AA8*((LOG(AA8))/LOG(2)))) ->  | AD8: 112 | AE8: =COUNTIF(L7:L7,AD8) -> 0 | AF8: =AE8/(AG4-AE11) ->  | AG8: =IF(AF8=0,0,(AF8*((LOG(AF8))/LOG(2)))) ->  | AI8: 112 | AJ8: =COUNTIF(L7:L8,AI8) -> 0 | AK8: =AJ8/(AL4-AJ11) ->  | AL8: =IF(AK8=0,0,(AK8*((LOG(AK8))/LOG(2)))) ->  | AN8: 112 | AO8: =COUNTIF(L7:L8,AN8) -> 0 | AP8: =AO8/(AQ4-AO11) ->  | AQ8: =IF(AP8=0,0,(AP8*((LOG(AP8))/LOG(2)))) ->  | AS8: 112 | AT8: =COUNTIF(L7:L8,AS8) -> 0 | AU8: =AT8/(AV4-AT11) ->  | AV8: =IF(AU8=0,0,(AU8*((LOG(AU8))/LOG(2)))) -> 
N9: 121 | O9: 0 | T9: 121 | U9: =COUNTIF(L6:L7,T9) -> 0 | V9: =U9/(W4-U11) ->  | W9: =IF(V9=0,0,(V9*((LOG(V9))/LOG(2)))) ->  | Y9: 121 | Z9: =COUNTIF(L6:L7,Y9) -> 0 | AA9: =Z9/(AB4-Z11) ->  | AB9: =IF(AA9=0,0,(AA9*((LOG(AA9))/LOG(2)))) ->  | AD9: 121 | AE9: =COUNTIF(L7:L7,AD9) -> 0 | AF9: =AE9/(AG4-AE11) ->  | AG9: =IF(AF9=0,0,(AF9*((LOG(AF9))/LOG(2)))) ->  | AI9: 121 | AJ9: =COUNTIF(L7:L8,AI9) -> 0 | AK9: =AJ9/(AL4-AJ11) ->  | AL9: =IF(AK9=0,0,(AK9*((LOG(AK9))/LOG(2)))) ->  | AN9: 121 | AO9: =COUNTIF(L7:L8,AN9) -> 0 | AP9: =AO9/(AQ4-AO11) ->  | AQ9: =IF(AP9=0,0,(AP9*((LOG(AP9))/LOG(2)))) ->  | AS9: 121 | AT9: =COUNTIF(L7:L8,AS9) -> 0 | AU9: =AT9/(AV4-AT11) ->  | AV9: =IF(AU9=0,0,(AU9*((LOG(AU9))/LOG(2)))) -> 
N10: 122 | O10: 0 | T10: 122 | U10: =COUNTIF(L6:L7,T10) -> 0 | V10: =U10/(W4-U11) ->  | W10: =IF(V10=0,0,(V10*((LOG(V10))/LOG(2)))) ->  | Y10: 122 | Z10: =COUNTIF(L6:L7,Y10) -> 0 | AA10: =Z10/(AB4-Z11) ->  | AB10: =IF(AA10=0,0,(AA10*((LOG(AA10))/LOG(2)))) ->  | AD10: 122 | AE10: =COUNTIF(L7:L7,AD10) -> 0 | AF10: =AE10/(AG4-AE11) ->  | AG10: =IF(AF10=0,0,(AF10*((LOG(AF10))/LOG(2)))) ->  | AI10: 122 | AJ10: =COUNTIF(L7:L8,AI10) -> 0 | AK10: =AJ10/(AL4-AJ11) ->  | AL10: =IF(AK10=0,0,(AK10*((LOG(AK10))/LOG(2)))) ->  | AN10: 122 | AO10: =COUNTIF(L7:L8,AN10) -> 0 | AP10: =AO10/(AQ4-AO11) ->  | AQ10: =IF(AP10=0,0,(AP10*((LOG(AP10))/LOG(2)))) ->  | AS10: 122 | AT10: =COUNTIF(L7:L8,AS10) -> 0 | AU10: =AT10/(AV4-AT11) ->  | AV10: =IF(AU10=0,0,(AU10*((LOG(AU10))/LOG(2)))) -> 
N11: 211 | O11: 0 | T11: 211 | U11: =COUNTIF(L6:L7,T11) -> 0 | Y11: 211 | Z11: =COUNTIF(L6:L7,Y11) -> 0 | AD11: 211 | AE11: =COUNTIF(L7:L7,AD11) -> 0 | AI11: 211 | AJ11: =COUNTIF(L7:L8,AI11) -> 0 | AN11: 211 | AO11: =COUNTIF(L7:L8,AN11) -> 0 | AS11: 211 | AT11: =COUNTIF(L7:L8,AS11) -> 0
N12: 212 | O12: 0 | T12: 212 | U12: =COUNTIF(L6:L7,T12) -> 0 | V12: =U12/(W4-U11) ->  | W12: =IF(V12=0,0,(V12*((LOG(V12))/LOG(2)))) ->  | Y12: 212 | Z12: =COUNTIF(L6:L7,Y12) -> 0 | AA12: =Z12/(AB4-Z11) ->  | AB12: =IF(AA12=0,0,(AA12*((LOG(AA12))/LOG(2)))) ->  | AD12: 212 | AE12: =COUNTIF(L7:L7,AD12) -> 0 | AF12: =AE12/(AG4-AE11) ->  | AG12: =IF(AF12=0,0,(AF12*((LOG(AF12))/LOG(2)))) ->  | AI12: 212 | AJ12: =COUNTIF(L7:L8,AI12) -> 0 | AK12: =AJ12/(AL4-AJ11) ->  | AL12: =IF(AK12=0,0,(AK12*((LOG(AK12))/LOG(2)))) ->  | AN12: 212 | AO12: =COUNTIF(L7:L8,AN12) -> 0 | AP12: =AO12/(AQ4-AO11) ->  | AQ12: =IF(AP12=0,0,(AP12*((LOG(AP12))/LOG(2)))) ->  | AS12: 212 | AT12: =COUNTIF(L7:L8,AS12) -> 0 | AU12: =AT12/(AV4-AT11) ->  | AV12: =IF(AU12=0,0,(AU12*((LOG(AU12))/LOG(2)))) -> 
N13: 221 | O13: 0 | T13: 221 | U13: =COUNTIF(L6:L7,T13) -> 0 | V13: =U13/(W4-U11) ->  | W13: =IF(V13=0,0,(V13*((LOG(V13))/LOG(2)))) ->  | Y13: 221 | Z13: =COUNTIF(L6:L7,Y13) -> 0 | AA13: =Z13/(AB4-Z11) ->  | AB13: =IF(AA13=0,0,(AA13*((LOG(AA13))/LOG(2)))) ->  | AD13: 221 | AE13: =COUNTIF(L7:L7,AD13) -> 0 | AF13: =AE13/(AG4-AE11) ->  | AG13: =IF(AF13=0,0,(AF13*((LOG(AF13))/LOG(2)))) ->  | AI13: 221 | AJ13: =COUNTIF(L7:L8,AI13) -> 0 | AK13: =AJ13/(AL4-AJ11) ->  | AL13: =IF(AK13=0,0,(AK13*((LOG(AK13))/LOG(2)))) ->  | AN13: 221 | AO13: =COUNTIF(L7:L8,AN13) -> 0 | AP13: =AO13/(AQ4-AO11) ->  | AQ13: =IF(AP13=0,0,(AP13*((LOG(AP13))/LOG(2)))) ->  | AS13: 221 | AT13: =COUNTIF(L7:L8,AS13) -> 0 | AU13: =AT13/(AV4-AT11) ->  | AV13: =IF(AU13=0,0,(AU13*((LOG(AU13))/LOG(2)))) -> 
N14: 222 | O14: 0 | T14: 222 | U14: =COUNTIF(L6:L7,T14) -> 0 | V14: =U14/(W4-U11) ->  | W14: =IF(V14=0,0,(V14*((LOG(V14))/LOG(2)))) ->  | Y14: 222 | Z14: =COUNTIF(L6:L7,Y14) -> 0 | AA14: =Z14/(AB4-Z11) ->  | AB14: =IF(AA14=0,0,(AA14*((LOG(AA14))/LOG(2)))) ->  | AD14: 222 | AE14: =COUNTIF(L7:L7,AD14) -> 0 | AF14: =AE14/(AG4-AE11) ->  | AG14: =IF(AF14=0,0,(AF14*((LOG(AF14))/LOG(2)))) ->  | AI14: 222 | AJ14: =COUNTIF(L7:L8,AI14) -> 0 | AK14: =AJ14/(AL4-AJ11) ->  | AL14: =IF(AK14=0,0,(AK14*((LOG(AK14))/LOG(2)))) ->  | AN14: 222 | AO14: =COUNTIF(L7:L8,AN14) -> 0 | AP14: =AO14/(AQ4-AO11) ->  | AQ14: =IF(AP14=0,0,(AP14*((LOG(AP14))/LOG(2)))) ->  | AS14: 222 | AT14: =COUNTIF(L7:L8,AS14) -> 0 | AU14: =AT14/(AV4-AT11) ->  | AV14: =IF(AU14=0,0,(AU14*((LOG(AU14))/LOG(2)))) -> 
P15: =SUM(P7:P14) ->  | Q15: =-SUM(Q7:Q14) ->  | V15: =SUM(V7:V14) ->  | W15: =-SUM(W7:W14) ->  | AA15: =SUM(AA7:AA14) ->  | AB15: =-SUM(AB7:AB14) ->  | AF15: =SUM(AF7:AF14) ->  | AG15: =-SUM(AG7:AG14) ->  | AK15: =SUM(AK7:AK14) ->  | AL15: =-SUM(AL7:AL14) ->  | AP15: =SUM(AP7:AP14) ->  | AQ15: =-SUM(AQ7:AQ14) ->  | AU15: =SUM(AU7:AU14) ->  | AV15: =-SUM(AV7:AV14) -> 
P16: U= | Q16: =Q15/(LOG(Q4)/LOG(2)) ->  | V16: U1= | W16: =W15/(LOG(W4)/LOG(2)) ->  | AA16: U2= | AB16: =AB15/(LOG(AB4)/LOG(2)) ->  | AF16: U3= | AG16: =AG15/(LOG(AG4)/LOG(2)) ->  | AK16: U4= | AL16: =AL15/(LOG(AL4)/LOG(2)) ->  | AP16: U5= | AQ16: =AQ15/(LOG(AQ4)/LOG(2)) ->  | AU16: U6= | AV16: =AV15/(LOG(AV4)/LOG(2)) -> 
N19: Total Target Seq
N20: =COUNTIF(L7:L7,G3) -> 0 | P20: 0 | Q20: 0 | R20: 1 | S20: 0 | T20: 0 | U20: 0
P21: % of reinforcement given in 6 equal intervals based on number of trials
P22: %_1 | Q22: %_2 | R22: %_3 | S22: %_4 | T22: %_5 | U22: %_6
O23: target sequence | P23: =$G$3 -> 211 | Q23: 211 | R23: 211 | S23: 211 | T23: 211 | U23: 211
O24: total reinforcement | P24: =U11 -> 0 | Q24: =Z11 -> 0 | R24: =AE11 -> 0 | S24: =AJ11 -> 0 | T24: =AO11 -> 0 | U24: =AT11 -> 0
O25: % target
O26: CCRF
O27: % CCRf
O28: average response rate | P28: =F6/P20 ->  | Q28: =(F6-F6)/Q20 ->  | R28: =(F7-F6)/R20 ->  | S28: =(F7-F7)/S20 ->  | T28: =(F7-F7)/T20 ->  | U28: =(F7-F7)/U20 -> 

Sheet !L91191I.sha
A1: Report for:!L91191I.sha
A2: Date: | B2: <date>
A3: Hen: | B3: <hen> | F3: Correct Sequence | G3: =Start!J2 -> 211 | P3: Total Sequences in Data | Q3: =4994-COUNTBLANK(L7:L5000) -> 2 | V3: Total Sequences in Block Data | W3: =COUNTA(L6:L7) -> 2 | AA3: Total Sequences in Block Data | AB3: =COUNTA(L7:L7) -> 1 | AF3: Total Sequences in Block Data | AG3: =COUNTA(L7:L8) -> 2 | AK3: Total Sequences in Block Data | AL3: =COUNTA(L7:L8) -> 2 | AP3: Total Sequences in Block Data | AQ3: =COUNTA(L8:L8) -> 1 | AU3: Total Sequences in Block Data | AV3: =COUNTA(L8:L9) -> 1
P4: Total Sequences in Summary | Q4: =SUM(O7:O14) -> 1 | V4: Total Sequences in Block Summary | W4: =SUM(U7:U14) -> 1 | AA4: Total Sequences in Block Summary | AB4: =SUM(Z7:Z14) -> 1 | AF4: Total Sequences in Block Summary | AG4: =SUM(AE7:AE14) -> 1 | AK4: Total Sequences in Block Summary | AL4: =SUM(AJ7:AJ14) -> 1 | AP4: Total Sequences in Block Summary | AQ4: =SUM(AO7:AO14) -> 0 | AU4: Total Sequences in Block Summary | AV4: =SUM(AT7:AT14) -> 0
T5: Block 1 | Y5: Block 2 | AD5: Block 3 | AI5: Block 4 | AN5: Block 5 | AS5: Block 6
A6: Sequence Component 1 | B6: Time 1 | C6: Sequence Component 2 | D6: Time 2 | E6: Sequence Component 3 | F6: Time 3 | G6: Sequence Component 4 | H6: Time 4 | I6: Sequence Component 5 | J6: Time 5 | K6: Correct? 0=No 1=Yes | L6: Sequence | N6: Frequency | P6: Relative Frequency | Q6: Variability | T6: Frequency | V6: Relative Frequency | W6: Variability | Y6: Frequency | AA6: Relative Frequency | AB6: Variability | AD6: Frequency | AF6: Relative Frequency | AG6: Variability | AI6: Frequency | AK6: Relative Frequency | AL6: Variability | AN6: Frequency | AP6: Relative Frequency | AQ6: Variability | AS6: Frequency | AU6: Relative Frequency | AV6: Variability
A7: 12 | B7: 1604 | C7: 24 | D7: 1618 | E7: 24 | F7: 1626 | K7: 0 | L7: 122 | N7: 111 | O7: =COUNTIF($L$7:$L$500,N7) -> 0 | P7: =O7/$Q$4 -> 0 | Q7: =IF(P7=0,0,(P7*((LOG(P7))/LOG(2)))) -> 0 | T7: =N7 -> 111 | U7: =COUNTIF(L6:L7,T7) -> 0 | V7: =U7/(W4-U11) -> 0 | W7: =IF(V7=0,0,(V7*((LOG(V7))/LOG(2)))) -> 0 | Y7: =N7 -> 111 | Z7: =COUNTIF(L7:L7,Y7) -> 0 | AA7: =Z7/(AB4-Z11) -> 0 | AB7: =IF(AA7=0,0,(AA7*((LOG(AA7))/LOG(2)))) -> 0 | AD7: =N7 -> 111 | AE7: =COUNTIF(L7:L8,AD7) -> 0 | AF7: =AE7/(AG4-AE11) -> 0 | AG7: =IF(AF7=0,0,(AF7*((LOG(AF7))/LOG(2)))) -> 0 | AI7: =N7 -> 111 | AJ7: =COUNTIF(L7:L8,AI7) -> 0 | AK7: =AJ7/(AL4-AJ11) -> 0 | AL7: =IF(AK7=0,0,(AK7*((LOG(AK7))/LOG(2)))) -> 0 | AN7: =N7 -> 111 | AO7: =COUNTIF(L8:L8,AN7) -> 0 | AP7: =AO7/(AQ4-AO11) ->  | AQ7: =IF(AP7=0,0,(AP7*((LOG(AP7))/LOG(2)))) ->  | AS7: =N7 -> 111 | AT7: =COUNTIF(L8:L9,AS7) -> 0 | AU7: =AT7/(AV4-AT11) ->  | AV7: =IF(AU7=0,0,(AU7*((LOG(AU7))/LOG(2)))) -> 
A8: 12 | B8: 14741 | C8: 13 | D8: 22361 | L8: 11 | N8: 112 | O8: 0 | P8: 0 | Q8: 0 | T8: 112 | U8: =COUNTIF(L6:L7,T8) -> 0 | V8: =U8/(W4-U11) -> 0 | W8: =IF(V8=0,0,(V8*((LOG(V8))/LOG(2)))) -> 0 | Y8: 112 | Z8: =COUNTIF(L7:L7,Y8) -> 0 | AA8: =Z8/(AB4-Z11) -> 0 | AB8: =IF(AA8=0,0,(AA8*((LOG(AA8))/LOG(2)))) -> 0 | AD8: 112 | AE8: =COUNTIF(L7:L8,AD8) -> 0 | AF8: =AE8/(AG4-AE11) -> 0 | AG8: =IF(AF8=0,0,(AF8*((LOG(AF8))/LOG(2)))) -> 0 | AI8: 112 | AJ8: =COUNTIF(L7:L8,AI8) -> 0 | AK8: =AJ8/(AL4-AJ11) -> 0 | AL8: =IF(AK8=0,0,(AK8*((LOG(AK8))/LOG(2)))) -> 0 | AN8: 112 | AO8: =COUNTIF(L8:L8,AN8) -> 0 | AP8: =AO8/(AQ4-AO11) ->  | AQ8: =IF(AP8=0,0,(AP8*((LOG(AP8))/LOG(2)))) ->  | AS8: 112 | AT8: =COUNTIF(L8:L9,AS8) -> 0 | AU8: =AT8/(AV4-AT11) ->  | AV8: =IF(AU8=0,0,(AU8*((LOG(AU8))/LOG(2)))) -> 
N9: 121 | O9: 0 | P9: 0 | Q9: 0 | T9: 121 | U9: =COUNTIF(L6:L7,T9) -> 0 | V9: =U9/(W4-U11) -> 0 | W9: =IF(V9=0,0,(V9*((LOG(V9))/LOG(2)))) -> 0 | Y9: 121 | Z9: =COUNTIF(L7:L7,Y9) -> 0 | AA9: =Z9/(AB4-Z11) -> 0 | AB9: =IF(AA9=0,0,(AA9*((LOG(AA9))/LOG(2)))) -> 0 | AD9: 121 | AE9: =COUNTIF(L7:L8,AD9) -> 0 | AF9: =AE9/(AG4-AE11) -> 0 | AG9: =IF(AF9=0,0,(AF9*((LOG(AF9))/LOG(2)))) -> 0 | AI9: 121 | AJ9: =COUNTIF(L7:L8,AI9) -> 0 | AK9: =AJ9/(AL4-AJ11) -> 0 | AL9: =IF(AK9=0,0,(AK9*((LOG(AK9))/LOG(2)))) -> 0 | AN9: 121 | AO9: =COUNTIF(L8:L8,AN9) -> 0 | AP9: =AO9/(AQ4-AO11) ->  | AQ9: =IF(AP9=0,0,(AP9*((LOG(AP9))/LOG(2)))) ->  | AS9: 121 | AT9: =COUNTIF(L8:L9,AS9) -> 0 | AU9: =AT9/(AV4-AT11) ->  | AV9: =IF(AU9=0,0,(AU9*((LOG(AU9))/LOG(2)))) -> 
N10: 122 | O10: 1 | P10: 1 | Q10: 0 | T10: 122 | U10: =COUNTIF(L6:L7,T10) -> 1 | V10: =U10/(W4-U11) -> 1 | W10: =IF(V10=0,0,(V10*((LOG(V10))/LOG(2)))) -> 0 | Y10: 122 | Z10: =COUNTIF(L7:L7,Y10) -> 1 | AA10: =Z10/(AB4-Z11) -> 1 | AB10: =IF(AA10=0,0,(AA10*((LOG(AA10))/LOG(2)))) -> 0 | AD10: 122 | AE10: =COUNTIF(L7:L8,AD10) -> 1 | AF10: =AE10/(AG4-AE11) -> 1 | AG10: =IF(AF10=0,0,(AF10*((LOG(AF10))/LOG(2)))) -> 0 | AI10: 122 | AJ10: =COUNTIF(L7:L8,AI10) -> 1 | AK10: =AJ10/(AL4-AJ11) -> 1 | AL10: =IF(AK10=0,0,(AK10*((LOG(AK10))/LOG(2)))) -> 0 | AN10: 122 | AO10: =COUNTIF(L8:L8,AN10) -> 0 | AP10: =AO10/(AQ4-AO11) ->  | AQ10: =IF(AP10=0,0,(AP10*((LOG(AP10))/LOG(2)))) ->  | AS10: 122 | AT10: =COUNTIF(L8:L9,AS10) -> 0 | AU10: =AT10/(AV4-AT11) ->  | AV10: =IF(AU10=0,0,(AU10*((LOG(AU10))/LOG(2)))) -> 
N11: 211 | O11: 0 | P11: 0 | Q11: 0 | T11: 211 | U11: =COUNTIF(L6:L7,T11) -> 0 | Y11: 211 | Z11: =COUNTIF(L7:L7,Y11) -> 0 | AD11: 211 | AE11: =COUNTIF(L7:L8,AD11) -> 0 | AI11: 211 | AJ11: =COUNTIF(L7:L8,AI11) -> 0 | AN11: 211 | AO11: =COUNTIF(L8:L8,AN11) -> 0 | AS11: 211 | AT11: =COUNTIF(L8:L9,AS11) -> 0
N12: 212 | O12: 0 | P12: 0 | Q12: 0 | T12: 212 | U12: =COUNTIF(L6:L7,T12) -> 0 | V12: =U12/(W4-U11) -> 0 | W12: =IF(V12=0,0,(V12*((LOG(V12))/LOG(2)))) -> 0 | Y12: 212 | Z12: =COUNTIF(L7:L7,Y12) -> 0 | AA12: =Z12/(AB4-Z11) -> 0 | AB12: =IF(AA12=0,0,(AA12*((LOG(AA12))/LOG(2)))) -> 0 | AD12: 212 | AE12: =COUNTIF(L7:L8,AD12) -> 0 | AF12: =AE12/(AG4-AE11) -> 0 | AG12: =IF(AF12=0,0,(AF12*((LOG(AF12))/LOG(2)))) -> 0 | AI12: 212 | AJ12: =COUNTIF(L7:L8,AI12) -> 0 | AK12: =AJ12/(AL4-AJ11) -> 0 | AL12: =IF(AK12=0,0,(AK12*((LOG(AK12))/LOG(2)))) -> 0 | AN12: 212 | AO12: =COUNTIF(L8:L8,AN12) -> 0 | AP12: =AO12/(AQ4-AO11) ->  | AQ12: =IF(AP12=0,0,(AP12*((LOG(AP12))/LOG(2)))) ->  | AS12: 212 | AT12: =COUNTIF(L8:L9,AS12) -> 0 | AU12: =AT12/(AV4-AT11) ->  | AV12: =IF(AU12=0,0,(AU12*((LOG(AU12))/LOG(2)))) -> 
N13: 221 | O13: 0 | P13: 0 | Q13: 0 | T13: 221 | U13: =COUNTIF(L6:L7,T13) -> 0 | V13: =U13/(W4-U11) -> 0 | W13: =IF(V13=0,0,(V13*((LOG(V13))/LOG(2)))) -> 0 | Y13: 221 | Z13: =COUNTIF(L7:L7,Y13) -> 0 | AA13: =Z13/(AB4-Z11) -> 0 | AB13: =IF(AA13=0,0,(AA13*((LOG(AA13))/LOG(2)))) -> 0 | AD13: 221 | AE13: =COUNTIF(L7:L8,AD13) -> 0 | AF13: =AE13/(AG4-AE11) -> 0 | AG13: =IF(AF13=0,0,(AF13*((LOG(AF13))/LOG(2)))) -> 0 | AI13: 221 | AJ13: =COUNTIF(L7:L8,AI13) -> 0 | AK13: =AJ13/(AL4-AJ11) -> 0 | AL13: =IF(AK13=0,0,(AK13*((LOG(AK13))/LOG(2)))) -> 0 | AN13: 221 | AO13: =COUNTIF(L8:L8,AN13) -> 0 | AP13: =AO13/(AQ4-AO11) ->  | AQ13: =IF(AP13=0,0,(AP13*((LOG(AP13))/LOG(2)))) ->  | AS13: 221 | AT13: =COUNTIF(L8:L9,AS13) -> 0 | AU13: =AT13/(AV4-AT11) ->  | AV13: =IF(AU13=0,0,(AU13*((LOG(AU13))/LOG(2)))) -> 
N14: 222 | O14: 0 | P14: 0 | Q14: 0 | T14: 222 | U14: =COUNTIF(L6:L7,T14) -> 0 | V14: =U14/(W4-U11) -> 0 | W14: =IF(V14=0,0,(V14*((LOG(V14))/LOG(2)))) -> 0 | Y14: 222 | Z14: =COUNTIF(L7:L7,Y14) -> 0 | AA14: =Z14/(AB4-Z11) -> 0 | AB14: =IF(AA14=0,0,(AA14*((LOG(AA14))/LOG(2)))) -> 0 | AD14: 222 | AE14: =COUNTIF(L7:L8,AD14) -> 0 | AF14: =AE14/(AG4-AE11) -> 0 | AG14: =IF(AF14=0,0,(AF14*((LOG(AF14))/LOG(2)))) -> 0 | AI14: 222 | AJ14: =COUNTIF(L7:L8,AI14) -> 0 | AK14: =AJ14/(AL4-AJ11) -> 0 | AL14: =IF(AK14=0,0,(AK14*((LOG(AK14))/LOG(2)))) -> 0 | AN14: 222 | AO14: =COUNTIF(L8:L8,AN14) -> 0 | AP14: =AO14/(AQ4-AO11) ->  | AQ14: =IF(AP14=0,0,(AP14*((LOG(AP14))/LOG(2)))) ->  | AS14: 222 | AT14: =COUNTIF(L8:L9,AS14) -> 0 | AU14: =AT14/(AV4-AT11) ->  | AV14: =IF(AU14=0,0,(AU14*((LOG(AU14))/LOG(2)))) -> 
P15: =SUM(P7:P14) -> 1 | Q15: =-SUM(Q7:Q14) -> 0 | V15: =SUM(V7:V14) -> 1 | W15: =-SUM(W7:W14) -> 0 | AA15: =SUM(AA7:AA14) -> 1 | AB15: =-SUM(AB7:AB14) -> 0 | AF15: =SUM(AF7:AF14) -> 1 | AG15: =-SUM(AG7:AG14) -> 0 | AK15: =SUM(AK7:AK14) -> 1 | AL15: =-SUM(AL7:AL14) -> 0 | AP15: =SUM(AP7:AP14) ->  | AQ15: =-SUM(AQ7:AQ14) ->  | AU15: =SUM(AU7:AU14) ->  | AV15: =-SUM(AV7:AV14) -> 
P16: U= | Q16: =Q15/(LOG(Q4)/LOG(2)) ->  | V16: U1= | W16: =W15/(LOG(W4)/LOG(2)) ->  | AA16: U2= | AB16: =AB15/(LOG(AB4)/LOG(2)) ->  | AF16: U3= | AG16: =AG15/(LOG(AG4)/LOG(2)) ->  | AK16: U4= | AL16: =AL15/(LOG(AL4)/LOG(2)) ->  | AP16: U5= | AQ16: =AQ15/(LOG(AQ4)/LOG(2)) ->  | AU16: U6= | AV16: =AV15/(LOG(AV4)/LOG(2)) -> 
N19: Total Target Seq
N20: =COUNTIF(L7:L8,G3) -> 0 | P20: 0 | Q20: 1 | R20: 0 | S20: 0 | T20: 1 | U20: 0
P21: % of reinforcement given in 6 equal intervals based on number of trials
P22: %_1 | Q22: %_2 | R22: %_3 | S22: %_4 | T22: %_5 | U22: %_6
O23: target sequence | P23: =$G$3 -> 211 | Q23: 211 | R23: 211 | S23: 211 | T23: 211 | U23: 211
O24: total reinforcement | P24: =U11 -> 0 | Q24: =Z11 -> 0 | R24: =AE11 -> 0 | S24: =AJ11 -> 0 | T24: =AO11 -> 0 | U24: =AT11 -> 0
O25: % target
O26: CCRF
O27: % CCRf
O28: average response rate | P28: =F6/P20 ->  | Q28: =(F7-F6)/Q20 ->  | R28: =(F7-F7)/R20 ->  | S28: =(F7-F7)/S20 ->  | T28: =(F8-F7)/T20 -> -1626 | U28: =(F8-F8)/U20 -> 

Sheet !L912A5I.sha
A1: Report for:!L912A5I.sha
A2: Date: | B2: <date>
A3: Hen: | B3: <hen> | F3: Correct Sequence | G3: =Start!J2 -> 211 | P3: Total Sequences in Data | Q3: =4994-COUNTBLANK(L7:L5000) -> 2 | V3: Total Sequences in Block Data | W3: =COUNTA(L6:L7) -> 2 | AA3: Total Sequences in Block Data | AB3: =COUNTA(L7:L7) -> 1 | AF3: Total Sequences in Block Data | AG3: =COUNTA(L7:L8) -> 2 | AK3: Total Sequences in Block Data | AL3: =COUNTA(L7:L8) -> 2 | AP3: Total Sequences in Block Data | AQ3: =COUNTA(L8:L8) -> 1 | AU3: Total Sequences in Block Data | AV3: =COUNTA(L8:L9) -> 1
